{"text_format":"1","workbook":"xlsx","n_sheets":7,"sheets":["Инструкция","Заявление","полис","договор","перечень имущества","опись отделки","Акт Осмотра"],"not_rendered":{"charts":0,"images":2,"macros":1,"external_links":0,"defined_names":6,"comments":2,"pivot_tables":0},"unopened":[],"bounds":{"document_bytes":16777216,"sheet_cells":100000,"rows_first":2000,"rows_last":500,"rows_between":2000,"halvings":0,"cell_chars":16384,"cell_head_chars":4096},"cells_cut":0,"cells_raw":0,"read":"whole","date_system":"1900"}

{"sheet":"Инструкция","index":0,"n_rows":53,"n_cols":90,"rows_kept":53,"cut":false,"hidden":true,"merged":[[32,89,32,90],[32,58,32,59],[32,3,32,57],[32,63,32,88],[5,3,5,90],[9,3,26,90],[28,25,28,40],[30,25,30,40],[30,42,30,90],[28,42,28,90],[28,3,28,23],[7,3,7,41],[52,16,52,17],[42,3,47,90],[52,8,52,9],[52,10,52,11],[52,12,52,13],[52,26,52,27],[52,28,52,29],[52,14,52,15],[50,28,50,29],[50,14,50,15],[50,16,50,17],[50,5,52,7],[51,49,52,78],[50,49,50,78],[52,18,52,19],[52,20,52,21],[52,22,52,23],[52,24,52,25],[50,22,50,23],[50,18,50,19],[50,20,50,21],[50,8,50,9],[50,10,50,11],[50,12,50,13],[51,8,51,29],[50,24,50,25],[50,26,50,27]]}
[]
[]
[]
[]
[]
[null,null,null,"Страхование имущества юридических лиц от огня и других опасностей."]
[]
[null,null,null,"Инструкция по работе с файлом."]
[]
[null,null,null," 1. Настоящий файл содержит пакет документов, которые размещены на разных листах:\n• Заявление\n• Полис\n• Договор\n• Перечень имущества\n• Опись отделки\nПорядок их применения определен в Методическом руководстве по продукту \"Страхование юридических лиц от огня и других опасностей\". Перечень имущества и опись отделки заполняются на соответствующих листах, либо прикладываются к данному пакету документов. \n• При печати документа \"Договор\" могут возникнуть временные трудности в связи с несовпадением формата документа - В этом случае документ \"Договор\" начиная со 2-й страницы необходимо распечатывать из аналогичного документа в формате Word."]
[]
[]
[]
[]
[]
[]
[]
[]
[]
[]
[]
[]
[]
[]
[]
[]
[]
[]
[null,null,null,"2. Поля, обозначенные:",null,null,null,null,null,null,null,null,null,null,null,null,null,null,null,null,null,null,null,null,null,"синим цветом",null,null,null,null,null,null,null,null,null,null,null,null,null,null,null,null,"- заполняются клиентом, либо представителем страховщика;"]
[]
[null,null,null,null,null,null,null,null,null,null,null,null,null,null,null,null,null,null,null,null,null,null,null,null,null,"зеленым цветом",null,null,null,null,null,null,null,null,null,null,null,null,null,null,null,null,"- заполняются автоматически."]
[]
[null,null,null,"3. Для выбора варианта ответа необходимо нажать на «чек-бокс»",null,null,null,null,null,null,null,null,null,null,null,null,null,null,null,null,null,null,null,null,null,null,null,null,null,null,null,null,null,null,null,null,null,null,null,null,null,null,null,null,null,null,null,null,null,null,null,null,null,null,null,null,null,null,null,null,null,null,null,"до появления «галочки»",null,null,null,null,null,null,null,null,null,null,null,null,null,null,null,null,null,null,null,null,null,null,null,null,null,"V"]
[]
[null,null,null,null,"Внимание! Галочки из чек-боксов Заявления (пункты 1.5 (Выгодоприобретатель) и 1.9 (валюта договора))"]
[]
[null,null,null,null,null,null,null,null,null,null,null,null,null,null,null,null,null,null,null,null,null,null,null,null,"в Полис и в Договор автоматически не переносятся."]
[]
[null,null,null,"4. В ситуации, когда текст не помещается в отведенное для заполнения место - Есть возможность"]
[]
[null,null,null,"регулирования размера высоты ячеек"]
[]
[null,null,null,"5. Для того, чтобы выбрать те опасности (риски) от которых Вы хотели бы застраховать имущество, необходимо в специально отведенном поле (справа от выбранной категории имущества) отметить их любой буквой. Чтобы удалить отмеченный риск нажмите кнопку \"Delete\"."]
[]
[]
[]
[]
[]
[]
[]
[null,null,null,null,null,1,null,null,"1-6",null,"1",null,"2",null,"3",null,"4",null,"5",null,"6",null,"7",null,"8",null,"9",null,"10",null,null,null,null,"получаем:",null,null,null,null,null,null,null,null,null,null,null,null,null,null,null,"Риски * (коды)"]
[null,null,null,null,null,null,null,null,null,null,null,null,null,null,null,null,null,null,null,null,null,null,null,null,null,null,null,null,null,null,null,null,null,null,null,null,null,null,null,null,null,null,null,null,null,null,null,null,null,3.6]
[null,null,null,null,null,null,null,null,null,null,null,null,null,null,"п",null,null,null,null,null,"п"]

{"sheet":"Заявление","index":1,"n_rows":673,"n_cols":225,"rows_kept":673,"cut":false,"hidden":false,"merged":[[39,72,39,106],[41,24,41,38],[653,53,653,74],[653,89,653,105],[140,137,140,141],[142,135,142,136],[142,137,142,141],[144,135,144,136],[144,137,144,141],[17,0,17,106],[18,0,18,106],[29,1,29,28],[29,30,29,106],[35,30,35,106],[37,30,37,106],[31,30,31,106],[33,30,33,106],[35,1,35,28],[37,1,37,28],[91,2,92,5],[89,42,90,45],[91,46,92,78],[97,6,98,15],[22,0,22,106],[24,0,24,106],[20,74,20,99],[20,69,20,73],[20,59,20,61],[20,30,20,31],[20,32,20,34],[20,35,20,36],[20,37,20,53],[20,54,20,58],[160,109,162,110],[53,6,53,11],[136,135,136,136],[15,0,15,79],[128,2,132,47],[15,81,15,106],[39,1,39,18],[39,19,39,23],[45,8,45,23],[39,40,39,46],[39,24,39,38],[39,47,39,63],[95,83,96,105],[138,48,140,74],[128,75,128,90],[128,48,132,74],[138,75,138,90],[97,83,98,105],[93,83,94,105],[95,79,96,82],[93,79,94,82],[91,83,92,105],[97,79,98,82],[97,46,98,54],[72,54,72,64],[66,1,70,106],[47,70,47,103],[58,1,58,106],[95,42,96,45],[20,1,20,29],[136,16,136,46],[41,47,41,63],[160,178,160,179],[43,24,43,106],[104,75,104,90],[136,137,136,141],[89,6,90,41],[93,6,94,41],[91,6,92,41],[91,112,92,133],[89,112,90,133],[142,91,142,106],[134,91,134,106],[138,91,138,106],[128,91,128,106],[146,109,146,132],[148,109,148,132],[211,109,212,132],[207,109,208,132],[209,109,210,132],[168,91,168,106],[168,111,168,112],[168,113,168,114],[168,121,168,122],[168,123,168,124],[168,125,168,126],[204,109,204,132],[200,113,200,114],[200,115,200,116],[200,117,200,118],[180,109,180,132],[106,135,106,136],[104,135,104,136],[156,109,158,110],[176,221,178,222],[146,75,146,90],[138,137,138,141],[140,135,140,136],[160,91,160,106],[194,201,194,223],[198,201,198,223],[192,201,192,223],[186,200,186,201],[186,202,186,203],[186,212,186,213],[186,214,186,215],[186,216,186,217],[186,210,186,211],[186,208,186,209],[198,172,200,173],[198,174,198,175],[198,176,198,177],[142,211,142,212],[194,198,196,199],[190,182,190,183],[190,184,190,185],[190,186,190,187],[200,174,200,175],[200,176,200,177],[200,178,200,179],[138,194,138,195],[140,194,140,195],[140,192,140,193],[160,172,162,173],[160,174,160,175],[160,176,160,177],[120,109,122,110],[142,125,142,126],[138,113,138,114],[141,111,141,132],[142,119,142,120],[140,121,140,122],[134,117,134,118],[134,115,134,116],[104,198,106,199],[110,198,112,199],[124,198,126,199],[128,198,130,199],[134,198,136,199],[152,215,152,216],[198,198,200,199],[104,202,104,224],[106,202,106,224],[110,202,110,224],[116,202,116,224],[120,202,120,224],[164,221,166,222],[168,221,170,222],[172,221,174,222],[164,194,164,195],[160,192,160,193],[164,192,164,193],[162,194,162,195],[162,192,162,193],[160,194,160,195],[154,209,154,210],[160,224,160,246],[164,224,164,246],[126,111,126,112],[156,131,156,132],[152,115,152,116],[160,123,160,124],[160,115,160,116],[160,117,160,118],[152,111,152,112],[152,113,152,114],[152,117,152,118],[110,111,110,112],[120,111,120,112],[120,119,120,120],[120,121,120,122],[116,119,116,120],[116,121,116,122],[118,111,118,112],[118,113,118,114],[118,115,118,116],[118,117,118,118],[118,119,118,120],[118,121,118,122],[118,123,118,124],[122,190,122,191],[134,180,134,181],[134,182,134,183],[116,198,118,199],[160,180,160,181],[152,186,152,187],[134,202,134,224],[142,205,142,206],[142,207,142,208],[190,198,192,199],[120,198,122,199],[142,197,142,198],[142,199,142,200],[186,196,186,197],[186,198,186,199],[152,197,152,198],[154,197,154,198],[142,203,142,204],[176,224,176,246],[190,201,190,223],[154,211,154,212],[142,201,142,202],[144,199,144,200],[144,201,144,202],[154,201,154,202],[144,205,144,206],[142,195,142,196],[124,194,124,195],[186,206,186,207],[190,194,190,195],[166,194,166,195],[168,194,168,195],[170,194,170,195],[144,195,144,196],[144,197,144,198],[144,203,144,204],[192,194,192,195],[168,224,168,246],[172,224,172,246],[124,202,124,224],[128,202,128,224],[97,151,97,152],[97,153,97,154],[97,155,97,156],[97,169,97,170],[97,157,97,158],[97,159,97,160],[97,161,97,162],[97,163,97,164],[97,165,97,166],[140,180,140,181],[140,186,140,187],[140,188,140,189],[140,190,140,191],[140,182,140,183],[140,184,140,185],[140,178,140,179],[136,180,136,181],[100,165,100,166],[100,159,100,160],[100,161,100,162],[100,163,100,164],[124,174,124,175],[126,182,126,183],[130,178,130,179],[130,180,130,181],[124,180,124,181],[122,176,122,177],[122,178,122,179],[122,180,122,181],[124,188,124,189],[116,172,118,173],[116,174,116,175],[142,209,142,210],[138,202,138,224],[142,217,142,239],[144,207,144,208],[144,209,144,210],[144,211,144,212],[134,194,134,195],[152,224,152,246],[156,224,156,246],[154,224,154,246],[154,207,154,208],[152,217,152,218],[152,209,152,210],[152,211,152,212],[142,214,144,215],[152,221,154,222],[156,221,158,222],[160,221,162,222],[154,213,154,214],[154,215,154,216],[154,217,154,218],[152,213,152,214],[164,176,164,177],[164,178,164,179],[164,180,164,181],[162,174,162,175],[196,174,196,175],[196,176,196,177],[196,178,196,179],[196,180,196,181],[196,182,196,183],[196,184,196,185],[164,174,164,175],[166,176,166,177],[166,178,166,179],[166,180,166,181],[166,182,166,183],[166,184,166,185],[164,184,164,185],[178,174,178,175],[178,176,178,177],[168,178,168,179],[170,178,170,179],[174,178,174,179],[174,176,174,177],[172,174,172,175],[194,178,194,179],[192,176,192,177],[192,178,192,179],[166,174,166,175],[170,180,170,181],[168,180,168,181],[162,178,162,179],[172,172,174,173],[162,180,162,181],[164,172,166,173],[198,178,198,179],[196,186,196,187],[200,194,200,195],[198,188,198,189],[198,190,198,191],[198,192,198,193],[198,194,198,195],[200,192,200,193],[200,190,200,191],[200,186,200,187],[198,180,198,181],[198,184,198,185],[198,186,198,187],[200,180,200,181],[200,188,200,189],[200,182,200,183],[200,184,200,185],[198,182,198,183],[188,172,188,191],[190,172,192,173],[190,174,190,175],[190,176,190,177],[190,178,190,179],[192,190,192,191],[192,182,192,183],[192,174,192,175],[194,172,196,173],[194,174,194,175],[194,176,194,177],[194,190,194,191],[194,192,194,193],[192,184,192,185],[190,188,190,189],[194,188,194,189],[192,188,192,189],[192,186,192,187],[192,192,192,193],[190,190,190,191],[190,192,190,193],[194,186,194,187],[194,182,194,183],[194,184,194,185],[194,180,194,181],[192,180,192,181],[194,194,194,195],[196,192,196,193],[196,194,196,195],[196,188,196,189],[196,190,196,191],[176,190,176,191],[172,194,172,195],[174,194,174,195],[174,188,174,189],[172,188,172,189],[176,192,176,193],[176,194,176,195],[174,180,174,181],[178,188,178,189],[176,180,176,181],[176,182,176,183],[176,188,176,189],[176,184,176,185],[176,186,176,187],[174,182,174,183],[172,180,172,181],[178,180,178,181],[178,182,178,183],[178,184,178,185],[178,186,178,187],[174,190,174,191],[174,192,174,193],[172,190,172,191],[172,192,172,193],[172,186,172,187],[178,190,178,191],[178,192,178,193],[178,194,178,195],[166,188,166,189],[166,190,166,191],[166,192,166,193],[164,190,164,191],[160,182,160,183],[160,184,160,185],[160,186,160,187],[160,188,160,189],[164,182,164,183],[162,182,162,183],[162,188,162,189],[162,190,162,191],[164,188,164,189],[160,190,160,191],[170,190,170,191],[170,182,170,183],[170,184,170,185],[170,186,170,187],[168,182,168,183],[168,184,168,185],[168,186,168,187],[170,188,170,189],[168,190,168,191],[168,192,168,193],[168,188,168,189],[170,192,170,193],[166,186,166,187],[152,188,152,189],[152,190,152,191],[152,192,152,193],[154,190,154,191],[154,192,154,193],[154,184,154,185],[154,186,154,187],[154,188,154,189],[154,182,154,183],[158,182,158,183],[156,184,156,185],[156,186,156,187],[156,188,156,189],[156,194,156,195],[158,194,158,195],[154,203,154,204],[154,194,154,195],[152,194,152,195],[156,182,156,183],[156,190,156,191],[156,192,156,193],[158,184,158,185],[158,186,158,187],[158,188,158,189],[158,190,158,191],[158,192,158,193],[152,180,152,181],[152,182,152,183],[150,172,150,187],[152,172,154,173],[152,174,152,175],[152,176,152,177],[152,178,152,179],[152,184,152,185],[154,199,154,200],[154,174,154,175],[138,198,140,199],[140,174,140,175],[140,176,140,177],[138,180,138,181],[138,186,138,187],[138,182,138,183],[138,184,138,185],[142,189,144,190],[142,191,142,192],[142,193,142,194],[138,188,138,189],[138,190,138,191],[144,172,144,187],[138,174,138,175],[138,176,138,177],[138,178,138,179],[154,180,154,181],[138,172,140,173],[138,192,138,193],[154,176,154,177],[144,191,144,192],[144,193,144,194],[124,192,124,193],[130,194,130,195],[128,172,130,173],[128,174,128,175],[128,176,128,177],[128,178,128,179],[128,180,128,181],[130,174,130,175],[128,188,128,189],[128,190,128,191],[128,192,128,193],[128,194,128,195],[126,188,126,189],[126,174,126,175],[126,176,126,177],[126,178,126,179],[126,180,126,181],[126,194,126,195],[126,192,126,193],[126,184,126,185],[126,186,126,187],[130,176,130,177],[128,182,128,183],[130,182,130,183],[130,184,130,185],[124,176,124,177],[124,178,124,179],[124,190,124,191],[124,182,124,183],[124,184,124,185],[126,190,126,191],[124,186,124,187],[134,192,134,193],[136,194,136,195],[134,190,134,191],[136,182,136,183],[134,186,134,187],[134,188,134,189],[136,192,136,193],[136,184,136,185],[122,192,122,193],[120,188,120,189],[120,190,120,191],[120,192,120,193],[120,180,120,181],[120,182,120,183],[120,194,120,195],[122,182,122,183],[122,184,122,185],[120,184,120,185],[120,186,120,187],[122,194,122,195],[122,186,122,187],[122,188,122,189],[134,184,134,185],[136,188,136,189],[136,186,136,187],[136,190,136,191],[130,188,130,189],[128,184,128,185],[128,186,128,187],[130,186,130,187],[130,190,130,191],[130,192,130,193],[116,176,116,177],[116,178,116,179],[116,194,116,195],[118,174,118,175],[118,176,118,177],[118,178,118,179],[118,180,118,181],[118,182,118,183],[118,194,118,195],[116,180,116,181],[116,192,116,193],[118,188,118,189],[118,190,118,191],[118,192,118,193],[116,188,116,189],[116,190,116,191],[116,182,116,183],[116,184,116,185],[116,186,116,187],[118,184,118,185],[118,186,118,187],[104,188,104,189],[104,190,104,191],[104,192,104,193],[104,194,104,195],[104,180,104,181],[104,182,104,183],[104,184,104,185],[104,186,104,187],[106,188,106,189],[106,190,106,191],[106,192,106,193],[106,194,106,195],[106,180,106,181],[106,182,106,183],[106,184,106,185],[106,186,106,187],[112,180,112,181],[110,186,110,187],[110,188,110,189],[110,190,110,191],[110,180,110,181],[110,182,110,183],[110,192,110,193],[110,194,110,195],[112,182,112,183],[112,184,112,185],[112,186,112,187],[112,188,112,189],[112,190,112,191],[112,192,112,193],[112,194,112,195],[110,184,110,185],[16,0,16,106],[72,110,72,133],[104,119,104,120],[104,121,104,122],[106,125,106,126],[106,127,106,128],[104,111,104,112],[78,110,79,111],[104,117,104,118],[73,110,75,111],[112,131,112,132],[89,110,90,111],[95,110,96,111],[93,110,94,111],[91,110,92,111],[20,62,20,64],[100,167,100,168],[45,24,45,103],[41,72,41,106],[89,2,90,5],[89,46,90,78],[53,13,53,106],[110,149,110,150],[110,151,110,152],[110,165,110,166],[104,153,104,154],[104,149,104,150],[106,119,106,120],[106,121,106,122],[106,129,106,130],[106,131,106,132],[106,153,106,154],[91,42,92,45],[95,46,96,78],[104,172,106,173],[104,174,104,175],[104,176,104,177],[104,178,104,179],[106,174,106,175],[106,176,106,177],[106,178,106,179],[102,151,102,152],[97,167,97,168],[104,48,108,74],[91,79,92,82],[104,165,104,166],[104,167,104,168],[104,169,104,170],[106,167,106,168],[106,165,106,166],[106,163,106,164],[104,163,104,164],[104,131,104,132],[104,155,104,156],[104,157,104,158],[104,159,104,160],[104,161,104,162],[104,151,104,152],[106,113,106,114],[106,115,106,116],[106,117,106,118],[106,151,106,152],[102,149,102,150],[97,149,97,150],[122,174,122,175],[120,172,122,173],[120,174,120,175],[120,176,120,177],[120,178,120,179],[134,172,136,173],[134,174,134,175],[134,176,134,177],[134,178,134,179],[136,174,136,175],[136,176,136,177],[136,178,136,179],[124,172,126,173],[102,75,102,90],[110,172,112,173],[110,174,110,175],[110,176,110,177],[110,178,110,179],[112,174,112,175],[112,176,112,177],[112,178,112,179],[128,109,130,110],[122,115,122,116],[122,117,122,118],[122,119,122,120],[122,121,122,122],[122,123,122,124],[122,125,122,126],[126,113,126,114],[126,115,126,116],[126,117,126,118],[126,119,126,120],[672,1,672,106],[152,91,152,106],[112,111,112,112],[106,111,106,112],[116,111,116,112],[104,113,104,114],[106,123,106,124],[104,123,104,124],[104,125,104,126],[104,115,104,116],[104,127,104,128],[124,125,124,126],[124,127,124,128],[124,129,124,130],[190,91,190,106],[198,91,198,106],[275,25,275,106],[351,2,351,106],[363,2,363,106],[429,36,429,106],[457,69,457,106],[558,61,558,106],[552,65,552,106],[463,75,463,106],[461,75,461,106],[525,56,525,80],[527,62,527,86],[399,13,399,66],[423,2,423,106],[403,2,403,106],[431,36,431,106],[506,51,506,106],[670,12,670,106],[198,75,198,90],[172,75,172,90],[172,91,172,106],[190,48,192,74],[176,75,176,90],[327,56,327,106],[597,91,597,98],[116,48,118,74],[120,48,122,74],[124,48,126,74],[110,48,114,74],[124,91,124,106],[124,75,124,90],[116,91,116,106],[116,75,116,90],[110,91,110,106],[285,34,285,106],[292,90,292,106],[290,32,290,48],[292,32,292,48],[290,90,290,106],[516,31,516,48],[444,2,444,106],[164,75,164,90],[164,91,164,106],[156,75,156,90],[120,91,120,106],[120,75,120,90],[359,13,359,106],[202,48,203,74],[250,1,253,106],[296,28,296,106],[202,75,202,90],[287,38,287,106],[296,2,296,26],[233,20,233,106],[209,2,212,106],[134,75,134,90],[47,24,47,61],[93,46,94,78],[49,27,49,47],[72,38,72,48],[134,48,136,74],[89,83,90,105],[89,79,90,82],[95,2,96,5],[93,2,94,5],[97,2,98,5],[97,42,98,45],[97,16,98,41],[95,6,96,41],[102,91,102,106],[110,75,110,90],[152,75,152,90],[146,48,147,74],[180,48,181,74],[255,74,255,105],[257,74,257,105],[97,55,98,78],[104,91,104,106],[93,42,94,45],[180,75,180,90],[194,91,194,106],[168,75,168,90],[142,75,142,90],[213,109,215,132],[190,75,190,90],[120,113,120,114],[112,113,112,114],[112,115,112,116],[112,117,112,118],[112,119,112,120],[110,121,110,122],[110,131,110,132],[112,121,112,122],[110,117,110,118],[110,119,110,120],[112,123,112,124],[112,125,112,126],[110,113,110,114],[198,113,198,114],[198,129,198,130],[196,123,196,124],[198,119,198,120],[198,121,198,122],[178,123,178,124],[178,125,178,126],[178,119,178,120],[134,109,136,110],[138,109,140,110],[138,115,138,116],[138,117,138,118],[138,119,138,120],[134,111,134,112],[124,109,126,110],[124,2,127,47],[142,48,144,74],[194,48,196,74],[198,48,200,74],[104,109,106,110],[110,109,112,110],[142,109,144,110],[152,109,154,110],[104,129,104,130],[104,137,104,141],[110,169,110,170],[110,153,110,154],[110,135,110,136],[110,137,110,141],[118,135,118,136],[118,137,118,141],[120,135,120,136],[120,137,120,141],[110,161,110,162],[110,163,110,164],[110,167,110,168],[110,155,110,156],[106,161,106,162],[106,155,106,156],[110,123,110,124],[110,125,110,126],[110,127,110,128],[110,129,110,130],[106,149,106,150],[106,157,106,158],[106,159,106,160],[194,75,194,90],[116,113,116,114],[116,115,116,116],[116,117,116,118],[118,125,118,126],[116,151,116,152],[116,153,116,154],[116,155,116,156],[116,157,116,158],[116,125,116,126],[112,159,112,160],[112,137,112,141],[116,135,116,136],[116,137,116,141],[116,127,116,128],[116,129,116,130],[116,131,116,132],[116,149,116,150],[120,167,120,168],[112,165,112,166],[106,169,106,170],[106,137,106,141],[120,123,120,124],[120,125,120,126],[110,157,110,158],[110,159,110,160],[116,167,116,168],[116,169,116,170],[112,161,112,162],[112,167,112,168],[116,163,116,164],[116,165,116,166],[110,115,110,116],[116,161,116,162],[116,123,116,124],[122,161,122,162],[122,157,122,158],[124,167,124,168],[112,169,112,170],[112,127,112,128],[112,129,112,130],[118,167,118,168],[120,149,120,150],[120,159,120,160],[120,161,120,162],[118,165,118,166],[118,151,118,152],[118,153,118,154],[120,165,120,166],[120,151,120,152],[120,153,120,154],[118,169,118,170],[118,127,118,128],[118,129,118,130],[118,131,118,132],[118,149,118,150],[118,163,118,164],[118,159,118,160],[118,161,118,162],[118,155,118,156],[118,157,118,158],[120,169,120,170],[120,155,120,156],[120,157,120,158],[120,127,120,128],[120,129,120,130],[120,131,120,132],[112,163,112,164],[120,163,120,164],[116,159,116,160],[112,149,112,150],[112,155,112,156],[112,135,112,136],[112,157,112,158],[112,151,112,152],[112,153,112,154],[124,131,124,132],[124,153,124,154],[124,155,124,156],[124,137,124,141],[124,151,124,152],[120,115,120,116],[120,117,120,118],[124,169,124,170],[122,167,122,168],[124,149,124,150],[124,159,124,160],[124,161,124,162],[122,165,122,166],[122,151,122,152],[124,157,124,158],[124,163,124,164],[122,169,122,170],[122,127,122,128],[122,129,122,130],[122,131,122,132],[122,149,122,150],[122,163,122,164],[122,159,122,160],[126,151,126,152],[126,153,126,154],[126,159,126,160],[128,137,128,141],[130,117,130,118],[130,119,130,120],[130,121,130,122],[130,123,130,124],[130,125,130,126],[128,123,128,124],[128,125,128,126],[130,115,130,116],[128,129,128,130],[128,135,128,136],[128,151,128,152],[128,153,128,154],[128,155,128,156],[134,169,134,170],[134,163,134,164],[134,165,134,166],[134,151,134,152],[134,153,134,154],[134,155,134,156],[136,119,136,120],[136,121,136,122],[136,123,136,124],[136,125,136,126],[130,169,130,170],[130,127,130,128],[130,129,130,130],[130,131,130,132],[130,149,130,150],[130,163,130,164],[130,151,130,152],[130,153,130,154],[130,159,130,160],[130,161,130,162],[134,131,134,132],[134,149,134,150],[134,159,134,160],[134,161,134,162],[130,155,130,156],[130,157,130,158],[134,135,134,136],[134,137,134,141],[130,165,130,166],[130,135,130,136],[130,137,130,141],[138,169,138,170],[136,161,136,162],[136,157,136,158],[136,167,136,168],[138,159,138,160],[138,161,138,162],[136,169,136,170]],"merged_total":1817,"flags":["merged_cut"]}
[]
[]
[]
[]
[]
[null,null,null,null,null,null,null,null,null,null,null,null,"Центральный офис: 191119 Россия, Санкт-Петербург, Лиговский пр., д. 108, лит.А, тел.(812) 611-0296, (812) 777-0275                                                                                                                                                                www.guideh.com   E-mail: office@guideh.com\nИНН 7809016423 Р/с 40701810833000001031 в ПАО \"Банк \"Санкт-Петербург\" К/с 30101810900000000790  БИК 044030790"]
[]
[]
[]
[]
[]
[]
[]
[]
[]
["Приложение № 1 к договору страхования № ",null,null,null,null,null,null,null,null,null,null,null,null,null,null,null,null,null,null,null,null,null,null,null,null,null,null,null,null,null,null,null,null,null,null,null,null,null,null,null,null,null,null,null,null,null,null,null,null,null,null,null,null,null,null,null,null,null,null,null,null,null,null,null,null,null,null,null,null,null,null,null,null,null,null,null,null,null,null,null,null,{"$f":"полис!BE18","v":0}]
[]
["ЗАЯВЛЕНИЕ"]
["о страховании имущества юридических лиц от огня и других опасностей"]
[]
[null,"Дата заполнения заявления:",null,null,null,null,null,null,null,null,null,null,null,null,null,null,null,null,null,null,null,null,null,null,null,null,null,null,null,null,"«___»______________201__г.",null,null,null,null,"»",null,null,null,null,null,null,null,null,null,null,null,null,null,null,null,null,null,null,20,null,null,null,null,null,null,null,"г.",null,null,null,null,null,null,"№",null,null,null,null,{"$f":"CD16","v":0}]
[]
["Все пункты настоящего Заявления подлежат обязательному заполнению. Неполное заполнение Заявления дает право"]
[]
["АО \"СК ГАЙДЕ\" не принять заявление Страхователя и воздержаться от предоставления условий страхования."]
[]
[]
[null,"1. Общая информация"]
[]
[null,"1.1.Наименование Страхователя:",null,null,null,null,null,null,null,null,null,null,null,null,null,null,null,null,null,null,null,null,null,null,null,null,null,null,null,null,null,null,null,null,null,null,null,null,null,null,null,null,null,null,null,null,null,null,null,null,null,null,null,null,null,null,null,null,null,null,null,null,null,null,null,null,null,null,null,null,null,null,null,null,null,null,null,null,null,null,null,null,null,null,null,null,null,null,null,null,null,null,null,null,null,null,null,null,null,null,null,null,null,null,null,null,null,null,null,null,null,null,null,null,null,null,null,null,null,null,null,null,null,null,null,null,null,null,null,null,null,null,null,null,null,null,null,null,null,null,null,null,null,null,null,null,null,null,null,null,{"$f":"AE30","v":0}]
[]
[null,null,null,null,null,null,null,null,null,null,null,null,null,null,null,null,null,null,null,null,null,null,null,null,null,null,null,null,"в лице:",null,null,null,null,null,null,null,null,null,null,null,null,null,null,null,null,null,null,null,null,null,null,null,null,null,null,null,null,null,null,null,null,null,null,null,null,null,null,null,null,null,null,null,null,null,null,null,null,null,null,null,null,null,null,null,null,null,null,null,null,null,null,null,null,null,null,null,null,null,null,null,null,null,null,null,null,null,null,null,null,null,null,null,null,null,null,null,null,null,null,null,null,null,null,null,null,null,null,null,null,null,null,null,null,null,null,null,null,null,null,null,null,null,null,null,null,null,null,null,null,null,{"$f":"AE32","v":0}]
[]
[null,null,null,null,null,null,null,null,null,null,null,null,null,null,null,null,null,null,null,null,null,null,null,null,null,null,null,null,"действующего на основании:",null,null,null,null,null,null,null,null,null,null,null,null,null,null,null,null,null,null,null,null,null,null,null,null,null,null,null,null,null,null,null,null,null,null,null,null,null,null,null,null,null,null,null,null,null,null,null,null,null,null,null,null,null,null,null,null,null,null,null,null,null,null,null,null,null,null,null,null,null,null,null,null,null,null,null,null,null,null,null,null,null,null,null,null,null,null,null,null,null,null,null,null,null,null,null,null,null,null,null,null,null,null,null,null,null,null,null,null,null,null,null,null,null,null,null,null,null,null,null,null,null,{"$f":"AE34","v":0}]
[]
[null,"1.2.Юридический адрес:",null,null,null,null,null,null,null,null,null,null,null,null,null,null,null,null,null,null,null,null,null,null,null,null,null,null,null,null,null,null,null,null,null,null,null,null,null,null,null,null,null,null,null,null,null,null,null,null,null,null,null,null,null,null,null,null,null,null,null,null,null,null,null,null,null,null,null,null,null,null,null,null,null,null,null,null,null,null,null,null,null,null,null,null,null,null,null,null,null,null,null,null,null,null,null,null,null,null,null,null,null,null,null,null,null,null,null,null,null,null,null,null,null,null,null,null,null,null,null,null,null,null,null,null,null,null,null,null,null,null,null,null,null,null,null,null,null,null,null,null,null,null,null,null,null,null,null,null,{"$f":"AE36","v":0}]
[]
[null,"1.3.Фактический адрес:",null,null,null,null,null,null,null,null,null,null,null,null,null,null,null,null,null,null,null,null,null,null,null,null,null,null,null,null,null,null,null,null,null,null,null,null,null,null,null,null,null,null,null,null,null,null,null,null,null,null,null,null,null,null,null,null,null,null,null,null,null,null,null,null,null,null,null,null,null,null,null,null,null,null,null,null,null,null,null,null,null,null,null,null,null,null,null,null,null,null,null,null,null,null,null,null,null,null,null,null,null,null,null,null,null,null,null,null,null,null,null,null,null,null,null,null,null,null,null,null,null,null,null,null,null,null,null,null,null,null,null,null,null,null,null,null,null,null,null,null,null,null,null,null,null,null,null,null,null,null,null,null,null,", именуемое в дальнейшем Страхователь, в лице "]
[]
[null,"1.4.Реквизиты:",null,null,null,null,null,null,null,null,null,null,null,null,null,null,null,null,null,"ИНН:",null,null,null,null,null,null,null,null,null,null,null,null,null,null,null,null,null,null,null,null,"ОКВЭД:",null,null,null,null,null,null,null,null,null,null,null,null,null,null,null,null,null,null,null,null,null,null,null,null,"Расч. сч.",null,null,null,null,null,null,null,null,null,null,null,null,null,null,null,null,null,null,null,null,null,null,null,null,null,null,null,null,null,null,null,null,null,null,null,null,null,null,null,null,null,null,null,null,null,null,null,null,null,null,null,null,null,null,null,null,null,null,null,null,null,null,null,null,null,null,null,null,null,null,null,null,null,null,null,null,null,null,null,null,null,null,null,null,null,null,null,null,null,", действующего на основании "]
[]
[null,null,null,null,null,null,null,null,null,null,null,null,null,null,null,null,null,null,null,"БИК:",null,null,null,null,null,null,null,null,null,null,null,null,null,null,null,null,null,null,null,null,null,null,"Банк:",null,null,null,null,null,null,null,null,null,null,null,null,null,null,null,null,null,null,null,null,null,null,"Корр.сч.",null,null,null,null,null,null,null,null,null,null,null,null,null,null,null,null,null,null,null,null,null,null,null,null,null,null,null,null,null,null,null,null,null,null,null,null,null,null,null,null,null,null,null,null,null,null,null,null,null,null,null,null,null,null,null,null,null,null,null,null,null,null,null,null,null,null,null,null,null,null,null,null,null,null,null,null,null,null,null,null,null,null,null,null,null,null,null,null,null," с другой стороны,"]
[]
[null,null,null,null,null,null,null,null,null,"Почтовый адрес:",null,null,null,null,null,null,null,null,null,null,null,null,null,null,null,null,null,null,null,null,null,null,null,null,null,null,null,null,null,null,null,null,null,null,null,null,null,null,null,null,null,null,null,null,null,null,null,null,null,null,null,null,null,null,null,null,null,null,null,null,null,null,null,null,null,null,null,null,null,null,null,null,null,null,null,null,null,null,null,null,null,null,null,null,null,null,null,null,null,null,null,null,null,null,null,null,null,null,null,null,null,null,null,null,null,null,null,null,null,null,null,null,null,null,null,null,null,null,null,null,null,null,null,null,null,null,null,null,null,null,null,null,null,null,null,null,null,null,null,null,null,null,null,null,null," заключили настоящий договор страхования имущества юридических лиц от огня и других опасностей  (далее - Договор страхования или"]
[]
[null,null,null,null,null,null,null,null,"Контактное лицо:",null,null,null,null,null,null,null,null,null,null,null,null,null,null,null,null,null,null,null,null,null,null,null,null,null,null,null,null,null,null,null,null,null,null,null,null,null,null,null,null,null,null,null,null,null,null,null,null,null,null,null,null,null,null,null,null,null,null,null,null,null,null,null,null,null,null,null,null,null,null,null,null,null,null,null,null,null,null,null,null,null,null,null,null,null,null,null,null,null,null,null,null,null,null,null,null,null,null,null,null,null,null,null,null,null,null,null,null,null,null,null,null,null,null,null,null,null,null,null,null,null,null,null,null,null,null,null,null,null,null,null,null,null,null,null,null,null,null,null,null,null,null,null,null,null,null," Договор) на основании Правил страхования имущества юридических лиц от огня и других опасностей (ред. от 06.12.2011 года) ОАО \"Страховая "]
[]
[null,null,null,null,null,null,null,null,null,null,null,null,null,null,"тел / факс:",null,null,null,null,null,null,null,null,null,null,null,null,null,null,null,null,null,null,null,null,null,null,null,null,null,null,null,null,null,null,null,null,null,null,null,null,null,null,null,null,null,null,null,null,null,null,null,null,"e-mail:",null,null,null,null,null,null,null,null,null,null,null,null,null,null,null,null,null,null,null,null,null,null,null,null,null,null,null,null,null,null,null,null,null,null,null,null,null,null,null,null,null,null,null,null,null,null,null,null,null,null,null,null,null,null,null,null,null,null,null,null,null,null,null,null,null,null,null,null,null,null,null,null,null,null,null,null,null,null,null,null,null,null,null,null,null,null,null,null,null,null,null," компания ГАЙДЕ\"   (далее - Правила страхования или Правила) на следующих условиях:"]
[]
[null,"1.5.Выгодоприобретатель:",null,null,null,null,null,null,null,null,null,null,null,null,null,null,null,null,null,null,null,null,null,null,null,null,null,"Страхователь",null,null,null,null,null,null,null,null,null,null,null,null,null,null,null,null,null,null,null,null,null,null,null,null,null,null,null,null,null,null,null,null,null,null,null,null,null,null,null,null,null,null,null,null,null,null,null,null,null,null,null,null,null,null,null,null,null,null,null,null,null,null,null,null,null,null,null,null,null,null,null,null,null,null,null,null,null,null,null,null,null,null,null,null,null,null,null,null,null,null,null,null,null,null,null,null,null,null,null,null,null,null,null,null,null,null,null,null,null,null,null,null,null,null,null,null,null,null,null,null,null,null,null,null,null,null,null," Договор) на следующих условиях:"]
[]
[null,null,null,null,null,null,"Лицо, обладающее интересом в сохранении подлежащего страхованию имущества (страхование \"за счет кого следует\").",null,null,null,null,null,null,null,null,null,null,null,null,null,null,null,null,null,null,null,null,null,null,null,null,null,null,null,null,null,null,null,null,null,null,null,null,null,null,null,null,null,null,null,null,null,null,null,null,null,null,null,null,null,null,null,null,null,null,null,null,null,null,null,null,null,null,null,null,null,null,null,null,null,null,null,null,null,null,null,null,null,null,null,null,null,null,null,null,null,null,null,null,null,null,null,null,null,null,null,null,null,null,null,null,null,null,null,null,null,null,null,null,null,null,null,null,null,null,null,null,null,null,null,null,null,null,null,null,null,null,null,null,null,null,null,null,null,null,null,null,null,null,null,null,null,null,null,null," заключили договор страхования имущества юридических лиц от огня и других опасностей  (далее - Договор страхования или"]
[]
[null,null,null,null,null,null,"Иное:"]
[]
[null,"1.6.Укажите территорию страхования (место расположения объектов страхования) – точный адрес"]
[null,"(если необходимо, с указанием номера корпуса, офиса, комнаты)"]
[]
[null," ",null,null,null,null,null,null,null,null,null,null,null,null,null,null,null,null,null,null,null,null,null,null,null,null,null,null,null,null,null,null,null,null,null,null,null,null,null,null,null,null,null,null,null,null,null,null,null,null,null,null,null,null,null,null,null,null,null,null,null,null,null,null,null,null,null,null,null,null,null,null,null,null,null,null,null,null,null,null,null,null,null,null,null,null,null,null,null,null,null,null,null,null,null,null,null,null,null,null,null,null,null,null,null,null,null,null,null,null,null,null,null,null,null,null,null,null,null,null,null,null,null,null,null,null,null,null,null,null,null,null,null,null,null,null,null,null,null,null,null,null,null,null,null,null,null,null,null,null,{"$f":"B59","v":" "}]
[]
[null,"1.7.Если за последние 5 лет на территории страхования происходили события, соответствующие определениям рисков,"]
[]
[null,"подлежащих страхованию, укажите это (дата события, его характер; сумма ущерба; меры, принятые с целью"]
[]
[null,"предотвращения подобных событий в будущем):",null,null,null,null,null,null,null,null,null,null,null,null,null,null,null,null,null,null,null,null,null,null,null,null,null,null,null,null,null,null,null,null,null,null,null,null,null,null,null,null,null,null,null,null,null,null,null,null,"Такие события не происходили"]
[]
[]
[]
[]
[]
[]
[]
[null,"1.8. Необходимый период страхования:",null,null,null,null,null,null,null,null,null,null,null,null,null,null,null,null,null,null,null,null,null,null,null,null,null,null,null,null,null,null,null,null,null,"с",null,null,null,null,null,null,null,null,null,null,null,null,null,null,"по",null,null,null,null,null,null,null,null,null,null,null,null,null,null,null,null,null,null,null,null,null,null,null,null,null,null,null,null,null,null,null,null,null,null,null,null,null,null,null,null,null,null,null,null,null,null,null,null,null,null,null,null,null,null,null,null,null,null,null,"* коды страховых рисков"]
[null,null,null,null,null,null,null,null,null,null,null,null,null,null,null,null,null,null,null,null,null,null,null,null,null,null,null,null,null,null,null,null,null,null,null,null,null,null,null,null,null,null,null,null,null,null,null,null,null,null,null,null,null,null,null,null,null,null,null,null,null,null,null,null,null,null,null,null,null,null,null,null,null,null,null,null,null,null,null,null,null,null,null,null,null,null,null,null,null,null,null,null,null,null,null,null,null,null,null,null,null,null,null,null,null,null,null,null,null,null,"1.",null,"Пожар, удар молнии, взрыв"]
[]
[null,"1.9.Валюта Договора, в которой устанавливаются размеры страховой премии, страховой стоимости, страховой суммы и франшизы"]
[null,null,null,null,null,null,null,null,null,null,null,null,null,null,null,null,null,null,null,null,null,null,null,null,null,null,null,null,null,null,null,null,null,null,null,null,null,null,null,null,null,null,null,null,null,null,null,null,null,null,null,null,null,null,null,null,null,null,null,null,null,null,null,null,null,null,null,null,null,null,null,null,null,null,null,null,null,null,null,null,null,null,null,null,null,null,null,null,null,null,null,null,null,null,null,null,null,null,null,null,null,null,null,null,null,null,null,null,null,null,"2.",null,"Стихийные бедствия"]
[null,"по Договору:",null,null,null,null,null,null,null,null,null,null,null,null,null,null,null,null,null,null,null,null,null,null,null,"Российский рубль",null,null,null,null,null,null,null,null,null,null,null,null,null,null,null,null,null,null,null,null,null,null,null,null,null,null,null,null,null,null,null,null,null,null,null,null,null,null,null,null,null,null,null,null,"Рублевый эквивалент доллара США",null,null,null,null,null,null,null,null,null,null,null,null,null,null,null,null,null,null,null,null,null,null,null,null,null,null,null,null,null,null,null,null,null,null,null,null,null,null,null,null,null,null,null,null,null,null,null,null,null,null,null,null,null,null,null,null,null,null,null,null,null,null,null,null,null,null,null,null,null,null,null,null,null,null,null,null,null,null,null,false,null,null,null,false]
[null,null,null,null,null,null,null,null,null,null,null,null,null,null,null,null,null,null,null,null,null,null,null,null,null,null,null,null,null,null,null,null,null,null,null,null,null,null,null,null,null,null,null,null,null,null,null,null,null,null,null,null,null,null,null,null,null,null,null,null,null,null,null,null,null,null,null,null,null,null,null,null,null,null,null,null,null,null,null,null,null,null,null,null,null,null,null,null,null,null,null,null,null,null,null,null,null,null,null,null,null,null,null,null,null,null,null,null,null,null,"3.",null,"Повреждение водой"]
[null,null,null,null,null,null,null,null,null,null,null,null,null,null,null,null,null,null,null,null,null,null,null,null,null,"Рублевый эквивалент Евро",null,null,null,null,null,null,null,null,null,null,null,null,null,null,null,null,null,null,null,null,null,null,null,null,null,null,null,null,null,null,null,null,null,null,null,null,null,null,null,null,null,null,null,null,null,null,null,null,null,null,null,null,null,null,null,null,null,null,null,null,null,null,null,null,null,null,null,null,null,null,null,null,null,null,null,null,null,null,null,null,null,null,null,null,null,null,null,null,null,null,null,null,null,null,null,null,null,null,null,null,null,null,null,null,null,null,null,null,null,null,null,null,null,null,null,null,null,null,null,null,null,null,null,null,false]
[null,null,null,null,null,null,null,null,null,null,null,null,null,null,null,null,null,null,null,null,null,null,null,null,null,null,null,null,null,null,null,null,null,null,null,null,null,null,null,null,null,null,null,null,null,null,null,null,null,null,null,null,null,null,null,null,null,null,null,null,null,null,null,null,null,null,null,null,null,null,null,null,null,null,null,null,null,null,null,null,null,null,null,null,null,null,null,null,null,null,null,null,null,null,null,null,null,null,null,null,null,null,null,null,null,null,null,null,null,null,"4. Постороннее воздействие"]
[null,null,null,null,null,null,null,null,null,null,null,null,null,null,null,null,null,null,null,null,null,null,null,null,null,null,null,null,null,null,null,null,null,null,null,null,null,null,null,null,null,null,null,null,null,null,null,null,null,null,null,null,null,null,null,null,null,null,null,null,null,null,null,null,null,null,null,null,null,null,null,null,null,null,null,null,null,null,null,null,null,null,null,null,null,null,null,null,null,null,null,null,null,null,null,null,null,null,null,null,null,null,null,null,null,null,null,null,null,null,"4.",null,"Постороннее воздействие"]
[null,"2. Объекты страхования, соответствующие им страховые суммы и риски, подлежащие страхованию:",null,null,null,null,null,null,null,null,null,null,null,null,null,null,null,null,null,null,null,null,null,null,null,null,null,null,null,null,null,null,null,null,null,null,null,null,null,null,null,null,null,null,null,null,null,null,null,null,null,null,null,null,null,null,null,null,null,null,null,null,null,null,null,null,null,null,null,null,null,null,null,null,null,null,null,null,null,null,null,null,null,null,null,null,null,null,null,null,null,null,null,null,null,null,null,null,null,null,null,null,null,null,null,null,null,null,null,null,null,null,null,null,null,null,null,null,null,null,null,null,null,null,null,null,null,null,null,null,null,null,null,null,null,null,null,null,null,null,null,null,null,null,null,null,null,null,null,null,"(*) Страховые риски (коды): 1. -\"Пожар, удар молнии, взрыв\"; 2. -\"Стихийные бедствия\"; 3. - \"Повреждение водой\"; 4. - \"Постороннее"]
[null,null,null,null,null,null,null,null,null,null,null,null,null,null,null,null,null,null,null,null,null,null,null,null,null,null,null,null,null,null,null,null,null,null,null,null,null,null,null,null,null,null,null,null,null,null,null,null,null,null,null,null,null,null,null,null,null,null,null,null,null,null,null,null,null,null,null,null,null,null,null,null,null,null,null,null,null,null,null,null,null,null,null,null,null,null,null,null,null,null,null,null,null,null,null,null,null,null,null,null,null,null,null,null,null,null,null,null,null,null,"5.",null,"Хищение"]
[null,"2.1.Выберите и укажите только те объекты, которые необходимо застраховать, их стоимости (страховые суммы),",null,null,null,null,null,null,null,null,null,null,null,null,null,null,null,null,null,null,null,null,null,null,null,null,null,null,null,null,null,null,null,null,null,null,null,null,null,null,null,null,null,null,null,null,null,null,null,null,null,null,null,null,null,null,null,null,null,null,null,null,null,null,null,null,null,null,null,null,null,null,null,null,null,null,null,null,null,null,null,null,null,null,null,null,null,null,null,null,null,null,null,null,null,null,null,null,null,null,null,null,null,null,null,null,null,null,null,null,null,null,null,null,null,null,null,null,null,null,null,null,null,null,null,null,null,null,null,null,null,null,null,null,null,null,null,null,null,null,null,null,null,null,null,null,null,null,null,null," воздействие\"; 5 - \"Хищение\"; 6 - \"Повреждение третьими лицами\"; 7 - \"Бой стекла\"; 8 -\"Терроризм\";"]
[null,"краткое описание и укажите цифрой те опасности (риски) от которых Вы хотели бы застраховать имущество:",null,null,null,null,null,null,null,null,null,null,null,null,null,null,null,null,null,null,null,null,null,null,null,null,null,null,null,null,null,null,null,null,null,null,null,null,null,null,null,null,null,null,null,null,null,null,null,null,null,null,null,null,null,null,null,null,null,null,null,null,null,null,null,null,null,null,null,null,null,null,null,null,null,null,null,null,null,null,null,null,null,null,null,null,null,null,null,null,null,null,null,null,null,null,null,null,null,null,null,null,null,null,null,null,null,null,null,null,"6.",null,"Повреждение 3-ми лицами",null,null,null,null,null,null,null,null,null,null,null,null,null,null,null,null,null,null,null,null,null,null,null,null,null,null,null,null,null,null,null,null,null,null,null,null,null,"   Указанные в кавычках краткие названия страховых рисков приведены для удобства оформления договоров страхования и не могут использоваться для определения событий, на случай наступления которых производится страхование. Определения событий, на случай наступления которых производится страхование по данным рискам, и исключения из них приведены в Разделе II \"Страховые риски\" Правил страхования.                                                                                                                                                                                                                                                            Пункт 3.5.н) Правил страхования применяется в следующей редакции: \"3.5 н) проведения строительных или монтажных работ, а также работ по реконструкции или переоборудованию застрахованных зданий, помещений.\"\n"]
[null,null,null,null,null,null,null,null,null,null,null,null,null,null,null,null,null,null,null,null,null,null,null,null,null,null,null,null,null,null,null,null,null,null,null,null,null,null,null,null,null,null,null,null,null,null,null,null,null,null,null,null,null,null,null,null,null,null,null,null,null,null,null,null,null,null,null,null,null,null,null,null,null,null,null,null,null,null,null,null,null,null,null,null,null,null,null,null,null,null,null,null,null,null,null,null,null,null,null,null,null,null,null,null,null,null,null,null,null,null,null,null,null,null,null,null,null,null,null,null,null,null,null,null,null,null,null,null,null,null,null,null,null,null,null,null,null,null,null,null,null,null,null,null,null,null,null,null,null,null,"      Указанные в кавычках краткие названия страховых рисков приведены для удобства оформления договоров страхования и не могут использоваться для определения событий, на случай наступления которых производится страхование. Определения событий, на случай наступления которых производится страхование по данным рискам, и исключения из них приведены в Разделе II \"Страховые риски\" Правил страхования.                                                                                                                                                                                                                                                            Пункт 3.5.н) Правил страхования применяется в следующей редакции: \"3.5 н) проведения строительных или монтажных работ, а также работ по реконструкции или переоборудованию застрахованных зданий, помещений.\""]
[null,null,null,null,null,"* Примечание: Расшифровка кодов страховых рисков"]
[]
[null,null,"Код",null,null,null,"Риск",null,null,null,null,null,null,null,null,null,null,null,null,null,null,null,null,null,null,null,null,null,null,null,null,null,null,null,null,null,null,null,null,null,null,null,"Код",null,null,null,"Риск",null,null,null,null,null,null,null,null,null,null,null,null,null,null,null,null,null,null,null,null,null,null,null,null,null,null,null,null,null,null,null,null,"Код",null,null,null,"Риск",null,null,null,null,null,null,null,null,null,null,null,null,null,null,null,null,null,null,null,null,null,null,null,null,null,null,"7.",null,"Бой стекла",null,null,null,null,null,null,null,null,null,null,null,null,null,null,null,null,null,null,null,null,null,null,null,null,null,null,null,null,null,null,null,null,null,null,null,null,null,{"$f":"CONCATENATE(FX90,Q98)","v":" "},null,null,null,null,null,null,null,null,null,null,null,null,null,null,null,null,null,null,null,null,null,null,null,null,null,null,null,null,{"$f":"IF(Q98=\"\",\" \",\" 9. Иное (1)*\")","v":" "}]
[null,null,null,null,null,null,null,null,null,null,null,null,null,null,null,null,null,null,null,null,null,null,null,null,null,null,null,null,null,null,null,null,null,null,null,null,null,null,null,null,null,null,null,null,null,null,null,null,null,null,null,null,null,null,null,null,null,null,null,null,null,null,null,null,null,null,null,null,null,null,null,null,null,null,null,null,null,null,null,null,null,null,null,null,null,null,null,null,null,null,null,null,null,null,null,null,null,null,null,null,null,null,null,null,null,null,null,null,null,null,null,null,null,null,null,null,null,null,null,null,null,null,null,null,null,null,null,null,null,null,null,null,null,null,null,null,null,null,null,null,null,null,null,null,null,null,null,null,null,null,null,null,null,null,null,null,null,null,null,null,null,null,null,null,null,null,null,null,null,null,null,null,null,null,null,null,null,null,null,"лл"]
[null,null,"1.",null,null,null,"Пожар, удар молнии, взрыв",null,null,null,null,null,null,null,null,null,null,null,null,null,null,null,null,null,null,null,null,null,null,null,null,null,null,null,null,null,null,null,null,null,null,null,"4. ",null,null,null,"Постороннее воздействие",null,null,null,null,null,null,null,null,null,null,null,null,null,null,null,null,null,null,null,null,null,null,null,null,null,null,null,null,null,null,null,null,"7. ",null,null,null,"Бой стекла",null,null,null,null,null,null,null,null,null,null,null,null,null,null,null,null,null,null,null,null,null,null,null,null,null,null,"8.",null,"Терроризм",null,null,null,null,null,null,null,null,null,null,null,null,null,null,null,null,null,null,null,null,null,null,null,null,null,null,null,null,null,null,null,null,null,null,null,null,null,{"$f":"CONCATENATE(FX92,BD98)","v":" "},null,null,null,null,null,null,null,null,null,null,null,null,null,null,null,null,null,null,null,null,null,null,null,null,null,null,null,null,{"$f":"IF(BD98=\"\",\" \",\", 10. Иное (2)**\")","v":" "}]
[]
[null,null,"2. ",null,null,null,"Стихийные бедствия",null,null,null,null,null,null,null,null,null,null,null,null,null,null,null,null,null,null,null,null,null,null,null,null,null,null,null,null,null,null,null,null,null,null,null,"5. ",null,null,null,"Хищение",null,null,null,null,null,null,null,null,null,null,null,null,null,null,null,null,null,null,null,null,null,null,null,null,null,null,null,null,null,null,null,null,"8. ",null,null,null,"Терроризм",null,null,null,null,null,null,null,null,null,null,null,null,null,null,null,null,null,null,null,null,null,null,null,null,null,null,"9.",null,"Иное (1) *"]
[]
[null,null,"3. ",null,null,null,"Повреждение водой",null,null,null,null,null,null,null,null,null,null,null,null,null,null,null,null,null,null,null,null,null,null,null,null,null,null,null,null,null,null,null,null,null,null,null,"6. ",null,null,null,"Повреждение третьими лицами",null,null,null,null,null,null,null,null,null,null,null,null,null,null,null,null,null,null,null,null,null,null,null,null,null,null,null,null,null,null,null,null,null,null,null,null,null,null,null,null,null,null,null,null,null,null,null,null,null,null,null,null,null,null,null,null,null,null,null,null,null,null,null,"10.",null,"Иное (2) **"]
[]
[null,null,"9.",null,null,null,"Иное (1)*",null,null,null,null,null,null,null,null,null,null,null,null,null,null,null,null,null,null,null,null,null,null,null,null,null,null,null,null,null,null,null,null,null,null,null,"10.",null,null,null,"Иное (2)**",null,null,null,null,null,null,null,null,null,null,null,null,null,null,null,null,null,null,null,null,null,null,null,null,null,null,null,null,null,null,null,null,null,null,null,null,null,null,null,null,null,null,null,null,null,null,null,null,null,null,null,null,null,null,null,null,null,null,null,null,null,null,null,"Пакет рисков (риск 1.- риск 6.)",null,null,null,null,null,null,null,null,null,null,null,null,null,null,null,null,null,null,null,null,null,null,null,null,null,null,null,null,null,null,null,null,null,null,null,null,null,null,{"$f":"IF(ET101=\"х\",ET105,\"\")","v":""},null,{"$f":"IF(EV101=\"х\",EV105,\"\")","v":""},null,{"$f":"IF(EX101=\"х\",EX105,\"\")","v":""},null,{"$f":"IF(EZ101=\"х\",EZ105,\"\")","v":""},null,{"$f":"IF(FB101=\"х\",FB105,\"\")","v":""},null,{"$f":"IF(FD101=\"х\",FD105,\"\")","v":""},null,{"$f":"IF(FF101=\"х\",FF105,\"\")","v":""},null,{"$f":"IF(FH101=\"х\",FH105,\"\")","v":""},null,{"$f":"IF(FJ101=\"х\",FJ105,\"\")","v":""},null,{"$f":"IF(FL101=\"х\",FL105,\"\")","v":""},null,{"$f":"IF(FN101=\"х\",FN105,\"\")","v":""}]
[]
[]
[null,null,"ЗДАНИЯ, СООРУЖЕНИЯ, ПОМЕЩЕНИЯ",null,null,null,null,null,null,null,null,null,null,null,null,null,null,null,null,null,null,null,null,null,null,null,null,null,null,null,null,null,null,null,null,null,null,null,null,null,null,null,null,null,null,null,null,null,null,null,null,null,null,null,null,null,null,null,null,null,null,null,null,null,null,null,null,null,null,null,null,null,null,null,null,null,null,null,null,null,null,null,null,null,null,null,null,null,null,null,null,null,null,null,null,null,null,null,null,null,null,null,null,null,null,null,null,null,null,null,null,null,null,null,null,null,null,null,null,null,null,null,null,null,null,null,null,null,null,null,null,null,null,null,null,null,null,null,null,null,null,null,null,null,null,null,null,null,null,{"$f":"IF(ET103=\"\",,\"х\")","v":0},null,{"$f":"IF(OR(EV103=\"\",ET101=\"х\"),,\"х\")","v":0},null,{"$f":"IF(OR(EX103=\"\",ET101=\"х\"),,\"х\")","v":0},null,{"$f":"IF(OR(EZ103=\"\",ET101=\"х\"),,\"х\")","v":0},null,{"$f":"IF(OR(FB103=\"\",ET101=\"х\"),,\"х\")","v":0},null,{"$f":"IF(OR(FD103=\"\",ET101=\"х\"),,\"х\")","v":0},null,{"$f":"IF(OR(FF103=\"\",ET101=\"х\"),,\"х\")","v":0},null,{"$f":"IF(FH103=\"\",,\"х\")","v":0},null,{"$f":"IF(FJ103=\"\",,\"х\")","v":0},null,{"$f":"IF(FL103=\"\",,\"х\")","v":0},null,{"$f":"IF(FN103=\"\",,\"х\")","v":0},null,null,"Всего здания"]
[]
[null,null,null,null,null,null,null,null,null,null,null,null,null,null,null,null,"Характер объекта",null,null,null,null,null,null,null,null,null,null,null,null,null,null,null,null,null,null,null,null,null,null,null,null,null,null,null,null,null,null,null,null,null,null,null,"Краткое описание",null,null,null,null,null,null,null,null,null,null,null,null,null,null,null,null,null,null,null,null,null,null,"Страховая сумма",null,null,null,null,null,null,null,null,null,null,null,null,null,null,null,"Риски * (коды)",null,null,null,null,null,null,null,null,null,null,null,null,null,null,null,null,null,null,null,"ЗДАНИЯ, СООРУЖЕНИЯ, ПОМЕЩЕНИЯ",null,null,null,null,null,null,null,null,null,null,null,null,null,null,null,null,null,null,null,null,null,null,null,null,null,null,null,null,null,null,null,null,null,null,null,null,null,{"$f":"IF(OR(FS107=\"х\",FS113=\"х\",FS119=\"х\", FS123=\"х\",FS127=\"х\",FS131=\"х\",FS137=\"х\", FS141=\"х\", GJ145=\"х\"),ET105,\"\")","v":""},null,{"$f":"IF(OR(FU107=\"х\",FU113=\"х\",FU119=\"х\", FU123=\"х\",FU127=\"х\",FU131=\"х\",FU137=\"х\", FU141=\"х\", GL145=\"х\"),EV105,\"\")","v":""},null,{"$f":"IF(OR(FW107=\"х\",FW113=\"х\",FW119=\"х\", FW123=\"х\",FW127=\"х\",FW131=\"х\",FW137=\"х\", FW141=\"х\", GN145=\"х\"),EX105,\"\")","v":""},null,{"$f":"IF(OR(FY107=\"х\",FY113=\"х\",FY119=\"х\", FY123=\"х\",FY127=\"х\",FY131=\"х\",FY137=\"х\", FY141=\"х\", GP145=\"х\"),EZ105,\"\")","v":""},null,{"$f":"IF(OR(GA107=\"х\",GA113=\"х\",GA119=\"х\", GA123=\"х\",GA127=\"х\",GA131=\"х\",GA137=\"х\", GA141=\"х\", GR145=\"х\"),FB105,\"\")","v":""},null,{"$f":"IF(OR(GC107=\"х\",GC113=\"х\",GC119=\"х\", GC123=\"х\",GC127=\"х\",GC131=\"х\",GC137=\"х\", GC141=\"х\", GT145=\"х\"),FD105,\"\")","v":""},null,{"$f":"IF(OR(GE107=\"х\",GE113=\"х\",GE119=\"х\", GE123=\"х\",GE127=\"х\",GE131=\"х\",GE137=\"х\", GE141=\"х\", GV145=\"х\"),FF105,\"\")","v":""},null,{"$f":"IF(OR(GG107=\"х\",GG113=\"х\",GG119=\"х\", GG123=\"х\",GG127=\"х\",GG131=\"х\",GG137=\"х\", GG141=\"х\", GX145=\"х\"),FH105,\"\")","v":""},null,{"$f":"IF(OR(GI107=\"х\",GI113=\"х\",GI119=\"х\", GI123=\"х\",GI127=\"х\",GI131=\"х\",GI137=\"х\", GI141=\"х\", GZ145=\"х\"),FJ105,\"\")","v":""},null,{"$f":"IF(OR(GK107=\"х\",GK113=\"х\",GK119=\"х\", GK123=\"х\",GK127=\"х\",GK131=\"х\",GK137=\"х\", GK141=\"х\", HB145=\"х\"),FL105,\"\")","v":""},null,{"$f":"IF(OR(GM107=\"х\",GM113=\"х\",GM119=\"х\", GM123=\"х\",GM127=\"х\",GM131=\"х\",GM137=\"х\", GM141=\"х\", HD145=\"х\"),FN105,\"\")","v":""},null,null,{"$f":"CONCATENATE(ET98,EV98,EX98,EZ98,FB98,FD98,FF98,FH98,FJ98,FL98,FN98)","v":""}]
[]
[null,null,"1. Здания (строения) с внешней отделкой ",null,null,null,null,null,null,null,null,null,null,null,null,null,null,null,null,null,null,null,null,null,null,null,null,null,null,null,null,null,null,null,null,null,null,null,null,null,null,null,null,null,null,null,null,null,null,null,null,null,null,null,null,null,null,null,null,null,null,null,null,null,null,null,null,null,null,null,null,null,null,null,null,null,null,null,null,null,null,null,null,null,null,null,null,null,null,null,null,{"$f":"MID(GU105,2,500)","v":""},null,null,null,null,null,null,null,null,null,null,null,null,null,null,null,null,null,1,null,"1-6",null,"1",null,"2",null,"3",null,"4",null,"5",null,"6",null,"7",null,"8",null,"9",null,"10",null,null,null,"Тариф",null,null,null,null,null,null,null,null,null,null,null,null,null,",1-6",null,",1",null,",2",null,",3",null,",4",null,",5",null,",6",null,",7",null,",8",null,",9",null,",10",null,null,1,null,1,null,2,null,3,null,4,null,5,null,6,null,7,null,8,null,9,null,10,null,11,null,null,null,1,null,null,null,{"$f":"CONCATENATE(ET107,EV107,EX107,EZ107,FB107,FD107,FF107,FH107,FJ107,FL107,FN107)","v":""}]
[]
[null,null,null,null,null,"включая внутреннюю отделку и инженерное оборудование",null,null,null,null,null,null,null,null,null,null,null,null,null,null,null,null,null,null,null,null,null,null,null,null,null,null,null,null,null,null,null,null,null,null,null,null,null,null,null,null,null,null,null,null,null,null,null,null,null,null,null,null,null,null,null,null,null,null,null,null,null,null,null,null,null,null,null,null,null,null,null,null,null,null,null,null,null,null,null,null,null,null,null,null,null,null,null,null,null,null,null,null,null,null,null,null,null,null,null,null,null,null,null,null,null,null,null,null,null,null,null,null,null,null,null,null,null,null,null,null,null,null,null,null,null,null,null,null,null,"Премия",null,{"$f":"BX105*EH105","v":0},null,null,null,null,null,null,null,null,null,null,null,{"$f":"IF(FS107=\"х\",ET105,\"\")","v":""},null,{"$f":"IF(FU107=\"х\",EV105,\"\")","v":""},null,{"$f":"IF(FW107=\"х\",EX105,\"\")","v":""},null,{"$f":"IF(FY107=\"х\",EZ105,\"\")","v":""},null,{"$f":"IF(GA107=\"х\",FB105,\"\")","v":""},null,{"$f":"IF(GC107=\"х\",FD105,\"\")","v":""},null,{"$f":"IF(GE107=\"х\",FF105,\"\")","v":""},null,{"$f":"IF(GG107=\"х\",FH105,\"\")","v":""},null,{"$f":"IF(GI107=\"х\",FJ105,\"\")","v":""},null,{"$f":"IF(GK107=\"х\",FL105,\"\")","v":""},null,{"$f":"IF(GM107=\"х\",FN105,\"\")","v":""},null,null,null,null,{"$f":"IF(DH107=\"\",,\"х\")","v":0},null,{"$f":"IF(OR(DJ107=\"\",FS107=\"х\"),,\"х\")","v":0},null,{"$f":"IF(OR(DL107=\"\",FS107=\"х\"),,\"х\")","v":0},null,{"$f":"IF(OR(DN107=\"\",FS107=\"х\"),,\"х\")","v":0},null,{"$f":"IF(OR(DP107=\"\",FS107=\"х\"),,\"х\")","v":0},null,{"$f":"IF(OR(DR107=\"\",FS107=\"х\"),,\"х\")","v":0},null,{"$f":"IF(OR(DT107=\"\",FS107=\"х\"),,\"х\")","v":0},null,{"$f":"IF(DV107=\"\",,\"х\")","v":0},null,{"$f":"IF(DX107=\"\",,\"х\")","v":0},null,{"$f":"IF(DZ107=\"\",,\"х\")","v":0},null,{"$f":"IF(EB107=\"\",,\"х\")","v":0},null,null,null,null,null,null,null,{"$f":"MID(FQ103,2,500)","v":""}]
[]
[null,null,null,null,null,"исключая внутреннюю отделку и инженерное оборудование"]
[]
[null,null,"2. Помещения",null,null,null,null,null,null,null,null,null,null,null,null,null,null,null,null,null,null,null,null,null,null,null,null,null,null,null,null,null,null,null,null,null,null,null,null,null,null,null,null,null,null,null,null,null,null,null,null,null,null,null,null,null,null,null,null,null,null,null,null,null,null,null,null,null,null,null,null,null,null,null,null,null,null,null,null,null,null,null,null,null,null,null,null,null,null,null,null,{"$f":"MID(GU111,2,500)","v":""},null,null,null,null,null,null,null,null,null,null,null,null,null,null,null,null,null,2,null,"1-6",null,"1",null,"2",null,"3",null,"4",null,"5",null,"6",null,"7",null,"8",null,"9",null,"10",null,null,null,"Тариф",null,null,null,null,null,null,null,null,null,null,null,null,null,",1-6",null,",1",null,",2",null,",3",null,",4",null,",5",null,",6",null,",7",null,",8",null,",9",null,",10",null,null,2,null,1,null,2,null,3,null,4,null,5,null,6,null,7,null,8,null,9,null,10,null,11,null,null,null,2,null,null,null,{"$f":"CONCATENATE(ET113,EV113,EX113,EZ113,FB113,FD113,FF113,FH113,FJ113,FL113,FN113)","v":""}]
[]
[null,null,null,null,null,"включая внутреннюю отделку и инженерное оборудование",null,null,null,null,null,null,null,null,null,null,null,null,null,null,null,null,null,null,null,null,null,null,null,null,null,null,null,null,null,null,null,null,null,null,null,null,null,null,null,null,null,null,null,null,null,null,null,null,null,null,null,null,null,null,null,null,null,null,null,null,null,null,null,null,null,null,null,null,null,null,null,null,null,null,null,null,null,null,null,null,null,null,null,null,null,null,null,null,null,null,null,null,null,null,null,null,null,null,null,null,null,null,null,null,null,null,null,null,null,null,null,null,null,null,null,null,null,null,null,null,null,null,null,null,null,null,null,null,null,"Премия",null,{"$f":"BX111*EH111","v":0},null,null,null,null,null,null,null,null,null,null,null,{"$f":"IF(FS113=\"х\",ET111,\"\")","v":""},null,{"$f":"IF(FU113=\"х\",EV111,\"\")","v":""},null,{"$f":"IF(FW113=\"х\",EX111,\"\")","v":""},null,{"$f":"IF(FY113=\"х\",EZ111,\"\")","v":""},null,{"$f":"IF(GA113=\"х\",FB111,\"\")","v":""},null,{"$f":"IF(GC113=\"х\",FD111,\"\")","v":""},null,{"$f":"IF(GE113=\"х\",FF111,\"\")","v":""},null,{"$f":"IF(GG113=\"х\",FH111,\"\")","v":""},null,{"$f":"IF(GI113=\"х\",FJ111,\"\")","v":""},null,{"$f":"IF(GK113=\"х\",FL111,\"\")","v":""},null,{"$f":"IF(GM113=\"х\",FN111,\"\")","v":""},null,null,null,null,{"$f":"IF(DH113=\"\",,\"х\")","v":0},null,{"$f":"IF(OR(DJ113=\"\",FS113=\"х\"),,\"х\")","v":0},null,{"$f":"IF(OR(DL113=\"\",FS113=\"х\"),,\"х\")","v":0},null,{"$f":"IF(OR(DN113=\"\",FS113=\"х\"),,\"х\")","v":0},null,{"$f":"IF(OR(DP113=\"\",FS113=\"х\"),,\"х\")","v":0},null,{"$f":"IF(OR(DR113=\"\",FS113=\"х\"),,\"х\")","v":0},null,{"$f":"IF(OR(DT113=\"\",FS113=\"х\"),,\"х\")","v":0},null,{"$f":"IF(DV113=\"\",,\"х\")","v":0},null,{"$f":"IF(DX113=\"\",,\"х\")","v":0},null,{"$f":"IF(DZ113=\"\",,\"х\")","v":0},null,{"$f":"IF(EB113=\"\",,\"х\")","v":0}]
[]
[null,null,null,null,null,"исключая внутреннюю отделку и инженерное оборудование"]
[]
[null,null,"3. Сооружения",null,null,null,null,null,null,null,null,null,null,null,null,null,null,null,null,null,null,null,null,null,null,null,null,null,null,null,null,null,null,null,null,null,null,null,null,null,null,null,null,null,null,null,null,null,null,null,null,null,null,null,null,null,null,null,null,null,null,null,null,null,null,null,null,null,null,null,null,null,null,null,null,null,null,null,null,null,null,null,null,null,null,null,null,null,null,null,null,{"$f":"MID(GU117,2,500)","v":""},null,null,null,null,null,null,null,null,null,null,null,null,null,null,null,null,null,3,null,"1-6",null,"1",null,"2",null,"3",null,"4",null,"5",null,"6",null,"7",null,"8",null,"9",null,"10",null,null,null,"Тариф",null,null,null,null,null,null,null,null,null,null,null,null,null,",1-6",null,",1",null,",2",null,",3",null,",4",null,",5",null,",6",null,",7",null,",8",null,",9",null,",10",null,null,3,null,1,null,2,null,3,null,4,null,5,null,6,null,7,null,8,null,9,null,10,null,11,null,null,null,3,null,null,null,{"$f":"CONCATENATE(ET119,EV119,EX119,EZ119,FB119,FD119,FF119,FH119,FJ119,FL119,FN119)","v":""}]
[]
[null,null,"(заполнение «краткого описания» обязательно!)",null,null,null,null,null,null,null,null,null,null,null,null,null,null,null,null,null,null,null,null,null,null,null,null,null,null,null,null,null,null,null,null,null,null,null,null,null,null,null,null,null,null,null,null,null,null,null,null,null,null,null,null,null,null,null,null,null,null,null,null,null,null,null,null,null,null,null,null,null,null,null,null,null,null,null,null,null,null,null,null,null,null,null,null,null,null,null,null,null,null,null,null,null,null,null,null,null,null,null,null,null,null,null,null,null,null,null,null,null,null,null,null,null,null,null,null,null,null,null,null,null,null,null,null,null,null,null,null,null,null,null,null,"Премия",null,{"$f":"BX117*EH117","v":0},null,null,null,null,null,null,null,null,null,null,null,{"$f":"IF(FS119=\"х\",ET117,\"\")","v":""},null,{"$f":"IF(FU119=\"х\",EV117,\"\")","v":""},null,{"$f":"IF(FW119=\"х\",EX117,\"\")","v":""},null,{"$f":"IF(FY119=\"х\",EZ117,\"\")","v":""},null,{"$f":"IF(GA119=\"х\",FB117,\"\")","v":""},null,{"$f":"IF(GC119=\"х\",FD117,\"\")","v":""},null,{"$f":"IF(GE119=\"х\",FF117,\"\")","v":""},null,{"$f":"IF(GG119=\"х\",FH117,\"\")","v":""},null,{"$f":"IF(GI119=\"х\",FJ117,\"\")","v":""},null,{"$f":"IF(GK119=\"х\",FL117,\"\")","v":""},null,{"$f":"IF(GM119=\"х\",FN117,\"\")","v":""},null,null,null,null,{"$f":"IF(DH119=\"\",,\"х\")","v":0},null,{"$f":"IF(OR(DJ119=\"\",FS119=\"х\"),,\"х\")","v":0},null,{"$f":"IF(OR(DL119=\"\",FS119=\"х\"),,\"х\")","v":0},null,{"$f":"IF(OR(DN119=\"\",FS119=\"х\"),,\"х\")","v":0},null,{"$f":"IF(OR(DP119=\"\",FS119=\"х\"),,\"х\")","v":0},null,{"$f":"IF(OR(DR119=\"\",FS119=\"х\"),,\"х\")","v":0},null,{"$f":"IF(OR(DT119=\"\",FS119=\"х\"),,\"х\")","v":0},null,{"$f":"IF(DV119=\"\",,\"х\")","v":0},null,{"$f":"IF(DX119=\"\",,\"х\")","v":0},null,{"$f":"IF(DZ119=\"\",,\"х\")","v":0},null,{"$f":"IF(EB119=\"\",,\"х\")","v":0}]
[]
[null,null,"4. Внутренняя отделка зданий (строений, помещений) и",null,null,null,null,null,null,null,null,null,null,null,null,null,null,null,null,null,null,null,null,null,null,null,null,null,null,null,null,null,null,null,null,null,null,null,null,null,null,null,null,null,null,null,null,null,null,null,null,null,null,null,null,null,null,null,null,null,null,null,null,null,null,null,null,null,null,null,null,null,null,null,null,null,null,null,null,null,null,null,null,null,null,null,null,null,null,null,null,{"$f":"MID(GU121,2,500)","v":""},null,null,null,null,null,null,null,null,null,null,null,null,null,null,null,null,null,4,null,"1-6",null,"1",null,"2",null,"3",null,"4",null,"5",null,"6",null,"7",null,"8",null,"9",null,"10",null,null,null,"Тариф",null,null,null,null,null,null,null,null,null,null,null,null,null,",1-6",null,",1",null,",2",null,",3",null,",4",null,",5",null,",6",null,",7",null,",8",null,",9",null,",10",null,null,4,null,1,null,2,null,3,null,4,null,5,null,6,null,7,null,8,null,9,null,10,null,11,null,null,null,4,null,null,null,{"$f":"CONCATENATE(ET123,EV123,EX123,EZ123,FB123,FD123,FF123,FH123,FJ123,FL123,FN123)","v":""}]
[]
[null,null,"инженерное оборудование (если страхуется отдельно)",null,null,null,null,null,null,null,null,null,null,null,null,null,null,null,null,null,null,null,null,null,null,null,null,null,null,null,null,null,null,null,null,null,null,null,null,null,null,null,null,null,null,null,null,null,null,null,null,null,null,null,null,null,null,null,null,null,null,null,null,null,null,null,null,null,null,null,null,null,null,null,null,null,null,null,null,null,null,null,null,null,null,null,null,null,null,null,null,null,null,null,null,null,null,null,null,null,null,null,null,null,null,null,null,null,null,null,null,null,null,null,null,null,null,null,null,null,null,null,null,null,null,null,null,null,null,null,null,null,null,null,null,"Премия",null,{"$f":"BX121*EH121","v":0},null,null,null,null,null,null,null,null,null,null,null,{"$f":"IF(FS123=\"х\",ET121,\"\")","v":""},null,{"$f":"IF(FU123=\"х\",EV121,\"\")","v":""},null,{"$f":"IF(FW123=\"х\",EX121,\"\")","v":""},null,{"$f":"IF(FY123=\"х\",EZ121,\"\")","v":""},null,{"$f":"IF(GA123=\"х\",FB121,\"\")","v":""},null,{"$f":"IF(GC123=\"х\",FD121,\"\")","v":""},null,{"$f":"IF(GE123=\"х\",FF121,\"\")","v":""},null,{"$f":"IF(GG123=\"х\",FH121,\"\")","v":""},null,{"$f":"IF(GI123=\"х\",FJ121,\"\")","v":""},null,{"$f":"IF(GK123=\"х\",FL121,\"\")","v":""},null,{"$f":"IF(GM123=\"х\",FN121,\"\")","v":""},null,null,null,null,{"$f":"IF(DH123=\"\",,\"х\")","v":0},null,{"$f":"IF(OR(DJ123=\"\",FS123=\"х\"),,\"х\")","v":0},null,{"$f":"IF(OR(DL123=\"\",FS123=\"х\"),,\"х\")","v":0},null,{"$f":"IF(OR(DN123=\"\",FS123=\"х\"),,\"х\")","v":0},null,{"$f":"IF(OR(DP123=\"\",FS123=\"х\"),,\"х\")","v":0},null,{"$f":"IF(OR(DR123=\"\",FS123=\"х\"),,\"х\")","v":0},null,{"$f":"IF(OR(DT123=\"\",FS123=\"х\"),,\"х\")","v":0},null,{"$f":"IF(DV123=\"\",,\"х\")","v":0},null,{"$f":"IF(DX123=\"\",,\"х\")","v":0},null,{"$f":"IF(DZ123=\"\",,\"х\")","v":0},null,{"$f":"IF(EB123=\"\",,\"х\")","v":0}]
[]
[null,null,"5. Рекламные вывески, информационные указатели",null,null,null,null,null,null,null,null,null,null,null,null,null,null,null,null,null,null,null,null,null,null,null,null,null,null,null,null,null,null,null,null,null,null,null,null,null,null,null,null,null,null,null,null,null,null,null,null,null,null,null,null,null,null,null,null,null,null,null,null,null,null,null,null,null,null,null,null,null,null,null,null,null,null,null,null,null,null,null,null,null,null,null,null,null,null,null,null,{"$f":"MID(GU125,2,500)","v":""},null,null,null,null,null,null,null,null,null,null,null,null,null,null,null,null,null,5,null,"1-6",null,"1",null,"2",null,"3",null,"4",null,"5",null,"6",null,"7",null,"8",null,"9",null,"10",null,null,null,"Тариф",null,null,null,null,null,null,null,null,null,null,null,null,null,",1-6",null,",1",null,",2",null,",3",null,",4",null,",5",null,",6",null,",7",null,",8",null,",9",null,",10",null,null,5,null,1,null,2,null,3,null,4,null,5,null,6,null,7,null,8,null,9,null,10,null,11,null,null,null,5,null,null,null,{"$f":"CONCATENATE(ET127,EV127,EX127,EZ127,FB127,FD127,FF127,FH127,FJ127,FL127,FN127)","v":""}]
[]
[null,null,null,null,null,null,null,null,null,null,null,null,null,null,null,null,null,null,null,null,null,null,null,null,null,null,null,null,null,null,null,null,null,null,null,null,null,null,null,null,null,null,null,null,null,null,null,null,null,null,null,null,null,null,null,null,null,null,null,null,null,null,null,null,null,null,null,null,null,null,null,null,null,null,null,null,null,null,null,null,null,null,null,null,null,null,null,null,null,null,null,null,null,null,null,null,null,null,null,null,null,null,null,null,null,null,null,null,null,null,null,null,null,null,null,null,null,null,null,null,null,null,null,null,null,null,null,null,null,null,null,null,null,null,null,"Премия",null,{"$f":"BX125*EH125","v":0},null,null,null,null,null,null,null,null,null,null,null,{"$f":"IF(FS127=\"х\",ET125,\"\")","v":""},null,{"$f":"IF(FU127=\"х\",EV125,\"\")","v":""},null,{"$f":"IF(FW127=\"х\",EX125,\"\")","v":""},null,{"$f":"IF(FY127=\"х\",EZ125,\"\")","v":""},null,{"$f":"IF(GA127=\"х\",FB125,\"\")","v":""},null,{"$f":"IF(GC127=\"х\",FD125,\"\")","v":""},null,{"$f":"IF(GE127=\"х\",FF125,\"\")","v":""},null,{"$f":"IF(GG127=\"х\",FH125,\"\")","v":""},null,{"$f":"IF(GI127=\"х\",FJ125,\"\")","v":""},null,{"$f":"IF(GK127=\"х\",FL125,\"\")","v":""},null,{"$f":"IF(GM127=\"х\",FN125,\"\")","v":""},null,null,null,null,{"$f":"IF(DH127=\"\",,\"х\")","v":0},null,{"$f":"IF(OR(DJ127=\"\",FS127=\"х\"),,\"х\")","v":0},null,{"$f":"IF(OR(DL127=\"\",FS127=\"х\"),,\"х\")","v":0},null,{"$f":"IF(OR(DN127=\"\",FS127=\"х\"),,\"х\")","v":0},null,{"$f":"IF(OR(DP127=\"\",FS127=\"х\"),,\"х\")","v":0},null,{"$f":"IF(OR(DR127=\"\",FS127=\"х\"),,\"х\")","v":0},null,{"$f":"IF(OR(DT127=\"\",FS127=\"х\"),,\"х\")","v":0},null,{"$f":"IF(DV127=\"\",,\"х\")","v":0},null,{"$f":"IF(DX127=\"\",,\"х\")","v":0},null,{"$f":"IF(DZ127=\"\",,\"х\")","v":0},null,{"$f":"IF(EB127=\"\",,\"х\")","v":0}]
[]
[null,null,"6. Окна (в т.ч. оконные витрины) Если страховые суммы по окнам указываются в настоящей строке, то они не учитываются в страховых суммах других объектов",null,null,null,null,null,null,null,null,null,null,null,null,null,null,null,null,null,null,null,null,null,null,null,null,null,null,null,null,null,null,null,null,null,null,null,null,null,null,null,null,null,null,null,null,null,null,null,null,null,null,null,null,null,null,null,null,null,null,null,null,null,null,null,null,null,null,null,null,null,null,null,null,null,null,null,null,null,null,null,null,null,null,null,null,null,null,null,null,{"$f":"MID(GU129,2,500)","v":""},null,null,null,null,null,null,null,null,null,null,null,null,null,null,null,null,null,6,null,"1-6",null,"1",null,"2",null,"3",null,"4",null,"5",null,"6",null,"7",null,"8",null,"9",null,"10",null,null,null,"Тариф",null,null,null,null,null,null,null,null,null,null,null,null,null,",1-6",null,",1",null,",2",null,",3",null,",4",null,",5",null,",6",null,",7",null,",8",null,",9",null,",10",null,null,6,null,1,null,2,null,3,null,4,null,5,null,6,null,7,null,8,null,9,null,10,null,11,null,null,null,6,null,null,null,{"$f":"CONCATENATE(ET131,EV131,EX131,EZ131,FB131,FD131,FF131,FH131,FJ131,FL131,FN131)","v":""}]
[]
[null,null,null,null,null,null,null,null,null,null,null,null,null,null,null,null,null,null,null,null,null,null,null,null,null,null,null,null,null,null,null,null,null,null,null,null,null,null,null,null,null,null,null,null,null,null,null,null,null,null,null,null,null,null,null,null,null,null,null,null,null,null,null,null,null,null,null,null,null,null,null,null,null,null,null,null,null,null,null,null,null,null,null,null,null,null,null,null,null,null,null,null,null,null,null,null,null,null,null,null,null,null,null,null,null,null,null,null,null,null,null,null,null,null,null,null,null,null,null,null,null,null,null,null,null,null,null,null,null,null,null,null,null,null,null,"Премия",null,{"$f":"BX129*EH129","v":0},null,null,null,null,null,null,null,null,null,null,null,{"$f":"IF(FS131=\"х\",ET129,\"\")","v":""},null,{"$f":"IF(FU131=\"х\",EV129,\"\")","v":""},null,{"$f":"IF(FW131=\"х\",EX129,\"\")","v":""},null,{"$f":"IF(FY131=\"х\",EZ129,\"\")","v":""},null,{"$f":"IF(GA131=\"х\",FB129,\"\")","v":""},null,{"$f":"IF(GC131=\"х\",FD129,\"\")","v":""},null,{"$f":"IF(GE131=\"х\",FF129,\"\")","v":""},null,{"$f":"IF(GG131=\"х\",FH129,\"\")","v":""},null,{"$f":"IF(GI131=\"х\",FJ129,\"\")","v":""},null,{"$f":"IF(GK131=\"х\",FL129,\"\")","v":""},null,{"$f":"IF(GM131=\"х\",FN129,\"\")","v":""},null,null,null,null,{"$f":"IF(DH131=\"\",,\"х\")","v":0},null,{"$f":"IF(OR(DJ131=\"\",FS131=\"х\"),,\"х\")","v":0},null,{"$f":"IF(OR(DL131=\"\",FS131=\"х\"),,\"х\")","v":0},null,{"$f":"IF(OR(DN131=\"\",FS131=\"х\"),,\"х\")","v":0},null,{"$f":"IF(OR(DP131=\"\",FS131=\"х\"),,\"х\")","v":0},null,{"$f":"IF(OR(DR131=\"\",FS131=\"х\"),,\"х\")","v":0},null,{"$f":"IF(OR(DT131=\"\",FS131=\"х\"),,\"х\")","v":0},null,{"$f":"IF(DV131=\"\",,\"х\")","v":0},null,{"$f":"IF(DX131=\"\",,\"х\")","v":0},null,{"$f":"IF(DZ131=\"\",,\"х\")","v":0},null,{"$f":"IF(EB131=\"\",,\"х\")","v":0}]
[]
[]
[]
[null,null,"7. Земельный участок,",null,null,null,null,null,null,null,null,null,null,null,null,null,null,null,null,null,null,null,null,null,null,null,null,null,null,null,null,null,null,null,null,null,null,null,null,null,null,null,null,null,null,null,null,null,null,null,null,null,null,null,null,null,null,null,null,null,null,null,null,null,null,null,null,null,null,null,null,null,null,null,null,null,null,null,null,null,null,null,null,null,null,null,null,null,null,null,null,{"$f":"MID(GU135,2,500)","v":""},null,null,null,null,null,null,null,null,null,null,null,null,null,null,null,null,null,7,null,"1-6",null,"1",null,"2",null,"3",null,"4",null,"5",null,"6",null,"7",null,"8",null,"9",null,"10",null,null,null,"Тариф",null,null,null,null,null,null,null,null,null,null,null,null,null,",1-6",null,",1",null,",2",null,",3",null,",4",null,",5",null,",6",null,",7",null,",8",null,",9",null,",10",null,null,7,null,1,null,2,null,3,null,4,null,5,null,6,null,7,null,8,null,9,null,10,null,11,null,null,null,7,null,null,null,{"$f":"CONCATENATE(ET137,EV137,EX137,EZ137,FB137,FD137,FF137,FH137,FJ137,FL137,FN137)","v":""}]
[]
[null,null,"площадь кв.м.: ",null,null,null,null,null,null,null,null,null,null,null,null,null,null,null,null,null,null,null,null,null,null,null,null,null,null,null,null,null,null,null,null,null,null,null,null,null,null,null,null,null,null,null,null,null,null,null,null,null,null,null,null,null,null,null,null,null,null,null,null,null,null,null,null,null,null,null,null,null,null,null,null,null,null,null,null,null,null,null,null,null,null,null,null,null,null,null,null,null,null,null,null,null,null,null,null,null,null,null,null,null,null,null,null,null,null,null,null,null,null,null,null,null,null,null,null,null,null,null,null,null,null,null,null,null,null,null,null,null,null,null,null,"Премия",null,{"$f":"BX135*EH135","v":0},null,null,null,null,null,null,null,null,null,null,null,{"$f":"IF(FS137=\"х\",ET135,\"\")","v":""},null,{"$f":"IF(FU137=\"х\",EV135,\"\")","v":""},null,{"$f":"IF(FW137=\"х\",EX135,\"\")","v":""},null,{"$f":"IF(FY137=\"х\",EZ135,\"\")","v":""},null,{"$f":"IF(GA137=\"х\",FB135,\"\")","v":""},null,{"$f":"IF(GC137=\"х\",FD135,\"\")","v":""},null,{"$f":"IF(GE137=\"х\",FF135,\"\")","v":""},null,{"$f":"IF(GG137=\"х\",FH135,\"\")","v":""},null,{"$f":"IF(GI137=\"х\",FJ135,\"\")","v":""},null,{"$f":"IF(GK137=\"х\",FL135,\"\")","v":""},null,{"$f":"IF(GM137=\"х\",FN135,\"\")","v":""},null,null,null,null,{"$f":"IF(DH137=\"\",,\"х\")","v":0},null,{"$f":"IF(OR(DJ137=\"\",FS137=\"х\"),,\"х\")","v":0},null,{"$f":"IF(OR(DL137=\"\",FS137=\"х\"),,\"х\")","v":0},null,{"$f":"IF(OR(DN137=\"\",FS137=\"х\"),,\"х\")","v":0},null,{"$f":"IF(OR(DP137=\"\",FS137=\"х\"),,\"х\")","v":0},null,{"$f":"IF(OR(DR137=\"\",FS137=\"х\"),,\"х\")","v":0},null,{"$f":"IF(OR(DT137=\"\",FS137=\"х\"),,\"х\")","v":0},null,{"$f":"IF(DV137=\"\",,\"х\")","v":0},null,{"$f":"IF(DX137=\"\",,\"х\")","v":0},null,{"$f":"IF(DZ137=\"\",,\"х\")","v":0},null,{"$f":"IF(EB137=\"\",,\"х\")","v":0}]
[]
[null,null,"8. Иное: ",null,null,null,null,null,null,null,null,null,null,null,null,null,null,null,null,null,null,null,null,null,null,null,null,null,null,null,null,null,null,null,null,null,null,null,null,null,null,null,null,null,null,null,null,null,null,null,null,null,null,null,null,null,null,null,null,null,null,null,null,null,null,null,null,null,null,null,null,null,null,null,null,null,null,null,null,null,null,null,null,null,null,null,null,null,null,null,null,{"$f":"MID(GU139,2,500)","v":""},null,null,null,null,null,null,null,null,null,null,null,null,null,null,null,null,null,8,null,"1-6",null,"1",null,"2",null,"3",null,"4",null,"5",null,"6",null,"7",null,"8",null,"9",null,"10",null,null,null,"Тариф",null,null,null,null,null,null,null,null,null,null,null,null,null,",1-6",null,",1",null,",2",null,",3",null,",4",null,",5",null,",6",null,",7",null,",8",null,",9",null,",10",null,null,8,null,1,null,2,null,3,null,4,null,5,null,6,null,7,null,8,null,9,null,10,null,11,null,null,null,8,null,null,null,{"$f":"CONCATENATE(ET141,EV141,EX141,EZ141,FB141,FD141,FF141,FH141,FJ141,FL141,FN141)","v":""}]
[]
[null,null,null,null,null,null,null,null,null,null,null,null,null,null,null,null,null,null,null,null,null,null,null,null,null,null,null,null,null,null,null,null,null,null,null,null,null,null,null,null,null,null,null,null,null,null,null,null,null,null,null,null,null,null,null,null,null,null,null,null,null,null,null,null,null,null,null,null,null,null,null,null,null,null,null,null,null,null,null,null,null,null,null,null,null,null,null,null,null,null,null,null,null,null,null,null,null,null,null,null,null,null,null,null,null,null,null,null,null,null,null,null,null,null,null,null,null,null,null,null,null,null,null,null,null,null,null,null,null,null,null,null,null,null,null,"Премия",null,{"$f":"BX139*EH139","v":0},null,null,null,null,null,null,null,null,null,null,null,{"$f":"IF(FS141=\"х\",ET139,\"\")","v":""},null,{"$f":"IF(FU141=\"х\",EV139,\"\")","v":""},null,{"$f":"IF(FW141=\"х\",EX139,\"\")","v":""},null,{"$f":"IF(FY141=\"х\",EZ139,\"\")","v":""},null,{"$f":"IF(GA141=\"х\",FB139,\"\")","v":""},null,{"$f":"IF(GC141=\"х\",FD139,\"\")","v":""},null,{"$f":"IF(GE141=\"х\",FF139,\"\")","v":""},null,{"$f":"IF(GG141=\"х\",FH139,\"\")","v":""},null,{"$f":"IF(GI141=\"х\",FJ139,\"\")","v":""},null,{"$f":"IF(GK141=\"х\",FL139,\"\")","v":""},null,{"$f":"IF(GM141=\"х\",FN139,\"\")","v":""},null,null,null,null,{"$f":"IF(DH141=\"\",,\"х\")","v":0},null,{"$f":"IF(OR(DJ141=\"\",FS141=\"х\"),,\"х\")","v":0},null,{"$f":"IF(OR(DL141=\"\",FS141=\"х\"),,\"х\")","v":0},null,{"$f":"IF(OR(DN141=\"\",FS141=\"х\"),,\"х\")","v":0},null,{"$f":"IF(OR(DP141=\"\",FS141=\"х\"),,\"х\")","v":0},null,{"$f":"IF(OR(DR141=\"\",FS141=\"х\"),,\"х\")","v":0},null,{"$f":"IF(OR(DT141=\"\",FS141=\"х\"),,\"х\")","v":0},null,{"$f":"IF(DV141=\"\",,\"х\")","v":0},null,{"$f":"IF(DX141=\"\",,\"х\")","v":0},null,{"$f":"IF(DZ141=\"\",,\"х\")","v":0},null,{"$f":"IF(EB141=\"\",,\"х\")","v":0}]
[]
[null,null,"9. Иное: ",null,null,null,null,null,null,null,null,null,null,null,null,null,null,null,null,null,null,null,null,null,null,null,null,null,null,null,null,null,null,null,null,null,null,null,null,null,null,null,null,null,null,null,null,null,null,null,null,null,null,null,null,null,null,null,null,null,null,null,null,null,null,null,null,null,null,null,null,null,null,null,null,null,null,null,null,null,null,null,null,null,null,null,null,null,null,null,null,{"$f":"MID(HJ143,2,500)","v":""},null,null,null,null,null,null,null,null,null,null,null,null,null,null,null,null,null,9,null,"1-6",null,"1",null,"2",null,"3",null,"4",null,"5",null,"6",null,"7",null,"8",null,"9",null,"10",null,null,null,"Тариф",null,null,null,null,null,null,null,null,null,null,null,null,null,",1-6",null,",1",null,",2",null,",3",null,",4",null,",5",null,",6",null,",7",null,",8",null,",9",null,",10",null,null,null,null,null,null,null,null,null,null,null,null,null,null,null,null,null,null,null,9,null,1,null,2,null,3,null,4,null,5,null,6,null,7,null,8,null,9,null,10,null,11,null,null,9,null,null,{"$f":"CONCATENATE(ET145,EV145,EX145,EZ145,FB145,FD145,FF145,FH145,FJ145,FL145,FN145)","v":""}]
[]
[null,null,null,null,null,null,null,null,null,null,null,null,null,null,null,null,null,null,null,null,null,null,null,null,null,null,null,null,null,null,null,null,null,null,null,null,null,null,null,null,null,null,null,null,null,null,null,null,null,null,null,null,null,null,null,null,null,null,null,null,null,null,null,null,null,null,null,null,null,null,null,null,null,null,null,null,null,null,null,null,null,null,null,null,null,null,null,null,null,null,null,null,null,null,null,null,null,null,null,null,null,null,null,null,null,null,null,null,null,null,null,null,null,null,null,null,null,null,null,null,null,null,null,null,null,null,null,null,null,null,null,null,null,null,null,"Премия",null,{"$f":"BX143*EH143","v":0},null,null,null,null,null,null,null,null,null,null,null,{"$f":"IF(GJ145=\"х\",ET143,\"\")","v":""},null,{"$f":"IF(GL145=\"х\",EV143,\"\")","v":""},null,{"$f":"IF(GN145=\"х\",EX143,\"\")","v":""},null,{"$f":"IF(GP145=\"х\",EZ143,\"\")","v":""},null,{"$f":"IF(GR145=\"х\",FB143,\"\")","v":""},null,{"$f":"IF(GT145=\"х\",FD143,\"\")","v":""},null,{"$f":"IF(GV145=\"х\",FF143,\"\")","v":""},null,{"$f":"IF(GX145=\"х\",FH143,\"\")","v":""},null,{"$f":"IF(GZ145=\"х\",FJ143,\"\")","v":""},null,{"$f":"IF(HB145=\"х\",FL143,\"\")","v":""},null,{"$f":"IF(HD145=\"х\",FN143,\"\")","v":""},null,null,"Всего оборудование",null,null,null,null,null,null,null,null,null,null,null,null,null,null,null,null,null,null,{"$f":"IF(DH145=\"\",,\"х\")","v":0},null,{"$f":"IF(OR(DJ145=\"\",GJ145=\"х\"),,\"х\")","v":0},null,{"$f":"IF(OR(DL145=\"\",GJ145=\"х\"),,\"х\")","v":0},null,{"$f":"IF(OR(DN145=\"\",GJ145=\"х\"),,\"х\")","v":0},null,{"$f":"IF(OR(DP145=\"\",GJ145=\"х\"),,\"х\")","v":0},null,{"$f":"IF(OR(DR145=\"\",GJ145=\"х\"),,\"х\")","v":0},null,{"$f":"IF(OR(DT145=\"\",GJ145=\"х\"),,\"х\")","v":0},null,{"$f":"IF(DV145=\"\",,\"х\")","v":0},null,{"$f":"IF(DX145=\"\",,\"х\")","v":0},null,{"$f":"IF(DZ145=\"\",,\"х\")","v":0},null,{"$f":"IF(EB145=\"\",,\"х\")","v":0}]
[]
[null,null,null,null,null,null,null,null,null,null,null,null,null,null,null,null,null,null,null,null,null,null,null,null,null,null,null,null,null,null,null,null,null,null,null,null,null,null,null,null,null,null,null,null,null,null,null,null,"Итого страховая сумма:",null,null,null,null,null,null,null,null,null,null,null,null,null,null,null,null,null,null,null,null,null,null,null,null,null,null,{"$f":"BX105+BX111+BX117+BX121+BX125+BX129+BX135+BX139+BX143","v":0},null,null,null,null,null,null,null,null,null,null,null,null,null,null,null,null,null,null,null,null,null,null,null,null,null,null,null,null,null,null,null,null,null,"Премия итого:"]
[]
[null,null,null,null,null,null,null,null,null,null,null,null,null,null,null,null,null,null,null,null,null,null,null,null,null,null,null,null,null,null,null,null,null,null,null,null,null,null,null,null,null,null,null,null,null,null,null,null,null,null,null,null,null,null,null,null,null,null,null,null,null,null,null,null,null,null,null,null,null,null,null,null,null,null,null,null,null,null,null,null,null,null,null,null,null,null,null,null,null,null,null,null,null,null,null,null,null,null,null,null,null,null,null,null,null,null,null,null,null,{"$f":"EH107+EH113+EH119+EH123+EH127+EH131+EH137+EH141+EH145","v":0}]
[]
[null,null,"ОБОРУДОВАНИЕ, ИНВЕНТАРЬ, МЕБЕЛЬ",null,null,null,null,null,null,null,null,null,null,null,null,null,null,null,null,null,null,null,null,null,null,null,null,null,null,null,null,null,null,null,null,null,null,null,null,null,null,null,null,null,null,null,null,null,null,null,null,null,null,"Краткое описание",null,null,null,null,null,null,null,null,null,null,null,null,null,null,null,null,null,null,null,null,null,"Страховая сумма",null,null,null,null,null,null,null,null,null,null,null,null,null,null,null,null,null,"Риски * (коды)",null,null,null,null,null,null,null,null,null,null,null,null,null,null,null,null,null,"ОБОРУДОВАНИЕ, ИНВЕНТАРЬ, МЕБЕЛЬ",null,null,null,null,null,null,null,null,null,null,null,null,null,null,null,null,null,null,null,null,null,null,null,null,null,null,null,null,null,null,null,null,null,null,null,null,null,{"$f":"IF(OR(FS155=\"х\",FS159=\"х\",FS167=\"х\", FS171=\"х\",FS175=\"х\",FS179=\"х\",FS163=\"х\"),ET153,\"\")","v":""},null,{"$f":"IF(OR(FU155=\"х\",FU159=\"х\",FU167=\"х\", FU171=\"х\",FU175=\"х\",FU179=\"х\",FU163=\"х\"),EV153,\"\")","v":""},null,{"$f":"IF(OR(FW155=\"х\",FW159=\"х\",FW167=\"х\", FW171=\"х\",FW175=\"х\",FW179=\"х\",FW163=\"х\"),EX153,\"\")","v":""},null,{"$f":"IF(OR(FY155=\"х\",FY159=\"х\",FY167=\"х\", FY171=\"х\",FY175=\"х\",FY179=\"х\",FY163=\"х\"),EZ153,\"\")","v":""},null,{"$f":"IF(OR(GA155=\"х\",GA159=\"х\",GA167=\"х\", GA171=\"х\",GA175=\"х\",GA179=\"х\",GA163=\"х\"),FB153,\"\")","v":""},null,{"$f":"IF(OR(GC155=\"х\",GC159=\"х\",GC167=\"х\", GC171=\"х\",GC175=\"х\",GC179=\"х\",GC163=\"х\"),FD153,\"\")","v":""},null,{"$f":"IF(OR(GE155=\"х\",GE159=\"х\",GE167=\"х\", GE171=\"х\",GE175=\"х\",GE179=\"х\",GE163=\"х\"),FF153,\"\")","v":""},null,{"$f":"IF(OR(GG155=\"х\",GG159=\"х\",GG167=\"х\", GG171=\"х\",GG175=\"х\",GG179=\"х\",GG163=\"х\"),FH153,\"\")","v":""},null,{"$f":"IF(OR(GI155=\"х\",GI159=\"х\",GI167=\"х\", GI171=\"х\",GI175=\"х\",GI179=\"х\",GI163=\"х\"),FJ153,\"\")","v":""},null,{"$f":"IF(OR(GK155=\"х\",GK159=\"х\",GK167=\"х\", GK171=\"х\",GK175=\"х\",GK179=\"х\",GK163=\"х\"),FL153,\"\")","v":""},null,{"$f":"IF(OR(GM155=\"х\",GM159=\"х\",GM167=\"х\", GM171=\"х\",GM175=\"х\",GM179=\"х\",GM163=\"х\"),FN153,\"\")","v":""},null,null,{"$f":"CONCATENATE(GP153,GR153,GT153,GV153,GX153,GZ153,HB153,HD153,HF153,HH153,HJ153)","v":""}]
[]
[null,null,"1. Оборудование производственное, торговое,",null,null,null,null,null,null,null,null,null,null,null,null,null,null,null,null,null,null,null,null,null,null,null,null,null,null,null,null,null,null,null,null,null,null,null,null,null,null,null,null,null,null,null,null,null,"Согласно прилагаемому к настоящему заявлению \"Перечню движимого имущества\"",null,null,null,null,null,null,null,null,null,null,null,null,null,null,null,null,null,null,null,null,null,null,null,null,null,null,null,null,null,null,null,null,null,null,null,null,null,null,null,null,null,null,{"$f":"MID(HQ153,2,500)","v":""},null,null,null,null,null,null,null,null,null,null,null,null,null,null,null,null,null,1,null,"1-6",null,"1",null,"2",null,"3",null,"4",null,"5",null,"6",null,"7",null,"8",null,"9",null,"10",null,null,null,"Тариф",null,null,null,null,null,null,null,null,null,null,null,null,null,",1-6",null,",1",null,",2",null,",3",null,",4",null,",5",null,",6",null,",7",null,",8",null,",9",null,",10",null,null,1,null,1,null,2,null,3,null,4,null,5,null,6,null,7,null,8,null,9,null,10,null,11,null,null,{"$f":"IF(GP155=\"х\",ET153,\"\")","v":""},null,{"$f":"IF(GR155=\"х\",EV153,\"\")","v":""},null,{"$f":"IF(GT155=\"х\",EX153,\"\")","v":""},null,{"$f":"IF(GV155=\"х\",EZ153,\"\")","v":""},null,{"$f":"IF(GX155=\"х\",FB153,\"\")","v":""},null,{"$f":"IF(GZ155=\"х\",FD153,\"\")","v":""},null,{"$f":"IF(HB155=\"х\",FF153,\"\")","v":""},null,{"$f":"IF(HD155=\"х\",FH153,\"\")","v":""},null,{"$f":"IF(HF155=\"х\",FJ153,\"\")","v":""},null,{"$f":"IF(HH155=\"х\",FL153,\"\")","v":""},null,{"$f":"IF(HJ155=\"х\",FN153,\"\")","v":""},null,null,null,1,null,null,{"$f":"CONCATENATE(ET155,EV155,EX155,EZ155,FB155,FD155,FF155,FH155,FJ155,FL155,FN155)","v":""}]
[]
[null,null,"технологическое и вспомогательное",null,null,null,null,null,null,null,null,null,null,null,null,null,null,null,null,null,null,null,null,null,null,null,null,null,null,null,null,null,null,null,null,null,null,null,null,null,null,null,null,null,null,null,null,null,null,null,null,null,null,null,null,null,null,null,null,null,null,null,null,null,null,null,null,null,null,null,null,null,null,null,null,null,null,null,null,null,null,null,null,null,null,null,null,null,null,null,null,null,null,null,null,null,null,null,null,null,null,null,null,null,null,null,null,null,null,null,null,null,null,null,null,null,null,null,null,null,null,null,null,null,null,null,null,null,null,null,null,null,null,null,null,"Премия",null,{"$f":"BX153*EH153","v":0},null,null,null,null,null,null,null,null,null,null,null,{"$f":"IF(FS155=\"х\",ET153,\"\")","v":""},null,{"$f":"IF(FU155=\"х\",EV153,\"\")","v":""},null,{"$f":"IF(FW155=\"х\",EX153,\"\")","v":""},null,{"$f":"IF(FY155=\"х\",EZ153,\"\")","v":""},null,{"$f":"IF(GA155=\"х\",FB153,\"\")","v":""},null,{"$f":"IF(GC155=\"х\",FD153,\"\")","v":""},null,{"$f":"IF(GE155=\"х\",FF153,\"\")","v":""},null,{"$f":"IF(GG155=\"х\",FH153,\"\")","v":""},null,{"$f":"IF(GI155=\"х\",FJ153,\"\")","v":""},null,{"$f":"IF(GK155=\"х\",FL153,\"\")","v":""},null,{"$f":"IF(GM155=\"х\",FN153,\"\")","v":""},null,null,null,null,{"$f":"IF(DH155=\"\",,\"х\")","v":0},null,{"$f":"IF(OR(DJ155=\"\",FS155=\"х\"),,\"х\")","v":0},null,{"$f":"IF(OR(DL155=\"\",FS155=\"х\"),,\"х\")","v":0},null,{"$f":"IF(OR(DN155=\"\",FS155=\"х\"),,\"х\")","v":0},null,{"$f":"IF(OR(DP155=\"\",FS155=\"х\"),,\"х\")","v":0},null,{"$f":"IF(OR(DR155=\"\",FS155=\"х\"),,\"х\")","v":0},null,{"$f":"IF(OR(DT155=\"\",FS155=\"х\"),,\"х\")","v":0},null,{"$f":"IF(DV155=\"\",,\"х\")","v":0},null,{"$f":"IF(DX155=\"\",,\"х\")","v":0},null,{"$f":"IF(DZ155=\"\",,\"х\")","v":0},null,{"$f":"IF(EB155=\"\",,\"х\")","v":0},null,null,{"$f":"IF(ET151=\"\",,\"х\")","v":0},null,{"$f":"IF(OR(EV151=\"\",GP155=\"х\"),,\"х\")","v":0},null,{"$f":"IF(OR(EX151=\"\",GP155=\"х\"),,\"х\")","v":0},null,{"$f":"IF(OR(EZ151=\"\",GP155=\"х\"),,\"х\")","v":0},null,{"$f":"IF(OR(FB151=\"\",GP155=\"х\"),,\"х\")","v":0},null,{"$f":"IF(OR(FD151=\"\",GP155=\"х\"),,\"х\")","v":0},null,{"$f":"IF(OR(FF151=\"\",GP155=\"х\"),,\"х\")","v":0},null,{"$f":"IF(FH151=\"\",,\"х\")","v":0},null,{"$f":"IF(FJ151=\"\",,\"х\")","v":0},null,{"$f":"IF(FL151=\"\",,\"х\")","v":0},null,{"$f":"IF(FN151=\"\",,\"х\")","v":0},null,null,null,null,null,null,{"$f":"MID(FQ151,2,500)","v":""}]
[]
[null,null,"2. Электронная, аудио-, видео-, радио-, теле-, фото-",null,null,null,null,null,null,null,null,null,null,null,null,null,null,null,null,null,null,null,null,null,null,null,null,null,null,null,null,null,null,null,null,null,null,null,null,null,null,null,null,null,null,null,null,null,null,null,null,null,null,null,null,null,null,null,null,null,null,null,null,null,null,null,null,null,null,null,null,null,null,null,null,null,null,null,null,null,null,null,null,null,null,null,null,null,null,null,null,{"$f":"MID(HQ157,2,500)","v":""},null,null,null,null,null,null,null,null,null,null,null,null,null,null,null,null,null,2,null,"1-6",null,"1",null,"2",null,"3",null,"4",null,"5",null,"6",null,"7",null,"8",null,"9",null,"10",null,null,null,"Тариф",null,null,null,null,null,null,null,null,null,null,null,null,null,",1-6",null,",1",null,",2",null,",3",null,",4",null,",5",null,",6",null,",7",null,",8",null,",9",null,",10",null,null,2,null,1,null,2,null,3,null,4,null,5,null,6,null,7,null,8,null,9,null,10,null,11,null,null,null,null,null,null,null,null,null,null,null,null,null,null,null,null,null,null,null,null,null,null,null,null,null,null,2,null,null,{"$f":"CONCATENATE(ET159,EV159,EX159,EZ159,FB159,FD159,FF159,FH159,FJ159,FL159,FN159)","v":""}]
[]
[null,null," и оргтехника, компьютеры",null,null,null,null,null,null,null,null,null,null,null,null,null,null,null,null,null,null,null,null,null,null,null,null,null,null,null,null,null,null,null,null,null,null,null,null,null,null,null,null,null,null,null,null,null,null,null,null,null,null,null,null,null,null,null,null,null,null,null,null,null,null,null,null,null,null,null,null,null,null,null,null,null,null,null,null,null,null,null,null,null,null,null,null,null,null,null,null,null,null,null,null,null,null,null,null,null,null,null,null,null,null,null,null,null,null,null,null,null,null,null,null,null,null,null,null,null,null,null,null,null,null,null,null,null,null,null,null,null,null,null,null,"Премия",null,{"$f":"BX157*EH157","v":0},null,null,null,null,null,null,null,null,null,null,null,{"$f":"IF(FS159=\"х\",ET157,\"\")","v":""},null,{"$f":"IF(FU159=\"х\",EV157,\"\")","v":""},null,{"$f":"IF(FW159=\"х\",EX157,\"\")","v":""},null,{"$f":"IF(FY159=\"х\",EZ157,\"\")","v":""},null,{"$f":"IF(GA159=\"х\",FB157,\"\")","v":""},null,{"$f":"IF(GC159=\"х\",FD157,\"\")","v":""},null,{"$f":"IF(GE159=\"х\",FF157,\"\")","v":""},null,{"$f":"IF(GG159=\"х\",FH157,\"\")","v":""},null,{"$f":"IF(GI159=\"х\",FJ157,\"\")","v":""},null,{"$f":"IF(GK159=\"х\",FL157,\"\")","v":""},null,{"$f":"IF(GM159=\"х\",FN157,\"\")","v":""},null,null,null,null,{"$f":"IF(DH159=\"\",,\"х\")","v":0},null,{"$f":"IF(OR(DJ159=\"\",FS159=\"х\"),,\"х\")","v":0},null,{"$f":"IF(OR(DL159=\"\",FS159=\"х\"),,\"х\")","v":0},null,{"$f":"IF(OR(DN159=\"\",FS159=\"х\"),,\"х\")","v":0},null,{"$f":"IF(OR(DP159=\"\",FS159=\"х\"),,\"х\")","v":0},null,{"$f":"IF(OR(DR159=\"\",FS159=\"х\"),,\"х\")","v":0},null,{"$f":"IF(OR(DT159=\"\",FS159=\"х\"),,\"х\")","v":0},null,{"$f":"IF(DV159=\"\",,\"х\")","v":0},null,{"$f":"IF(DX159=\"\",,\"х\")","v":0},null,{"$f":"IF(DZ159=\"\",,\"х\")","v":0},null,{"$f":"IF(EB159=\"\",,\"х\")","v":0}]
[]
[null,null,"3. Мебель",null,null,null,null,null,null,null,null,null,null,null,null,null,null,null,null,null,null,null,null,null,null,null,null,null,null,null,null,null,null,null,null,null,null,null,null,null,null,null,null,null,null,null,null,null,null,null,null,null,null,null,null,null,null,null,null,null,null,null,null,null,null,null,null,null,null,null,null,null,null,null,null,null,null,null,null,null,null,null,null,null,null,null,null,null,null,null,null,{"$f":"MID(HQ161,2,500)","v":""},null,null,null,null,null,null,null,null,null,null,null,null,null,null,null,null,null,3,null,"1-6",null,"1",null,"2",null,"3",null,"4",null,"5",null,"6",null,"7",null,"8",null,"9",null,"10",null,null,null,"Тариф",null,null,null,null,null,null,null,null,null,null,null,null,null,",1-6",null,",1",null,",2",null,",3",null,",4",null,",5",null,",6",null,",7",null,",8",null,",9",null,",10",null,null,3,null,1,null,2,null,3,null,4,null,5,null,6,null,7,null,8,null,9,null,10,null,11,null,null,null,null,null,null,null,null,null,null,null,null,null,null,null,null,null,null,null,null,null,null,null,null,null,null,3,null,null,{"$f":"CONCATENATE(ET163,EV163,EX163,EZ163,FB163,FD163,FF163,FH163,FJ163,FL163,FN163)","v":""}]
[]
[null,null,null,null,null,null,null,null,null,null,null,null,null,null,null,null,null,null,null,null,null,null,null,null,null,null,null,null,null,null,null,null,null,null,null,null,null,null,null,null,null,null,null,null,null,null,null,null,null,null,null,null,null,null,null,null,null,null,null,null,null,null,null,null,null,null,null,null,null,null,null,null,null,null,null,null,null,null,null,null,null,null,null,null,null,null,null,null,null,null,null,null,null,null,null,null,null,null,null,null,null,null,null,null,null,null,null,null,null,null,null,null,null,null,null,null,null,null,null,null,null,null,null,null,null,null,null,null,null,null,null,null,null,null,null,"Премия",null,{"$f":"BX161*EH161","v":0},null,null,null,null,null,null,null,null,null,null,null,{"$f":"IF(FS163=\"х\",ET161,\"\")","v":""},null,{"$f":"IF(FU163=\"х\",EV161,\"\")","v":""},null,{"$f":"IF(FW163=\"х\",EX161,\"\")","v":""},null,{"$f":"IF(FY163=\"х\",EZ161,\"\")","v":""},null,{"$f":"IF(GA163=\"х\",FB161,\"\")","v":""},null,{"$f":"IF(GC163=\"х\",FD161,\"\")","v":""},null,{"$f":"IF(GE163=\"х\",FF161,\"\")","v":""},null,{"$f":"IF(GG163=\"х\",FH161,\"\")","v":""},null,{"$f":"IF(GI163=\"х\",FJ161,\"\")","v":""},null,{"$f":"IF(GK163=\"х\",FL161,\"\")","v":""},null,{"$f":"IF(GM163=\"х\",FN161,\"\")","v":""},null,null,null,null,{"$f":"IF(DH163=\"\",,\"х\")","v":0},null,{"$f":"IF(OR(DJ163=\"\",FS163=\"х\"),,\"х\")","v":0},null,{"$f":"IF(OR(DL163=\"\",FS163=\"х\"),,\"х\")","v":0},null,{"$f":"IF(OR(DN163=\"\",FS163=\"х\"),,\"х\")","v":0},null,{"$f":"IF(OR(DP163=\"\",FS163=\"х\"),,\"х\")","v":0},null,{"$f":"IF(OR(DR163=\"\",FS163=\"х\"),,\"х\")","v":0},null,{"$f":"IF(OR(DT163=\"\",FS163=\"х\"),,\"х\")","v":0},null,{"$f":"IF(DV163=\"\",,\"х\")","v":0},null,{"$f":"IF(DX163=\"\",,\"х\")","v":0},null,{"$f":"IF(DZ163=\"\",,\"х\")","v":0},null,{"$f":"IF(EB163=\"\",,\"х\")","v":0}]
[]
[null,null,"4. Инструменты, производственный и хозяйственный",null,null,null,null,null,null,null,null,null,null,null,null,null,null,null,null,null,null,null,null,null,null,null,null,null,null,null,null,null,null,null,null,null,null,null,null,null,null,null,null,null,null,null,null,null,null,null,null,null,null,null,null,null,null,null,null,null,null,null,null,null,null,null,null,null,null,null,null,null,null,null,null,null,null,null,null,null,null,null,null,null,null,null,null,null,null,null,null,{"$f":"MID(HQ165,2,500)","v":""},null,null,null,null,null,null,null,null,null,null,null,null,null,null,null,null,null,4,null,"1-6",null,"1",null,"2",null,"3",null,"4",null,"5",null,"6",null,"7",null,"8",null,"9",null,"10",null,null,null,"Тариф",null,null,null,null,null,null,null,null,null,null,null,null,null,",1-6",null,",1",null,",2",null,",3",null,",4",null,",5",null,",6",null,",7",null,",8",null,",9",null,",10",null,null,4,null,1,null,2,null,3,null,4,null,5,null,6,null,7,null,8,null,9,null,10,null,11,null,null,null,null,null,null,null,null,null,null,null,null,null,null,null,null,null,null,null,null,null,null,null,null,null,null,4,null,null,{"$f":"CONCATENATE(ET167,EV167,EX167,EZ167,FB167,FD167,FF167,FH167,FJ167,FL167,FN167)","v":""}]
[]
[null,null,"инвентарь",null,null,null,null,null,null,null,null,null,null,null,null,null,null,null,null,null,null,null,null,null,null,null,null,null,null,null,null,null,null,null,null,null,null,null,null,null,null,null,null,null,null,null,null,null,null,null,null,null,null,null,null,null,null,null,null,null,null,null,null,null,null,null,null,null,null,null,null,null,null,null,null,null,null,null,null,null,null,null,null,null,null,null,null,null,null,null,null,null,null,null,null,null,null,null,null,null,null,null,null,null,null,null,null,null,null,null,null,null,null,null,null,null,null,null,null,null,null,null,null,null,null,null,null,null,null,null,null,null,null,null,null,"Премия",null,{"$f":"BX165*EH165","v":0},null,null,null,null,null,null,null,null,null,null,null,{"$f":"IF(FS167=\"х\",ET165,\"\")","v":""},null,{"$f":"IF(FU167=\"х\",EV165,\"\")","v":""},null,{"$f":"IF(FW167=\"х\",EX165,\"\")","v":""},null,{"$f":"IF(FY167=\"х\",EZ165,\"\")","v":""},null,{"$f":"IF(GA167=\"х\",FB165,\"\")","v":""},null,{"$f":"IF(GC167=\"х\",FD165,\"\")","v":""},null,{"$f":"IF(GE167=\"х\",FF165,\"\")","v":""},null,{"$f":"IF(GG167=\"х\",FH165,\"\")","v":""},null,{"$f":"IF(GI167=\"х\",FJ165,\"\")","v":""},null,{"$f":"IF(GK167=\"х\",FL165,\"\")","v":""},null,{"$f":"IF(GM167=\"х\",FN165,\"\")","v":""},null,null,null,null,{"$f":"IF(DH167=\"\",,\"х\")","v":0},null,{"$f":"IF(OR(DJ167=\"\",FS167=\"х\"),,\"х\")","v":0},null,{"$f":"IF(OR(DL167=\"\",FS167=\"х\"),,\"х\")","v":0},null,{"$f":"IF(OR(DN167=\"\",FS167=\"х\"),,\"х\")","v":0},null,{"$f":"IF(OR(DP167=\"\",FS167=\"х\"),,\"х\")","v":0},null,{"$f":"IF(OR(DR167=\"\",FS167=\"х\"),,\"х\")","v":0},null,{"$f":"IF(OR(DT167=\"\",FS167=\"х\"),,\"х\")","v":0},null,{"$f":"IF(DV167=\"\",,\"х\")","v":0},null,{"$f":"IF(DX167=\"\",,\"х\")","v":0},null,{"$f":"IF(DZ167=\"\",,\"х\")","v":0},null,{"$f":"IF(EB167=\"\",,\"х\")","v":0}]
[]
[null,null,"5. Торговые (выставочные) витрины внутри помещений,",null,null,null,null,null,null,null,null,null,null,null,null,null,null,null,null,null,null,null,null,null,null,null,null,null,null,null,null,null,null,null,null,null,null,null,null,null,null,null,null,null,null,null,null,null,null,null,null,null,null,null,null,null,null,null,null,null,null,null,null,null,null,null,null,null,null,null,null,null,null,null,null,null,null,null,null,null,null,null,null,null,null,null,null,null,null,null,null,{"$f":"MID(HQ169,2,500)","v":""},null,null,null,null,null,null,null,null,null,null,null,null,null,null,null,null,null,5,null,"1-6",null,"1",null,"2",null,"3",null,"4",null,"5",null,"6",null,"7",null,"8",null,"9",null,"10",null,null,null,"Тариф",null,null,null,null,null,null,null,null,null,null,null,null,null,",1-6",null,",1",null,",2",null,",3",null,",4",null,",5",null,",6",null,",7",null,",8",null,",9",null,",10",null,null,5,null,1,null,2,null,3,null,4,null,5,null,6,null,7,null,8,null,9,null,10,null,11,null,null,null,null,null,null,null,null,null,null,null,null,null,null,null,null,null,null,null,null,null,null,null,null,null,null,5,null,null,{"$f":"CONCATENATE(ET171,EV171,EX171,EZ171,FB171,FD171,FF171,FH171,FJ171,FL171,FN171)","v":""}]
[]
[null,null,"стеклянные перегородки",null,null,null,null,null,null,null,null,null,null,null,null,null,null,null,null,null,null,null,null,null,null,null,null,null,null,null,null,null,null,null,null,null,null,null,null,null,null,null,null,null,null,null,null,null,null,null,null,null,null,null,null,null,null,null,null,null,null,null,null,null,null,null,null,null,null,null,null,null,null,null,null,null,null,null,null,null,null,null,null,null,null,null,null,null,null,null,null,null,null,null,null,null,null,null,null,null,null,null,null,null,null,null,null,null,null,null,null,null,null,null,null,null,null,null,null,null,null,null,null,null,null,null,null,null,null,null,null,null,null,null,null,"Премия",null,{"$f":"BX169*EH169","v":0},null,null,null,null,null,null,null,null,null,null,null,{"$f":"IF(FS171=\"х\",ET169,\"\")","v":""},null,{"$f":"IF(FU171=\"х\",EV169,\"\")","v":""},null,{"$f":"IF(FW171=\"х\",EX169,\"\")","v":""},null,{"$f":"IF(FY171=\"х\",EZ169,\"\")","v":""},null,{"$f":"IF(GA171=\"х\",FB169,\"\")","v":""},null,{"$f":"IF(GC171=\"х\",FD169,\"\")","v":""},null,{"$f":"IF(GE171=\"х\",FF169,\"\")","v":""},null,{"$f":"IF(GG171=\"х\",FH169,\"\")","v":""},null,{"$f":"IF(GI171=\"х\",FJ169,\"\")","v":""},null,{"$f":"IF(GK171=\"х\",FL169,\"\")","v":""},null,{"$f":"IF(GM171=\"х\",FN169,\"\")","v":""},null,null,null,null,{"$f":"IF(DH171=\"\",,\"х\")","v":0},null,{"$f":"IF(OR(DJ171=\"\",FS171=\"х\"),,\"х\")","v":0},null,{"$f":"IF(OR(DL171=\"\",FS171=\"х\"),,\"х\")","v":0},null,{"$f":"IF(OR(DN171=\"\",FS171=\"х\"),,\"х\")","v":0},null,{"$f":"IF(OR(DP171=\"\",FS171=\"х\"),,\"х\")","v":0},null,{"$f":"IF(OR(DR171=\"\",FS171=\"х\"),,\"х\")","v":0},null,{"$f":"IF(OR(DT171=\"\",FS171=\"х\"),,\"х\")","v":0},null,{"$f":"IF(DV171=\"\",,\"х\")","v":0},null,{"$f":"IF(DX171=\"\",,\"х\")","v":0},null,{"$f":"IF(DZ171=\"\",,\"х\")","v":0},null,{"$f":"IF(EB171=\"\",,\"х\")","v":0}]
[]
[null,null,"6. Иное: ",null,null,null,null,null,null,null,null,null,null,null,null,null,null,null,null,null,null,null,null,null,null,null,null,null,null,null,null,null,null,null,null,null,null,null,null,null,null,null,null,null,null,null,null,null,null,null,null,null,null,null,null,null,null,null,null,null,null,null,null,null,null,null,null,null,null,null,null,null,null,null,null,null,null,null,null,null,null,null,null,null,null,null,null,null,null,null,null,{"$f":"MID(HQ173,2,500)","v":""},null,null,null,null,null,null,null,null,null,null,null,null,null,null,null,null,null,6,null,"1-6",null,"1",null,"2",null,"3",null,"4",null,"5",null,"6",null,"7",null,"8",null,"9",null,"10",null,null,null,"Тариф",null,null,null,null,null,null,null,null,null,null,null,null,null,",1-6",null,",1",null,",2",null,",3",null,",4",null,",5",null,",6",null,",7",null,",8",null,",9",null,",10",null,null,6,null,1,null,2,null,3,null,4,null,5,null,6,null,7,null,8,null,9,null,10,null,11,null,null,null,null,null,null,null,null,null,null,null,null,null,null,null,null,null,null,null,null,null,null,null,null,null,null,6,null,null,{"$f":"CONCATENATE(ET175,EV175,EX175,EZ175,FB175,FD175,FF175,FH175,FJ175,FL175,FN175)","v":""}]
[]
[null,null,null,null,null,null,null,null,null,null,null,null,null,null,null,null,null,null,null,null,null,null,null,null,null,null,null,null,null,null,null,null,null,null,null,null,null,null,null,null,null,null,null,null,null,null,null,null,null,null,null,null,null,null,null,null,null,null,null,null,null,null,null,null,null,null,null,null,null,null,null,null,null,null,null,null,null,null,null,null,null,null,null,null,null,null,null,null,null,null,null,null,null,null,null,null,null,null,null,null,null,null,null,null,null,null,null,null,null,null,null,null,null,null,null,null,null,null,null,null,null,null,null,null,null,null,null,null,null,null,null,null,null,null,null,"Премия",null,{"$f":"BX173*EH173","v":0},null,null,null,null,null,null,null,null,null,null,null,{"$f":"IF(FS175=\"х\",ET173,\"\")","v":""},null,{"$f":"IF(FU175=\"х\",EV173,\"\")","v":""},null,{"$f":"IF(FW175=\"х\",EX173,\"\")","v":""},null,{"$f":"IF(FY175=\"х\",EZ173,\"\")","v":""},null,{"$f":"IF(GA175=\"х\",FB173,\"\")","v":""},null,{"$f":"IF(GC175=\"х\",FD173,\"\")","v":""},null,{"$f":"IF(GE175=\"х\",FF173,\"\")","v":""},null,{"$f":"IF(GG175=\"х\",FH173,\"\")","v":""},null,{"$f":"IF(GI175=\"х\",FJ173,\"\")","v":""},null,{"$f":"IF(GK175=\"х\",FL173,\"\")","v":""},null,{"$f":"IF(GM175=\"х\",FN173,\"\")","v":""},null,null,null,null,{"$f":"IF(DH175=\"\",,\"х\")","v":0},null,{"$f":"IF(OR(DJ175=\"\",FS175=\"х\"),,\"х\")","v":0},null,{"$f":"IF(OR(DL175=\"\",FS175=\"х\"),,\"х\")","v":0},null,{"$f":"IF(OR(DN175=\"\",FS175=\"х\"),,\"х\")","v":0},null,{"$f":"IF(OR(DP175=\"\",FS175=\"х\"),,\"х\")","v":0},null,{"$f":"IF(OR(DR175=\"\",FS175=\"х\"),,\"х\")","v":0},null,{"$f":"IF(OR(DT175=\"\",FS175=\"х\"),,\"х\")","v":0},null,{"$f":"IF(DV175=\"\",,\"х\")","v":0},null,{"$f":"IF(DX175=\"\",,\"х\")","v":0},null,{"$f":"IF(DZ175=\"\",,\"х\")","v":0},null,{"$f":"IF(EB175=\"\",,\"х\")","v":0}]
[]
[null,null,"7. Иное: ",null,null,null,null,null,null,null,null,null,null,null,null,null,null,null,null,null,null,null,null,null,null,null,null,null,null,null,null,null,null,null,null,null,null,null,null,null,null,null,null,null,null,null,null,null,null,null,null,null,null,null,null,null,null,null,null,null,null,null,null,null,null,null,null,null,null,null,null,null,null,null,null,null,null,null,null,null,null,null,null,null,null,null,null,null,null,null,null,{"$f":"MID(HQ177,2,500)","v":""},null,null,null,null,null,null,null,null,null,null,null,null,null,null,null,null,null,7,null,"1-6",null,"1",null,"2",null,"3",null,"4",null,"5",null,"6",null,"7",null,"8",null,"9",null,"10",null,null,null,"Тариф",null,null,null,null,null,null,null,null,null,null,null,null,null,",1-6",null,",1",null,",2",null,",3",null,",4",null,",5",null,",6",null,",7",null,",8",null,",9",null,",10",null,null,7,null,1,null,2,null,3,null,4,null,5,null,6,null,7,null,8,null,9,null,10,null,11,null,null,null,null,null,null,null,null,null,null,null,null,null,null,null,null,null,null,null,null,null,null,null,null,null,null,7,null,null,{"$f":"CONCATENATE(ET179,EV179,EX179,EZ179,FB179,FD179,FF179,FH179,FJ179,FL179,FN179)","v":""}]
[]
[null,null,null,null,null,null,null,null,null,null,null,null,null,null,null,null,null,null,null,null,null,null,null,null,null,null,null,null,null,null,null,null,null,null,null,null,null,null,null,null,null,null,null,null,null,null,null,null,null,null,null,null,null,null,null,null,null,null,null,null,null,null,null,null,null,null,null,null,null,null,null,null,null,null,null,null,null,null,null,null,null,null,null,null,null,null,null,null,null,null,null,null,null,null,null,null,null,null,null,null,null,null,null,null,null,null,null,null,null,null,null,null,null,null,null,null,null,null,null,null,null,null,null,null,null,null,null,null,null,null,null,null,null,null,null,"Премия",null,{"$f":"BX177*EH177","v":0},null,null,null,null,null,null,null,null,null,null,null,{"$f":"IF(FS179=\"х\",ET177,\"\")","v":""},null,{"$f":"IF(FU179=\"х\",EV177,\"\")","v":""},null,{"$f":"IF(FW179=\"х\",EX177,\"\")","v":""},null,{"$f":"IF(FY179=\"х\",EZ177,\"\")","v":""},null,{"$f":"IF(GA179=\"х\",FB177,\"\")","v":""},null,{"$f":"IF(GC179=\"х\",FD177,\"\")","v":""},null,{"$f":"IF(GE179=\"х\",FF177,\"\")","v":""},null,{"$f":"IF(GG179=\"х\",FH177,\"\")","v":""},null,{"$f":"IF(GI179=\"х\",FJ177,\"\")","v":""},null,{"$f":"IF(GK179=\"х\",FL177,\"\")","v":""},null,{"$f":"IF(GM179=\"х\",FN177,\"\")","v":""},null,null,null,null,{"$f":"IF(DH179=\"\",,\"х\")","v":0},null,{"$f":"IF(OR(DJ179=\"\",FS179=\"х\"),,\"х\")","v":0},null,{"$f":"IF(OR(DL179=\"\",FS179=\"х\"),,\"х\")","v":0},null,{"$f":"IF(OR(DN179=\"\",FS179=\"х\"),,\"х\")","v":0},null,{"$f":"IF(OR(DP179=\"\",FS179=\"х\"),,\"х\")","v":0},null,{"$f":"IF(OR(DR179=\"\",FS179=\"х\"),,\"х\")","v":0},null,{"$f":"IF(OR(DT179=\"\",FS179=\"х\"),,\"х\")","v":0},null,{"$f":"IF(DV179=\"\",,\"х\")","v":0},null,{"$f":"IF(DX179=\"\",,\"х\")","v":0},null,{"$f":"IF(DZ179=\"\",,\"х\")","v":0},null,{"$f":"IF(EB179=\"\",,\"х\")","v":0}]
[]
[null,null,null,null,null,null,null,null,null,null,null,null,null,null,null,null,null,null,null,null,null,null,null,null,null,null,null,null,null,null,null,null,null,null,null,null,null,null,null,null,null,null,null,null,null,null,null,null,"Итого страховая сумма:",null,null,null,null,null,null,null,null,null,null,null,null,null,null,null,null,null,null,null,null,null,null,null,null,null,null,{"$f":"BX153+BX157+BX161+BX165+BX169+BX173+BX177","v":0},null,null,null,null,null,null,null,null,null,null,null,null,null,null,null,null,null,null,null,null,null,null,null,null,null,null,null,null,null,null,null,null,null,"Премия итого:"]
[]
[null,null,null,null,null,null,null,null,null,null,null,null,null,null,null,null,null,null,null,null,null,null,null,null,null,null,null,null,null,null,null,null,null,null,null,null,null,null,null,null,null,null,null,null,null,null,null,null,null,null,null,null,null,null,null,null,null,null,null,null,null,null,null,null,null,null,null,null,null,null,null,null,null,null,null,null,null,null,null,null,null,null,null,null,null,null,null,null,null,null,null,null,null,null,null,null,null,null,null,null,null,null,null,null,null,null,null,null,null,{"$f":"EH155+EH159+EH163+EH167+EH171+EH175+EH179","v":0},null,null,null,null,null,null,null,null,null,null,null,null,null,null,null,null,null,null,null,null,null,null,null,null,null,null,null,null,null,null,null,null,null,null,null,null,null,null,null,{"$f":"'перечень имущества'!IB135","v":0}]
[]
[null,null,null,null,null,null,null,null,null,null,null,null,null,null,null,null,null,null,null,null,null,null,null,null,null,null,null,null,null,null,null,null,null,null,null,null,null,"!!! ВНИМАНИЕ !!!",null,null,null,null,null,null,null,null,null,null,null,null,null,null,null,null,null,null,null,null,null,null,null,null,null,null,null,null,null,null,null,null,null,null,null,null,null,null,null,null,null,null,null,null,null,null,null,null,null,null,null,null,null,null,null,null,null,null,null,null,null,null,null,null,null,null,null,null,null,null,null,null,null,null,null,null,null,null,null,null,null,null,null,null,null,null,null,null,null,null,null,null,null,null,null,null,null,null,null,null,null,null,null,null,null,null,null,null,null,null,null,{"$f":"IF(ET187=\"х\",ET191,\"\")","v":""},null,{"$f":"IF(EV187=\"х\",EV191,\"\")","v":""},null,{"$f":"IF(EX187=\"х\",EX191,\"\")","v":""},null,{"$f":"IF(EZ187=\"х\",EZ191,\"\")","v":""},null,{"$f":"IF(FB187=\"х\",FB191,\"\")","v":""},null,{"$f":"IF(FD187=\"х\",FD191,\"\")","v":""},null,{"$f":"IF(FF187=\"х\",FF191,\"\")","v":""},null,{"$f":"IF(FH187=\"х\",FH191,\"\")","v":""},null,{"$f":"IF(FJ187=\"х\",FJ191,\"\")","v":""},null,{"$f":"IF(FL187=\"х\",FL191,\"\")","v":""},null,{"$f":"IF(FN187=\"х\",FN191,\"\")","v":""}]
[null,null,null,null,"В разделе \"Краткое описание\" укажите наименование товарных запасов по каждой позиции"]
[null,null,null,null,null,null,null,null,null,null,null,null,null,null,null,null,null,null,null,null,null,null,null,null,null,null,null,null,null,null,null,null,null,null,null,null,null,null,null,null,null,null,null,null,null,null,null,null,null,null,null,null,null,null,null,null,null,null,null,null,null,null,null,null,null,null,null,null,null,null,null,null,null,null,null,null,null,null,null,null,null,null,null,null,null,null,null,null,null,null,null,null,null,null,null,null,null,null,null,null,null,null,null,null,null,null,null,null,null,null,null,null,null,null,null,null,null,null,null,null,null,null,null,null,null,null,null,null,null,null,null,null,null,null,null,null,null,null,null,null,null,null,null,null,null,null,null,null,null,{"$f":"IF(ET189=\"\",,\"х\")","v":0},null,{"$f":"IF(OR(EV189=\"\",ET187=\"х\"),,\"х\")","v":0},null,{"$f":"IF(OR(EX189=\"\",ET187=\"х\"),,\"х\")","v":0},null,{"$f":"IF(OR(EZ189=\"\",ET187=\"х\"),,\"х\")","v":0},null,{"$f":"IF(OR(FB189=\"\",ET187=\"х\"),,\"х\")","v":0},null,{"$f":"IF(OR(FD189=\"\",ET187=\"х\"),,\"х\")","v":0},null,{"$f":"IF(OR(FF189=\"\",ET187=\"х\"),,\"х\")","v":0},null,{"$f":"IF(FH189=\"\",,\"х\")","v":0},null,{"$f":"IF(FJ189=\"\",,\"х\")","v":0},null,{"$f":"IF(FL189=\"\",,\"х\")","v":0},null,{"$f":"IF(FN189=\"\",,\"х\")","v":0},null,null,"Всего ТМЦ"]
[]
[null,null,"ТОВАРНЫЕ ЗАПАСЫ",null,null,null,null,null,null,null,null,null,null,null,null,null,null,null,null,null,null,null,null,null,null,null,null,null,null,null,null,null,null,null,null,null,null,null,null,null,null,null,null,null,null,null,null,null,null,null,null,"Краткое описание",null,null,null,null,null,null,null,null,null,null,null,null,null,null,null,null,null,null,null,null,null,null,null,null,"Страховая сумма",null,null,null,null,null,null,null,null,null,null,null,null,null,null,null,null,"Риски * (коды)",null,null,null,null,null,null,null,null,null,null,null,null,null,null,null,null,null,"ТОВАРНЫЕ ЗАПАСЫ",null,null,null,null,null,null,null,null,null,null,null,null,null,null,null,null,null,null,null,null,null,null,null,null,null,null,null,null,null,null,null,null,null,null,null,null,null,{"$f":"IF(OR(FS193=\"х\",FS197=\"х\",FS201=\"х\"),ET191,\"\")","v":""},null,{"$f":"IF(OR(FU193=\"х\",FU197=\"х\",FU201=\"х\"),EV191,\"\")","v":""},null,{"$f":"IF(OR(FW193=\"х\",FW197=\"х\",FW201=\"х\"),EX191,\"\")","v":""},null,{"$f":"IF(OR(FY193=\"х\",FY197=\"х\",FY201=\"х\"),EZ191,\"\")","v":""},null,{"$f":"IF(OR(GA193=\"х\",GA197=\"х\",GA201=\"х\"),FB191,\"\")","v":""},null,{"$f":"IF(OR(GC193=\"х\",GC197=\"х\",GC201=\"х\"),FD191,\"\")","v":""},null,{"$f":"IF(OR(GE193=\"х\",GE197=\"х\",GE201=\"х\"),FF191,\"\")","v":""},null,{"$f":"IF(OR(GG193=\"х\",GG197=\"х\",GG201=\"х\"),FH191,\"\")","v":""},null,{"$f":"IF(OR(GI193=\"х\",GI197=\"х\",GI201=\"х\"),FJ191,\"\")","v":""},null,{"$f":"IF(OR(GK193=\"х\",GK197=\"х\",GK201=\"х\"),FL191,\"\")","v":""},null,{"$f":"IF(OR(GM193=\"х\",GM197=\"х\",GM201=\"х\"),FN191,\"\")","v":""},null,null,{"$f":"CONCATENATE(ET185,EV185,EX185,EZ185,FB185,FD185,FF185,FH185,FJ185,FL185,FN185)","v":""}]
[]
[null,null,"1. Запасы товаров, готовой продукции",null,null,null,null,null,null,null,null,null,null,null,null,null,null,null,null,null,null,null,null,null,null,null,null,null,null,null,null,null,null,null,null,null,null,null,null,null,null,null,null,null,null,null,null,null,null,null,null,null,null,null,null,null,null,null,null,null,null,null,null,null,null,null,null,null,null,null,null,null,null,null,null,null,null,null,null,null,null,null,null,null,null,null,null,null,null,null,null,{"$f":"MID(GT191,2,500)","v":""},null,null,null,null,null,null,null,null,null,null,null,null,null,null,null,null,null,1,null,"1-6",null,"1",null,"2",null,"3",null,"4",null,"5",null,"6",null,"7",null,"8",null,"9",null,"10",null,null,null,"Тариф",null,null,null,null,null,null,null,null,null,null,null,null,null,",1-6",null,",1",null,",2",null,",3",null,",4",null,",5",null,",6",null,",7",null,",8",null,",9",null,",10",null,null,1,null,1,null,2,null,3,null,4,null,5,null,6,null,7,null,8,null,9,null,10,null,11,null,null,null,1,null,null,{"$f":"CONCATENATE(ET193,EV193,EX193,EZ193,FB193,FD193,FF193,FH193,FJ193,FL193,FN193)","v":""}]
[]
[null,null,null,null,null,null,null,null,null,null,null,null,null,null,null,null,null,null,null,null,null,null,null,null,null,null,null,null,null,null,null,null,null,null,null,null,null,null,null,null,null,null,null,null,null,null,null,null,null,null,null,null,null,null,null,null,null,null,null,null,null,null,null,null,null,null,null,null,null,null,null,null,null,null,null,null,null,null,null,null,null,null,null,null,null,null,null,null,null,null,null,null,null,null,null,null,null,null,null,null,null,null,null,null,null,null,null,null,null,null,null,null,null,null,null,null,null,null,null,null,null,null,null,null,null,null,null,null,null,null,null,null,null,null,null,"Премия",null,{"$f":"BX191*EH191","v":0},null,null,null,null,null,null,null,null,null,null,null,{"$f":"IF(FS193=\"х\",ET191,\"\")","v":""},null,{"$f":"IF(FU193=\"х\",EV191,\"\")","v":""},null,{"$f":"IF(FW193=\"х\",EX191,\"\")","v":""},null,{"$f":"IF(FY193=\"х\",EZ191,\"\")","v":""},null,{"$f":"IF(GA193=\"х\",FB191,\"\")","v":""},null,{"$f":"IF(GC193=\"х\",FD191,\"\")","v":""},null,{"$f":"IF(GE193=\"х\",FF191,\"\")","v":""},null,{"$f":"IF(GG193=\"х\",FH191,\"\")","v":""},null,{"$f":"IF(GI193=\"х\",FJ191,\"\")","v":""},null,{"$f":"IF(GK193=\"х\",FL191,\"\")","v":""},null,{"$f":"IF(GM193=\"х\",FN191,\"\")","v":""},null,null,null,null,{"$f":"IF(DH193=\"\",,\"х\")","v":0},null,{"$f":"IF(OR(DJ193=\"\",FS193=\"х\"),,\"х\")","v":0},null,{"$f":"IF(OR(DL193=\"\",FS193=\"х\"),,\"х\")","v":0},null,{"$f":"IF(OR(DN193=\"\",FS193=\"х\"),,\"х\")","v":0},null,{"$f":"IF(OR(DP193=\"\",FS193=\"х\"),,\"х\")","v":0},null,{"$f":"IF(OR(DR193=\"\",FS193=\"х\"),,\"х\")","v":0},null,{"$f":"IF(OR(DT193=\"\",FS193=\"х\"),,\"х\")","v":0},null,{"$f":"IF(DV193=\"\",,\"х\")","v":0},null,{"$f":"IF(DX193=\"\",,\"х\")","v":0},null,{"$f":"IF(DZ193=\"\",,\"х\")","v":0},null,{"$f":"IF(EB193=\"\",,\"х\")","v":0},null,null,null,null,null,null,{"$f":"MID(FQ189,2,500)","v":""}]
[]
[null,null,"2. Запасы сырья и материалов",null,null,null,null,null,null,null,null,null,null,null,null,null,null,null,null,null,null,null,null,null,null,null,null,null,null,null,null,null,null,null,null,null,null,null,null,null,null,null,null,null,null,null,null,null,null,null,null,null,null,null,null,null,null,null,null,null,null,null,null,null,null,null,null,null,null,null,null,null,null,null,null,null,null,null,null,null,null,null,null,null,null,null,null,null,null,null,null,{"$f":"MID(GT195,2,500)","v":""},null,null,null,null,null,null,null,null,null,null,null,null,null,null,null,null,null,2,null,"1-6",null,"1",null,"2",null,"3",null,"4",null,"5",null,"6",null,"7",null,"8",null,"9",null,"10",null,null,null,"Тариф",null,null,null,null,null,null,null,null,null,null,null,null,null,",1-6",null,",1",null,",2",null,",3",null,",4",null,",5",null,",6",null,",7",null,",8",null,",9",null,",10",null,null,2,null,1,null,2,null,3,null,4,null,5,null,6,null,7,null,8,null,9,null,10,null,11,null,null,null,2,null,null,{"$f":"CONCATENATE(ET197,EV197,EX197,EZ197,FB197,FD197,FF197,FH197,FJ197,FL197,FN197)","v":""}]
[]
[null,null,null,null,null,null,null,null,null,null,null,null,null,null,null,null,null,null,null,null,null,null,null,null,null,null,null,null,null,null,null,null,null,null,null,null,null,null,null,null,null,null,null,null,null,null,null,null,null,null,null,null,null,null,null,null,null,null,null,null,null,null,null,null,null,null,null,null,null,null,null,null,null,null,null,null,null,null,null,null,null,null,null,null,null,null,null,null,null,null,null,null,null,null,null,null,null,null,null,null,null,null,null,null,null,null,null,null,null,null,null,null,null,null,null,null,null,null,null,null,null,null,null,null,null,null,null,null,null,null,null,null,null,null,null,"Премия",null,{"$f":"BX195*EH195","v":0},null,null,null,null,null,null,null,null,null,null,null,{"$f":"IF(FS197=\"х\",ET195,\"\")","v":""},null,{"$f":"IF(FU197=\"х\",EV195,\"\")","v":""},null,{"$f":"IF(FW197=\"х\",EX195,\"\")","v":""},null,{"$f":"IF(FY197=\"х\",EZ195,\"\")","v":""},null,{"$f":"IF(GA197=\"х\",FB195,\"\")","v":""},null,{"$f":"IF(GC197=\"х\",FD195,\"\")","v":""},null,{"$f":"IF(GE197=\"х\",FF195,\"\")","v":""},null,{"$f":"IF(GG197=\"х\",FH195,\"\")","v":""},null,{"$f":"IF(GI197=\"х\",FJ195,\"\")","v":""},null,{"$f":"IF(GK197=\"х\",FL195,\"\")","v":""},null,{"$f":"IF(GM197=\"х\",FN195,\"\")","v":""},null,null,null,null,{"$f":"IF(DH197=\"\",,\"х\")","v":0},null,{"$f":"IF(OR(DJ197=\"\",FS197=\"х\"),,\"х\")","v":0},null,{"$f":"IF(OR(DL197=\"\",FS197=\"х\"),,\"х\")","v":0},null,{"$f":"IF(OR(DN197=\"\",FS197=\"х\"),,\"х\")","v":0},null,{"$f":"IF(OR(DP197=\"\",FS197=\"х\"),,\"х\")","v":0},null,{"$f":"IF(OR(DR197=\"\",FS197=\"х\"),,\"х\")","v":0},null,{"$f":"IF(OR(DT197=\"\",FS197=\"х\"),,\"х\")","v":0},null,{"$f":"IF(DV197=\"\",,\"х\")","v":0},null,{"$f":"IF(DX197=\"\",,\"х\")","v":0},null,{"$f":"IF(DZ197=\"\",,\"х\")","v":0},null,{"$f":"IF(EB197=\"\",,\"х\")","v":0}]
[]
[null,null,"3. Запасы в незавершенном производстве",null,null,null,null,null,null,null,null,null,null,null,null,null,null,null,null,null,null,null,null,null,null,null,null,null,null,null,null,null,null,null,null,null,null,null,null,null,null,null,null,null,null,null,null,null,null,null,null,null,null,null,null,null,null,null,null,null,null,null,null,null,null,null,null,null,null,null,null,null,null,null,null,null,null,null,null,null,null,null,null,null,null,null,null,null,null,null,null,{"$f":"MID(GT199,2,500)","v":""},null,null,null,null,null,null,null,null,null,null,null,null,null,null,null,null,null,3,null,"1-6",null,"1",null,"2",null,"3",null,"4",null,"5",null,"6",null,"7",null,"8",null,"9",null,"10",null,null,null,"Тариф",null,null,null,null,null,null,null,null,null,null,null,null,null,",1-6",null,",1",null,",2",null,",3",null,",4",null,",5",null,",6",null,",7",null,",8",null,",9",null,",10",null,null,3,null,1,null,2,null,3,null,4,null,5,null,6,null,7,null,8,null,9,null,10,null,11,null,null,null,3,null,null,{"$f":"CONCATENATE(ET201,EV201,EX201,EZ201,FB201,FD201,FF201,FH201,FJ201,FL201,FN201)","v":""}]
[]
[null,null,null,null,null,null,null,null,null,null,null,null,null,null,null,null,null,null,null,null,null,null,null,null,null,null,null,null,null,null,null,null,null,null,null,null,null,null,null,null,null,null,null,null,null,null,null,null,null,null,null,null,null,null,null,null,null,null,null,null,null,null,null,null,null,null,null,null,null,null,null,null,null,null,null,null,null,null,null,null,null,null,null,null,null,null,null,null,null,null,null,null,null,null,null,null,null,null,null,null,null,null,null,null,null,null,null,null,null,null,null,null,null,null,null,null,null,null,null,null,null,null,null,null,null,null,null,null,null,null,null,null,null,null,null,"Премия",null,{"$f":"BX199*EH199","v":0},null,null,null,null,null,null,null,null,null,null,null,{"$f":"IF(FS201=\"х\",ET199,\"\")","v":""},null,{"$f":"IF(FU201=\"х\",EV199,\"\")","v":""},null,{"$f":"IF(FW201=\"х\",EX199,\"\")","v":""},null,{"$f":"IF(FY201=\"х\",EZ199,\"\")","v":""},null,{"$f":"IF(GA201=\"х\",FB199,\"\")","v":""},null,{"$f":"IF(GC201=\"х\",FD199,\"\")","v":""},null,{"$f":"IF(GE201=\"х\",FF199,\"\")","v":""},null,{"$f":"IF(GG201=\"х\",FH199,\"\")","v":""},null,{"$f":"IF(GI201=\"х\",FJ199,\"\")","v":""},null,{"$f":"IF(GK201=\"х\",FL199,\"\")","v":""},null,{"$f":"IF(GM201=\"х\",FN199,\"\")","v":""},null,null,null,null,{"$f":"IF(DH201=\"\",,\"х\")","v":0},null,{"$f":"IF(OR(DJ201=\"\",FS201=\"х\"),,\"х\")","v":0},null,{"$f":"IF(OR(DL201=\"\",FS201=\"х\"),,\"х\")","v":0},null,{"$f":"IF(OR(DN201=\"\",FS201=\"х\"),,\"х\")","v":0},null,{"$f":"IF(OR(DP201=\"\",FS201=\"х\"),,\"х\")","v":0},null,{"$f":"IF(OR(DR201=\"\",FS201=\"х\"),,\"х\")","v":0},null,{"$f":"IF(OR(DT201=\"\",FS201=\"х\"),,\"х\")","v":0},null,{"$f":"IF(DV201=\"\",,\"х\")","v":0},null,{"$f":"IF(DX201=\"\",,\"х\")","v":0},null,{"$f":"IF(DZ201=\"\",,\"х\")","v":0},null,{"$f":"IF(EB201=\"\",,\"х\")","v":0}]
[]
[null,null,null,null,null,null,null,null,null,null,null,null,null,null,null,null,null,null,null,null,null,null,null,null,null,null,null,null,null,null,null,null,null,null,null,null,null,null,null,null,null,null,null,null,null,null,null,null,"Итого страховая сумма:",null,null,null,null,null,null,null,null,null,null,null,null,null,null,null,null,null,null,null,null,null,null,null,null,null,null,{"$f":"BX191+BX195+BX199","v":0},null,null,null,null,null,null,null,null,null,null,null,null,null,null,null,null,null,null,null,null,null,null,null,null,null,null,null,null,null,null,null,null,null,"Премия итого:"]
[]
[null,null,null,"Страховая сумма установлена на базе:",null,null,null,null,null,null,null,null,null,null,null,null,null,null,null,null,null,null,null,null,null,null,null,null,null,null,null,null,null,null,null,null,null,null,null,null,null,null,null,null,null,null,null,null,null,null,null,null,null,null,null,null,null,null,null,null,null,null,null,null,null,null,null,null,null,null,null,null,null,null,null,null,null,null,null,null,null,null,null,null,null,null,null,null,null,null,null,null,null,null,null,null,null,null,null,null,null,null,null,null,null,null,null,null,null,{"$f":"EH193+EH197+EH201","v":0}]
[null,null,null,null,null,"остаточной балансовой ст-сти;",null,null,null,null,null,null,null,null,null,null,null,null,null,null,null,null,null,null,null,null,null,null,null,null,null,null,null,null,null,null,null,null,null,"ст-сти по д-ру залога/лизинга;",null,null,null,null,null,null,null,null,null,null,null,null,null,null,null,null,null,null,null,null,null,null,null,null,null,null,null,null,null,null,null,"оценки эксперта восстановит. ст-сти"]
[null,null,null,null,null,null,null,null,null,null,null,null,"иное:"]
[null,null,"2.2. Франшиза:",null,null,null,null,null,null,null,null,null,null,null,null,null,null,null,null,null,null,null,null,null,null,null,null,null,null,null,null,null,null,null,null,null,null,null,null,null,null,null,null,null,null,null,null,null,null,null,null,null,null,null,null,null,null,null,null,null,null,null,null,null,null,null,null,null,null,null,null,null,null,null,null,null,null,null,null,null,null,null,null,null,null,null,null,null,null,null,null,null,null,null,null,null,null,null,null,null,null,null,null,null,null,null,null,null,null,"Страховая сумма составляет:"]
[]
[null,null," ",null,null,null,null,null,null,null,null,null,null,null,null,null,null,null,null,null,null,null,null,null,null,null,null,null,null,null,null,null,null,null,null,null,null,null,null,null,null,null,null,null,null,null,null,null,null,null,null,null,null,null,null,null,null,null,null,null,null,null,null,null,null,null,null,null,null,null,null,null,null,null,null,null,null,null,null,null,null,null,null,null,null,null,null,null,null,null,null,null,null,null,null,null,null,null,null,null,null,null,null,null,null,null,null,null,null,{"$f":"BX147+BX181+BX203","v":0}]
[]
[null,null,null,null,null,null,null,null,null,null,null,null,null,null,null,null,null,null,null,null,null,null,null,null,null,null,null,null,null,null,null,null,null,null,null,null,null,null,null,null,null,null,null,null,null,null,null,null,null,null,null,null,null,null,null,null,null,null,null,null,null,null,null,null,null,null,null,null,null,null,null,null,null,null,null,null,null,null,null,null,null,null,null,null,null,null,null,null,null,null,null,null,null,null,null,null,null,null,null,null,null,null,null,null,null,null,null,null,null,"Страховая премия составляет:"]
[]
[null,null,null,null,null,null,null,null,null,null,null,null,null,null,null,null,null,null,null,null,null,null,null,null,null,null,null,null,null,null,null,null,null,null,null,null,null,null,null,null,null,null,null,null,null,null,null,null,null,null,null,null,null,null,null,null,null,null,null,null,null,null,null,null,null,null,null,null,null,null,null,null,null,null,null,null,null,null,null,null,null,null,null,null,null,null,null,null,null,null,null,null,null,null,null,null,null,null,null,null,null,null,null,null,null,null,null,null,null,{"$f":"DF149+DF183+DF205","v":0}]
[]
[null,null,null,null,null,null,null,null,null,null,null,null,null,null,null,null,null,null,null,null,null,null,null,null,null,null,null,null,null,null,null,null,null,null,null,null,null,null,null,null,null,null,null,null,null,null,null,null,null,null,null,null,null,null,null,null,null,null,null,null,null,null,null,null,null,null,null,null,null,null,null,null,null,null,null,null,null,null,null,null,null,null,null,null,null,null,null,null,null,null,null,null,null,null,null,null,null,null,null,null,null,null,null,null,null,null,null,null,null,null,null,null,null,null,null,null,null,null,null,null,null,null,null,null,null,null,null,null,null,null,null,null,null,null,null,null,null,null,null,null,null,null,null,null,null,null,null,null,null,null,"Категория имущества",null,null,null,null,null,null,null,null,null,null,null,null,null,null,null,null,null,null,null,null,null,null,null,null,null,null,null,null,null,null,null,null,null,null,null,"Страховая сумма"]
[null,"2.3. Все движимое имущество (включая товарные запасы) находится внутри закрытых помещений?",null,null,null,null,null,null,null,null,null,null,null,null,null,null,null,null,null,null,null,null,null,null,null,null,null,null,null,null,null,null,null,null,null,null,null,null,null,null,null,null,null,null,null,null,null,null,null,null,null,null,null,null,null,null,null,null,null,null,null,null,null,null,null,null,null,null,null,null,null,null,null,null,null,null,null,null,null,null,null,null,null,null,null,"Да",null,null,null,null,null,null,null,null,"Нет: (поясните)"]
[null,null,null,null,null,null,null,null,null,null,null,null,null,null,null,null,null,null,null,null,null,null,null,null,null,null,null,null,null,null,null,null,null,null,null,null,null,null,null,null,null,null,null,null,null,null,null,null,null,null,null,null,null,null,null,null,null,null,null,null,null,null,null,null,null,null,null,null,null,null,null,null,null,null,null,null,null,null,null,null,null,null,null,null,null,null,null,null,null,null,null,null,null,null,null,null,null,null,null,null,null,null,null,null,null,null,null,null,null,null,null,null,null,null,null,null,null,null,null,null,null,null,null,null,null,null,null,null,null,null,null,null,null,null,null,null,null,null,null,null,null,null,null,null,null,null,null,null,null,null,"1. Здания, сооружения, помещения",null,null,null,null,null,null,null,null,null,null,null,null,null,null,null,null,null,null,null,null,null,null,null,null,null,null,null,null,null,null,null,null,null,null,null,{"$f":"BX105+BX111+BX117+BX121+BX125+BX129+BX135+BX139+BX143","v":0}]
[]
[null,null,null,null,null,null,null,null,null,null,null,null,null,null,null,null,null,null,null,null,null,null,null,null,null,null,null,null,null,null,null,null,null,null,null,null,null,null,null,null,null,null,null,null,null,null,null,null,null,null,null,null,null,null,null,null,null,null,null,null,null,null,null,null,null,null,null,null,null,null,null,null,null,null,null,null,null,null,null,null,null,null,null,null,null,null,null,null,null,null,null,null,null,null,null,null,null,null,null,null,null,null,null,null,null,null,null,null,null,null,null,null,null,null,null,null,null,null,null,null,null,null,null,null,null,null,null,null,null,null,null,null,null,null,null,null,null,null,null,null,null,null,null,null,null,null,null,null,null,null,"2. Оборудование, инвентарь, мебель",null,null,null,null,null,null,null,null,null,null,null,null,null,null,null,null,null,null,null,null,null,null,null,null,null,null,null,null,null,null,null,null,null,null,null,{"$f":"BX153+BX157+BX161+BX165+BX169+BX173+BX177","v":0}]
[]
[null,"2.4. ПРАВОУСТАНАВЛИВАЮЩИЕ ДОКУМЕНТЫ",null,null,null,null,null,null,null,null,null,null,null,null,null,null,null,null,null,null,null,null,null,null,null,null,null,null,null,null,null,null,null,null,null,null,null,null,null,null,null,null,null,null,null,null,null,null,null,null,null,null,null,null,null,null,null,null,null,null,null,null,null,null,null,null,null,null,null,null,null,null,null,null,null,null,null,null,null,null,null,null,null,null,null,null,null,null,null,null,null,null,null,null,null,null,null,null,null,null,null,null,null,null,null,null,null,null,null,null,null,null,null,null,null,null,null,null,null,null,null,null,null,null,null,null,null,null,null,null,null,null,null,null,null,null,null,null,null,null,null,null,null,null,null,null,null,null,null,null,"3. Товарные запасы",null,null,null,null,null,null,null,null,null,null,null,null,null,null,null,null,null,null,null,null,null,null,null,null,null,null,null,null,null,null,null,null,null,null,null,{"$f":"BX191+BX195+BX199","v":0}]
[]
[null,"Страхователь владеет, пользуется, распоряжается недвижимым имуществом на основании документа:",null,null,null,null,null,null,null,null,null,null,null,null,null,null,null,null,null,null,null,null,null,null,null,null,null,null,null,null,null,null,null,null,null,null,null,null,null,null,null,null,null,null,null,null,null,null,null,null,null,null,null,null,null,null,null,null,null,null,null,null,null,null,null,null,null,null,null,null,null,null,null,null,null,null,null,null,null,null,null,null,null,null,null,null,null,null,null,null,null,null,null,null,null,null,null,null,null,null,null,null,null,null,null,null,null,null,null,null,null,null,null,null,null,null,null,null,null,null,null,null,null,null,null,null,null,null,null,null,null,null,null,null,null,null,null,null,null,null,null,null,null,null,null,null,null,null,null,null,"Итого:",null,null,null,null,null,null,null,null,null,null,null,null,null,null,null,null,null,null,null,null,null,null,null,null,null,null,null,null,null,null,null,null,null,null,null,{"$f":"SUM(GE218:HO223)","v":0}]
[]
[null,null,null,null,"Свидетельство о праве собственности",null,null,null,null,null,null,null,null,null,null,null,null,null,null,null,null,null,null,null,null,null,null,null,null,null,null,null,null,null,null,null,null,null,null,null,null,null,null,null,null,"Договор аренды (лизинга)"]
[null,null,null,null,null,null,null,null,null,null,null,null,null,null,null,null,null,null,null,null,null,null,null,null,null,null,null,null,null,null,null,null,null,null,null,null,null,null,null,null,null,null,null,null,null,null,null,null,null,null,null,null,null,null,null,null,null,null,null,null,null,null,null,null,null,null,null,null,null,null,null,null,null,null,null,null,null,null,null,null,null,null,null,null,null,null,null,null,null,null,null,null,null,null,null,null,null,null,null,null,null,null,null,null,null,null,null,null,null,null,null,null,null,null,null,null,null,null,null,null,null,null,null,null,null,null,null,null,null,null,null,null,null,null,null,null,null,null,null,null,null,null,null,null,null,null,null,null,null,null,"категория имущества",null,null,null,null,null,null,null,null,null,null,null,null,"страховая сумма"]
[null,null,null,null,"Другой (поясните)"]
[null,null,null,null,null,null,null,null,null,null,null,null,null,null,null,null,null,null,null,null,null,null,null,null,null,null,null,null,null,null,null,null,null,null,null,null,null,null,null,null,null,null,null,null,null,null,null,null,null,null,null,null,null,null,null,null,null,null,null,null,null,null,null,null,null,null,null,null,null,null,null,null,null,null,null,null,null,null,null,null,null,null,null,null,null,null,null,null,null,null,null,null,null,null,null,null,null,null,null,null,null,null,null,null,null,null,null,null,null,null,null,null,null,null,null,null,null,null,null,null,null,null,null,null,null,null,null,null,null,null,null,null,null,null,null,null,null,null,null,null,null,null,null,null,null,null,null,null,null,null,"1. Здания, сооружения",null,null,null,null,null,null,null,null,null,null,null,null,{"$f":"GE218","v":0}]
[null,"Страхователь владеет, пользуется, распоряжается движимым имуществом на основании документа:"]
[null,null,null,null,null,null,null,null,null,null,null,null,null,null,null,null,null,null,null,null,null,null,null,null,null,null,null,null,null,null,null,null,null,null,null,null,null,null,null,null,null,null,null,null,null,null,null,null,null,null,null,null,null,null,null,null,null,null,null,null,null,null,null,null,null,null,null,null,null,null,null,null,null,null,null,null,null,null,null,null,null,null,null,null,null,null,null,null,null,null,null,null,null,null,null,null,null,null,null,null,null,null,null,null,null,null,null,null,null,null,null,null,null,null,null,null,null,null,null,null,null,null,null,null,null,null,null,null,null,null,null,null,null,null,null,null,null,null,null,null,null,null,null,null,null,null,null,null,null,null,"2. Оборудование",null,null,null,null,null,null,null,null,null,null,null,null,{"$f":"GE220","v":0}]
[null,null,null,null,"Свидетельство о праве собственности",null,null,null,null,null,null,null,null,null,null,null,null,null,null,null,null,null,null,null,null,null,null,null,null,null,null,null,null,null,null,null,null,null,null,null,null,null,null,null,null,"Договор купли-продажи",null,null,null,null,null,null,null,null,null,null,null,null,null,null,null,null,null,null,null,null,null,null,null,null,null,null,null,null,null,null,null,"Договор аренды (лизинга)"]
[null,null,null,null,null,null,null,null,null,null,null,null,null,null,null,null,null,null,null,null,null,null,null,null,null,null,null,null,null,null,null,null,null,null,null,null,null,null,null,null,null,null,null,null,null,null,null,null,null,null,null,null,null,null,null,null,null,null,null,null,null,null,null,null,null,null,null,null,null,null,null,null,null,null,null,null,null,null,null,null,null,null,null,null,null,null,null,null,null,null,null,null,null,null,null,null,null,null,null,null,null,null,null,null,null,null,null,null,null,null,null,null,null,null,null,null,null,null,null,null,null,null,null,null,null,null,null,null,null,null,null,null,null,null,null,null,null,null,null,null,null,null,null,null,null,null,null,null,null,null,"3. Товарные запасы",null,null,null,null,null,null,null,null,null,null,null,null,{"$f":"GE222","v":0}]
[null,null,null,null,"Другой (поясните)"]
[null,null,null,null,null,null,null,null,null,null,null,null,null,null,null,null,null,null,null,null,null,null,null,null,null,null,null,null,null,null,null,null,null,null,null,null,null,null,null,null,null,null,null,null,null,null,null,null,null,null,null,null,null,null,null,null,null,null,null,null,null,null,null,null,null,null,null,null,null,null,null,null,null,null,null,null,null,null,null,null,null,null,null,null,null,null,null,null,null,null,null,null,null,null,null,null,null,null,null,null,null,null,null,null,null,null,null,null,null,null,null,null,null,null,null,null,null,null,null,null,null,null,null,null,null,null,null,null,null,null,null,null,null,null,null,null,null,null,null,null,null,null,null,null,null,null,null,null,null,null,"Итого:",null,null,null,null,null,null,null,null,null,null,null,null,{"$f":"SUM(FH229:FR234)","v":0}]
[]
[null,"2.5. Страхователь подтверждает, что на подлежащее страхованию имущество не наложен арест  или иные"]
[]
[null,null,"обременения/ограничения (кроме залога). В отношении этого имущества (или прав на него) отсутствуют любые претензии,"]
[]
[null,null,"иски третьих лиц (граждан, организаций или гос. органов). Права на имущество, подлежащее страхованию, не являются"]
[]
[null,null,"предметом спора между кем-либо?",null,null,null,null,null,null,null,null,null,null,null,null,null,null,null,null,null,null,null,null,null,null,null,null,null,null,null,null,null,null,null,null,null,null,null,null,"Да, подтверждаю"]
[]
[null,null,null,null,null,"Нет. Поясните:"]
[]
[null,"2.6. Застраховано ли имущество в других страховых компаниях?"]
[]
[null,null,null,null,null,"Нет",null,null,null,null,null,null,null,"Да. Укажите наименование страховых компаний, застрахованные риски и страховые суммы по договорам"]
[]
[]
[]
[]
[]
[]
[null,"2.7. Страховалось ли имущество ранее?",null,null,null,null,null,null,null,null,null,null,null,null,null,null,null,null,null,null,null,null,null,null,null,null,null,null,null,null,null,null,null,null,null,null,null,null,null,"Нет",null,null,null,null,null,null,null,null,"Да, (укажите в какой компании)"]
[]
[null,null,"Для АО \"СК ГАЙДЕ\" заключаемый Договор: ",null,null,null,null,null,null,null,null,null,null,null,null,null,null,null,null,null,null,null,null,null,null,null,null,null,null,null,null,null,null,null,null,null,null,null,null,null,null,"Новый",null,null,null,null,null,null,null,null,null,null,null,"Пролонгация Договора № "]
[]
[]
[null,"3. Информация о здании (строении, сооружении), подлежащем страхованию (или в котором находится имущество, заявленное на страхование):"]
[]
[null,null,"3.1. Функциональное назначение и фактическое использование здания:"]
[null,null,null,null,null,null,null,"Административно-офисное (в т.ч. бизнес-центры, банки, лизинговые компании, юридические услуги и т.п.)"]
[]
[null,null,null,null,null,null,null,"Здравоохранение, образование, ветеринария"]
[]
[null,null,null,null,null,null,null,"Сфера культуры, искусства"]
[]
[null,null,null,null,null,null,null,"Общественное питание, кроме предприятий, работающих в ночное время"]
[]
[null,null,null,null,null,null,null,"Гостиницы и иные места временного проживания людей"]
[]
[null,null,null,null,null,null,null,"Жилое"]
[]
[null,null,null,null,null,null,null,"Оптовая торговля:"]
[]
[null,null,null,null,null,null,null,"Розничная торговля:"]
[]
[null,null,null,null,null,null,null,"Склады (укажите, что в них хранится)"]
[]
[null,null,null,null,null,null,null,"Гаражи (паркинги)"]
[]
[null,null,null,null,null,null,null,"Автосервис"]
[]
[null,null,null,null,null,null,null,"Производственное"]
[]
[null,null,null,null,null,null,null,"Иное (укажите назначение здания):"]
[]
[]
[null,null,"3.2. Год постройки:",null,null,null,null,null,null,null,null,null,null,null,null,null,null,null,null,null,null,null,null,null,null,null,null,null,null,null,null,null,null,null,null,null,null,null,null,null,null,null,null,null,null,null,null,null,null,null,"3.3. Год последнего капитального ремонта (*):"]
[]
[null,null,"3.4. Общее количество этажей:",null,null,null,null,null,null,null,null,null,null,null,null,null,null,null,null,null,null,null,null,null,null,null,null,null,null,null,null,null,null,null,null,null,null,null,null,null,null,null,null,null,null,null,null,null,null,null,"3.5. Занимаемый Страхователем этаж:"]
[]
[null,null,"3.6. Общая площадь здания, кв.м.:",null,null,null,null,null,null,null,null,null,null,null,null,null,null,null,null,null,null,null,null,null,null,null,null,null,null,null,null,null,null,null,null,null,null,null,null,null,null,null,null,null,null,null,null,null,null,null,"3.7. Занимаемая Страхователем площадь, кв.м.:"]
[]
[null,null,"3.8. (*) что ремонтировалось?"]
[]
[]
[null,null,"3.9. Вид деятельности страхователя (выгодоприобретателя) на территории страхования:"]
[]
[]
[]
[null,null,"3.10. Режим работы страхователя (выгодоприобретателя)",null,null,null,null,null,null,null,null,null,null,null,null,null,null,null,null,null,null,null,null,null,null,null,null,null,null,null,null,null,null,null,null,null,null,null,null,null,null,null,null,null,null,null,null,null,null,null,null,null,null,null,null,null,null,null,null,"Круглосуточно без выходных"]
[]
[null,null,"на территории страхования:",null,null,null,null,null,null,null,null,null,null,null,null,null,null,null,null,null,null,null,null,null,null,null,null,null,null,null,null,null,null,null,null,null,null,null,null,null,null,null,null,null,null,null,null,null,null,null,null,null,null,null,null,null,null,null,null,"Иное:"]
[]
[]
[null,null,"3.11.Строительство здания ( в т.ч. капитальный ремонт, реконструкция) закончено. В пределах",null,null,null,null,null,null,null,null,null,null,null,null,null,null,null,null,null,null,null,null,null,null,null,null,null,null,null,null,null,null,null,null,null,null,null,null,null,null,null,null,null,null,null,null,null,null,null,null,null,null,null,null,null,null,null,null,null,null,null,null,null,null,null,null,null,null,null,null,null,null,null,null,null,null,null,null,null,null,null,null,null,null,null,null,null,null,null,null,null,null,null,null,"Да"]
[null,null,"территории страхования не производится никаких строительных, ремонтных или отделочных работ.",null,null,null,null,null,null,null,null,null,null,null,null,null,null,null,null,null,null,null,null,null,null,null,null,null,null,null,null,null,null,null,null,null,null,null,null,null,null,null,null,null,null,null,null,null,null,null,null,null,null,null,null,null,null,null,null,null,null,null,null,null,null,null,null,null,null,null,null,null,null,null,null,null,null,null,null,null,null,null,null,null,null,null,null,null,null,null,null,null,null,null,null,"Нет:"]
[]
[]
[]
[null,null,"3.12. Если на территории страхования применяются:"]
[]
[null,null,null,null,null,null,null,"Печи, камины, котлы, генераторы электрической энергии"]
[]
[null,null,null,null,null,null,null,"Пожароопасные, взрывоопасные или взрывопожароопасные вещества, материалы, оборудование,"]
[]
[null,null,null,null,"процессы, технологии или работы"]
[]
[null,null,"Укажите это и дайте их краткую характеристику:"]
[]
[]
[]
[]
[null,null,"3.13. Есть ли в здании бани/ сауны, расположенные как в самих помещениях,",null,null,null,null,null,null,null,null,null,null,null,null,null,null,null,null,null,null,null,null,null,null,null,null,null,null,null,null,null,null,null,null,null,null,null,null,null,null,null,null,null,null,null,null,null,null,null,null,null,null,null,null,null,null,null,null,null,null,null,null,null,null,null,null,null,null,null,null,null,null,null,null,null,null,null,null,null,null,null,null,null,null,"Нет",null,null,null,null,null,null,null,null,null,null,"Да:"]
[null,null,"в т.ч. подвальных/ чердачных, так и на прилегающей территории:"]
[]
[null,null,"3.14. Укажите материалы основных элементов здания:"]
[]
[null,null,null,null,null,null,null,null,null,null,null,null,null,null,null,null,null,null,null,null,null,null,null,null,null,null,null,null,null,null,null,null,null,null,null,null,null,null,null,null,null,null,null,null,null,null,null,null,null,null,null,null,null,null,"При выделении 2х и более материалов (кроме утеплителя) для одного элемента здания, в поле \"примечания\" укажите характер их сочетания"]
[]
[null,null,null,null,null,null,null,null,null,null,null,null,null,null,null,null,null,null,null,null,null,null,null,null,null,null,null,null,null,null,null,null,null,null,null,null,null,null,null,null,null,null,null,null,null,null,null,null,null,null,null,null,null,null,"(деревянные стены обложены кирпичом или на 1м этаже стены - кирпич, на 2м этаже - стены дерево и т.п.)!"]
[]
[null,null,"Стены (несущие и ограждающие здание конструкции):"]
[]
[null,null,null,null,null,null,null,"Кирпич",null,null,null,null,null,null,null,null,null,null,null,null,null,null,null,null,null,null,null,null,null,null,null,null,null,null,null,null,null,null,null,null,null,null,null,null,null,null,null,null,null,null,null,null,"Дерево (бревно/брус)"]
[]
[null,null,null,null,null,null,null,"Железобетон",null,null,null,null,null,null,null,null,null,null,null,null,null,null,null,null,null,null,null,null,null,null,null,null,null,null,null,null,null,null,null,null,null,null,null,null,null,null,null,null,null,null,null,null,"Дерево (ДСП, ОСП и т.п.)"]
[]
[null,null,null,null,null,null,null,"Пенобетон/газобетон",null,null,null,null,null,null,null,null,null,null,null,null,null,null,null,null,null,null,null,null,null,null,null,null,null,null,null,null,null,null,null,null,null,null,null,null,null,null,null,null,null,null,null,null,"Утеплитель негорючий (мин. вата, керамзит и т.п.)"]
[]
[null,null,null,null,null,null,null,"Металл",null,null,null,null,null,null,null,null,null,null,null,null,null,null,null,null,null,null,null,null,null,null,null,null,null,null,null,null,null,null,null,null,null,null,null,null,null,null,null,null,null,null,null,null,"Утеплитель горючий (пенопласт, пенополистирол и т.п.)"]
[]
[null,null,null,null,null,null,null,"Стекло",null,null,null,null,null,null,null,null,null,null,null,null,null,null,null,null,null,null,null,null,null,null,null,null,null,null,null,null,null,null,null,null,null,null,null,null,null,null,null,null,null,null,null,null,"Иное:"]
[]
[null,null,null,null,null,null,null,"Пластик",null,null,null,null,null,null,null,null,null,null,null,null,null,null,null,null,null,null,null,null,null,null,null,null,null,null,null,null,null,null,null,null,null,null,null,null,null,null,null,null,null,null,null,null,"Иное:"]
[]
[null,null,null,null,"Примечания:"]
[]
[]
[]
[null,null,"Перекрытия:"]
[]
[null,null,null,null,null,null,null,"Железобетон (плиты или монолит)",null,null,null,null,null,null,null,null,null,null,null,null,null,null,null,null,null,null,null,null,null,null,null,null,null,null,null,null,null,null,null,null,null,null,null,null,null,null,null,null,null,null,null,null,"Деревянные по метал. или деревян. балкам"]
[]
[null,null,null,null,null,null,null,"Полностью металлические без утеплителя",null,null,null,null,null,null,null,null,null,null,null,null,null,null,null,null,null,null,null,null,null,null,null,null,null,null,null,null,null,null,null,null,null,null,null,null,null,null,null,null,null,null,null,null,"Утеплитель"]
[]
[null,null,null,null,null,null,null,"Иное:"]
[]
[null,null,null,null,"Примечания:"]
[]
[]
[]
[null,null,"Кровля (крыша) нижняя часть (несущие конструкции):"]
[null,null,null,null,null,null,null,"Железобетон",null,null,null,null,null,null,null,null,null,null,null,null,null,null,null,null,null,null,null,null,null,null,null,null,null,null,null,null,null,null,null,null,null,null,null,null,null,null,null,null,null,null,null,null,"Дерево"]
[]
[null,null,null,null,null,null,null,"Металл",null,null,null,null,null,null,null,null,null,null,null,null,null,null,null,null,null,null,null,null,null,null,null,null,null,null,null,null,null,null,null,null,null,null,null,null,null,null,null,null,null,null,null,null,"Иное:"]
[]
[null,null,null,null,"Примечания:"]
[]
[]
[]
[null,null,"Кровля (крыша) верхняя часть (ограждающие конструкции)"]
[]
[]
[null,null,null,null,null,null,null,"Оцинкованная листовая сталь (в т.ч. \"рифленая\")",null,null,null,null,null,null,null,null,null,null,null,null,null,null,null,null,null,null,null,null,null,null,null,null,null,null,null,null,null,null,null,null,null,null,null,null,null,null,null,null,null,null,null,null,"Волнистые полимерные (резиновые, битумные) листы"]
[]
[null,null,null,null,null,null,null,"Асбестовые листы (шифер)",null,null,null,null,null,null,null,null,null,null,null,null,null,null,null,null,null,null,null,null,null,null,null,null,null,null,null,null,null,null,null,null,null,null,null,null,null,null,null,null,null,null,null,null,"Рулонная на основе полимеров (рубероид и т.д.)"]
[]
[null,null,null,null,null,null,null,"Металлочерепица",null,null,null,null,null,null,null,null,null,null,null,null,null,null,null,null,null,null,null,null,null,null,null,null,null,null,null,null,null,null,null,null,null,null,null,null,null,null,null,null,null,null,null,null,"Утеплитель"]
[]
[null,null,null,null,null,null,null,"Иное:"]
[]
[null,null,null,null,"Примечания:"]
[]
[]
[]
[null,null,"Внешняя отделка:"]
[]
[null,null,null,null,null,null,null,"Декорат. штукатурка, штукатурка + окраска",null,null,null,null,null,null,null,null,null,null,null,null,null,null,null,null,null,null,null,null,null,null,null,null,null,null,null,null,null,null,null,null,null,null,null,null,null,null,null,null,null,null,null,null,"Вентилируемуй фасад - утеплитель и/или облиц. панели горючие"]
[]
[null,null,null,null,null,null,null,"Облицовочный кирпич",null,null,null,null,null,null,null,null,null,null,null,null,null,null,null,null,null,null,null,null,null,null,null,null,null,null,null,null,null,null,null,null,null,null,null,null,null,null,null,null,null,null,null,null,"Вентилируемуй фасад - утеплитель и облиц. панели негорючие"]
[]
[null,null,null,null,null,null,null,"Окраска",null,null,null,null,null,null,null,null,null,null,null,null,null,null,null,null,null,null,null,null,null,null,null,null,null,null,null,null,null,null,null,null,null,null,null,null,null,null,null,null,null,null,null,null,"Доски, вагонка + краска"]
[]
[null,null,null,null,null,null,null,"Виниловый сайдинг (пластиковая вагонка)"]
[]
[null,null,null,null,null,null,null,"Иное:"]
[]
[null,null,null,null,"Примечания:"]
[]
[]
[]
[null,null,"Фундамент:"]
[]
[null,null,null,null,"Каменный или кирпичный:"]
[]
[null,null,null,null,null,null,null,null,null,null,null,null,"Ленточный",null,null,null,null,null,null,null,null,null,null,null,null,null,null,null,null,null,null,null,null,null,null,null,null,null,null,null,null,null,null,"Столбчатый",null,null,null,null,null,null,null,null,null,null,null,null,null,null,null,null,null,null,null,null,null,null,null,null,null,null,null,null,null,null,"Камни под углами стен"]
[]
[null,null,null,null,"Железобетонный:"]
[]
[null,null,null,null,null,null,null,null,null,null,null,null,"Ленточный",null,null,null,null,null,null,null,null,null,null,null,null,null,null,null,null,null,null,null,null,null,null,null,null,null,null,null,null,null,null,"Столбчатый",null,null,null,null,null,null,null,null,null,null,null,null,null,null,null,null,null,null,null,null,null,null,null,null,null,null,null,null,null,null,"Свайный"]
[]
[null,null,null,null,null,null,null,null,null,null,null,null,"Сплошная монолитная плита"]
[]
[null,null,null,null,null,null,null,"Деревянный"]
[]
[null,null,null,null,null,null,null,"Иное:"]
[]
[null,null,null,null,"Примечания:"]
[]
[]
[]
[]
[null,null,"3.15. Помимо Страхователя здание эксплуатируют другие лица?",null,null,null,null,null,null,null,null,null,null,null,null,null,null,null,null,null,null,null,null,null,null,null,null,null,null,null,null,null,null,null,null,null,null,null,null,null,null,null,null,null,null,null,null,null,null,null,null,null,null,null,null,null,null,null,null,null,null,null,null,null,null,null,null,null,null,null,null,null,null,null,null,null,null,null,null,null,null,null,null,null,null,"Нет",null,null,null,null,null,null,null,null,null,null,"Да:"]
[null,null,"Если да, укажите род их деятельности:"]
[]
[null,null,"- за пределами территории страхования"]
[]
[null,null,"- в пределах территории страхования"]
[]
[]
[null,null,"3.15.1. Если Страхователь (Выгодоприобретатель) занимает не все здание, то каким образом занимаемые им помещения"]
[]
[null,null,"отделены от прочих помещений/ частей здания:"]
[]
[null,null,null,null,null,null,null,"Кирпичные или железобетонные стены на всю высоту помещений"]
[]
[null,null,null,null,null,null,null,"Иное:"]
[]
[]
[null,null,"3.16. Наличие примыкающих зданий. Если да, укажите их назначение/фактическое использование:",null,null,null,null,null,null,null,null,null,null,null,null,null,null,null,null,null,null,null,null,null,null,null,null,null,null,null,null,null,null,null,null,null,null,null,null,null,null,null,null,null,null,null,null,null,null,null,null,null,null,null,null,null,null,null,null,null,null,null,null,null,null,null,null,null,null,null,null,null,null,null,null,null,null,null,null,null,null,null,null,null,null,null,"Нет",null,null,null,null,null,null,null,null,null,null,null,"Да:"]
[]
[]
[]
[null,null,"3.17. Имеются ли вблизи территории страхования объекты повышенной опасности, например",null,null,null,null,null,null,null,null,null,null,null,null,null,null,null,null,null,null,null,null,null,null,null,null,null,null,null,null,null,null,null,null,null,null,null,null,null,null,null,null,null,null,null,null,null,null,null,null,null,null,null,null,null,null,null,null,null,null,null,null,null,null,null,null,null,null,null,null,null,null,null,null,null,null,null,null,null,null,null,null,null,null,null,"Нет",null,null,null,null,null,null,null,null,null,null,null,"Да:"]
[null,null,"такие как: гидротехнические сооружения, тепловые электростанции, аэропорты, опасные"]
[null,null,"производственные объекты, строящиеся объекты?"]
[]
[null,null,"3.18. Обеспеченность помещений, занимаемых страхователем, инженерными системами/ оборудованием:"]
[]
[null,null,null,null,null,null,null,"Водяное отопление",null,null,null,null,null,null,null,null,null,null,null,null,null,null,null,null,null,null,null,null,null,null,null,null,null,null,null,null,null,null,null,"Газоснабжение",null,null,null,null,null,null,null,null,null,null,null,null,null,null,null,null,null,null,null,null,null,null,null,null,"Электроснабжение"]
[]
[null,null,null,null,null,null,null,"Канализация",null,null,null,null,null,null,null,null,null,null,null,null,null,null,null,null,null,null,null,null,null,null,null,null,null,null,null,null,null,null,null,"Телефонная сеть",null,null,null,null,null,null,null,null,null,null,null,null,null,null,null,null,null,null,null,null,null,null,null,null,"Кондиционирование"]
[]
[null,null,null,null,null,null,null,"Водоснабжение",null,null,null,null,null,null,null,null,null,null,null,null,null,null,null,null,null,null,null,null,null,null,null,null,null,null,null,null,null,null,null,"Вентиляция",null,null,null,null,null,null,null,null,null,null,null,null,null,null,null,null,null,null,null,null,null,null,null,null,"Иное:"]
[]
[null,null,"Состояние указанных выше инженерных систем/ оборудования:"]
[]
[null,null,null,null,null,null,null,"Надлежащее (хорошее, удовлетворительное), готовы к использованию"]
[]
[null,null,null,null,null,null,null,"Ненадлежащее (аварийное, требует ремонта, находится в процессе монтажа и т.п.) "]
[]
[]
[null,null,"3.19. Возможность проникновения в помещение Страхователя (Выгодоприобретателя) воды из помещений,"]
[]
[null,null,"эксплуатируемых третьими лицами:"]
[]
[null,null,null,null,null,null,null,"Существует",null,null,null,null,null,null,null,null,null,null,null,null,null,null,null,null,null,null,null,null,"Отсутствует"]
[]
[]
[null,null,"4. Меры противопожарной безопасности:"]
[]
[null,null,"4.1. Действующая пожарная сигнализация:",null,null,null,null,null,null,null,null,null,null,null,null,null,null,null,null,null,null,null,null,null,null,null,null,null,null,null,null,null,null,null,null,null,null,null,null,null,null,null,null,null,null,null,null,null,null,null,null,null,null,null,null,null,"Не установлена"]
[]
[null,null,null,"Установлена:",null,null,null,null,null,null,null,null,null,null,null,null,null,null,null,"С выводом сигнала на пост круглосуточного наблюдения",null,null,null,null,null,null,null,null,null,null,null,null,null,null,null,null,null,null,null,null,null,null,null,null,null,null,null,null,null,null,null,null,null,null,null,null,null,null,null,null,null,null,null,null,null,null,null,null,null,null,null,null,null,"Звуковая (Сирены)"]
[]
[]
[]
[null,null,null,null,null,null,null,null,null,null,null,"Автоматическая"]
[]
[null,null,null,null,null,null,null,null,null,null,null,"Ручная, кнопочного оповещения"]
[]
[null,null,"Доля территории страхования, защищаемая автоматической",null,null,null,null,null,null,null,null,null,null,null,null,null,null,null,null,null,null,null,null,null,null,null,null,null,null,null,null,null,null,null,null,null,null,null,null,null,null,null,null,null,null,null,null,null,null,null,null,null,null,null,null,null,null,null,null,null,null,null,null,null,"Более 80%",null,null,null,null,null,null,null,null,null,null,null,null,"От 50%до 80%",null,null,null,null,null,null,null,null,null,null,null,null,null,null,null,null,null,"Менее 50%"]
[]
[null,null,"пожарной сигнализацией:"]
[]
[]
[null,null,"4.2. Наличие исправной системы автоматического пожаротушения и защищаемая площадь:",null,null,null,null,null,null,null,null,null,null,null,null,null,null,null,null,null,null,null,null,null,null,null,null,null,null,null,null,null,null,null,null,null,null,null,null,null,null,null,null,null,null,null,null,null,null,null,null,null,null,null,null,null,null,null,null,null,null,null,null,null,null,null,null,null,null,null,null,null,null,null,null,null,null,null,null,null,null,null,null,null,null,"Да",null,null,null,null,null,null,null,null,null,null,"Нет"]
[]
[null,null,"4.2.1. Защищаемая площадь территории страхования :"]
[]
[null,null,null,null,null,null,"Более 80%",null,null,null,null,null,null,null,null,null,null,null,null,null,null,null,null,null,null,null,null,null,null,null,null,null,null,null,null,null,null,null,"От 50%до 80%",null,null,null,null,null,null,null,null,null,null,null,null,null,null,null,null,null,null,null,null,null,null,null,null,null,null,null,"Менее 50%"]
[]
[null,null,"4.2.2. Укажите тип системы автоматического пожаротушения:"]
[]
[null,null,null,null,null,null,"Спринклерная система с использованием:",null,null,null,null,null,null,null,null,null,null,null,null,null,null,null,null,null,null,null,null,null,null,null,null,null,null,null,null,null,null,null,null,null,null,null,null,null,null,null,null,null,null,null,null,null,null,null,"Воды"]
[]
[null,null,null,null,null,null,null,null,null,null,null,null,null,null,null,null,null,null,null,null,null,null,null,null,null,null,null,null,null,null,null,null,null,null,null,null,null,null,null,null,null,null,null,null,null,null,null,null,null,null,null,null,null,null,"Химических реактивов"]
[]
[null,null,null,null,null,null,"Система пенотушения",null,null,null,null,null,null,null,null,null,null,null,null,null,null,null,null,null,null,null,null,null,null,null,null,null,null,null,null,null,null,null,null,null,null,null,null,null,"Система порошкового тушения"]
[]
[null,null,null,null,null,null,"Система тушения СО2",null,null,null,null,null,null,null,null,null,null,null,null,null,null,null,null,null,null,null,null,null,null,null,null,null,null,null,null,null,null,null,null,null,null,null,null,null,"Система хладонового тушения"]
[]
[null,null,null,null,null,null,"Система паротушения",null,null,null,null,null,null,null,null,null,null,null,null,null,null,null,null,null,null,null,null,null,null,null,null,null,null,null,null,null,null,null,null,null,null,null,null,null,"Иное:"]
[]
[]
[null,null,"4.3. Соответствуют ли типы и количество огнетушителей на территории страхования",null,null,null,null,null,null,null,null,null,null,null,null,null,null,null,null,null,null,null,null,null,null,null,null,null,null,null,null,null,null,null,null,null,null,null,null,null,null,null,null,null,null,null,null,null,null,null,null,null,null,null,null,null,null,null,null,null,null,null,null,null,null,null,null,null,null,null,null,null,null,null,null,null,null,null,null,null,null,null,null,null,null,"Да",null,null,null,null,null,null,null,null,null,null,"Нет"]
[]
[null,null,"требованиям нормативно-правовых актов РФ о пожарной безопасности?"]
[]
[]
[null,null,"4.4. Имеются ли работоспособные и укомплектованные пожарные гидранты на территории страхования?"]
[]
[null,null,"Если имеются, укажите их кол-во:"]
[]
[null,null,"4.5. Наличие на предприятии объектовой пожарной охраны:",null,null,null,null,null,null,null,null,null,null,null,null,null,null,null,null,null,null,null,null,null,null,null,null,null,null,null,null,null,null,null,null,null,null,null,null,null,null,null,null,null,null,null,null,null,null,null,null,null,null,null,null,null,null,null,null,null,null,null,null,"Нет"]
[]
[null,null,null,null,null,null,null,null,null,null,"Да, укажите какая:",null,null,null,null,null,null,null,null,null,null,null,null,null,null,null,null,null,null,null,null,null,null,null,null,null,null,null,null,"Профессиональная",null,null,null,null,null,null,null,null,null,null,null,null,null,null,null,null,null,null,null,null,null,null,null,"Добровольная"]
[]
[]
[null,null,null,"4.5.1. Укомплектованность выездной пожарной техникой",null,null,null,null,null,null,null,null,null,null,null,null,null,null,null,null,null,null,null,null,null,null,null,null,null,null,null,null,null,null,null,null,null,null,null,null,null,null,null,null,null,null,null,null,null,null,null,null,null,null,"нет",null,null,null,null,null,null,null,"да:",null,null,null,"Количество автомашин:"]
[]
[null,null,null,"4.5.2. Минимальная численность сотрудников в смену, человек"]
[]
[null,null,null,"График дежурств:",null,null,null,null,null,null,null,null,null,null,null,null,null,null,null,null,null,null,null,null,null,null,null,null,null,"Круглосуточно",null,null,null,null,null,null,null,null,null,null,null,null,null,null,null,null,"Некруглосуточно:"]
[]
[]
[null,null,null,"4.5.3. Осуществление патрулирования территории страхования:",null,null,null,null,null,null,null,null,null,null,null,null,null,null,null,null,null,null,null,null,null,null,null,null,null,null,null,null,null,null,null,null,null,null,null,null,null,null,null,null,null,null,null,null,null,null,null,null,null,null,null,null,null,null,null,null,"нет",null,null,null,null,null,null,null,"да:",null,null,null,null,null,null,"Интервалы (в часах)"]
[]
[null,null,"4.6. Расстояние от территории страхования до ближайшей пожарной части:"]
[]
[null,null,null,null,null,null,"< 1 км",null,null,null,null,null,null,null,null,null,null,null,null,null,null,"< 5 км",null,null,null,null,null,null,null,null,null,null,null,null,null,"5-10 км",null,null,null,null,null,null,null,null,null,null,null,null,null,null,"10-20 км",null,null,null,null,null,null,null,null,null,null,null,null,null,null,"> 20 км"]
[]
[]
[]
[null,null,"4.7. Имеются ли на территории страхования нарушения правил пожарной безопасности,",null,null,null,null,null,null,null,null,null,null,null,null,null,null,null,null,null,null,null,null,null,null,null,null,null,null,null,null,null,null,null,null,null,null,null,null,null,null,null,null,null,null,null,null,null,null,null,null,null,null,null,null,null,null,null,null,null,null,null,null,null,null,null,null,null,null,null,null,null,null,null,null,null,null,null,null,null,null,null,null,null,null,"Да",null,null,null,null,null,null,null,null,null,null,"Нет"]
[null,null,"выявленные органами пожарного надзора, указанные в действующих предписаниях?"]
[]
[]
[]
[null,null,"5. Охрана территории страхования:"]
[]
[null,null,"5.1. Режим входа / въезда на территорию страхования:",null,null,null,null,null,null,null,null,null,null,null,null,null,null,null,null,null,null,null,null,null,null,null,null,null,null,null,null,null,null,null,null,null,null,null,null,null,null,null,null,null,null,null,null,null,null,null,null,null,null,"По пропускам",null,null,null,null,null,null,null,null,null,null,null,null,null,null,null,null,null,null,null,null,null,null,null,null,null,null,null,"Свободный"]
[]
[]
[null,null,"5.2. Наличие в помещениях Страхователя исправной автоматической охранной сигнализации?",null,null,null,null,null,null,null,null,null,null,null,null,null,null,null,null,null,null,null,null,null,null,null,null,null,null,null,null,null,null,null,null,null,null,null,null,null,null,null,null,null,null,null,null,null,null,null,null,null,null,null,null,null,null,null,null,null,null,null,null,null,null,null,null,null,null,null,null,null,null,null,null,null,null,null,null,null,null,null,null,null,null,"Да",null,null,null,null,null,null,null,null,null,null,"Нет"]
[]
[null,null,null,"Куда выведена:",null,null,null,null,null,null,null,null,null,null,null,null,null,null,null,null,null,null,"На пульт вневедомственной охраны МВД",null,null,null,null,null,null,null,null,null,null,null,null,null,null,null,null,null,null,null,null,null,null,null,null,null,null,null,null,null,null,null,null,null,null,null,null,"На пульт охранного предприятия ЧОП"]
[]
[null,null,null,null,null,null,null,null,null,null,null,null,null,null,null,null,null,null,null,null,null,null,"На пост охраны здания (сторож)",null,null,null,null,null,null,null,null,null,null,null,null,null,null,null,null,null,null,null,null,null,null,null,null,null,null,null,null,null,null,null,null,null,null,null,null,"Иное:"]
[]
[null,null,"5.2.1. Укажите тип сигнализации:"]
[]
[null,null,null,null,null,null,"Контроль окон и дверей",null,null,null,null,null,null,null,null,null,null,null,null,null,null,null,null,null,null,null,null,null,null,null,null,null,null,null,null,null,null,null,null,null,null,null,null,null,null,null,null,null,null,null,null,null,null,null,null,"Движение внутри помещений"]
[]
[null,null,null,null,null,null,"Внешний периметр",null,null,null,null,null,null,null,null,null,null,null,null,null,null,null,null,null,null,null,null,null,null,null,null,null,null,null,null,null,null,null,null,null,null,null,null,null,null,null,null,null,null,null,null,null,null,null,null,"Иное:"]
[]
[null,null,"5.2.2. Охранная сигнализция обеспечивает контроль несанкционированного проникновения внутрь всех (любых)"]
[]
[null,null,"помещений, в которых находится подлежащее страхованию движимое имущество?"]
[]
[null,null,null,null,null,null,"Да",null,null,null,null,null,null,null,null,null,null,"Нет"]
[]
[]
[null,null,"5.3. Средства",null,null,null,null,null,null,null,null,null,null,null,null,null,null,null,null,null,null,null,null,"Решетки (металлические жалюзи) на всех окнах первого, подвального и цокольного этажах"]
[]
[null,null,"пассивной защиты:",null,null,null,null,null,null,null,null,null,null,null,null,null,null,null,null,null,null,null,null,"Металлические двери:",null,null,null,null,null,null,null,null,null,null,null,null,null,null,null,null,null,null,null,null,null,null,null,"все входы в здание"]
[]
[null,null,null,null,null,null,null,null,null,null,null,null,null,null,null,null,null,null,null,null,null,null,null,null,null,null,null,null,null,null,null,null,null,null,null,null,null,null,null,null,null,null,null,null,null,null,null,"все входы в помещения Страхователя (Выгодоприобретателя)"]
[]
[null,null,null,null,null,null,null,null,null,null,null,null,null,null,null,null,null,null,null,null,null,null,null,"Иные:"]
[]
[null,null,null,null,null,null,null,null,null,null,null,null,null,null,null,null,null,null,null,null,null,null,null,"Сплошное ограждение всего внешнего периметра"]
[]
[]
[null,null,"5.4. Наличие и режим охраны (собственная служба охраны, УВО МВД, частное охранное предприятие):"]
[]
[null,null,null,null,null,null,"Да, Режим охраны:",null,null,null,null,null,null,null,null,null,null,null,null,null,null,null,null,null,null,null,null,null,null,null,null,null,null,null,null,null,null,null,null,null,null,null,null,null,null,null,null,null,null,null,null,"Нет"]
[]
[]
[null,null,null,null,null,null,"Круглосуточно",null,null,null,null,null,null,null,null,null,null,null,null,null,null,null,null,null,null,"В нерабочее время Страхователя (Выгодоприобретателя) на территории страхования"]
[]
[null,null,null,null,null,null,"В рабочее время Страхователя (Выгодоприобретателя) на территории страхования"]
[]
[null,null,null,null,null,null,"Иное:"]
[]
[null,null,"5.5. Кем осуществляется охрана объектов (дополнительно укажите минимальное количество охранников (сторожей) в 1 смену)?"]
[]
[null,null,null,null,null,null,"Сотрудниками службы безопасности (сторожами) Страхователя",null,null,null,null,null,null,null,null,null,null,null,null,null,null,null,null,null,null,null,null,null,null,null,null,null,null,null,null,null,null,null,null,null,null,null,null,null,null,null,null,null,null,null,null,null,null,null,null,null,null,null,null,null,null,null,null,null,null,null,null,null,null,null,null,null,null,null,null,null,null,null,null,null,null,null,null,null,null,null,null,null,null,null,null,null,null,null,null,null,null,null,null,null,"чел."]
[]
[null,null,null,null,null,null,"Сотрудниками вневедомственной охраны МВД по договору со Страхователем (Выгодоприобретателем)",null,null,null,null,null,null,null,null,null,null,null,null,null,null,null,null,null,null,null,null,null,null,null,null,null,null,null,null,null,null,null,null,null,null,null,null,null,null,null,null,null,null,null,null,null,null,null,null,null,null,null,null,null,null,null,null,null,null,null,null,null,null,null,null,null,null,null,null,null,null,null,null,null,null,null,null,null,null,null,null,null,null,null,null,null,null,null,null,null,null,null,null,null,"чел."]
[]
[null,null,null,null,null,null,"Сотрудниками частного охранного предприятия по договору со Страхователем (Выгодоприобретателем)",null,null,null,null,null,null,null,null,null,null,null,null,null,null,null,null,null,null,null,null,null,null,null,null,null,null,null,null,null,null,null,null,null,null,null,null,null,null,null,null,null,null,null,null,null,null,null,null,null,null,null,null,null,null,null,null,null,null,null,null,null,null,null,null,null,null,null,null,null,null,null,null,null,null,null,null,null,null,null,null,null,null,null,null,null,null,null,null,null,null,null,null,null,"чел."]
[]
[null,null,null,null,null,null,"Охрана Арендодателя",null,null,null,null,null,null,null,null,null,null,null,null,null,null,null,null,null,null,null,null,null,null,null,null,null,null,null,null,null,null,null,null,null,null,null,null,null,null,null,null,null,null,null,null,null,null,null,null,null,null,null,null,null,null,null,null,null,null,null,null,null,null,null,null,null,null,null,null,null,null,null,null,null,null,null,null,null,null,null,null,null,null,null,null,null,null,null,null,null,null,null,null,null,"чел."]
[]
[null,null,null,null,null,null,"Иные службы:",null,null,null,null,null,null,null,null,null,null,null,null,null,null,null,null,null,null,null,null,null,null,null,null,null,null,null,null,null,null,null,null,null,null,null,null,null,null,null,null,null,null,null,null,null,null,null,null,null,null,null,null,null,null,null,null,null,null,null,null,null,null,null,null,null,null,null,null,null,null,null,null,null,null,null,null,null,null,null,null,null,null,null,null,null,null,null,null,null,null,null,null,null,"чел."]
[]
[]
[null,null,"5.5.1. Охрана арендодателя. Дополнительно укажите:"]
[]
[null,null,null,null,null,null,"Наличие соответствующего пункта в договоре аренды об охране арендованных помещений и"]
[null,null,null,null,null,null,"расположенного в них имущества"]
[]
[null,null,null,null,null,null,"Наличие материальной ответственности арендодателя (сторонней организации, с которой у Арендодателя заключен договор"]
[]
[null,null,null,null,null,null,"об охране) за ущерб, причиненный Страхователю (Выгодоприобретателю)"]
[]
[]
[null,null,"5.6. Производится ли регулярный обход территории / здания?",null,null,null,null,null,null,null,null,null,null,null,null,null,null,null,null,null,null,null,null,null,null,null,null,null,null,null,null,null,null,null,null,null,null,null,null,null,null,null,null,null,null,null,null,null,null,null,null,null,null,null,null,null,null,null,null,null,null,null,null,null,null,null,null,null,null,null,null,null,null,null,null,null,null,null,null,null,null,null,null,null,null,"Да",null,null,null,null,null,null,null,null,null,null,"Нет"]
[]
[null,null,null,null,null,null,null,null,"Как часто?"]
[]
[null,null,"5.7. Пост охраны расположен:"]
[]
[null,null,null,null,null,null,"Внутри здания, в пределах территории страхования"]
[]
[null,null,null,null,null,null,"Внутри здания, в котором находится подлежащее страхованию имущество, но за пределами территории страхования"]
[]
[null,null,null,null,null,null,"(в случаях, когда страхователем используется не все здание)."]
[]
[null,null,null,null,null,null,"Не далее, чем",null,null,null,null,null,null,null,null,null,null,null,null,null,null,null,null,null,null,null,null,"м. от здания, в котором находится подлежащее страхованию имущество"]
[]
[null,null,null,null,null,null,"Иное"]
[]
[null,null,"5.8. Наличие действующей системы видеоконтроля с выводом сигнала на пост охраны:",null,null,null,null,null,null,null,null,null,null,null,null,null,null,null,null,null,null,null,null,null,null,null,null,null,null,null,null,null,null,null,null,null,null,null,null,null,null,null,null,null,null,null,null,null,null,null,null,null,null,null,null,null,null,null,null,null,null,null,null,null,null,null,null,null,null,null,null,null,null,null,null,null,null,null,null,null,null,null,null,null,null,"Нет",null,null,null,null,null,null,null,null,null,null,"Да:"]
[]
[]
[null,null,null,"5.8.1. Какие площади контролируют видеокамеры?"]
[]
[null,null,null,null,null,null,"Весь периметр здания"]
[]
[null,null,null,null,null,null,"Иное"]
[]
[]
[null,null,null,"5.8.2. Ведется ли запись со сроком хранения не менее 48 часов?",null,null,null,null,null,null,null,null,null,null,null,null,null,null,null,null,null,null,null,null,null,null,null,null,null,null,null,null,null,null,null,null,null,null,null,null,null,null,null,null,null,null,null,null,null,null,null,null,null,null,null,null,null,null,null,null,null,null,null,null,null,null,null,null,null,null,null,null,null,null,null,null,null,null,null,null,null,null,null,null,null,"Да",null,null,null,null,null,null,null,null,null,null,"Нет"]
[]
[]
[null,null,"5.9. Укажите, какие дополнительные системы безопасности установлены на предприятии:"]
[]
[null,null,null,null,null,null,"Кодовые замки",null,null,null,null,null,null,null,null,null,null,null,null,null,null,null,null,null,null,null,null,null,null,null,null,null,null,null,null,null,null,null,null,null,null,null,null,null,null,null,null,null,null,null,"Системы электронного доступа"]
[]
[null,null,null,null,null,null,"Иные:"]
[]
[]
[null,null,"6. Дополнительные сведения:"]
[]
[null,"Страхователь подтверждает, что Страхователь (представитель Страхователя, Выгодоприобретатель, Застрахованный) не является публичным должностным лицом (его представителем, доверенным лицом), указанным в ст. 7.3 Федерального закона от 07.08.2001 N 115-ФЗ «О противодействии легализации (отмыванию) доходов, полученных преступным путем, и финансированию терроризма», что такое лицо не является его выгодоприобретателем, бенефициарным владельцем, супругом (супругой), близким родственником согласно вышеуказанному Федеральному закону. В ином случае Страхователь обязуется предоставить Страховщику подтверждающие это сведения и документы, предусмотренные действующим законодательством РФ."]
[]
[]
[null,null,"7. Имущество осмотрено представителем страховщика. ФИО: ",null,null,null,null,null,null,null,null,null,null,null,null,null,null,null,null,null,null,null,null,null,null,null,null,null,null,null,null,null,null,null,null,null,null,null,null,null,null,null,null,null,null,null,null,null,null,null,null,null,null,null,null,null,null,null,null,null,null,null,null,null,null,null,null,null,null,null,null,null,null,null,null,null,"дата осмотра:"]
[]
[]
[null,null,"8. К настоящему заявлению прилагается:"]
[]
[null,null,null,null,null,null,"Перечень движимого имущества"]
[]
[null,null,null,null,null,null,"Опись внутренней отделки и нженерного оборудования"]
[]
[null,null,null,null,null,null,"Копии правоустанавливающих документов"]
[]
[null,null,null,null,null,null,"Копия предписания пожарного надзора"]
[]
[null,null,null,null,null,null,"Договор (Кредитный, об Ипотеке, Залога и т.д.)"]
[]
[null,null,null,null,null,null,"Иное:"]
[]
[null,null,null,null,null,null,"Иное:"]
[]
[null,"Сведения, содержащиеся в настоящем Заявлении, являются полными и соответствуют действительности. Страхователь уведомлен о том, что указанные в настоящем Заявлении сведения имеют существенное значение для определения степени страхового риска. О правовых последствиях сообщения Страховщику заведомо ложных сведений об обстоятельствах, имеющих существенное значение для определения вероятности страхового случая и размера возможных убытков от его наступления, предупрежден."]

{"sheet":"полис","index":2,"n_rows":95,"n_cols":94,"rows_kept":95,"cut":false,"hidden":true,"merged":[[77,2,77,97],[94,1,94,39],[69,65,69,84],[57,63,57,77],[57,79,57,97],[94,55,94,93],[93,55,93,93],[92,55,92,93],[92,1,92,39],[57,44,57,61],[75,20,76,35],[78,1,78,30],[75,2,76,19],[75,68,76,83],[75,36,76,51],[75,52,76,67],[93,1,93,39],[15,0,15,97],[17,40,17,42],[38,1,39,37],[17,43,17,44],[17,35,17,39],[17,18,17,34],[17,11,17,12],[17,13,17,15],[17,16,17,17],[36,1,37,37],[65,6,65,11],[20,1,20,97],[26,1,26,97],[24,27,24,74],[24,1,24,26],[24,76,24,97],[22,1,22,35],[22,36,22,97],[57,1,57,28],[61,35,61,46],[61,1,61,28],[57,29,57,43],[42,1,44,17],[42,18,44,97],[40,1,41,37],[34,53,35,76],[45,1,50,97],[73,36,74,51],[73,2,74,19],[36,53,37,76],[38,38,39,52],[73,20,74,35],[59,1,59,97],[55,30,55,97],[73,52,74,67],[73,68,74,83],[65,13,65,97],[52,1,52,97],[67,1,67,46],[40,38,41,52],[36,38,36,52],[55,1,55,28],[80,31,80,43],[80,47,80,49],[86,1,88,97],[82,1,82,97],[84,1,84,22],[80,90,80,92],[80,93,80,97],[80,85,80,89],[80,68,80,84],[80,61,80,62],[80,63,80,65],[80,50,80,60],[80,1,80,29],[80,66,80,67],[5,2,10,97],[32,77,33,97],[40,53,40,76],[38,53,39,76],[34,77,35,97],[36,77,37,97],[38,77,39,97],[40,77,41,97],[32,53,33,76],[28,1,28,97],[32,1,33,37],[34,1,35,37],[32,38,33,52],[34,38,34,52],[16,0,16,97],[17,56,17,76]]}
[]
[]
[]
[]
[]
[null,null,"Центральный офис: 191119 Россия, Санкт-Петербург, Лиговский пр., д. 108, лит.А, тел.(812) 611-0296, (812) 777-0275    www.guideh.com                                                                                                                                                        E-mail: office@guideh.com ИНН 7809016423 Р/с 40701810833000001031 в ПАО \"Банк \"Санкт-Петербург\" К/с 30101810900000000790  БИК 044030790"]
[]
[]
[]
[]
[]
[]
[]
[]
[]
["Полис (Договор)"]
["страхования имущества юридических лиц от огня и других опасностей"]
[null,null,null,null,null,null,null,null,null,null,null,"«",null,{"$f":"CONCATENATE(Заявление!AG21)","v":""},null,null,"»",null,{"$f":"CONCATENATE(Заявление!AL21)","v":""},null,null,null,null,null,null,null,null,null,null,null,null,null,null,null,null,20,null,null,null,null,{"$f":"CONCATENATE(Заявление!BH21)","v":""},null,null,"г.",null,null,null,null,null,null,null,"№"]
[]
[]
[null,"Настоящий   Полис (Договор)  выдан  в  подтверждении  того,   что  АО   \"СК ГАЙДЕ\", именуемое"]
[]
[null,"в дальнейшем Страховщик, в лице"]
[]
[null,"действующего на основании",null,null,null,null,null,null,null,null,null,null,null,null,null,null,null,null,null,null,null,null,null,null,null,null,null,null,null,null,null,null,null,null,null,null,null,null,null,null,null,null,null,null,null,null,null,null,null,null,null,null,null,null,null,null,null,null,null,null,null,null,null,null,null,null,null,null,null,null,null,null,null,null,null,null,"с одной стороны, и"]
[]
[null,{"$f":"CONCATENATE(Заявление!EU30,Заявление!EU36,Заявление!EZ38,Заявление!EU32,Заявление!EZ40,Заявление!EU34,Заявление!EZ42,Заявление!EZ52,Заявление!EZ46,Заявление!EZ48)","v":"00, именуемое в дальнейшем Страхователь, в лице 0, действующего на основании 0 с другой стороны, заключили договор страхования имущества юридических лиц от огня и других опасностей  (далее - Договор страхования или Договор) на основании Правил страхования имущества юридических лиц от огня и других опасностей (ред. от 06.12.2011 года) ОАО \"Страховая  компания ГАЙДЕ\"   (далее - Правила страхования или Правила) на следующих условиях:"}]
[]
[null,"Валюта, в которой устанавливаются размеры страховой премии, страховой стоимости, страховой суммы и франшизы по Договору:"]
[]
[null,null,null,null,null,null,"Российский рубль",null,null,null,null,null,null,null,null,null,null,null,null,null,null,null,null,null,null,null,null,null,null,null,null,null,null,"Рублевый эквивалент Евро",null,null,null,null,null,null,null,null,null,null,null,null,null,null,null,null,null,null,null,null,null,null,null,null,null,null,null,null,null,null,"Рублевый эквивалент доллара США"]
[]
[null,"1. Застрахованное имущество (категория застрахованного имущества)",null,null,null,null,null,null,null,null,null,null,null,null,null,null,null,null,null,null,null,null,null,null,null,null,null,null,null,null,null,null,null,null,null,null,null,null,"2. Застрахованные риски (*)",null,null,null,null,null,null,null,null,null,null,null,null,null,null,"3. Страховая сумма (**)",null,null,null,null,null,null,null,null,null,null,null,null,null,null,null,null,null,null,null,null,null,null,null,"4. Страховая премия"]
[]
[null,"1.1. Здания, сооружения, помещения",null,null,null,null,null,null,null,null,null,null,null,null,null,null,null,null,null,null,null,null,null,null,null,null,null,null,null,null,null,null,null,null,null,null,null,null,{"$f":"Заявление!GU107","v":""},null,null,null,null,null,null,null,null,null,null,null,null,null,null,{"$f":"IF(Заявление!BX147=0,\"\",Заявление!BX147)","v":""},null,null,null,null,null,null,null,null,null,null,null,null,null,null,null,null,null,null,null,null,null,null,null,{"$f":"IF(Заявление!DF149=0,\"\",Заявление!DF149)","v":""}]
[]
[null,"1.2. Оборудование, инвентарь, мебель",null,null,null,null,null,null,null,null,null,null,null,null,null,null,null,null,null,null,null,null,null,null,null,null,null,null,null,null,null,null,null,null,null,null,null,null,{"$f":"Заявление!HQ155","v":""},null,null,null,null,null,null,null,null,null,null,null,null,null,null,{"$f":"IF(Заявление!BX181=0,\"\",Заявление!BX181)","v":""},null,null,null,null,null,null,null,null,null,null,null,null,null,null,null,null,null,null,null,null,null,null,null,{"$f":"IF(Заявление!DF183=0,\"\",Заявление!DF183)","v":""}]
[]
[null,"1.3. Товарные запасы",null,null,null,null,null,null,null,null,null,null,null,null,null,null,null,null,null,null,null,null,null,null,null,null,null,null,null,null,null,null,null,null,null,null,null,null,{"$f":"Заявление!GT193","v":""},null,null,null,null,null,null,null,null,null,null,null,null,null,null,{"$f":"IF(Заявление!BX203=0,\"\",Заявление!BX203)","v":""},null,null,null,null,null,null,null,null,null,null,null,null,null,null,null,null,null,null,null,null,null,null,null,{"$f":"IF(Заявление!DF205=0,\"\",Заявление!DF205)","v":""}]
[]
[null,"Итого по Полису (Договору):",null,null,null,null,null,null,null,null,null,null,null,null,null,null,null,null,null,null,null,null,null,null,null,null,null,null,null,null,null,null,null,null,null,null,null,null,null,null,null,null,null,null,null,null,null,null,null,null,null,null,null,{"$f":"IF(AND(BB37=\"\",BB35=\"\",BB39=\"\"),\"\",SUM(BB35:BY40))","v":""},null,null,null,null,null,null,null,null,null,null,null,null,null,null,null,null,null,null,null,null,null,null,null,{"$f":"IF(AND(BZ35=\"\",BZ37=\"\",BZ39=\"\"),\"\",SUM(BZ35:CT40))","v":""}]
[]
[null,"5. Франшиза:",null,null,null,null,null,null,null,null,null,null,null,null,null,null,null,null,{"$f":"Заявление!C210","v":" "}]
[]
[]
[null,{"$f":"CONCATENATE(Заявление!EU83,Заявление!EU85,Заявление!EU90,Заявление!EU92,Заявление!EU86)","v":"(*) Страховые риски (коды): 1. -\"Пожар, удар молнии, взрыв\"; 2. -\"Стихийные бедствия\"; 3. - \"Повреждение водой\"; 4. - \"Постороннее воздействие\"; 5 - \"Хищение\"; 6 - \"Повреждение третьими лицами\"; 7 - \"Бой стекла\"; 8 -\"Терроризм\";     Указанные в кавычках краткие названия страховых рисков приведены для удобства оформления договоров страхования и не могут использоваться для определения событий, на случай наступления которых производится страхование. Определения событий, на случай наступления которых производится страхование по данным рискам, и исключения из них приведены в Разделе II \"Страховые риски\" Правил страхования.                                                                                                                                                                                                                                                            Пункт 3.5.н) Правил страхования применяется в следующей редакции: \"3.5 н) проведения строительных или монтажных работ, а также работ по реконструкции или переоборудованию застрахованных зданий, помещений.\"\n"}]
[]
[]
[]
[]
[]
[]
[null,"(**) В том случае, если в составе одной или нескольких групп имущества (п.п. 1.1.-1.3 настоящего Полиса (Договора)), застраховано несколько предметов, для которых в Заявлении о страховании (Приложение №1 к настоящему Полису (Договору)) указаны различные страховые суммы и страховые риски, то объем страховой защиты для таких предметов определяется в соответствии со страховыми суммами и страховыми рисками, указанными в Заявлении о страховании."]
[]
[]
[null,"6. Территория страхования ",null,null,null,null,null,null,null,null,null,null,null,null,null,null,null,null,null,null,null,null,null,null,null,null,null,null,null,null,{"$f":"Заявление!EU59","v":" "}]
[]
[null,"7. Срок действия Договора: ",null,null,null,null,null,null,null,null,null,null,null,null,null,null,null,null,null,null,null,null,null,null,null,null,null,null,null,"с 00 ч. 00 мин.",null,null,null,null,null,null,null,null,null,null,null,null,null,null,{"$f":"Заявление!AM73","v":"00:00:00"},null,null,null,null,null,null,null,null,null,null,null,null,null,null,null,null,null,null,"по 23 ч. 59 мин.",null,null,null,null,null,null,null,null,null,null,null,null,null,null,null,{"$f":"Заявление!BC73","v":"00:00:00"}]
[]
[null,"7.1. Страхование, обусловленное настоящим Полисом (Договором), распространяется на страховые случаи, происшедшие после 00 часов дня, указанного как дата начала действия Полиса (Договора), но не ранее 00 часов дня, следующего за днем оплаты наличными деньгами или поступления на расчетный счет Страховщика страховой премии (первого взноса страховой премии при оплате в рассрочку)."]
[]
[null,"8. Выгодоприобретатель: ",null,null,null,null,null,null,null,null,null,null,null,null,null,null,null,null,null,null,null,null,null,null,null,null,null,null,null,null,null,null,null,null,null,"Страхователь"]
[]
[null,null,null,null,null,null,"Лицо, обладающее интересом в сохранении подлежащего страхованию имущества (страхование \"за счет кого следует\")."]
[]
[null,null,null,null,null,null,"Иное:",null,null,null,null,null,null,{"$f":"CONCATENATE(Заявление!N54)","v":""}]
[]
[null,"9. Сроки и порядок уплаты страховой премии: "]
[]
[null,null,null,null,null,null,"страховая премия подлежит оплате единовременным платежом в срок до:"]
[]
[null,null,null,null,null,null,"в рассрочку, в соответствии с графиком платежей, указанным ниже:"]
[]
[null,null,"Дата внесения, до:",null,null,null,null,null,null,null,null,null,null,null,null,null,null,null,null,null," ",null,null,null,null,null,null,null,null,null,null,null,null,null,null,null," ",null,null,null,null,null,null,null,null,null,null,null,null,null,null,null," ",null,null,null,null,null,null,null,null,null,null,null,null,null,null,null," "]
[]
[null,null,"Сумма:",null,null,null,null,null,null,null,null,null,null,null,null,null,null,null,null,null," ",null,null,null,null,null,null,null,null,null,null,null,null,null,null,null," ",null,null,null,null,null,null,null,null,null,null,null,null,null,null,null," ",null,null,null,null,null,null,null,null,null,null,null,null,null,null,null," "]
[]
[null,null,"В случае неуплаты страховой премии (первого страхового взноса) в срок, установленный договором, договор страхования считается не вступившим в силу и не влечет каких-либо правовых последствий для его сторон. В случае неуплаты очередного платежа Страховщик имеет право расторгнуть Договор со дня, следующего за датой, указанной в Договоре, как дата очередного платежа, направив Страхователю соответствующее письменное уведомление."]
[null,"10. Приложения:"]
[]
[null,"10.1. Заявление о страховании № ",null,null,null,null,null,null,null,null,null,null,null,null,null,null,null,null,null,null,null,null,null,null,null,null,null,null,null,null,null,{"$f":"CONCATENATE(BE18)","v":""},null,null,null,null,null,null,null,null,null,null,null,null,"на",null,null,null,null,null,"листах, от",null,null,null,null,null,null,null,null,null,null,"«___»______________201__г.",null,{"$f":"CONCATENATE(Заявление!AG21)","v":""},null,null,"»",null,{"$f":"CONCATENATE(Заявление!AL21)","v":""},null,null,null,null,null,null,null,null,null,null,null,null,null,null,null,null,20,null,null,null,null,{"$f":"CONCATENATE(Заявление!BH21)","v":""},null,null,"г."]
[]
[null,"10.2. \"Правила страхования имущества юридических лиц от огня и других опасностей\" (ред. от 06.12.2011 года)."]
[]
[null,"11. Особые условия:",null,null,null,null,null,null,null,null,null,null,null,null,null,null,null,null,null,null,null,null,null,null,null,null,null,null,"Нет",null,null,null,null,null,null,null,null,"Да:"]
[]
[null,"11.1. Страхователь (Выгодоприобретатель) не вправе передавать свое право требования по страховой выплате по договору страхования третьим лицам без письменного согласования со Страховщиком.                                                                                                                                                                                                                                                                                                                   11.2. Заключая настоящий договор, Страхователь подтверждает, что проинформирован о том, что отсутствие у Страхователя или Выгодоприобретателя интереса в сохранении застрахованного имущества влечет недействительность договора.                                                                                                                                                                                                                                                                                                            11.3. Выплата страхового возмещения производится по безналичному расчету на расчетный счет получателя."]
[]
[]
[]
[null,null,null,null,null,null,null,null,null,null,null,null,null,"Страхователь",null,null,null,null,null,null,null,null,null,null,null,null,null,null,null,null,null,null,null,null,null,null,null,null,null,null,null,null,null,null,null,null,null,null,null,null,null,null,null,null,null,null,null,null,null,null,null,null,null,null,null,null,null,"Страховщик"]
[]
[null," Правила страхования получил. С положениями Правил страхования ознакомлен, согласен и обязуюсь выполнять."]
[null,"______________________(________________)",null,null,null,null,null,null,null,null,null,null,null,null,null,null,null,null,null,null,null,null,null,null,null,null,null,null,null,null,null,null,null,null,null,null,null,null,null,null,null,null,null,null,null,null,null,null,null,null,null,null,null,null,null,"______________________(________________)"]
[null,"М.П.",null,null,null,null,null,null,null,null,null,null,null,null,null,null,null,null,null,null,null,null,null,null,null,null,null,null,null,null,null,null,null,null,null,null,null,null,null,null,null,null,null,null,null,null,null,null,null,null,null,null,null,null,null,"М.П."]

{"sheet":"договор","index":3,"n_rows":1340,"n_cols":96,"rows_kept":1340,"cut":false,"hidden":true,"merged":[[5,1,10,99],[1336,56,1336,95],[74,2,74,98],[1334,1,1336,52],[12,0,12,98],[13,0,13,98],[14,13,14,14],[14,15,14,17],[14,18,14,19],[14,58,14,78],[14,20,14,36],[14,37,14,41],[14,42,14,44],[14,45,14,46],[75,1,75,30],[77,31,77,43],[77,47,77,49],[79,1,79,24],[77,1,77,30],[77,92,77,94],[77,95,77,98],[77,85,77,91],[77,50,77,60],[77,61,77,62],[77,63,77,65],[77,66,77,67],[77,68,77,84],[21,1,21,26],[21,27,21,74],[29,55,30,78],[21,76,21,98],[58,35,58,46],[49,1,49,98],[54,63,54,77],[54,79,54,98],[56,1,56,98],[52,1,52,28],[52,30,52,98],[58,1,58,28],[54,1,54,28],[31,38,31,54],[35,1,36,37],[37,1,38,37],[31,1,32,37],[33,38,33,54],[39,1,41,17],[42,1,47,98],[39,18,41,98],[37,79,37,98],[35,79,36,98],[37,38,37,54],[31,79,32,98],[33,79,34,98],[33,55,34,78],[31,55,32,78],[1339,1,1339,39],[1339,55,1339,95],[1337,1,1337,39],[1337,55,1337,95],[1338,1,1338,39],[1338,55,1338,95],[62,13,62,98],[62,6,62,11],[72,68,73,83],[64,1,64,46],[66,68,66,87],[70,20,71,35],[70,36,71,51],[70,52,71,67],[70,68,71,83],[72,2,73,19],[72,20,73,35],[72,36,73,51],[72,52,73,67],[70,2,71,19],[81,1,82,98],[83,1,83,98],[17,1,17,98],[29,1,30,37],[23,1,23,98],[25,1,25,98],[29,38,30,54],[29,79,30,98],[19,1,19,10],[19,11,19,98],[54,29,54,43],[54,44,54,61],[33,1,34,37],[35,38,36,54],[37,55,37,78],[35,55,36,78]]}
[]
[]
[]
[]
[]
[null,"Центральный офис: 191119 Россия, Санкт-Петербург, Лиговский пр., д. 108, лит.А, тел.(812) 611-0296, (812) 777-0275, www.guideh.com   E-mail: office@guideh.com\nИНН 7809016423 Р/с 40701810833000001031 в ПАО \"Банк \"Санкт-Петербург\" К/с 30101810900000000790  БИК 044030790"]
[]
[]
[]
[]
[]
[]
["Договор"]
["страхования имущества юридических лиц от огня и других опасностей"]
[null,null,null,null,null,null,null,null,null,null,null,null,null,"«",null,{"$f":"CONCATENATE(полис!N18)","v":""},null,null,"»",null,{"$f":"CONCATENATE(полис!S18)","v":""},null,null,null,null,null,null,null,null,null,null,null,null,null,null,null,null,20,null,null,null,null,{"$f":"CONCATENATE(полис!AO18)","v":""},null,null,"г.",null,null,null,null,null,null,null,"№",null,null,null,null,{"$f":"CONCATENATE(полис!BE18)","v":""}]
[]
[]
[null,"  АО   \"СК ГАЙДЕ\", именуемое в дальнейшем Страховщик, "]
[]
[null,"в лице"]
[]
[null,"действующего на основании",null,null,null,null,null,null,null,null,null,null,null,null,null,null,null,null,null,null,null,null,null,null,null,null,null,null,null,null,null,null,null,null,null,null,null,null,null,null,null,null,null,null,null,null,null,null,null,null,null,null,null,null,null,null,null,null,null,null,null,null,null,null,null,null,null,null,null,null,null,null,null,null,null,null,"с одной стороны, и"]
[]
[null,{"$f":"CONCATENATE(Заявление!EU30,Заявление!EU36,Заявление!EZ38,Заявление!EU32,Заявление!EZ40,Заявление!EU34,Заявление!EZ42,Заявление!EZ44,Заявление!EZ46,Заявление!EZ48)","v":"00, именуемое в дальнейшем Страхователь, в лице 0, действующего на основании 0 с другой стороны, заключили настоящий договор страхования имущества юридических лиц от огня и других опасностей  (далее - Договор страхования или Договор) на основании Правил страхования имущества юридических лиц от огня и других опасностей (ред. от 06.12.2011 года) ОАО \"Страховая  компания ГАЙДЕ\"   (далее - Правила страхования или Правила) на следующих условиях:"}]
[]
[null,"Валюта, в которой устанавливаются размеры страховой премии, страховой стоимости, страховой суммы и франшизы по Договору:"]
[]
[null,null,null,null,null,null,"Российский рубль",null,null,null,null,null,null,null,null,null,null,null,null,null,null,null,null,null,null,null,null,null,null,null,null,null,null,"Рублевый эквивалент Евро",null,null,null,null,null,null,null,null,null,null,null,null,null,null,null,null,null,null,null,null,null,null,null,null,null,null,null,null,null,null,"Рублевый эквивалент доллара США"]
[]
[null,"1.1. Застрахованное имущество (категория застрахованного имущества)",null,null,null,null,null,null,null,null,null,null,null,null,null,null,null,null,null,null,null,null,null,null,null,null,null,null,null,null,null,null,null,null,null,null,null,null,"1.2. Застрахованные риски (*)",null,null,null,null,null,null,null,null,null,null,null,null,null,null,null,null,"1.3. Страховая сумма (**)",null,null,null,null,null,null,null,null,null,null,null,null,null,null,null,null,null,null,null,null,null,null,null,"1.4. Страховая премия"]
[]
[null,"1.1.1. Здания, сооружения, помещения",null,null,null,null,null,null,null,null,null,null,null,null,null,null,null,null,null,null,null,null,null,null,null,null,null,null,null,null,null,null,null,null,null,null,null,null,{"$f":"Заявление!GU107","v":""},null,null,null,null,null,null,null,null,null,null,null,null,null,null,null,null,{"$f":"IF(Заявление!BX147=0,\"\",Заявление!BX147)","v":""},null,null,null,null,null,null,null,null,null,null,null,null,null,null,null,null,null,null,null,null,null,null,null,{"$f":"IF(Заявление!DF149=0,\"\",Заявление!DF149)","v":""}]
[]
[null,"1.1.2. Оборудование, инвентарь, мебель",null,null,null,null,null,null,null,null,null,null,null,null,null,null,null,null,null,null,null,null,null,null,null,null,null,null,null,null,null,null,null,null,null,null,null,null,{"$f":"Заявление!HQ155","v":""},null,null,null,null,null,null,null,null,null,null,null,null,null,null,null,null,{"$f":"IF(Заявление!BX181=0,\"\",Заявление!BX181)","v":""},null,null,null,null,null,null,null,null,null,null,null,null,null,null,null,null,null,null,null,null,null,null,null,{"$f":"IF(Заявление!DF183=0,\"\",Заявление!DF183)","v":""}]
[]
[null,"1.1.3. Товарные запасы",null,null,null,null,null,null,null,null,null,null,null,null,null,null,null,null,null,null,null,null,null,null,null,null,null,null,null,null,null,null,null,null,null,null,null,null,{"$f":"Заявление!GT193","v":""},null,null,null,null,null,null,null,null,null,null,null,null,null,null,null,null,{"$f":"IF(Заявление!BX203=0,\"\",Заявление!BX203)","v":""},null,null,null,null,null,null,null,null,null,null,null,null,null,null,null,null,null,null,null,null,null,null,null,{"$f":"IF(Заявление!DF205=0,\"\",Заявление!DF205)","v":""}]
[]
[null,"Итого по Договору:",null,null,null,null,null,null,null,null,null,null,null,null,null,null,null,null,null,null,null,null,null,null,null,null,null,null,null,null,null,null,null,null,null,null,null,null,null,null,null,null,null,null,null,null,null,null,null,null,null,null,null,null,null,{"$f":"SUM(BD32:CA37)","v":0},null,null,null,null,null,null,null,null,null,null,null,null,null,null,null,null,null,null,null,null,null,null,null,{"$f":"IF(AND(CB32=\"\",CB34=\"\",CB36=\"\"),\"\",SUM(CB32:CU37))","v":""}]
[]
[null,"1.5. Франшиза:",null,null,null,null,null,null,null,null,null,null,null,null,null,null,null,null,{"$f":"Заявление!C210","v":" "}]
[]
[]
[null,{"$f":"CONCATENATE(Заявление!EU83,Заявление!EU85,Заявление!EU90,Заявление!EU92,Заявление!EU87)","v":"(*) Страховые риски (коды): 1. -\"Пожар, удар молнии, взрыв\"; 2. -\"Стихийные бедствия\"; 3. - \"Повреждение водой\"; 4. - \"Постороннее воздействие\"; 5 - \"Хищение\"; 6 - \"Повреждение третьими лицами\"; 7 - \"Бой стекла\"; 8 -\"Терроризм\";        Указанные в кавычках краткие названия страховых рисков приведены для удобства оформления договоров страхования и не могут использоваться для определения событий, на случай наступления которых производится страхование. Определения событий, на случай наступления которых производится страхование по данным рискам, и исключения из них приведены в Разделе II \"Страховые риски\" Правил страхования.                                                                                                                                                                                                                                                            Пункт 3.5.н) Правил страхования применяется в следующей редакции: \"3.5 н) проведения строительных или монтажных работ, а также работ по реконструкции или переоборудованию застрахованных зданий, помещений.\""}]
[]
[]
[]
[]
[]
[]
[null,"(**) В том случае, если в составе одной или нескольких групп имущества (п.п. 1.1.-1.3 настоящего Договора), застраховано несколько предметов, для которых в Заявлении о страховании (Приложение №1 к настоящему Договор)) указаны различные страховые суммы и страховые риски, то объем страховой защиты для таких предметов определяется в соответствии со страховыми суммами и страховыми рисками, указанными в Заявлении о страховании."]
[]
[]
[null,"1.6. Территория страхования ",null,null,null,null,null,null,null,null,null,null,null,null,null,null,null,null,null,null,null,null,null,null,null,null,null,null,null,null,{"$f":"Заявление!EU59","v":" "}]
[]
[null,"1.7. Срок действия Договора: ",null,null,null,null,null,null,null,null,null,null,null,null,null,null,null,null,null,null,null,null,null,null,null,null,null,null,null,"с 00 ч. 00 мин.",null,null,null,null,null,null,null,null,null,null,null,null,null,null,{"$f":"полис!AS58","v":"00:00:00"},null,null,null,null,null,null,null,null,null,null,null,null,null,null,null,null,null,null,"по 23 ч. 59 мин.",null,null,null,null,null,null,null,null,null,null,null,null,null,null,null,{"$f":"полис!CB58","v":"00:00:00"}]
[]
[null,"1.7.1. Страхование, обусловленное настоящим Договором, распространяется на страховые случаи, происшедшие после 00 часов дня, указанного как дата начала действия Договора, но не ранее 00 часов дня, следующего за днем оплаты наличными деньгами или поступления на расчетный счет Страховщика страховой премии (первого взноса страховой премии при оплате в рассрочку)."]
[]
[null,"1.8. Выгодоприобретатель: ",null,null,null,null,null,null,null,null,null,null,null,null,null,null,null,null,null,null,null,null,null,null,null,null,null,null,null,null,null,null,null,null,null,"Страхователь"]
[]
[null,null,null,null,null,null,"Лицо, обладающее интересом в сохранении подлежащего страхованию имущества (страхование \"за счет кого следует\")."]
[]
[null,null,null,null,null,null,"Иное:",null,null,null,null,null,null,{"$f":"полис!N66","v":""}]
[]
[null,"1.9. Сроки и порядок уплаты страховой премии: "]
[]
[null,null,null,null,null,null,"страховая премия подлежит оплате единовременным платежом в срок до:",null,null,null,null,null,null,null,null,null,null,null,null,null,null,null,null,null,null,null,null,null,null,null,null,null,null,null,null,null,null,null,null,null,null,null,null,null,null,null,null,null,null,null,null,null,null,null,null,null,null,null,null,null,null,null,null,null,null,null,null,null,{"$f":"полис!BN70","v":"00:00:00"}]
[]
[null,null,null,null,null,null,"в рассрочку, в соответствии с графиком платежей, указанным ниже:"]
[]
[null,null,"Дата внесения, до:",null,null,null,null,null,null,null,null,null,null,null,null,null,null,null,null,null,{"$f":"полис!U74","v":" "},null,null,null,null,null,null,null,null,null,null,null,null,null,null,null,{"$f":"полис!AK74","v":" "},null,null,null,null,null,null,null,null,null,null,null,null,null,null,null,{"$f":"полис!BA74","v":" "},null,null,null,null,null,null,null,null,null,null,null,null,null,null,null,{"$f":"полис!BQ74","v":" "}]
[]
[null,null,"Сумма:",null,null,null,null,null,null,null,null,null,null,null,null,null,null,null,null,null,{"$f":"полис!U76","v":" "},null,null,null,null,null,null,null,null,null,null,null,null,null,null,null,{"$f":"полис!AK76","v":" "},null,null,null,null,null,null,null,null,null,null,null,null,null,null,null,{"$f":"полис!BA76","v":" "},null,null,null,null,null,null,null,null,null,null,null,null,null,null,null,{"$f":"полис!BQ76","v":" "}]
[]
[null,null,"В случае неуплаты страховой премии (первого страхового взноса) в срок, установленный договором, договор страхования считается не вступившим в силу и не влечет каких-либо правовых последствий для его сторон. В случае неуплаты очередного платежа Страховщик имеет право расторгнуть Договор со дня, следующего за датой, указанной в Договоре, как дата очередного платежа, направив Страхователю соответствующее письменное уведомление."]
[null,"1.10. Приложения:"]
[]
[null,"1.10.1. Заявление о страховании № ",null,null,null,null,null,null,null,null,null,null,null,null,null,null,null,null,null,null,null,null,null,null,null,null,null,null,null,null,null,{"$f":"CONCATENATE(BG15)","v":""},null,null,null,null,null,null,null,null,null,null,null,null,"на",null,null,{"$f":"CONCATENATE(полис!AV81)","v":""},null,null,"листах, от",null,null,null,null,null,null,null,null,null,null,"«___»______________201__г.",null,{"$f":"CONCATENATE(Заявление!AG21)","v":""},null,null,"»",null,{"$f":"CONCATENATE(Заявление!AL21)","v":""},null,null,null,null,null,null,null,null,null,null,null,null,null,null,null,null,20,null,null,null,null,null,null,{"$f":"CONCATENATE(Заявление!BH21)","v":""},null,null,"г."]
[null,null,null,"1.10.2. \"Правила страхования имущества юридических лиц от огня и других опасностей\" (ред. от 06.12.2011 года)."]
[null,"1.11. Особые условия:",null,null,null,null,null,null,null,null,null,null,null,null,null,null,null,null,null,null,null,null,null,null,null,null,null,null,"Нет",null,null,null,null,null,null,null,null,"Да:"]
[]
[null,{"$f":"CONCATENATE(полис!B87)","v":"11.1. Страхователь (Выгодоприобретатель) не вправе передавать свое право требования по страховой выплате по договору страхования третьим лицам без письменного согласования со Страховщиком.                                                                                                                                                                                                                                                                                                                   11.2. Заключая настоящий договор, Страхователь подтверждает, что проинформирован о том, что отсутствие у Страхователя или Выгодоприобретателя интереса в сохранении застрахованного имущества влечет недействительность договора.                                                                                                                                                                                                                                                                                                            11.3. Выплата страхового возмещения производится по безналичному расчету на расчетный счет получателя."}]
[]
[null,"11.4.  Страхователь обязан предоставлять Страховщику информацию, необходимую для исполнения ОА «СК ГАЙДЕ» требований Федерального закона от 07.08.2001 N 115-ФЗ \"О противодействии легализации (отмыванию) доходов, полученных преступным путем, и финансированию терроризма\", включая информацию о своих выгодоприобретателях, учредителях (участниках) и бенефициарных владельцах.                                                                                                                                                                     11.5. Страхователь (Клиент),  при изменении сведений, установленных при его идентификации, должен предоставить Страховщику (АО «СК ГАЙДЕ») соответствующую информацию к сроку обновления таких сведений. Непредставление соответствующей информации расценивается как неизменность сведений о клиенте, установленных при его идентификации."]
[]
[]
[null,"2. Договор страхования. Объект страхования. Территория страхования"]
[null,"2.1. Договор страхования является соглашением между Страхователем и Страховщиком, в силу"]
[null,"которого Страховщик обязуется за обусловленную договором плату (страховую премию) при"]
[null,"наступлении предусмотренного в договоре события (страхового случая) выплатить Страхователю"]
[null,"или иному лицу, в пользу которого заключен договор (Выгодоприобретателю), страховое"]
[null,"возмещение в пределах определенной договором суммы (страховой суммы)."]
[null,"2.2. Настоящий договор страхования заключен на основании письменного заявления Страхователя"]
[null,"(Приложение № 1 к настоящему Договору, далее - заявление о страховании или заявление)."]
[null,"Настоящий договор заключен в письменной форме и состоит из данного типового текста договора с"]
[null,"титульным листом и приложениями."]
[null,"Обязательными приложениями к договору страхования являются приложения, указанные в пункте"]
[null,"1.10. настоящего Договора."]
[null,"Данный текст договора с титульным листом и всеми приложениями, кроме заявления о страховании"]
[null,"составляется в двух экземплярах, подписанных Страхователем и Страховщиком."]
[null,"Заявление о страховании оформляется Страхователем по установленной Страховщиком форме в"]
[null,"одном экземпляре и хранится у Страховщика."]
[null,"Кроме указанных обязательных приложений к договору могут прилагаться любые иные документы."]
[null,"Все приложения являются неотъемлемой частью договора."]
[null,"2.3. Под конструктивными элементами строения, помещения понимаются: несущие и/или ограждающие"]
[null,"конструкции (стены, межэтажные перекрытия, межэтажные и межкомнатные перегородки (исключая"]
[null,"гипсокартонные и некапитальные)), кровля, фундамент, внешняя отделка."]
[null,"Под внутренней отделкой здания, строения, помещения понимаются следующие элементы:"]
[null,"дверные и оконные блоки (включая элементы остекления), полы (исключая перекрытия), легкие"]
[null,"внутренние перегородки, слой отделочных материалов, нанесенный или прикрепленный к"]
[null,"поверхности пола, стен и потолка."]
[null,"Под инженерным оборудованием здания (строения, сооружения, помещения) понимается"]
[null,"стационарно установленные  и предназначенные для обслуживания непосредственно этого здания"]
[null,"(строения, сооружения, помещения) элементы:"]
[null,"- систем вентиляции, водоснабжения (холодного и горячего), канализации, отопления,"]
[null,"кондиционирования воздуха, встроенного  искусственного освещения, пожаротушения,"]
[null,"газоснабжения, пожарной и/ или охранной сигнализаций, электроснабжения;"]
[null,"-  грузового и пассажирского лифтового оборудования;"]
[null,"- антенн, телефонных и радио коммуникаций, обеспечивающих поступление ресурсов (сигналов) к"]
[null,"соответствующим приборам."]
[]
[null,"2.4. Условия страхования, изменяющие и/или дополняющие условия типового текста договора,"]
[null,"указываются в Особых условиях к договору (пункт 1.11 настоящего договора). Особые условия"]
[null,"могут оформляться в виде отдельного приложения. В этом случае Особые условия оформляются в"]
[null,"двух экземплярах, подписанных Страхователем и Страховщиком, и становятся неотъемлемой"]
[null,"частью Договора."]
[null,"2.5. Объектом страхования по договору являются не противоречащие законодательству РФ"]
[null,"имущественные интересы Страхователя (Выгодоприобретателя), связанные с владением,"]
[null,"пользованием и распоряжением имуществом, указанным в пункте 1.1 настоящего Договора."]
[null,"2.6. Действие договора страхования не распространяется на следующие виды имущества:"]
[null,"а) акции, облигации, сертификаты, свидетельства, сберегательные и чековые книжки, кредитные"]
[null,"карты и другие ценные бумаги;"]
[null,"б) рукописи, планы, чертежи, акты и иные документы, бухгалтерские и деловые книги, картотеки;"]
[null,"в) модели, макеты, наглядные пособия, образцы, формы, прототипы и выставочные экземпляры, а"]
[null,"также типовые образцы и т.п.;"]
[null,"г) драгоценные металлы в виде запасов, слитков, готовых изделий, драгоценные камни без оправ;"]
[null,"д) технические носители информации  (перфокарты, магнитные ленты, кассеты, дискеты, магнитные"]
[null,"диски, и прочие носители данных);"]
[null,"е) взрывчатые вещества;"]
[null,"ж) средства транспорта, передвижные строительные, сельскохозяйственные или иные машины,"]
[null,"мотоциклы, мопеды, прицепы и тягачи; жилые вагончики, передвижные домики и их принадлежности;"]
[null,"з) имущество, находящееся в застрахованном помещении, но которым Страхователь"]
[null,"(Выгодоприобретатель) не распоряжается на правах собственности (владения, пользования,"]
[null,"распоряжения), доверительного управления, аренды, лизинга, залога, хранения, комиссии, продажи,"]
[null,"а также по другим юридическим основаниям;"]
[null,"и) сельскохозяйственные животные, многолетние насаждения и урожай сельскохозяйственных культур;"]
[null,"к) здания и сооружения, конструктивные элементы и инженерные системы которые находятся в"]
[null,"аварийном состоянии, а также находящееся в них имущество;"]
[null,"л) имущество, находящееся в зоне, которой угрожают обвалы, оползни, наводнения, лесные пожары"]
[null,"или иные стихийные  бедствия, а также в зоне военных действий с момента объявления в"]
[null,"установленном порядке о такой угрозе, если такое объявление было произведено до заключения"]
[null,"договора страхования;"]
[null,"м) иное имущество, изъятое из оборота или ограниченное в обороте в соответствии с Гражданским"]
[null,"законодательством РФ."]
[null,"н) марки, монеты, денежные знаки и боны, рисунки, картины, скульптуры или иные коллекции или"]
[null,"произведения искусства;"]
[null,"Имущество, относящееся к одному из указанных в настоящем пункте виду, считается"]
[null,"застрахованным только при условии, что:"]
[null,"- Страхователь сообщил страховщику в письменном виде о том, что имущество, подлежащее"]
[null,"страхованию, относится к указанным видам, и"]
[null,"- Страховщик согласился принять данное имущество на страхование, что было отмечено в Особых"]
[null,"условиях к договору страхования (пункт 1.11 настоящего договора). При отсутствии в Особых"]
[null,"условиях данной отметки о согласии Страховщика, договор страхования в отношении указанных"]
[null,"видов имущества не действует."]
[null,"2.7. Имущество считается застрахованным только в пределах тех помещений или земельных участков,"]
[null,"которые указаны в п.1.6. договора (далее - территория страхования)."]
[null,"Указанное в договоре страхования имущество, находящееся вне территории страхования, не"]
[null,"считается застрахованным, и договор страхования в отношении него не действует."]
[null,"2.8. Рекламные вывески и информационные указатели застрахованы только в том случае, если это"]
[null,"прямо указано в договоре страхования и для них установлена самостоятельная (отдельная)"]
[null,"страховая сумма."]
[null,"2.9. Страховщик вправе произвести осмотр подлежащего страхованию (застрахованного) имущества, и"]
[null,"при необходимости назначить экспертизу в целях установления его действительной стоимости."]
[null,"2.10. Имущество может быть застраховано по договору страхования в пользу лица (страхователя или"]
[null,"выгодоприобретателя), имеющего основанный на законе, ином правовом акте или договоре интерес"]
[null,"в сохранении этого имущества."]
[null,"Страхователь вправе заменить Выгодоприобретателя, названного в договоре страхования, другим"]
[null,"лицом, письменно уведомив об этом Страховщика. Выгодоприобретатель не может быть заменен"]
[null,"другим лицом после того, как он выполнил какую-либо из обязанностей по договору страхования"]
[null,"или предъявил Страховщику требование о выплате страхового возмещения."]
[null,"Выгодоприобретатель обязан выполнить обязанности по договору страхования, включая"]
[null,"обязанности, лежащие на Страхователе, но не выполненные им. Риск последствий невыполнения"]
[null,"или несвоевременного выполнения обязанностей, которые должны были быть выполнены ранее,"]
[null,"несет выгодоприобретатель."]
[]
[null,"3. Страховой риск и страховой случай."]
[null,"3.1. Страховым риском является предполагаемое событие, на случай наступления которого"]
[null,"заключается Договор страхования."]
[null,"Страховые риски, на случай наступления которых производится страхование, указываются в п.1.2 договора."]
[null,"Указанные в кавычках краткие названия страховых рисков приведены для удобства оформления"]
[null,"договоров страхования и не могут использоваться для определения событий, на случай"]
[null,"наступления которых производится страхование."]
[null,"Определения событий, на случай наступления которых производится страхование по данным"]
[null,"рискам, и исключения из них приведены в Разделе II \"Страховые риски\" настоящего договора."]
[null,"3.2. В любом случае не являются страховыми рисками и не влекут обязательств Страховщика по"]
[null,"выплате страхового возмещения повреждение или утрата имущества в результате:"]
[null,"а) воздействия ядерного взрыва, радиации или радиоактивного заражения;"]
[null,"б) военных действий, а также маневров или иных военных мероприятий;"]
[null,"в) гражданской войны, народных волнений всякого рода или забастовок."]
[null,"г) конфискации, реквизиции, ареста, уничтожения или повреждения имущества по распоряжению"]
[null,"военных или гражданских властей;"]
[null,"д) самовозгорания, брожения, гниения или других естественных свойств застрахованных предметов;"]
[null,"е) обвала строения или его части, если обвал не вызван страховым случаем;"]
[null,"ж) хищения имущества во время или непосредственно после страхового случая;"]
[null,"з) повреждения или разрушение застрахованных зданий и сооружений, а также находящегося в них"]
[null,"имущества вследствие их ветхости, частичного разрушения или повреждения вследствие"]
[null,"длительной эксплуатации;"]
[null,"и) проведения Страхователем (Выгодоприобретателем или иным лицом, в чьем владении,"]
[null,"пользовании или распоряжении находится застрахованное имущество), либо по его поручению иным лицом"]
[null,"любых испытаний, проб, тестов"]
[null,"к) проникновения в здание (строение, сооружение или иной объект капитального строительства)"]
[null,"дождевой (талой) воды, снега, града, дыма или загрязняющих веществ через: незакрытые окна и"]
[null,"двери, отверстия в строительных конструкциях не предусмотренные проектом,  а также отверстия"]
[null,"появившиеся вследствие ветхости или строительных дефектов, кроме случаев, когда появление"]
[null,"таких отверстий и последующее повреждение (или гибель) застрахованного имущества находится в"]
[null,"прямой причинно-следственной связи с наступлением застрахованного риска;"]
[null,"л) осуществления Страхователем (Выгодприобретателем или иным лицом, в чьем пользовании,"]
[null,"владении или распоряжении находится застрахованное имущество) деятельности без получения"]
[null,"необходимого для этого  обязательного разрешения государственных органов ведомственного,"]
[null,"технического, пожарного или иного надзора;"]
[null,"м) потери или повреждения электронной информации, программного обеспечения, нарушения"]
[null,"работоспособности, доступности к электронной информации, программному обеспечению или"]
[null,"компьютерным программам;"]
[null,"н) проведения строительных или монтажных работ, а также работ по реконструкции или "]
[null,"переоборудованию застрахованных зданий, помещений."]
[null,"В Разделе II \"Страховые риски\" настоящего договора также указаны события, являющиеся"]
[null,"исключениями из страхового покрытия по конкретным страховым рискам."]
[null,"3.3. Страховым случаем является совершившееся событие, предусмотренное договором страхования"]
[null,"из числа указанных в Разделе II, с наступлением которого возникает обязанность Страховщика"]
[null,"произвести страховую выплату в размере, определенном в соответствии с Разделом III договора."]
[]
[null,"4. Страховая сумма. Франшиза."]
[null,"4.1. Страховой суммой является определенная договором страхования денежная сумма, в пределах"]
[null,"которой Страховщик обязуется при наступлении страхового случая (страховых случаев), произвести"]
[null,"страховую выплату (страховые выплаты) в установленном договором порядке."]
[null,"Страховые суммы по застрахованному имуществу указываются в п.1.3 договора и в Заявлении о страховании."]
[null,"4.2. Страховая сумма устанавливается по соглашению сторон в размере, не превышающем"]
[null,"действительную (страховую) стоимость."]
[null,"Для целей страхования по настоящему договору, страховая стоимость имущества определяется в"]
[null,"месте его нахождения на момент заключения договора страхования следующим образом:"]
[null,"а) для зданий, строений, сооружений, их отделки и инженерного оборудования - как рыночная"]
[null,"стоимость ресурсов (затрат), необходимых для создания объекта, аналогичного предмету"]
[null,"страхования в ценах, сложившихся в месте нахождения предмета страхования в день заключения"]
[null,"договора страхования, с учетом его износа"]
[null,"б) для помещений - как рыночная стоимость"]
[null,"в) для товаров, изготавливаемых Страхователем (Выгодоприобретателем) (как незавершенных"]
[null,"производством, так и готовых) - как сумма затрат предприятия, необходимых для повторного"]
[null,"изготовления застрахованных (подлежащих страхованию) предметов, включая расходы на покупку"]
[null,"сырья, полуфабрикатов и транспортные расходы (фрахт, затраты на страхование грузов,"]
[null,"таможенные сборы и пошлины), но не выше их фактической себестоимости;"]
[null,"г) для товаров, приобретенных Страхователем (Выгодоприобретателем) для последующей продажи, а"]
[null,"также для сырья и материалов, закупленных Страхователем (Выгодоприобретателем), - как"]
[null,"стоимость приобретения данных товаров, включая транспортные расходы (фрахт, затраты на"]
[null,"страхование грузов, таможенные сборы и пошлины);"]
[null,"д) для иных предметов движимого имущества- как рыночная стоимость"]
[null,"4.3. Если страховая сумма установлена ниже страховой стоимости, Страховщик при наступлении"]
[null,"страхового случая возмещает Страхователю (Выгодоприобретателю) часть ущерба, определенного"]
[null,"в соответствии с условиями договора страхования, пропорционально отношению страховой суммы к"]
[null,"страховой стоимости."]
[null,"4.4. Если указанная в договоре страховая сумма превышает страховую стоимость, договор является"]
[null,"ничтожным в той части страховой суммы, которая превышает страховую стоимость. Уплаченная"]
[null,"излишне часть страховой премии возврату в этом случае не подлежит."]
[null,"Если превышение страховой суммы над страховой стоимостью явилось следствием обмана со"]
[null,"стороны Страхователя, Страховщик вправе требовать признания договора недействительным и"]
[null,"возмещения причиненных ему этим убытков в размере, превышающем сумму полученной им от"]
[null,"Страхователя страховой премии."]
[null,"4.5. После выплаты страхового возмещения страховая сумма уменьшается на величину выплаченного"]
[null,"возмещения. Уменьшение страховой суммы производится со дня страховой выплаты. В случае"]
[null,"восстановления или замены пострадавшего имущества Страхователь имеет право за"]
[null,"дополнительную премию восстановить первоначальную страховую сумму (суммы)."]
[null,"4.6. По соглашению сторон договором страхования может быть предусмотрена доля собственного"]
[null,"участия Страхователя в возмещении ущерба (невозмещаемая Страховщиком часть ущерба) –"]
[null,"франшиза условная или безусловная."]
[null,"Франшиза может устанавливаться в абсолютном размере, либо в процентах от страховой суммы"]
[null,"или от размера ущерба."]
[null,"Ущерб, не превышающий величину условной или безусловной франшизы, возмещению не подлежит."]
[null,"Если размер ущерба, определенный в соответствии с условиями договора, превышает величину"]
[null,"условной франшизы, размер страховой выплаты определяется без учета франшизы."]
[null,"Если размер ущерба, определенный в соответствии с условиями договора, превышает величину"]
[null,"безусловной франшизы, размер страховой выплаты определяется за вычетом франшизы."]
[null,"Франшиза учитывается при расчете возмещения по каждому случаю."]
[null,"Если в результате одного страхового случая повреждается несколько застрахованных объектов или"]
[null,"групп объектов, для которых в договоре страхования предусмотрены отдельные франшизы, то"]
[null,"франшизы учитываются при расчете возмещения по каждому объекту или группе объектов."]
[]
[null,"5. Страховая премия. Страховой тариф."]
[null,"5.1. Страховой премией является плата за страхование, которую Страхователь обязан уплатить"]
[null,"Страховщику в соответствии с договором страхования."]
[null,"5.2. Размер страховой премии и порядок ее уплаты указан в п.1.9 договора."]
[null,"5.3. Уплата премии (взносов) осуществляется Страхователем или по его поручению любым лицом"]
[null,"путем безналичного перечисления средств на расчетный счет Страховщика; наличными деньгами"]
[null,"представителю Страховщика или в кассу Страховщика, либо иным согласованным сторонами"]
[null,"способом. Страховые взносы могут уплачиваться вперед за один или несколько периодов оплаты."]
[null,"5.4. Неуплата страховой премии или ее очередного взноса в сроки и размере, предусмотренные"]
[null,"договором страхования, рассматривается как существенное нарушение договора страхования,"]
[null,"может служить основанием для прекращения договора страхования в порядке, предусмотренном в"]
[null,"п.8 настоящего договора."]
[null,"5.5. При страховании с валютным эквивалентом, если иного не предусмотрено законом, страховая"]
[null,"премия (взнос) уплачивается в рублях по курсу Банка России, установленному для иностранной"]
[null,"валюты на дату выставления Страховщиком счета на оплату."]
[]
[null,"6. Вступление в силу и срок действия договора страхования."]
[null,"6.1. Если иное не предусмотрено в п.1.7, договор страхования вступает в силу с момента уплаты"]
[null,"страховой премии или ее первого взноса:"]
[null,"а) при уплате наличными деньгами - с 00 часов дня, следующего за днем получения денег"]
[null,"представителем Страховщика или внесения денег в кассу Страховщика;"]
[null,"б) при безналичном платеже - с 00 часов дня, следующего за днем поступления денег на расчетный"]
[null,"счет Страховщика."]
[null,"6.2. В случае неуплаты страховой премии (первого страхового взноса) в срок, установленный"]
[null,"договором, договор страхования считается не вступившим в силу и не влечет каких-либо правовых"]
[null,"последствий для его сторон."]
[null,"6.3. Срок страхования (срок действия договора) указывается в п.1.7 договора."]
[null,"6.4. Если будет установлено, что сообщенные Страхователем сведения полностью или частично не"]
[null,"соответствуют действительности, и что Страхователь сообщил заведомо ложные сведения,"]
[null,"Страховщик имеет право требовать признания договора страхования недействительным и возврата"]
[null,"всех произведенных по нему выплат."]
[]
[null,"7. Изменение договора страхования. Изменение степени риска."]
[null,"7.1. Договор страхования может быть изменен по соглашению сторон в течение его срока действия."]
[null,"7.2. Изменение условий договора страхования оформляется путем составления дополнительного"]
[null,"соглашения к договору страхования, подписанного сторонами."]
[null,"7.3. При изменении положений договора страхования, которые учитывались при определении величины"]
[null,"страховой премии, Страховщик производит перерасчет премии. В случае увеличения страховой"]
[null,"премии в результате перерасчета, Страхователь обязан уплатить дополнительную страховую"]
[null,"премию в установленные дополнительным соглашением сроки."]
[null,"7.4. В период действия договора страхования Страхователь (лицо, в пользу которого заключен договор)"]
[null,"обязан незамедлительно не позднее 3 (трех) дней письменно сообщать Страховщику о ставших ему"]
[null,"известными значительных изменениях в обстоятельствах, сообщенных Страховщику при"]
[null,"заключении договора, если эти изменения могут существенно повлиять на увеличение страхового риска."]
[null,"Значительными во всяком случае признаются изменения обстоятельств, указанных в договоре"]
[null,"страхования, включая Заявление о страховании  и другие приложения к настоящему договору."]
[null,"В частности, значительными признаются следующие изменения:"]
[null,"а) любые изменения обстоятельств, указанных в письменном заявлении о страховании;"]
[null,"б) передача застрахованного имущества в аренду или залог;"]
[null,"в) переход права собственности на застрахованное имущество к другому лицу;"]
[null,"г) прекращение Страхователем (лицом, эксплуатирующим застрахованное имущество) деятельности"]
[null,"или существенное изменение его характера;"]
[null,"д) снос, капитальный ремонт, перестройка или переоборудование застрахованных строений или"]
[null,"строений, в которых находится застрахованное имущество;"]
[null,"е) изменения всех условий и обстоятельств пожарной безопасности, охраны, эксплуатации и хранения"]
[null,"имущества, указанных в заявлении о страховании;"]
[null,"ж) повреждение застрахованного здания или здания, где находится застрахованное имущество, а"]
[null,"также повреждение или утрата имущества (в т.ч. незастрахованного) на территории страхования,"]
[null,"независимо от того, подлежат ли вызванные данным повреждением (утратой) убытки возмещению"]
[null,"по договору страхования;"]
[null,"з) нарушение Страхователем (лицом, в пользу которого заключен договор) или с его ведома другим"]
[null,"лицом установленных законами или иными нормативными актами правил и норм противопожарной"]
[null,"безопасности, охраны помещений и ценностей, безопасности проведения работ или иных"]
[null,"аналогичных норм;"]
[null,"и) заключение в отношении застрахованного по настоящему Договору имущества иных договоров"]
[null,"страхования с другими страховыми организациями;"]
[null,"к) наступления события, имеющего признаки страхового случая;"]
[null,"л) хищения или попытки хищения, совершенной на территории страхования."]
[null,"Страховщик имеет право отказать в страховой выплате в случае неисполнения (ненадлежащего"]
[null,"исполнения) Страхователем или лицом, в пользу которого заключен договор, обязанностей,"]
[null,"установленных настоящим пунктом."]
[null,"7.5. Страховщик, уведомленный об обстоятельствах, влекущих увеличение страхового риска, вправе"]
[null,"потребовать изменения условий договора страхования или уплаты дополнительной страховой"]
[null,"премии соразмерно увеличению риска."]
[null,"Если Страхователь (Выгодоприобретатель) возражает против изменения условий договора"]
[null,"страхования или доплаты страховой премии, Страховщик вправе потребовать расторжения"]
[null,"договора в соответствии законом."]
[null,"7.6. При неисполнении Страхователем либо Выгодоприобретателем предусмотренной в п.7.4"]
[null,"обязанности Страховщик вправе потребовать расторжения договора страхования и возмещения"]
[null,"убытков, причиненных расторжением договора, а при наступлении страхового случая Страховщик"]
[null,"имеет право отказать в страховой выплате по нему."]
[null,"7.7. Страховщик имеет право в течение срока действия договора проверять состояние и стоимость"]
[null,"застрахованного имущества, а также правильность сообщенных ему Страхователем сведений."]
[null,"7.8. При переходе прав на застрахованное имущество от лица, в интересах которого был заключен"]
[null,"договор страхования, к другому лицу права и обязанности по этому договору переходят к лицу, к"]
[null,"которому перешли права на имущество, за исключением случаев предусмотренных законом."]
[null,"Лицо, к которому перешли права на застрахованное имущество, должно незамедлительно"]
[null,"письменно уведомить об этом Страховщика."]
[]
[null,"8. Прекращение договора страхования."]
[null,"8.1. Договор страхования прекращается по истечению срока действия в 24 часа дня, указанного в"]
[null,"договоре как день его окончания."]
[null,"8.2. Договор страхования прекращается досрочно до истечения указанного в нем срока действия в случаях:"]
[null,"а) исполнения Страховщиком обязательств по договору в полном объеме (страховой выплаты"]
[null,"(страховых выплат) в размере страховой суммы);"]
[null,"б) ликвидации Страховщика в установленном законодательством Российской Федерации порядке;"]
[null,"в) признания договора страхования недействительным по решению суда;"]
[null,"г) отказа Страхователя от договора страхования;"]
[null,"д) прекращения договора страхования Страховщиком в одностороннем порядке в случаях,"]
[null,"предусмотренных п.8.4;"]
[null,"е) если после вступления в силу Договора возможность наступления страхового случая отпала, и"]
[null,"существование страхового риска прекратилось по обстоятельствам иным, чем страховой случай, в"]
[null,"частности в случае гибели застрахованного имущества по причинам иным, чем наступление"]
[null,"страхового случая;"]
[null,"ж) по соглашению сторон;"]
[null,"з) в других случаях, предусмотренных действующим законодательством."]
[null,"8.3. При досрочном прекращении договора страхования:"]
[null,"а) в случаях, предусмотренных пп. \"а\" - \"д\" п.8.2, а также в случае, предусмотренном пп. \"ж\" п.8.2 при"]
[null,"наличии на момент прекращения договора хотя бы одного заявленного страхового случая,"]
[null,"страховая премия (взносы) не возвращается;"]
[null,"б) в случае, предусмотренном пп. \"е\" п.8.2, а также в случае, предусмотренном пп. \"ж\" п.8.2 при"]
[null,"отсутствии на момент прекращения договора хотя бы одного заявленного страхового случая,"]
[null,"возвращается часть страховой премии пропорционально неистекшему сроку страхования за"]
[null,"вычетом расходов Страховщика;"]
[null,"В этом случае расчет возвращаемой суммы премии Пв производится по формуле:"]
[null,"Пв = (Пу - П * n / N) (1 - f), где"]
[null,"Пу - фактически уплаченная сумма премии (страховых взносов) по договору;"]
[null,"П - общая страховая премия, подлежащая уплате по договору;"]
[null,"n - фактически истекший срок страхования на момент расчета, в днях;"]
[null,"N - срок страхования по договору, в днях;"]
[null,"f - доля расходов Страховщика в структуре премии в размере 30%;"]
[null,"8.4. Страховщик имеет право прекратить договор страхования в одностороннем порядке направив"]
[null,"Страхователю письменное уведомление в случаях:"]
[null,"а) неуплаты Страхователем очередного страхового взноса в течение 10 (десяти) дней с даты,"]
[null,"установленной Договором для его уплаты;"]
[null,"б) увеличения степени страхового риска, о котором стало известно Страховщику, и о котором"]
[null,"Страхователь не сообщил Страховщику в установленном Договором порядке;"]
[null,"в) отказа Страхователя от изменения условий Договора страхования или от доплаты страховой"]
[null,"премии в случае возникновения обстоятельств, влекущих увеличение страхового риска."]
[null,"8.5. При досрочном прекращении договора в одностороннем порядке любой из сторон, действие"]
[null,"договора (срок страхования) прекращается с момента получения другой стороной (доставки по"]
[null,"адресу, указанному в договоре страхования) письменного уведомления о досрочном прекращении"]
[null,"договора, либо с иной более поздней даты, указанной в таком уведомлении."]
[]
[null,"9. Разрешение споров."]
[null,"9.1. Споры, возникающие по настоящему договору, разрешаются в претензионном порядке."]
[null,"Претензия, содержащая перечень и обоснование предъявляемых требований, должна быть"]
[null,"направлена другой стороне в письменном виде не позднее 30 (тридцати) дней с момента"]
[null,"возникновения основания для данной претензии."]
[null,"Претензия должна быть рассмотрена другой стороной в течение 30 (тридцати) дней с момента его"]
[null,"получения."]
[null,"При недостижении сторонами согласия спор решается в судебном порядке, предусмотренном"]
[null,"действующим законодательством Российской Федерации в Арбитражном суде Санкт-Петербурга и"]
[null,"Ленинградской области в пределах срока исковой давности."]
[]
[null,"Раздел II. Страховые риски"]
[]
[null,"10. Риск \"Пожар, удар молнии, взрыв\""]
[null,"10.1. По риску \"Пожар, удар молнии, взрыв\" страховым риском является повреждение или утрата"]
[null,"Застрахованного имущества в течение срока страхования на территории страхования в результате"]
[null,"следующих событий:"]
[null,"а) пожара (п.10.2),"]
[null,"б) удара молнии (п.10.3),"]
[null,"в) взрыва газа, используемого для бытовых и промышленных целей, взрыва паровых котлов, газохранилищ, "]
[null,"газопроводов, сосудов, работающих под давлением, и других аналогичных устройств(п.10.4)."]
[]
[null,"10.2. Страхование от пожара, предусмотренное пп \"а\" п.10.1, производится с учетом следующих"]
[null,"положений:"]
[null,"10.2.1. Под Пожаром понимается горение в форме открытого пламени или тления, которое возникло не в"]
[null,"специально отведенном для этого месте или распространилось за пределы такого места и способно"]
[null,"самостоятельно распространяться далее."]
[null,"10.2.2. При страховании от Пожара не является страховым риском и не влечет возникновения"]
[null,"обязательств Страховщика по выплате страхового возмещения повреждение или утрата:"]
[null,"а) застрахованного имущества в результате воздействия на него огнем или теплом с целью обработки,"]
[null,"переработки или в других целях (например, сушки, варки, глажения, копчения, жарки, нагревания,"]
[null,"горячей обработки или плавления металлов и т.д.), в том числе, ущерб, причиненный имуществу, с"]
[null,"помощью которого или в котором огонь или тепло специально создается и/или которое специально"]
[null,"предназначено для его разведения, поддержания, распространения, передачи (печам, дымоходам,"]
[null,"теплообменникам и т.п.);"]
[null,"б) застрахованного имущества в результате опаливания или прожигания горящими углями,"]
[null,"выпавшими из каминов, печей и т.п., сигаретами или сигарами, паяльной лампой и тому подобными"]
[null,"предметами, или опаливания, вызванного внезапным выходом огня из места, специально для него"]
[null,"отведенного, кроме случаев возникновения пожара;"]
[null,"в) застрахованного имущества в результате пожара, вызванного террористическим актом (данный"]
[null,"риск может быть застрахован по риску \"Терроризм\")."]
[null,"10.2.3. В случае, если пожар возник вследствие воздействия электрического тока на электрическое"]
[null,"устройство (в т.ч. на электропроводку) или вследствие выхода из строя (поломки)"]
[null,"электрического устройства по иной причине, подлежит возмещению ущерб, причиненный"]
[null,"пожаром, за исключением повреждения (или гибели) электрического устройства, явившегося"]
[null,"источником пожара и расходов, вызванных необходимостью ремонта (или замены) такого"]
[null,"устройства. "]
[null,"Под отдельным электрическим устройством понимается набор различных частей (деталей,"]
[null,"элементов) объединенных в один корпус. Электрические провода, не объединенные в корпус"]
[null,"какого либо электрического устройства (например, в разветвительные коробки, электрощиты,"]
[null,"короба  и т.п.), являются самостоятельными электрическими устройствами."]
[]
[null,"10.2.4. При страховании от пожара возмещению подлежат только следующие виды ущерба:"]
[null,"- ущерб Застрахованному имуществу от непосредственного воздействия огня, высокой температуры,"]
[null,"продуктов горения (дыма, копоти и т.п.),"]
[null,"- ущерб, причиненный Застрахованному имуществу при выполнении мероприятий по тушению или"]
[null,"предупреждению распространения пожара, а также при спасании имущества при пожаре."]
[]
[null,"10.3. Страхование от удара молнии, предусмотренное пп \"б\" п.10.1, производится с учетом следующих"]
[null,"положений:"]
[null,"10.3.1. Под Ударом молнии понимается прямое попадание разряда атмосферного электричества в"]
[null,"застрахованное имущество."]
[null,"10.3.2. При страховании от удара молнии не является страховым риском и не влечет возникновения"]
[null,"обязательств Страховщика по выплате страхового возмещения повреждение (выход из строя) или утрата:"]
[null,"а) электрических устройств в результате:"]
[null,"- действия электричества (перенапряжения) или теплового воздействия в силу избыточной нагрузки"]
[null,"или атмосферных условий, таких как статическое электричество, индукция в силу атмосферного"]
[null,"разряда и других аналогичных явлений;"]
[null,"- передачи электричества (электромагнитного импульса) по проводам вследствие удара молнии;"]
[null,"б) защитных предохранителей любого рода, защитных выключателей, грозовых разрядников,"]
[null,"громоотводов и другого аналогичного оборудования в ходе их обычной эксплуатации."]
[null,"10.3.3. При страховании от удара молнии возмещению подлежит только ущерб, причиненный"]
[null,"застрахованному имуществу в результате непосредственного термического и электродинамического"]
[null,"воздействия на него молнии."]
[]
[null,"10.4. Страхование от взрыва, предусмотренное пп \"в\" п.10.1, производится с учетом следующих"]
[null,"положений:"]
[null,"10.4.1. Для целей настоящего договора применяются следующие определения понятий, используемых при"]
[null,"описании страхового риска:"]
[null,"Взрыв - стремительно протекающий процесс освобождения большого количества энергии в"]
[null,"ограниченном объеме за короткий промежуток времени, вызванный стремлением газа или пара к"]
[null,"расширению."]
[null,"Взрывом резервуара (котла, трубопровода и т.п.) считается только такой взрыв, когда стенки"]
[null,"резервуара оказываются разорванными так, что давление внутри и снаружи резервуара"]
[null,"моментально выравнивается, кроме случаев, когда взрыв происходит внутри резервуара в силу"]
[null,"химических преобразований."]
[null,"Взрывчатые вещества - химические соединения или смеси веществ, способные к быстрой"]
[null,"химической реакции, сопровождающейся выделением большого количества тепла или газов и"]
[null,"специально предназначенные для проведения взрывов в той или иной форме."]
[null,"10.4.2. При страховании от взрыва не является страховым риском и не влечет возникновения обязательств"]
[null,"Страховщика по выплате страхового возмещения повреждение или утрата:"]
[null,"а) застрахованного имущества в результате взрыва, выполненного в рамках разрешенной"]
[null,"деятельности Страхователя или третьих лиц;"]
[null,"б) машинного оборудования в результате взрыва внутри камеры внутреннего сгорания (цилиндра"]
[null,"двигателя);"]
[null,"в) электрических коммутационных устройств в силу давления газа внутри них;"]
[null,"г) застрахованного имущества в результате взрывов, которые являются обычными составляющими"]
[null,"производственного процесса;"]
[null,"д) застрахованного имущества в результате уменьшения давления внутри сосуда (имплозии);"]
[null,"е) самих застрахованных резервуаров (котлов, трубопроводов и т.п.) в результате их взрыва,"]
[null,"вызванного износом, чрезмерной ржавчиной, накипью, осадками и отложениями на их стенках."]
[null,"ж) застрахованного имущества в результате взрыва, вызванного"]
[null,"- стихийными бедствиями (данный риск может быть застрахован по риску \"Стихийные бедствия\");"]
[null,"- действиями третьих лиц (данный риск может быть застрахован по риску \"Повреждение третьими"]
[null,"лицами\");"]
[null,"- террористическим актом (данный риск может быть застрахован по риску \"Терроризм\");"]
[]
[null,"11. Риск \"Стихийные бедствия\""]
[null,"11.1. По риску \"Стихийные бедствия\" страховым риском является повреждение или утрата"]
[null,"Застрахованного имущества в течение срока страхования на территории страхования в результате"]
[null,"следующих природных явлений:"]
[null,"а) бури (п.11.3);"]
[null,"б) града (п.11.4);"]
[null,"в) наводнения (п.11.5);"]
[null,"г) просадки грунта (п.11.6);"]
[null,"д) землетрясения (п.11.7);"]
[null,"е) оползня (обвала) (п.11.8);"]
[null,"ж) извержения вулкана (п.11.9)."]
[null,"11.2. Особыми условиями Договора страхования может быть предусмотрено страхование от иных"]
[null,"стихийных бедствий (цунами, снежной лавины, обильного снегопада и т.д.). При этом определения,"]
[null,"исключения и иные положения страхования от данных событий определяются в п. «Особые"]
[null,"условия» (п.п. 1.11) договора страхования."]
[]
[null,"11.3. Страхование от бури, предусмотренное пп \"а\" п.11.1, производится с учетом следующих положений:"]
[null,"11.3.1. Под Бурей понимается ветер со средней скоростью более 17,2 м/с (силой 8 баллов и более по"]
[null,"шкале Бофорта). При этом скорость ветра должна быть подтверждена справкой от"]
[null,"государственного органа, осуществляющего надзор за состоянием природной среды."]
[null,"11.3.2. При страховании от бури не является страховым риском и не влечет возникновения обязательств"]
[null,"Страховщика по выплате страхового возмещения повреждение или утрата:"]
[null,"а) застрахованного имущества в результате воздействия на него дождя, града, снега и других осадков,"]
[null,"проникающих сквозь открытые окна или другие проемы (отверстия) в зданиях, если только эти"]
[null,"отверстия не возникли под воздействием бури и (или) града;"]
[null,"б) движимого имущества, расположенного вне зданий, за исключением имущества, закрепленного на"]
[null,"внешней стороне зданий (например, вывескам, люминесцентному оборудованию, жалюзи и"]
[null,"антенному оборудованию)."]
[null,"в) зданий и сооружений, которые построены с нарушением строительных норм и правил, или зданиям,"]
[null,"находящимся в плохом техническом состоянии и (или) требующим капитального ремонта, а также"]
[null,"имуществу, которое находится в таких зданиях;"]
[null,"11.3.3. При страховании от бури возмещению подлежит только ущерб застрахованному имуществу,"]
[null,"вызванный:"]
[null,"- непосредственным механическим действием скоростного напора ветра;"]
[null,"- прямым столкновением с объектами, переносимыми ветром."]
[]
[null,"11.4. Страхование от града, предусмотренное пп \"б\" п.11.1, производится с учетом следующих положений:"]
[null,"11.4.1. Под Градом понимаются атмосферные осадки в виде кусочков льда (градин)."]
[null,"11.4.2. При страховании от града не является страховым риском и не влечет возникновения обязательств"]
[null,"Страховщика по выплате страхового возмещения повреждение или утрата:"]
[null,"а) застрахованного имущества в результате воздействия на него дождя, града, снега и других осадков,"]
[null,"проникающих сквозь открытые окна или другие проемы (отверстия) в зданиях, если только эти"]
[null,"отверстия не возникли под воздействием бури и (или) града;"]
[null,"б) движимого имущества, расположенного вне зданий, за исключением имущества, закрепленного на"]
[null,"внешней стороне зданий (например, вывескам, люминесцентному оборудованию, жалюзи и"]
[null,"антенному оборудованию)."]
[null,"в) зданий и сооружений, которые построены с нарушением строительных норм и правил, или зданиям,"]
[null,"находящимся в плохом техническом состоянии и (или) требующим капитального ремонта, а также"]
[null,"имуществу, которое находится в таких зданиях;"]
[null,"11.4.3. При страховании от града возмещению подлежит только ущерб, вызванный механическим"]
[null,"воздействием на застрахованное имущество кусочков льда (градин)."]
[]
[null,"11.5. Страхование от наводнения, предусмотренное пп \"в\" п.11.1, производится с учетом следующих"]
[null,"положений:"]
[null,"11.5.1. Под Наводнением понимается непредвиденное затопление водой территории страхования в"]
[null,"результате подъёма уровня воды в реке, озере, море или другом естественном или искусственном"]
[null,"водоеме, прорыва плотин, оградительных дамб, цунами, а также в результате сильного дождя,"]
[null,"отнесенного гидрометеорологической службой к категории «опасного природного явления» для"]
[null,"местности нахождения застрахованного имущества."]
[null,"11.5.2. При страховании от наводнения не является страховым риском и не влечет возникновения"]
[null,"обязательств Страховщика по выплате страхового возмещения повреждение или утрата"]
[null,"застрахованного имущества в результате:"]
[null,"а) в результате выхода воды из берегов наземных водоемов, который можно было предвидеть исходя"]
[null,"из местных условий (рельефа местности, климата, сезонных колебаний воды и т.п.), характерных"]
[null,"для территории страхования."]
[null,"Считается, что выход воды из берегов можно было предвидеть, если такое событие происходило в"]
[null,"среднем чаще, чем один раз в десять лет за последние тридцать лет (по состоянию на дату начала"]
[null,"действия договора страхования)."]
[null,"б) появления (действия) плесени (гнили, грибка) из-за влажности;"]
[null,"в) действия грунтовых вод;"]
[null,"г) наводнения, вызванного ненадлежащей работой канализационных или дренажных систем"]
[null,"(вследствие их засорения, ошибок или нарушений допущенных при проектировании или"]
[null,"строительстве таких систем и т.п.). Однако, Страховщик вправе признать наступившие событие"]
[null,"страховым случаем, если в ненадлежащей работе канализационных (дренажных) систем"]
[null,"отсутствуют признаки вины Страхователя (Выгодоприобретателя) или иного лица, в чьем"]
[null,"пользовании, владении или распоряжении находится застрахованное имущество;"]
[null,"д) повреждения или утраты товаров (запасов), которые хранятся в подвальных или иных заглубленных"]
[null,"помещениях на расстоянии менее 20 см от поверхности пола в результате воздействия на них воды"]
[null,"или иных веществ по любой причине."]
[]
[null,"11.6. Страхование от просадки грунта, предусмотренное пп \"г\" п.11.1, производится с учетом следующих"]
[null,"положений:"]
[null,"11.6.1. Под Просадкой грунта понимается естественное оседание грунта над природными"]
[null,"(естественными) полостями (впадинами, трещинами в породе)."]
[null,"11.6.2. При страховании от просадки грунта не является страховым риском и не влечет возникновения"]
[null,"обязательств Страховщика по выплате страхового возмещения повреждение или утрата"]
[null,"застрахованного имущества в результате просадки грунта вследствие:"]
[null,"а) промерзания и оттаивания почвы;"]
[null,"б) динамических воздействий на почву (вибраций);"]
[null,"в) пересыхания почвы или дренирования (осушения) почвы;"]
[null,"г) различного рода строительных работ, в частности, выемки грунта или прокладки подземных"]
[null,"коммуникаций, сноса, капитального ремонта или реконструкции зданий;"]
[null,"д) проведения взрывных работ, разработки и добычи полезных ископаемых;"]
[null,"е) прибрежной или речной эрозии почв;"]
[null,"ж) нормальной просадки новых строений;"]
[null,"з) действия грунтовых вод, а также вод из водопроводных, канализационных и иных искусственных систем;"]
[null,"и) землетрясения, извержения вулкана, наводнения, если страхование от данных рисков не"]
[null,"предусмотрено договором страхования;"]
[null,"Также не является страховым риском повреждение или утрата застрахованного имущества в"]
[null,"результате просадки грунта, возникшей до начала действия договора страхования;"]
[]
[null,"11.7. Страхование от землетрясения, предусмотренное пп \"д\" п.11.1, производится с учетом следующих"]
[null,"положений:"]
[null,"11.7.1. Под Землетрясением понимаются подземные удары и колебания поверхности Земли, вызванные"]
[null,"естественными причинами."]
[null,"Страховым риском при страховании от Землетрясения является повреждение или утрата"]
[null,"застрахованного имущества в результате Землетрясения"]
[null,"- зарегистрированного на территории страхования компетентными сейсмографическими службами, и"]
[null,"- сила которого составила 5 (пять) или более баллов по шкале Рихтера."]
[null,"11.7.2. При страховании от Землетрясения не является страховым риском и не влечет возникновения"]
[null,"обязательств Страховщика по выплате страхового возмещения:"]
[null,"а) повреждение или уничтожение зданий (сооружений) и находящегося в них имущества, при"]
[null,"проектировании, строительстве и эксплуатации которых должным образом не учитывались"]
[null,"сейсмические условия местности, в которой расположены эти здания и сооружения. При требовании"]
[null,"страховой выплаты обязанность доказательства того, что при строительстве были учтены"]
[null,"сейсмические условия местности лежит на Страхователе (лице, в пользу которого заключен договор)."]
[]
[null,"11.8. Страхование от оползня (обвала), предусмотренное пп \"е\" п.11.1, производится с учетом"]
[null,"следующих положений:"]
[null,"11.8.1. Под Оползнем (обвалом) понимается смещение масс горных пород по склону под воздействием"]
[null,"собственного веса и дополнительной нагрузки вследствие подмыва склона, переувлажнения,"]
[null,"сейсмических толчков и иных процессов, отнесенное государственным органом, осуществляющим"]
[null,"наблюдение за состоянием окружающей среды к категории «опасного природного явления»."]
[null,"11.8.2. Под Обвалом понимается отрыв и падение больших масс горных пород на крутых и обрывистых"]
[null,"склонах гор, речных долин и морских побережий, происходящие главным образом за счет"]
[null,"ослабления связности горных пород под влиянием процессов выветривания, деятельности"]
[null,"поверхностных и подземных вод, отнесенные государственным органом, осуществляющим"]
[null,"наблюдение за состоянием окружающей среды к категории «опасного природного явления»"]
[null,"11.8.3. При страховании от оползня (обвала) не является страховым риском и не влечет возникновения"]
[null,"обязательств Страховщика по выплате страхового возмещения повреждение или утрата"]
[null,"застрахованного имущества в результате оползня (обвала) вследствие:"]
[null,"а) проведения различного рода строительных работ, в частности, выемки грунта или прокладки"]
[null,"подземных коммуникаций, сноса, капитального ремонта или реконструкции зданий;"]
[null,"б) проведения взрывных работ, разработки и добычи полезных ископаемых;"]
[null,"в) прибрежной или речной эрозией почв;"]
[null,"г) давления зданий, строений или сооружений на грунт."]
[null,"д) землетрясения, извержения вулкана, наводнения, если страхование от данных рисков не"]
[null,"предусмотрено договором страхования."]
[]
[null,"11.9. Страхование от извержения вулкана, предусмотренное пп \"ж\" п.11.1, производится с учетом"]
[null,"следующих положений:"]
[null,"11.9.1. Под Извержением вулкана понимается выход из кратера вулкана лавы, выброс пепла, горячих"]
[null,"газов и обломков горных пород."]
[null,"11.9.2. При страховании от извержения вулкана возмещению подлежит только ущерб, вызванный"]
[null,"непосредственным воздействием на застрахованное имущество раскаленной лавы, пепла, горячих"]
[null,"газов, обломков горных пород."]
[null,"11.10. Не являются страховыми случаями по риску «стихийные бедствия» и не подлежат возмещению"]
[null,"повреждение (или утрата) застрахованного имущества произошедшие вследствие ветхости"]
[null,"(частичного разрушения, повреждения или утраты несущей способности вследствие длительной"]
[null,"эксплуатации); нарушения строительных норм и правил; ошибок, допущенных при проектировании"]
[null,"и/или строительстве; дефектов строительных материалов или конструкций; недостатков"]
[null,"эксплуатации."]
[]
[null,"12. Риск \"Повреждение водой\""]
[null,"12.1. По риску \"Повреждение водой\" страховым риском является повреждение или утрата"]
[null,"Застрахованного имущества в течение срока страхования на территории страхования в результате"]
[null,"воздействия на него:"]
[null,"а) воды или иной жидкости, внезапно вышедшей из систем водоснабжения, отопления, канализации, а"]
[null,"также воздействия тушащего вещества (воды, порошка и т.п.), внезапно вышедшего из системы"]
[null,"пожаротушения  вследствие::"]
[null,"- разрыва труб или иной поломки указанных выше систем и соединенных с ними аппаратов и"]
[null,"приборов (таких, как краны, вентили, баки, ванны, радиаторы, отопительные котлы и т.п.);"]
[null,"- внезапного несанкционированного (нетребуемого) включения спринклерных, дренчерных или иных"]
[null,"систем пожаротушения;"]
[null,"б) воды, проникшей из помещений, эксплуатируемых третьими лицами. Под третьими лицами в целях"]
[null,"настоящего пункта понимаются лица, иные чем:"]
[null,"- страхователь;"]
[null,"- лицо, в пользу которого заключен договор;"]
[null,"- лицо, в ведении (пользовании, эксплуатации) которого находится застрахованное имущество."]
[null,"12.2. По риску \"Повреждение водой\" не является страховым риском и не влечет возникновения"]
[null,"обязательств Страховщика по выплате страхового возмещения повреждение или утрата"]
[null,"застрахованного имущества в результате:"]
[null,"а) засорения канализации, в результате действий (или бездействия) Страхователя,"]
[null,"Выгодоприобретателя или иных лиц, обладающих правом доступа к застрахованному имуществу;"]
[null,"б) износа или коррозии систем водоснабжения, отопления, канализации или пожаротушения, если"]
[null,"указанные системы находятся в собственности или под управлением Страхователя,"]
[null,"Выгодоприобретателя или иного лица, в чьем ведении (пользовании, эксплуатации) находится"]
[null,"застрахованное имущество. В рамках настоящего пункта система признается находящейся под"]
[null,"управлением лица, если данное лицо в силу договора обязано обеспечивать работоспособность системы;"]
[null,"в) воздействия влажности внутри помещений (плесень, гниль, грибок), независимо от причины"]
[null,"образования влажности;"]
[null,"г) воздействия воды или иных веществ, используемых для мытья, чистки или уборки помещений и"]
[null,"оборудования;"]
[null,"д) воздействия талой или дождевой воды , протечек крыши;"]
[null,"е) тестирования, установки, ремонта и реконструкции спринклерных, дренчерных или иных систем"]
[null,"пожаротушения,"]
[null,"ж) ремонта или реконструкции здания (строения, сооружения);"]
[null,"з) стихийных бедствий (данный риск может быть застрахован по риску \"Стихийные бедствия\");"]
[null,"и) действий третьих лиц (данный риск может быть застрахован по риску \"Повреждение третьими"]
[null,"лицами\"), кроме случаев проникновения воды из соседних помещений, эксплуатируемых третьими"]
[null,"лицами;"]
[null,"к) террористического акта (данный риск может быть застрахован по риску \"Терроризм\");"]
[null,"л) срабатывания спринклерных, дренчерных и иных систем пожаротушения при возникновении пожара"]
[null,"(данный риск может быть застрахован по риску \"Пожар, удар молнии, взрыв\")."]
[null,"м) строительных дефектов или дефектов систем водоснабжения,, отопления, канализации или"]
[null,"пожаротушения, о которых было известно или должно было быть известно Страхователю"]
[null,"(Выгодоприобретателю или иному лицу, в чьем пользовании, владении или распоряжении"]
[null,"находится застрахованное имущество)  до возникновения ущерба;"]
[null,"н) воздействия воды, находящейся в замороженном состоянии (льда, снега);"]
[null,"о) также не является страховым риском повреждение или утрата товаров (запасов), которые хранятся"]
[null,"в подвальных или иных заглубленных помещениях на расстоянии менее 20 см от поверхности пола"]
[null,"в результате воздействия на них воды или иных веществ по любой причине."]
[null,"12.3. При страховании по риску \"Повреждение водой\" не подлежит возмещению ущерб, причиненный"]
[null,"самим вышедшим из строя системам (элементам систем) водоснабжения, отопления, канализации"]
[null,"или пожаротушения."]
[]
[null,"13. Риск \"Постороннее воздействие\""]
[null,"13.1. По риску \"Постороннее воздействие\" страховым риском является повреждение или утрата"]
[null,"Застрахованного имущества в течение срока страхования на территории страхования в результате"]
[null,"следующих внешних случайных внезапных механических воздействий:"]
[null,"а) наезда транспортного средства;"]
[null,"б) падения летательного аппарата и его частей;"]
[null,"в) падения предметов (иных чем летательные аппараты)."]
[null,"13.2. Под Наездом транспортного средства понимается повреждение или утрата застрахованного"]
[null,"имущества в результате"]
[null,"- столкновения с железнодорожным транспортным средством;"]
[null,"- столкновения с автомобильным транспортным средством;"]
[null,"- навала водных транспортных средств или плавающих инженерных сооружений,"]
[null,"- а также в результате столкновения с грузом, перевозимым указанными транспортными средствами."]
[null,"13.3. Под Падением летательного аппарата понимается повреждение или утрата застрахованного"]
[null,"имущества в результате падения на него летательных аппаратов (самолетов, вертолетов,"]
[null,"космических аппаратов и т.п.), их частей, обломков или груза (предметов из них), если эти"]
[null,"летательные аппараты пилотировались людьми или в них находились люди, хотя бы на одном из"]
[null,"этапов полета."]
[null,"13.4. Под Падением предметов понимается повреждение или уничтожение застрахованного имущества"]
[null,"в результате падения на него (столкновения с ним) посторонних предметов, в том числе:"]
[null,"- элементов конструкции здания (сооружения);"]
[null,"- деревьев, веток;"]
[null,"- льда, глыб снега;"]
[null,"- технических объектов (подъемных кранов, антенн и т.п.) и их частей."]
[null,"Под «посторонними» понимаются предметы  не принадлежащие Страхователю"]
[null,"(Выгодоприобретателю) и не находящиеся под управлением или контролем Страхователя,"]
[null,"Выгодоприобретателя, иного владельца застрахованного имущества,  а также их сотрудников"]
[null,"или официальных представителей"]
[null,"13.5. По риску \"Постороннее воздействие\" не является страховым риском и не влечет возникновения"]
[null,"обязательств Страховщика по выплате страхового возмещения повреждение или утрата"]
[null,"застрахованного имущества в результате:"]
[null,"а) наезда транспортного средства (воздействия перевозимого ими груза) Страхователя, его"]
[null,"работников или владельца застрахованного имущества. Если Страхователем"]
[null,"(Выгодоприобретателем или иным владельцем застрахованного имущества) является физическое"]
[null,"лицо, то положения настоящего пункта также распространяются и на его родственников;"]
[null,"б) столкновения или иного воздействия транспортных средств во время нахождения застрахованного"]
[null,"имущества в них, в т.ч. во время перевозки, а также в процессе проведения погрузочно-"]
[null,"разгрузочных работ;"]
[null,"в) выполнения работ Страхователем (Выгодоприобретателем, иным владельцем застрахованного"]
[null,"имущества) или иными лицами в интересах Страхователя (Выгодоприобретателя, иного владельца"]
[null,"застрахованного имущества), включая работы по уборке (расчистке), ремонту, монтажу и т.д.;"]
[null,"г) взрыва (данный риск может быть застрахован по риску \"Пожар, удар молнии, взрыв\")"]
[null,"д) стихийных бедствий (данный риск может быть застрахован по риску \"Стихийные бедствия\");"]
[null,"е) террористического акта (данный риск может быть застрахован по риску \"Терроризм\");"]
[null,"ж) хищения или попытки хищения (данный риск может быть застрахован по риску \"Хищение\");"]
[null,"з) действий третьих лиц иных, чем неосторожные действия (бездействие), вызвавших падение"]
[null,"предметов и наезд транспортных средств (данный риск может быть застрахован по риску"]
[null,"\"Повреждение третьими лицами\");"]
[null,"и) боя стекол (данный риск может быть застрахован по риску «Бой стекол»)."]
[]
[null,"14. Риск \"Бой стекла\""]
[null,"14.1. По риску \"Бой стекла\" страховым риском является повреждение или утрата в течение срока"]
[null,"страхования на территории страхования указанных в договоре элементов (изделий) из стекла"]
[null,"(оконных стекол, зеркал, витрин и т.д.), вставленных в рамы или смонтированных в местах"]
[null,"крепления иным способом, в результате их случайного разбития (боя) по любой причине, кроме"]
[null,"случаев, указанных в п.3.2 и п.14.2."]
[null,"Не является боем (разбитием) повреждение поверхности (в т.ч. царапины) элемента, когда трещина"]
[null,"проходит не по всей толщине элемента."]
[null,"По особому соглашению сторон по риску \"Бой стекла\" также могут быть застрахованы отдельные"]
[null,"предметы (объекты, элементы здания), изготовленные из хрупких материалов иных, чем стекло."]
[null,"14.2. По риску \"Бой стекла\" не является страховым риском и не влечет возникновения обязательств"]
[null,"Страховщика по выплате страхового возмещения повреждение или утрата застрахованных"]
[null,"элементов в результате:"]
[null,"а) удаления или демонтажа застрахованных элементов из стекла из оконных или дверных рам или"]
[null,"иных мест их постоянного крепления;"]
[null,"б) случайной или преднамеренной окраски застрахованных элементов из стекла;"]
[null,"в) нормальной просадки новых зданий;"]
[null,"г) оттаивания или отмораживания застрахованных стекол с помощью нагревательных приборов"]
[null,"(паяльных ламп, горелок,  кварцевых ламп, и т. п.), а также горячей водой,"]
[null,"д) нагревания застрахованных стекол  от отопительных приборов, плит или рекламных установок,"]
[null,"расположенных  на расстоянии менее 30 см от этих стекол;"]
[null,"е) террористического акта (данный риск может быть застрахован по риску \"Терроризм\");"]
[null,"ж) проведения строительно-монтажных или ремонтных работ;"]
[null,"з) саморазрушения стекла из-за низкого качества и скрытых внутренних производственных дефектов"]
[null,"как самого стекла, так и мест его установки (оконной рамы, оконного проема, здания, в котором"]
[null,"установлено окно и т.п.)."]
[]
[null,"15. Риск \"Хищение\""]
[null,"15.1. По риску \"Хищение\" страховым риском является повреждение или утрата застрахованного"]
[null,"имущества в течение срока страхования на территории страхования в результате:"]
[null,"а) кражи с незаконным проникновением;"]
[null,"б) грабежа или разбоя в пределах территории страхования,"]
[null,"в) совершения попытки указанных действий."]
[null,"Указанные события являются страховым риском только в случае, когда по факту их совершения"]
[null,"правоохранительными органами возбуждены уголовные дела, за исключением случаев отказа в"]
[null,"возбуждении уголовного дела в связи со смертью подозреваемого или обвиняемого согласно пп.4"]
[null,"п.1 ст.24 УПК РФ."]
[null,"15.2. Для целей Договора страхования используются следующие определения (толкование)"]
[null,"используемых терминов:"]
[null,"15.2.1. Кража с незаконным проникновением в смысле Договора страхования имеет место, если"]
[null,"злоумышленник:"]
[null,"а) Проникает в застрахованные помещения, взламывая двери или окна, применяя отмычки или"]
[null,"поддельные ключи, или иные технические средства. Поддельными считаются ключи, изготовленные"]
[null,"по поручению или с ведома лиц, не имеющих права распоряжаться подлинными ключами. Факт"]
[null,"использования поддельных ключей или отмычек должен быть подтвержден выводами"]
[null,"соответствующей криминалистической экспертизы."]
[null,"б) Взламывает в пределах застрахованных помещений предметы, используемые в качестве хранилищ"]
[null,"имущества, или вскрывает их с помощью отмычек, поддельных ключей или иных инструментов. В"]
[null,"помещениях, которые используются в служебных или хозяйственных целях помимо Страхователя"]
[null,"(лица, в пользу которого заключен договор) и работающих у него лиц также третьими лицами,"]
[null,"страховая защита по таким случаям предоставляется только в том случае, если это особо"]
[null,"оговаривается в договоре страхования;"]
[null,"в) Изымает предметы из закрытых помещений, куда он ранее проник обычным путем, в которых тайно"]
[null,"продолжал оставаться до их закрытия и использовал средства, указанные в пп.\"а\" при выходе из"]
[null,"помещения, если эти обстоятельства установлены правоохранительными органами;"]
[null,"г) При совершении обычной кражи оказывается обнаруженным и использует средства, упомянутые в"]
[null,"пп. \"а\" и \"б\" для того, чтобы овладеть украденным имуществом."]
[null,"15.2.2. Грабеж или Разбой в смысле Договора страхования имеет место, если:"]
[null,"а) К Страхователю (лицу, в пользу которого заключен договор) или лицам, работающим у него,"]
[null,"применяется насилие для подавления их сопротивления с целью изъятия застрахованного имущества;"]
[null,"б) Страхователь (лицо, в пользу которого заключен договор) или работающие у него лица под угрозой"]
[null,"их здоровью или жизни передают или допускают передачу застрахованного имущества в пределах"]
[null,"территории страхования; если территорией страхования являются несколько застрахованных"]
[null,"зданий или объектов, грабежом считается изъятие имущества в пределах того застрахованного"]
[null,"здания, в котором возникла угроза здоровью или жизни Страхователя (лица, в пользу которого"]
[null,"заключен договор) или работающих у него лиц;"]
[null,"в) Застрахованное имущество изымается у Страхователя (лица, в пользу которого заключен договор)"]
[null,"или работающих у него лиц в период нахождения этих лиц в беспомощном состоянии, если такое их"]
[null,"состояние не явилось следствием их умышленных действий и не позволяет им оказать"]
[null,"сопротивление такому изъятию;"]
[null,"г) К лицам, работающим у Страхователя (лица, в пользу которого заключен договор), приравниваются"]
[null,"члены семьи последнего, которым временно была поручена забота о застрахованном имуществе."]
[null,"15.3. По риску \"Хищение\" не является страховым риском и не влечет возникновения обязательств"]
[null,"Страховщика по выплате страхового возмещения повреждение или утрата застрахованного"]
[null,"имущества в результате:"]
[null,"а) действий лиц, проживающих совместно со Страхователем (лицом, в пользу которого заключен"]
[null,"договор), и ведущих с ним совместное хозяйство, которые имеют признаки кражи с незаконным"]
[null,"проникновением, грабежа или разбоя;"]
[null,"б) действий лиц, работающих у Страхователя (лица, в пользу которого заключен договор или"]
[null,"иного лица, в чьем пользовании, владении или распоряжении находится застрахованное"]
[null,"имущество), за исключением случаев, когда осуществление и подготовка кражи с незаконным"]
[null,"проникновением, грабеж или разбой проводились в то время, когда доступ в застрахованные"]
[null,"помещения для этих лиц был закрыт;"]
[null,"в) повреждения водой из водопроводных или иных инженерных систем, поврежденных при"]
[null,"совершении (при попытке совершения) кражи с незаконным проникновением, грабежа или разбоя;"]
[null,"г) также не является страховым риском повреждение или утрата содержимого внешних (оконных)"]
[null,"витрин в результате кражи со взломом без проникновения злоумышленника внутрь здания."]
[]
[null,"16. Риск \"Повреждение третьими лицами\""]
[null,"16.1. По риску \"Повреждение третьими лицами\" страховым риском является повреждение или утрата"]
[null,"Застрахованного имущества в течение срока страхования на территории страхования в результате"]
[null,"действий третьих лиц, которые квалифицируются в соответствии с УК РФ или КоАП РФ как:"]
[null,"а) умышленное уничтожение или повреждение имущества (ст. 167 УК РФ или ст. 7.17 КоАП РФ);"]
[null,"б) хулиганство (ст. 213 УК РФ или ст. 20.1 КоАП РФ);"]
[null,"в) вандализм (ст. 214 УК РФ)."]
[null,"16.2. По риску \"Повреждение третьими лицами\" не является страховым риском и не влечет"]
[null,"возникновения обязательств Страховщика по выплате страхового возмещения повреждение или"]
[null,"утрата застрахованного имущества в результате:"]
[null,"а) наезда транспортных средств (данный риск может быть застрахован по риску \"Постороннее"]
[null,"воздействие\");"]
[null,"б) хищения или попытки хищения (данный риск может быть застрахован по риску \"Хищение\")."]
[]
[null,"17. Риск \"Терроризм\""]
[null,"17.1. По риску \"Терроризм\" страховым риском является повреждение или утрата Застрахованного"]
[null,"имущества в течение срока страхования на территории страхования в результате действий третьих"]
[null,"лиц, квалифицируемых в соответствие с УК РФ как терроризм (ст.205 УК РФ)."]
[]
[null,"Раздел III. Страховая выплата"]
[]
[null,"18. Обязанности страхователя (лица, в пользу которого заключен договор)"]
[null,"при наступлении события, имеющего признаки страхового случая"]
[null,"18.1. При наступлении события, имеющего признаки страхового случая (далее - события), Страхователь"]
[null,"(лицо, в пользу которого заключен договор) немедленно в течение одного рабочего дня, как только"]
[null,"ему станет об этом известно, обязан:"]
[null,"а) принять разумные и доступные в сложившихся обстоятельствах меры для спасания имущества,"]
[null,"уменьшения ущерба и предотвращения его дальнейшего увеличения;"]
[null,"б) сообщить о событии в соответствующие государственные органы в соответствии их компетенции, в"]
[null,"частности, сообщить при наступлении:"]
[null,"- пожара - в государственную противопожарную службу;"]
[null,"- хищения, повреждения третьими лицами, террористического акта - в органы внутренних дел;"]
[null,"- наезда автотранспортных средств - в государственные органы, отвечающие за безопасность"]
[null,"дорожного движения;"]
[null,"в) сообщить о событии Страховщику по телефону (факсу), указанному в договоре страхования, и"]
[null,"следовать указаниям Страховщика, если такие указания будут даны;"]
[null,"г) обеспечить документирование обстоятельств наступления события, в частности:"]
[null,"- записать свидетелей,"]
[null,"- при наличии возможности произвести фото- и(или) видеосъемку места события,"]
[null,"- составить акт о наступлении события и(или) о повреждении или утрате имущества с участием"]
[null,"представителей коммунальных служб, свидетелей, а также лиц, предположительно ответственных"]
[null,"за причинение ущерба;"]
[null,"- сохранять неизменными все записи и документы, относящиеся к событию;"]
[null,"д) сохранить место события и поврежденные объекты в том виде, в каком они находились"]
[null,"непосредственно после события до их осмотра Страховщиком (его уполномоченным"]
[null,"представителем), если это не препятствует проведению мероприятий по уменьшению ущерба и не"]
[null,"создает угрозу причинения вреда жизни и здоровью людей или имуществу;"]
[null,"18.2. По требованию Страховщика, которому стало известно о наступлении события, имеющего признаки"]
[null,"страхового случая, Страхователь обязан предоставить ему или его уполномоченному"]
[null,"представителю возможность:"]
[null,"- принять участие в организации мер по спасанию имущества и уменьшению ущерба,"]
[null,"- произвести осмотр места события и поврежденного имущества;"]
[null,"- принять участие в документировании и исследовании обстоятельств события;"]
[null,"- произвести оценку ущерба."]
[null,"Страховщик (его уполномоченные представители) имеют право участвовать в спасании и"]
[null,"сохранении застрахованного имущества, принимая и указывая необходимые для этого меры,"]
[null,"однако, эти действия Страховщика (его представителей) не могут рассматриваться как признание"]
[null,"Страховщиком обязанности произвести страховую выплату. Если Страхователь препятствует"]
[null,"этому, страховое возмещение сокращается в той мере, в которой это привело к увеличению ущерба."]
[null,"Страховщик (его уполномоченный представитель) имеет право приступить к осмотру места события"]
[null,"и поврежденного имущества, не дожидаясь извещения Страхователя о страховом случае."]
[null,"Страхователь не вправе препятствовать ему в этом."]
[null,"18.3. Не позднее 3 (трех) рабочих дней с момента, когда Страхователь узнал или должен был узнать о"]
[null,"наступлении события, имеющего признаки страхового случая, Страхователь обязан направить"]
[null,"Страховщику письменное уведомление о событии с указанием известной ему информации о"]
[null,"времени, месте, причинах и обстоятельствах события, а также о его последствиях."]
[null,"18.4. Если застрахованное имущество на момент события, имеющего признаки страхового случая,"]
[null,"находится в пользовании (ведении) лица иного, чем Страхователь, Страхователь обязан"]
[null,"обеспечить выполнение данным лицом обязанностей предусмотренных в п.п.18.1 -18.2."]
[null,"18.5. Обязанности Страхователя, предусмотренные п.п.18.1 - 18.4, могут быть выполнены лицом, в"]
[null,"пользу которого заключен договор (Выгодоприобретателем)."]
[null,"18.6. В случае неисполнения (несвоевременного исполнения) Страхователем (либо по его поручению –"]
[null,"другими лицами) обязанностей, предусмотренных п.п.18.1 - 18.4, Страховщик имеет право отказать"]
[null,"в страховой выплате."]
[]
[null,"19. Порядок обращения за страховой выплатой"]
[null,"19.1. При требовании страховой выплаты в связи со страховым случаем лицо, в пользу которого"]
[null,"заключен договор, обязано подать Страховщику заявление о страховой выплате и предоставить ему:"]
[null,"а) документы, подтверждающие имущественный интерес в застрахованном имуществе, согласно п.19.2;"]
[null,"б) документы, подтверждающие факт наступления и обстоятельства страхового случая, согласно п.19.3;"]
[null,"в) документы, подтверждающие размер причиненного ущерба, согласно п.19.4;"]
[null,"г) документы, необходимые для осуществления Страховщиком перешедшего к нему права"]
[null,"суброгации, согласно п.19.5."]
[null,"19.2. Документами, подтверждающими имущественный интерес лица в застрахованном имуществе,"]
[null,"являются документы, подтверждающие его право владения, пользования распоряжения данным"]
[null,"имуществом."]
[null,"К данным документам, в частности, относятся:"]
[null,"а) свидетельство о государственной регистрации прав собственности;"]
[null,"б) выписка из государственного реестра;"]
[null,"в) договоры (документы) на строительство, иные документы о создании и (или) приобретении;"]
[null,"г) разрешения на создание и (или) строительство."]
[null,"Заявление о страховой выплате от лица, которое не предоставило документы, подтверждающие его"]
[null,"имущественный интерес в застрахованном имуществе, не рассматривается."]
[null,"19.3. Перечень документов, необходимых для подтверждения факта наступления и обстоятельств"]
[null,"страхового случая, определяется в зависимости от вида события, условий договора страхования, а"]
[null,"также требований закона."]
[null,"19.3.1. Документы, подтверждающие факт наступления и обстоятельства страхового случая, должны"]
[null,"содержать следующие сведения:"]
[null,"- время и место события, в результате которого причинен ущерб;"]
[null,"- вид события, его причины и обстоятельства (характеристики), позволяющие установить, что данное"]
[null,"событие соответствует определению страхового риска, на случай наступления которого был"]
[null,"заключен договор страхования;"]
[null,"- установленное или предполагаемое лицо, ответственное за причинение вреда (если"]
[null,"ответственность за причинение вреда может быть возложена на какое-либо лицо);"]
[null,"- нормы безопасности, пункты правил, положения нормативных документов, которые были нарушены"]
[null,"(если наступление события связано с нарушением указанных положений)."]
[null,"19.3.2. Документами, подтверждающими факт наступления и обстоятельства страхового случая, в"]
[null,"частности, являются следующие документы, при условии, что они содержат указанную выше информацию:"]
[null,"а) в случае пожара:"]
[null,"- постановление о возбуждении, о приостановлении или о прекращении дела, либо постановление об"]
[null,"отказе в возбуждении уголовного дела по факту пожара;"]
[null,"- заключение компетентных органов по факту пожара;"]
[null,"б) в случае взрыва:"]
[null,"- акт или справка из органов технического надзора или других государственных служб,"]
[null,"осуществляющих надзор за условиями эксплуатации силовых агрегатов (газопроводных сетей,"]
[null,"сосудов под давлением и пр.) с указанием технических дефектов, нарушений норм эксплуатации и"]
[null,"виновных лиц;"]
[null,"- справка жилищно-эксплуатационного управления (или иной подобной организации), если"]
[null,"повреждение имущества произошло в здании, которое обслуживается данной организацией;"]
[null,"в) в случае стихийных бедствий, удара молнии, действия природных сил и явлений:"]
[null,"- справка из метеорологической службы с описанием природного явления, явившегося причиной"]
[null,"повреждения или утраты застрахованного имущества;"]
[null,"- справка компетентных органов, содержащая перечень повреждений с указанием причин"]
[null,"(обстоятельств) их возникновения;"]
[null,"г) в случае повреждения водой (жидкостью) из водопроводных, канализационных, спринклерных или"]
[null,"иных инженерных систем:"]
[null,"- акт специализированных служб, эксплуатирующих водопроводные или иных указанных инженерных"]
[null,"систем с описанием причины выхода из строя данных систем и предполагаемого лица,"]
[null,"ответственного за это;"]
[null,"- справка жилищно-эксплуатационного управления (или иной подобной организации), если"]
[null,"повреждение имущества произошло в здании, которое обслуживается данной организацией;"]
[null,"д) в случае хищения или повреждения третьими лицами:"]
[null,"- копия заявления Страхователя (лица, в пользу которого заключен договор) о случившемся в органы"]
[null,"внутренних дел с требованием проведения расследования или возбуждения уголовного дела;"]
[null,"- копию постановления органов внутренних дел о возбуждении или об отказе в возбуждении"]
[null,"уголовного дела;"]
[null,"- копия договора с охранным предприятием или вневедомственной охраной на осуществление"]
[null,"охраны помещений и имущества, если такая охрана осуществляется силами сторонней организации;"]
[null,"- копии служебных документов охранного предприятия о действиях охраны во время совершения"]
[null,"кражи со взломом, грабежа, разбоя или действий третьих лиц, либо подобные документы"]
[null,"сотрудников службы охраны Страхователя."]
[null,"е) в случае наезда транспортного средства"]
[null,"- копия протокола, постановления, определения по факту дорожно-транспортного происшествия;"]
[null,"- справка установленной формы из компетентных органов, производящих следствие (дознание) по"]
[null,"факту наезда;"]
[null,"- копии имеющихся у Страхователя документов (писем, уведомлений, извещений, договоров"]
[null,"страхования гражданской ответственности владельцев транспортных средств) от лица, чье"]
[null,"транспортное средство участвовало в происшествии."]
[null,"19.3.3. Во всех случаях, когда обстоятельства повреждения или утраты имущества подлежат в"]
[null,"соответствии с действующим законодательством рассмотрению компетентными органами (МВД,"]
[null,"Следственный комитет, Прокуратура, органы технического надзора и т.д.), Страхователь (лицо, в"]
[null,"пользу которого заключен договор) обязан предоставить копии процессуальных документов,"]
[null,"составленных данными органами."]
[null,"19.3.4. В любом случае Страхователь (лицо, в пользу которого заключен договор), обязан предоставить"]
[null,"Страховщику копии внутренних служебных документов (акты, протоколы, объяснительные и"]
[null,"служебные записки и т.п.), составленных в связи с произошедшим событием и его последствиями."]
[null,"19.3.5. Если охрана и (или) наблюдение на объекте, где расположено застрахованное имущество,"]
[null,"осуществляется с использованием технических охранных систем, сигнализаций, систем"]
[null,"автоматического оповещения, систем видеонаблюдения, то при требовании страховой выплаты"]
[null,"Страхователь (лицо, в пользу которого заключен договор) независимо от вида события обязан"]
[null,"предоставить Страховщику:"]
[null,"- договоры на приобретение, установку и обслуживание указанных систем;"]
[null,"- видеозаписи камер наблюдения (следящих устройств, видеорегистраторов);"]
[null,"- документы с данными о срабатывании систем сигнализации;"]
[null,"- документы, подтверждающие получение сигнала тревоги на пульте охранного предприятия или"]
[null,"вневедомственной охраны либо пульте охраны Страхователя (лица, в пользу которого заключен"]
[null,"договор) и выезд группы задержания."]
[null,"19.4. Перечень документов, необходимых для подтверждения размера причиненного ущерба,"]
[null,"определяется в зависимости от вида имущества, характера повреждений, размера ущерба, условий"]
[null,"договора страхования и требований закона."]
[null,"Документами, подтверждающими размер ущерба, в частности, являются:"]
[null,"- перечень поврежденного и/или утраченного имущества;"]
[null,"- документы, подтверждающие стоимость поврежденного и (или) утраченного имущества на момент"]
[null,"времени, непосредственно предшествующий наступлению страхового случая;"]
[null,"- акты инвентаризации имущества (инвентаризационные описи), составленные на дату, ближайшую к"]
[null,"дате наступления страхового случая, а также акты инвентаризации, составленные по факту"]
[null,"повреждения (уничтожения) имущества;"]
[null,"- документы учета движения (поступления и отгрузки) товарных запасов, готовой продукции (сырья,"]
[null,"материалов, товаров для реализации, полуфабрикатов),"]
[null,"- расходные и приходные накладные, кассовые чеки;"]
[null,"- сметы (калькуляции) на проведение ремонтных (восстановительных) работ."]
[null,"19.5. Документами, необходимыми для осуществления Страховщиком перешедшего к нему права"]
[null,"суброгации, в частности, являются:"]
[null,"- акты, соглашения, договоры, подписанные в связи с причинением вреда;"]
[null,"- претензии и иски, направленные Страхователем (владельцем застрахованного имущества) лицу,"]
[null,"ответственному за причинение вреда, и ответы на них;"]
[null,"- иная переписка с лицом, ответственным за причинение вреда;"]
[null,"19.6. Признание представленных Страхователем (лицом, в пользу которого заключен договор)"]
[null,"документов достаточными для принятия решения о страховой выплате осуществляется Страховщиком."]
[null,"Страховщик имеет право требовать от Страхователя (лица, в пользу которого заключен договор)"]
[null,"предоставления иных документов, кроме указанных в п.п. 19.2 - 19.5, если представленные"]
[null,"документы не позволяют однозначно судить о факте наступления страхового случая и размере"]
[null,"причиненного ущерба."]
[null,"19.7. Заявление о страховой выплате должно быть подписано уполномоченным представителем"]
[null,"Страхователя (лица, в пользу которого заключен договор) и заверено печатью организации. К"]
[null,"заявлению должен быть приложен документ, подтверждающий полномочия данного представителя."]
[null,"19.8. Копии документов, предоставляемых Страхователем (лицом, в пользу которого заключен договор)"]
[null,"при подаче заявления о страховой выплате должны быть заверены уполномоченным"]
[null,"представителем и печатью организации."]
[]
[null,"20. Порядок принятия решения о страховой выплате"]
[null,"20.1. Страховщик принимает решение о страховой выплате или об отказе в страховой выплате в течение"]
[null,"10 (десяти) банковских дней с момента получения Страховщиком всех необходимых документов от"]
[null,"Страхователя (лица, в пользу которого заключен договор)."]
[null,"20.2. Страховщик имеет право продлить срок принятия решения о страховой выплате (или об отказе в"]
[null,"страховой выплате) в случае, если:"]
[null,"а) для определения факта, причин, обстоятельств события и размера ущерба производилась"]
[null,"независимая экспертиза;"]
[null,"при этом процесс принятия решения приостанавливается до момента получения Страховщиком"]
[null,"результатов экспертизы;"]
[null,"б) имеются обоснованные сомнения в правомочиях Страхователя (лица, в пользу которого заключен"]
[null,"договор) на получение страховой выплаты;"]
[null,"при этом процесс принятия решения приостанавливается до момента получения Страховщиком"]
[null,"необходимых доказательств от Страхователя (лица, в пользу которого заключен договор);"]
[null,"в) компетентными органами возбуждено уголовное дело по факту события, имеющего признаки"]
[null,"страхового случая;"]
[null,"при этом процесс принятия решения приостанавливается до момента получения Страховщиком"]
[null,"копий процессуальных документов, подтверждающих приостановление или прекращение дела,"]
[null,"либо о передаче дела в суд;"]
[null,"г) поврежденное (утраченное) имущество является предметом залога (лизинга) и для принятия"]
[null,"решения о страховой выплате Страхователю требуется согласование с залогодержателем"]
[null,"(лизингодателем);"]
[null,"при этом процесс принятия решения приостанавливается до момента получения Страховщиком"]
[null,"данного согласования от залогодержателя (лизингодателя)."]
[null,"При возникновении (обнаружении) обстоятельств, указанных в п.п. \"а\" - \"г\", отсчет срока принятия"]
[null,"решения о страховой выплате приостанавливается до момента получения Страховщиком"]
[null,"указанных в данных подпунктах документов."]
[null,"После получения указанных документов отсчет срока принятия решения возобновляется."]
[null,"20.3. Для принятия решения о страховой выплате Страховщик имеет право самостоятельно запрашивать"]
[null,"документы и сведения в следственных, судебных и иных органах (организациях). Если для"]
[null,"получения информации из указанных органов (организаций) Страховщику требуется разрешение"]
[null,"(доверенность) Страхователя (лица, в пользу которого заключен договор), данное лицо обязано"]
[null,"предоставить такое разрешение (доверенность)."]
[null,"Страховщик имеет право продлить срок принятия решения о страховой выплате на период"]
[null,"времени, необходимый для получения такого разрешения и для получения ответа на запрос."]
[null,"20.4. Решение Страховщика о страховой выплате оформляется страховым актом по форме и в порядке,"]
[null,"установленном Страховщиком."]
[null,"Страховая выплата в размере до 5 (пяти) миллионов рублей включительно производится в течение"]
[null,"5 (пяти) банковских дней с момента принятия решения."]
[null,"Страховая выплата в размере свыше 5 (пяти) миллионов рублей производится в течение 15"]
[null,"(пятнадцати) банковских дней с момента принятия решения."]
[null,"20.5. Решение Страховщика об отказе в страховой выплате оформляется путем составления"]
[null,"письменного отказа. Отказ направляется Страхователю (лицу, в пользу которого заключен договор)"]
[null,"по почте либо иным согласованным сторонами способом в течение 5 (пяти) банковских дней с"]
[null,"момента его утверждения руководителем (уполномоченным сотрудником) Страховщика."]
[]
[null,"21. Порядок расчета ущерба от страхового случая"]
[null,"21.1. Для целей страхования по настоящему Договору ущерб, причиненный в результате страхового"]
[null,"случая, включает:"]
[null,"а) ущерб застрахованному имуществу, определенный в соответствии с п.21.2, и"]
[null,"б) дополнительные расходы, особо предусмотренные договором страхования, определенные в"]
[null,"соответствии с п.21.3."]
[null,"Любые иные убытки (ущерб, расходы), не предусмотренные п.п.21.2 - 21.3, в том числе упущенная"]
[null,"выгода, возмещению не подлежат."]
[null,"21.2. Ущерб застрахованному имуществу рассчитывается с учетом следующих положений:"]
[null,"21.2.1. При повреждении застрахованного имущества ущерб рассчитывается как расходы по его"]
[null,"восстановлению до состояния, в котором оно находилось непосредственно перед наступлением"]
[null,"страхового случая (восстановительные расходы), кроме случаев, предусмотренных п.21.2.4."]
[null,"21.2.2. В состав восстановительных расходов включаются:"]
[null,"а) расходы на покупку запасных частей и материалов, необходимых для выполнения ремонта; при"]
[null,"этом расходы на покупку запасных частей и материалов уменьшаются на величину износа"]
[null,"поврежденного имущества на момент наступления страхового случая, если иное не предусмотрено"]
[null,"договором;"]
[null,"б) расходы по доставке запасных частей и материалов к месту ремонта;"]
[null,"в) расходы на оплату работ по проведению ремонта."]
[null,"21.2.3. При расчете суммы расходов на восстановление или ремонт поврежденного имущества"]
[null,"(восстановительных расходов) применяются следующие правила:"]
[null,"- для восстановления (ремонта) поврежденного имущества должны применяться материалы и"]
[null,"запасные части, аналогичные использованным в поврежденном имуществе по виду и качеству, или"]
[null,"иные материалы и запасные части, аналогичные им по цене;"]
[null,"- расходы на материалы, использованные для проведения ремонта зданий или сооружений,"]
[null,"возмещаются за вычетом стоимости материалов, оставшихся после разборки поврежденного"]
[null,"конструктивного элемента здания (сооружения), пригодных для дальнейшего использования"]
[null,"(годных остатков);"]
[null,"- расходы на оплату работ по проведению ремонта возмещаются по средним расценкам на"]
[null,"аналогичные работы, действующим в месте проведения ремонта на момент страхового случая, а в"]
[null,"случае проведения ремонта силами Страхователя - по себестоимости ремонта или по средним"]
[null,"расценкам на аналогичные работы, действующим в месте проведения ремонта на момент"]
[null,"страхового случая, в зависимости от того, какая из этих сумм окажется меньше;"]
[null,"- в расчет включаются расходы на производство только тех работ, которые необходимы для"]
[null,"устранения последствий страхового случая. Дополнительные затраты, вызванные срочностью"]
[null,"проведения работ, усовершенствованием или изменением планировки (конструкции)"]
[null,"застрахованного имущества, производством плановых ремонтов, не возмещаются;"]
[null,"- расходы на предварительный ремонт поврежденного имущества возмещаются только в случае,"]
[null,"если предварительный ремонт является частью окончательного ремонта, и если в связи с"]
[null,"предварительным ремонтом не будут превышены общие расходы на ремонт, если бы"]
[null,"предварительный ремонт не производился;"]
[null,"- если для ремонта поврежденных в результате страхового случая конструктивных элементов здания"]
[null,"или сооружения необходимо произвести разборку и последующую сборку неповрежденных"]
[null,"конструктивных элементов (например: перекрытия, крыши и т.п.), затраты на проведение этих работ"]
[null,"включаются в сумму расходов на ремонт;"]
[null,"- если для сохранения отдельных конструктивных элементов здания или сооружения необходимо"]
[null,"произвести их временное укрепление (устройство подпорок, стяжек и т.п.), затраты на проведение"]
[null,"этих работ и стоимость материалов для их производства, включаются в сумму расходов на ремонт;"]
[null,"- дополнительные расходы, связанные с оплатой сверхурочных работ, экспресс-доставкой"]
[null,"материалов, запасных частей или машин, перевозку воздушным транспортом, не возмещаются."]
[null,"21.2.4. Если восстановительные расходы для отдельного объекта, рассчитанные в соответствии с"]
[null,"положениями п.п.21.2.2 - 21.2.3, превышают его действительную стоимость на момент страхового"]
[null,"случая, то восстановление такого объекта для целей страхования признается экономически"]
[null,"нецелесообразным."]
[null,"В случае экономической нецелесообразности восстановления ущерб, подлежащий"]
[null,"возмещению по договору страхования, рассчитывается как разность между действительной"]
[null,"стоимостью имущества, рассчитанной на момент наступления страхового случая, и стоимостью"]
[null,"остатков, которые могут быть проданы или использованы по функциональному назначению (годных остатков)."]
[null,"Страхователь (лицо, в пользу которого заключен договор) не вправе отказываться от таких остатков."]
[null,"21.2.5. При расчете ущерба для целей страхования стоимость спасенного имущества (годных остатков)"]
[null,"определяется на основе продажной цены таких остатков в данной местности."]
[null,"21.2.6. При утрате (исчезновении, пропаже) застрахованного имущества ущерб соответствует страховой"]
[null,"стоимости данного имущества на момент заключения договора страхования, уменьшенной на"]
[null,"величину износа за период с момента заключения договора до страхового случая."]
[null,"21.2.7. В Особых условиях к Договору страхования может быть установлен порядок расчета износа"]
[null,"застрахованного имущества (отдельных видов или единиц имущества), который будет применяться"]
[null,"при расчете ущерба для целей страхования."]
[null,"Если страховые суммы устанавливались в соответствии с остаточной балансовой стоимостью, то"]
[null,"уровень износа имущественной единицы принимается равным накопленному уровню амортизации"]
[null,"по данным бухгалтерского учета."]
[null,"21.2.8. Ущерб, подлежащий возмещению по договору страхования, не может превышать размера"]
[null,"реального ущерба, причиненного имущественным интересам Страхователя (Выгодоприобретателя)"]
[null,"в связи с повреждением или утратой предмета застрахованного имущества, а также рыночной"]
[null,"стоимости такого предмета непосредственно перед наступлением страхового случая."]
[null,"21.3. Дополнительные расходы, предусмотренные Договором страхования, рассчитываются с учетом"]
[null,"следующих положений:"]
[null,"21.3.1. При наступлении страхового случая в дополнение к возмещению ущерба застрахованному"]
[null,"имуществу Страховщик также компенсирует разумные и целесообразные расходы, произведенные"]
[null,"Страхователем (лицом, в пользу которого заключен договор) в целях уменьшения убытков,"]
[null,"подлежащих возмещению по договору страхования (расходы по спасанию), если такие расходы"]
[null,"были необходимы или были произведены по указанию Страховщика."]
[null,"Расходы по спасанию имущества, если они соразмерны стоимости спасаемого имущества,"]
[null,"возмещаются Страховщиком, даже если данные расходы не дали эффективных положительных"]
[null,"результатов."]
[null,"21.3.2. Страховщик также возмещает следующие фактически произведенные и документально"]
[null,"подтвержденные расходы, понесенные Страхователем (лицом, в пользу которого заключен договор)"]
[null,"в результате наступления страхового случая:"]
[null,"а) расходы на расчистку места убытка (места возникновения страхового случая), включая демонтаж"]
[null,"оставшихся частей застрахованного имущества, вывоз мусора, образовавшегося в результате"]
[null,"наступления страхового случая, и других остатков на ближайшую свалку и их захоронение,"]
[null,"уничтожение или сжигание (расходы на расчистку и слом)."]
[null,"Если в результате события, признанного страховым случаем, также было повреждено"]
[null,"незастрахованное имущество, возмещаются лишь те расходы на расчистку, которые относятся к"]
[null,"застрахованному имуществу;"]
[null,"б) расходы, понесенные вследствие того, что в процессе восстановления застрахованного имущества"]
[null,"до состояния, в котором оно находилось непосредственно перед моментом наступления страхового"]
[null,"случая, или для приобретения нового имущества, другое имущество должно быть передвинуто,"]
[null,"изменено или защищено (расходы на перемещение и защиту)."]
[null,"В частности, под расходами на перемещение и защиту понимаются расходы на демонтаж и"]
[null,"повторный монтаж машинного оборудования, дробление, разрушение или восстановление"]
[null,"элементов здания или расширение проходов;"]
[null,"21.3.3. Страховщик при наступлении страхового случая по риску \"Бой стекла\" также возмещает расходы:"]
[null,"а) связанные с монтажом и демонтажем предметов, препятствующих замене разбитых стекол"]
[null,"(жалюзи, решетки, и т.п.);"]
[null,"б) связанные с арендой и монтажом строительных лесов, если они необходимы для замены стекол на"]
[null,"верхних этажах."]
[null,"21.3.4. Все расходы, указанные в п. 21.3, возмещаются пропорционально отношению страховой суммы по"]
[null,"риску, по которому произошел страховой случай, к страховой стоимости."]
[null,"21.3.5. При наступлении страхового случая страховая выплата в счет возмещения всех указанных в"]
[null,"п.п.21.3. расходов, не может превышать 10% (десять процентов) от суммы ущерба застрахованному"]
[null,"имуществу, подлежащего возмещению в соответствии с условиями договора страхования."]
[null,"21.4. Каждая из сторон договора страхования имеет право назначить своего независимого эксперта"]
[null,"(сюрвейера) для определения причин возникновения или оценки размера ущерба от страхового случая."]
[null,"Каждая сторона договора страхования несет расходы на оплату услуг назначенного ей эксперта (сюрвейера)."]
[null,"В случае, если для решения спора сторонами привлекается третейский судья, расходы на оплату"]
[null,"услуг такого третейского судьи должны быть равным образом поделены между сторонами."]
[]
[null,"22. Порядок расчета страховой выплаты"]
[null,"22.1. Расчет страховой выплаты производится исходя из размера ущерба от страхового случая,"]
[null,"определенного в соответствии с п.21 договора, с учетом:"]
[null,"а) положений, определяющих полное или частичное освобождение Страховщика от страховой"]
[null,"выплаты в соответствии с п.23 договора;"]
[null,"б) суммы возмещения, полученного Страхователем (лицом, в пользу которого заключен договор) от"]
[null,"других лиц (в т.ч. лиц, ответственных за причинение вреда);"]
[null,"в) сумм возмещения, причитающихся по договорам страхования, заключенным в отношении"]
[null,"застрахованного имущества с другими страховщиками."]
[null,"г) отношения страховой суммы к страховой стоимости по риску, по которому произошел страховой случай;"]
[null,"д) франшиз, установленных по договору страхования;"]
[null,"е) страховых сумм, действующих на момент страхового случая по договору страхования;"]
[null,"ж) суммы неуплаченных страховых взносов, подлежащих уплате по договору страхования;"]
[null,"22.2. Расчет страховой выплаты для запасов товаров, сырья или материалов в обороте производится с"]
[null,"учетом следующих положений:"]
[null,"22.2.1. если на момент страхового случая фактическая стоимость застрахованных запасов превышает"]
[null,"указанную для них в договоре страховую сумму, увеличенную на 15%, расчет страховой выплаты"]
[null,"производится пропорционально отношению страховой суммы к фактической стоимости запасов на"]
[null,"момент страхового случая;"]
[null,"в других случаях страховая выплата рассчитывается без учета отношения страховой суммы к"]
[null,"страховой стоимости запасов, но в любом случае не выше страховой суммы."]
[null,"22.2.2. ущерб, подлежащий возмещению страховщиком, не может превышать стоимость повторного"]
[null,"приобретения (изготовления) указанных запасов в ценах, сложившихся на день страхового случая в"]
[null,"местности нахождения застрахованного имущества, а также стоимость, за которую они в этот день"]
[null,"могли бы быть проданы (рыночную стоимость)."]
[]
[null,"22.3. Размер страхового возмещения не может превышать размер ущерба от страхового случая,"]
[null,"определенного в соответствии с п.21 договора, и величину страховых сумм, действующих по"]
[null,"договору на момент страхового случая."]
[null,"22.4. Если страховая сумма установлена в рублевом эквиваленте суммы, выраженной в иностранной"]
[null,"валюте, то размер выплаты страхового возмещения исчисляется исходя из официального курса"]
[null,"данной валюты, установленного Банком России на дату наступления страхового случая, но не выше"]
[null,"курса Банка России, установленного на дату заключения договора страхования, увеличенного на"]
[null,"10%, если иное не предусмотрено договором."]
[null,"22.5. Если Страхователю (лицу, в пользу которого заключен договор) возместили убытки третьи лица, то"]
[null,"Страховщик рассчитывает страховую выплату как разницу между суммой, подлежащей выплате по"]
[null,"условиям договора страхования, и суммой, полученной от третьих лиц."]
[null,"Страхователь обязан немедленно известить Страховщика о получении таких сумм."]
[null,"22.6. Если на момент наступления страхового случая в отношении застрахованного имущества"]
[null,"действовали также другие договоры страхования по аналогичным рискам на сумму, превышающую"]
[null,"в общей сложности его страховую стоимость (имело место двойное страхование), Страховщик"]
[null,"рассчитывает страховую выплату пропорционально отношению страховой суммы по заключенному"]
[null,"Страховщиком договору страхования к общей страховой сумме по всем заключенным"]
[null,"Страхователем договорам страхования данного имущества."]
[null,"22.7. Если на момент страховой выплаты по договору страхования остались неуплаченными страховые"]
[null,"взносы, то Страховщик имеет право зачесть полностью или частично страховую выплату в счет"]
[null,"уплаты указанных взносов независимо от того, наступил срок их уплаты или нет."]
[null,"22.8. Страхователь (лицо, в пользу которого заключен договор) обязан возвратить Страховщику"]
[null,"полученную страховую выплату (или ее соответствующую часть), если:"]
[null,"а) обнаружится такое обстоятельство, которое по закону или по условиям договора полностью или"]
[null,"частично лишает Страхователь (лицо, в пользу которого заключен договор) права на страховую выплату;"]
[null,"б) будет найдено и возвращено имущество, утраченное в результате страхового случая;"]
[null,"в) ущерб полностью или частично будет компенсирован другим лицом (лицами)."]
[null,"Страхователь (лицо, в пользу которого заключен договор) обязан возвратить Страховщику"]
[null,"полученную страховую выплату (или ее соответствующую часть) в течение 10 (десяти) банковских"]
[null,"дней с момента возникновения обстоятельств, указанных в пп.\"а\" - \"в\"."]
[null,"22.9. Если страховая выплата при повреждении застрахованного объекта (группы объектов)"]
[null,"производится в размере установленной для него страховой суммы, Страховщик имеет право"]
[null,"потребовать передать ему указанный поврежденный объект (остатки от него). Страхователь (лицо,"]
[null,"в пользу которого заключен договор) по требованию Страховщика обязан передать ему данный"]
[null,"объект (остатки)."]
[null,"В случае отказа Страхователя (лица, в пользу которого заключен договор) передать Страховщику"]
[null,"поврежденный объект (остатки), Страховщик имеет право отказать в страховой выплате."]
[]
[null,"23. Отказ в страховой выплате"]
[null,"23.1. Страховщик имеет право полностью или частично отказать в страховой выплате, если:"]
[null,"а) страховой случай наступил вследствие умысла Страхователя (лица, в пользу которого заключен"]
[null,"договор), их сотрудников или представителей, а также лиц, действовавших хотя и от собственного"]
[null,"имени, но с ведома и в интересах Страхователя (лица, в пользу которого заключен договор), а"]
[null,"равно вследствие нарушения кем-либо из указанных лиц установленных правил обращения с"]
[null,"застрахованным имуществом;"]
[null,"Страхователь (лицо, в пользу которого заключен договор), их сотрудник или представитель"]
[null,"признается действующим умышленно, если он осознавал опасность своих действий (бездействия),"]
[null,"предвидел возможность наступления страхового случая, и сознательно допускал наступление"]
[null,"страхового случая либо относился к этому безразлично;"]
[null,"б) Страхователь (лицо, в пользу которого заключен договор) не исполнил (исполнил ненадлежащим"]
[null,"образом) обязательства, предусмотренные договором страхования, в частности, обязательства,"]
[null,"предусмотренные п.п. 7.4, 18.1, 18.2, 19.1 настоящего Договора."]
[null,"Страховщик также имеет право полностью или частично отказать в страховой выплате в иных"]
[null,"случаях, предусмотренных действующим законодательством."]
[null,"23.2. Страховщик имеет право полностью или частично отказать в страховой выплате по убыткам,"]
[null,"возникшим вследствие:"]
[null,"а) изъятия, конфискации, реквизиции, ареста или уничтожения застрахованного имущества по"]
[null,"распоряжению государственных органов;"]
[null,"б) того, что Страхователь при наступлении страхового случая не принял разумных и доступных мер,"]
[null,"чтобы уменьшить возможные убытки."]
[]
[null,"24. Суброгация"]
[null,"24.1. К Страховщику, выплатившему страховое возмещение, переходит в пределах выплаченной суммы"]
[null,"право требования, которое Страхователь имеет к лицу, ответственному за убытки, возмещенные в"]
[null,"результате страхования."]
[null,"Перешедшее к Страховщику право требования осуществляется им с соблюдением правил,"]
[null,"регулирующих отношения между Страхователем и лицом, ответственным за убытки."]
[null,"24.2. Страхователь обязан передать Страховщику все документы и доказательства и сообщить ему все"]
[null,"сведения, необходимые для осуществления Страховщиком перешедшего к нему права требования."]
[null,"24.3. Если Страхователь отказался от своего права требования к лицу, ответственному за убытки,"]
[null,"возмещенные Страховщиком, или осуществление этого права стало невозможным по вине"]
[null,"Страхователя, то Страховщик освобождается от выплаты страхового возмещения полностью или в"]
[null,"соответствующей части и вправе потребовать возврата излишне выплаченной суммы возмещения."]
[]
[null,"Раздел IV. Реквизиты и подписи сторон"]
[null,"                            Страхователь"]
[]
[null,null,null,null,null,null,null,null,null,null,null,null,null,null,null,null,null,null,null,null,null,null,null,null,null,null,null,null,null,null,null,null,null,null,null,null,null,null,null,null,null,null,null,null,null,null,null,null,null,null,null,null,null,null,null,null,"Страховщик"]
[null," Правила страхования получил. С положениями Правил страхования ознакомлен, согласен и обязуюсь выполнять."]
[null,"______________________ (________________)",null,null,null,null,null,null,null,null,null,null,null,null,null,null,null,null,null,null,null,null,null,null,null,null,null,null,null,null,null,null,null,null,null,null,null,null,null,null,null,null,null,null,null,null,null,null,null,null,null,null,null,null,null,"______________________ (________________)"]
[null,"М.П.",null,null,null,null,null,null,null,null,null,null,null,null,null,null,null,null,null,null,null,null,null,null,null,null,null,null,null,null,null,null,null,null,null,null,null,null,null,null,null,null,null,null,null,null,null,null,null,null,null,null,null,null,null,"М.П."]

{"sheet":"перечень имущества","index":4,"n_rows":143,"n_cols":236,"rows_kept":143,"cut":false,"hidden":true,"merged":[[130,155,130,172],[131,138,131,154],[131,155,131,172],[132,138,132,154],[132,155,132,172],[130,138,130,154],[128,155,128,172],[129,138,129,154],[134,1,134,76],[134,77,134,93],[134,94,134,111],[134,112,134,137],[134,138,134,154],[134,155,134,172],[133,138,133,154],[133,155,133,172],[132,1,132,76],[133,1,133,76],[128,1,128,76],[129,1,129,76],[130,1,130,76],[131,1,131,76],[122,138,122,154],[122,155,122,172],[123,138,123,154],[123,155,123,172],[129,155,129,172],[124,138,124,154],[124,155,124,172],[125,138,125,154],[125,155,125,172],[126,138,126,154],[126,155,126,172],[127,138,127,154],[127,155,127,172],[128,138,128,154],[117,138,117,154],[117,155,117,172],[118,138,118,154],[118,155,118,172],[119,138,119,154],[119,155,119,172],[120,138,120,154],[120,155,120,172],[121,138,121,154],[121,155,121,172],[112,138,112,154],[112,155,112,172],[113,138,113,154],[113,155,113,172],[114,138,114,154],[114,155,114,172],[115,138,115,154],[115,155,115,172],[116,138,116,154],[116,155,116,172],[107,138,107,154],[107,155,107,172],[108,138,108,154],[108,155,108,172],[109,138,109,154],[109,155,109,172],[110,138,110,154],[110,155,110,172],[111,138,111,154],[111,155,111,172],[102,138,102,154],[102,155,102,172],[103,138,103,154],[103,155,103,172],[104,138,104,154],[104,155,104,172],[105,138,105,154],[105,155,105,172],[106,138,106,154],[106,155,106,172],[97,138,97,154],[97,155,97,172],[98,138,98,154],[98,155,98,172],[99,138,99,154],[99,155,99,172],[100,138,100,154],[100,155,100,172],[101,138,101,154],[101,155,101,172],[92,138,92,154],[92,155,92,172],[93,138,93,154],[93,155,93,172],[94,138,94,154],[94,155,94,172],[95,138,95,154],[95,155,95,172],[96,138,96,154],[96,155,96,172],[87,138,87,154],[87,155,87,172],[88,138,88,154],[88,155,88,172],[89,138,89,154],[89,155,89,172],[90,138,90,154],[90,155,90,172],[91,138,91,154],[91,155,91,172],[82,138,82,154],[82,155,82,172],[83,138,83,154],[83,155,83,172],[84,138,84,154],[84,155,84,172],[85,138,85,154],[85,155,85,172],[86,138,86,154],[86,155,86,172],[77,138,77,154],[77,155,77,172],[78,138,78,154],[78,155,78,172],[79,138,79,154],[79,155,79,172],[80,138,80,154],[80,155,80,172],[81,138,81,154],[81,155,81,172],[72,138,72,154],[72,155,72,172],[73,138,73,154],[73,155,73,172],[74,138,74,154],[74,155,74,172],[75,138,75,154],[75,155,75,172],[76,138,76,154],[76,155,76,172],[67,138,67,154],[67,155,67,172],[68,138,68,154],[68,155,68,172],[69,138,69,154],[69,155,69,172],[70,138,70,154],[70,155,70,172],[71,138,71,154],[71,155,71,172],[62,138,62,154],[62,155,62,172],[63,138,63,154],[63,155,63,172],[64,138,64,154],[64,155,64,172],[65,138,65,154],[65,155,65,172],[66,138,66,154],[66,155,66,172],[57,138,57,154],[57,155,57,172],[58,138,58,154],[58,155,58,172],[59,138,59,154],[59,155,59,172],[60,138,60,154],[60,155,60,172],[61,138,61,154],[61,155,61,172],[52,138,52,154],[52,155,52,172],[53,138,53,154],[53,155,53,172],[54,138,54,154],[54,155,54,172],[55,138,55,154],[55,155,55,172],[56,138,56,154],[56,155,56,172],[47,138,47,154],[47,155,47,172],[48,138,48,154],[48,155,48,172],[49,138,49,154],[49,155,49,172],[50,138,50,154],[50,155,50,172],[51,138,51,154],[51,155,51,172],[42,138,42,154],[42,155,42,172],[43,138,43,154],[43,155,43,172],[44,138,44,154],[44,155,44,172],[45,138,45,154],[45,155,45,172],[46,138,46,154],[46,155,46,172],[37,138,37,154],[37,155,37,172],[38,138,38,154],[38,155,38,172],[39,138,39,154],[39,155,39,172],[40,138,40,154],[40,155,40,172],[41,138,41,154],[41,155,41,172],[32,138,32,154],[32,155,32,172],[33,138,33,154],[33,155,33,172],[34,138,34,154],[34,155,34,172],[35,138,35,154],[35,155,35,172],[36,138,36,154],[36,155,36,172],[27,138,27,154],[27,155,27,172],[28,138,28,154],[28,155,28,172],[29,138,29,154],[29,155,29,172],[30,138,30,154],[30,155,30,172],[31,138,31,154],[31,155,31,172],[22,138,22,154],[22,155,22,172],[23,138,23,154],[23,155,23,172],[24,138,24,154],[24,155,24,172],[25,138,25,154],[25,155,25,172],[26,138,26,154],[26,155,26,172],[17,138,17,154],[17,155,17,172],[18,138,18,154],[18,155,18,172],[19,138,19,154],[19,155,19,172],[20,138,20,154],[20,155,20,172],[21,138,21,154],[21,155,21,172],[12,138,12,154],[12,155,12,172],[13,138,13,154],[13,155,13,172],[14,138,14,154],[14,155,14,172],[15,138,15,154],[15,155,15,172],[16,138,16,154],[16,155,16,172],[7,138,7,154],[7,155,7,172],[8,138,8,154],[8,155,8,172],[9,138,9,154],[9,155,9,172],[10,138,10,154],[10,155,10,172],[11,138,11,154],[11,155,11,172],[7,77,7,93],[7,94,7,111],[7,112,7,137],[7,1,7,76],[8,112,8,137],[8,1,8,76],[8,77,8,93],[8,94,8,111],[9,112,9,137],[9,1,9,76],[9,94,9,111],[27,1,27,76],[40,1,40,76],[35,1,35,76],[36,1,36,76],[37,1,37,76],[21,1,21,76],[22,1,22,76],[23,1,23,76],[28,1,28,76],[24,1,24,76],[25,1,25,76],[26,1,26,76],[38,1,38,76],[39,1,39,76],[42,1,42,76],[44,1,44,76],[45,1,45,76],[46,1,46,76],[58,1,58,76],[29,1,29,76],[41,1,41,76],[33,1,33,76],[34,1,34,76],[30,1,30,76],[31,1,31,76],[32,1,32,76],[47,1,47,76],[43,1,43,76],[55,1,55,76],[56,1,56,76],[57,1,57,76],[61,1,61,76],[60,1,60,76],[50,1,50,76],[48,1,48,76],[49,1,49,76],[69,1,69,76],[70,1,70,76],[62,1,62,76],[51,1,51,76],[52,1,52,76],[53,1,53,76],[54,1,54,76],[59,1,59,76],[71,1,71,76],[86,1,86,76],[74,1,74,76],[75,1,75,76],[83,1,83,76],[84,1,84,76],[85,1,85,76],[63,1,63,76],[64,1,64,76],[65,1,65,76],[66,1,66,76],[67,1,67,76],[68,1,68,76],[87,1,87,76],[76,1,76,76],[77,1,77,76],[78,1,78,76],[79,1,79,76],[80,1,80,76],[81,1,81,76],[82,1,82,76],[72,1,72,76],[73,1,73,76],[88,1,88,76],[89,1,89,76],[101,1,101,76],[102,1,102,76],[103,1,103,76],[104,1,104,76],[93,1,93,76],[94,1,94,76],[95,1,95,76],[96,1,96,76],[90,1,90,76],[91,1,91,76],[92,1,92,76],[110,1,110,76],[116,1,116,76],[111,1,111,76],[112,1,112,76],[105,1,105,76],[106,1,106,76],[97,1,97,76],[98,1,98,76],[99,1,99,76],[100,1,100,76],[113,1,113,76],[114,1,114,76],[115,1,115,76],[107,1,107,76],[108,1,108,76],[109,1,109,76],[126,1,126,76],[127,1,127,76],[120,1,120,76],[121,1,121,76],[122,1,122,76],[123,1,123,76],[124,1,124,76],[125,1,125,76],[117,1,117,76],[118,1,118,76],[119,1,119,76],[10,1,10,76],[11,1,11,76],[12,1,12,76],[13,1,13,76],[14,1,14,76],[9,77,9,93],[10,77,10,93],[20,1,20,76],[15,1,15,76],[16,1,16,76],[17,1,17,76],[18,1,18,76],[19,1,19,76],[11,77,11,93],[12,77,12,93],[13,77,13,93],[14,77,14,93],[19,77,19,93],[20,77,20,93],[15,77,15,93],[16,77,16,93],[22,77,22,93],[17,77,17,93],[18,77,18,93],[36,77,36,93],[37,77,37,93],[23,77,23,93],[24,77,24,93],[25,77,25,93],[26,77,26,93],[5,125,5,127],[5,128,5,129],[128,77,128,93],[116,77,116,93],[117,77,117,93],[118,77,118,93],[108,77,108,93],[103,77,103,93],[92,77,92,93],[93,77,93,93],[122,77,122,93],[123,77,123,93],[124,77,124,93],[125,77,125,93],[126,77,126,93],[127,77,127,93],[89,77,89,93],[90,77,90,93],[91,77,91,93],[106,77,106,93],[107,77,107,93],[76,77,76,93],[77,77,77,93],[78,77,78,93],[5,120,5,124],[98,77,98,93],[99,77,99,93],[114,77,114,93],[115,77,115,93],[104,77,104,93],[129,77,129,93],[130,77,130,93],[131,77,131,93],[79,77,79,93],[102,77,102,93],[83,77,83,93],[74,77,74,93],[75,77,75,93],[86,77,86,93],[87,77,87,93],[88,77,88,93],[65,77,65,93],[66,77,66,93],[67,77,67,93],[80,77,80,93],[81,77,81,93],[82,77,82,93],[71,77,71,93],[10,94,10,111],[11,94,11,111],[12,94,12,111],[70,77,70,93],[109,77,109,93],[96,77,96,93],[97,77,97,93],[132,77,132,93],[72,77,72,93],[73,77,73,93],[59,77,59,93],[60,77,60,93],[61,77,61,93],[62,77,62,93],[63,77,63,93],[64,77,64,93],[51,77,51,93],[56,77,56,93],[57,77,57,93],[68,77,68,93],[69,77,69,93],[52,77,52,93],[53,77,53,93],[13,94,13,111],[15,94,15,111],[14,94,14,111],[27,94,27,111],[26,94,26,111],[94,77,94,93],[95,77,95,93],[105,77,105,93],[119,77,119,93],[112,77,112,93],[84,77,84,93],[85,77,85,93],[54,77,54,93],[55,77,55,93],[58,77,58,93],[41,77,41,93],[44,77,44,93],[45,77,45,93],[48,77,48,93],[49,77,49,93],[50,77,50,93],[33,77,33,93],[34,77,34,93],[35,77,35,93],[28,94,28,111],[121,77,121,93],[19,94,19,111],[20,94,20,111],[120,77,120,93],[110,77,110,93],[111,77,111,93],[31,94,31,111],[113,77,113,93],[100,77,100,93],[101,77,101,93],[38,77,38,93],[39,77,39,93],[40,77,40,93],[30,77,30,93],[31,77,31,93],[29,77,29,93],[46,77,46,93],[47,77,47,93],[27,77,27,93],[28,77,28,93],[42,77,42,93],[43,77,43,93],[32,77,32,93],[21,77,21,93],[29,94,29,111],[16,94,16,111],[17,94,17,111],[18,94,18,111],[21,94,21,111],[22,94,22,111],[23,94,23,111],[24,94,24,111],[25,94,25,111],[30,94,30,111],[43,94,43,111],[44,94,44,111],[33,94,33,111],[34,94,34,111],[35,94,35,111],[36,94,36,111],[37,94,37,111],[38,94,38,111],[32,94,32,111],[39,94,39,111],[40,94,40,111],[41,94,41,111],[42,94,42,111],[45,94,45,111],[46,94,46,111],[47,94,47,111],[48,94,48,111],[49,94,49,111],[50,94,50,111],[58,94,58,111],[59,94,59,111],[51,94,51,111],[55,94,55,111],[56,94,56,111],[52,94,52,111],[61,94,61,111],[53,94,53,111],[54,94,54,111],[57,94,57,111],[60,94,60,111],[85,94,85,111],[86,94,86,111],[90,94,90,111],[77,94,77,111],[62,94,62,111],[69,94,69,111],[70,94,70,111],[71,94,71,111],[76,94,76,111],[63,94,63,111],[64,94,64,111],[65,94,65,111],[66,94,66,111],[67,94,67,111],[68,94,68,111],[73,94,73,111],[74,94,74,111],[75,94,75,111],[10,112,10,137],[11,112,11,137],[17,112,17,137],[18,112,18,137],[13,112,13,137],[14,112,14,137],[15,112,15,137],[16,112,16,137],[103,94,103,111],[12,112,12,137],[102,94,102,111],[87,94,87,111],[88,94,88,111],[89,94,89,111],[93,94,93,111],[94,94,94,111],[95,94,95,111],[96,94,96,111],[97,94,97,111],[98,94,98,111],[99,94,99,111],[100,94,100,111],[78,94,78,111],[91,94,91,111],[19,112,19,137],[20,112,20,137],[21,112,21,137],[22,112,22,137],[129,94,129,111],[130,94,130,111],[125,94,125,111],[126,94,126,111],[127,94,127,111],[128,94,128,111],[123,94,123,111],[124,94,124,111],[119,94,119,111],[120,94,120,111],[121,94,121,111],[122,94,122,111],[109,94,109,111],[110,94,110,111],[113,94,113,111],[104,94,104,111],[105,94,105,111],[106,94,106,111],[107,94,107,111],[108,94,108,111],[31,112,31,137],[32,112,32,137],[23,112,23,137],[24,112,24,137],[29,112,29,137],[30,112,30,137],[25,112,25,137],[26,112,26,137],[27,112,27,137],[28,112,28,137],[37,112,37,137],[38,112,38,137],[43,112,43,137],[44,112,44,137],[39,112,39,137],[40,112,40,137],[41,112,41,137],[42,112,42,137],[33,112,33,137],[34,112,34,137],[35,112,35,137],[36,112,36,137],[45,112,45,137],[46,112,46,137],[67,112,67,137],[59,112,59,137],[60,112,60,137],[61,112,61,137],[62,112,62,137],[51,112,51,137],[52,112,52,137],[53,112,53,137],[54,112,54,137],[47,112,47,137],[48,112,48,137],[49,112,49,137],[50,112,50,137],[65,112,65,137],[66,112,66,137],[69,112,69,137],[70,112,70,137],[71,112,71,137],[72,112,72,137],[73,112,73,137],[74,112,74,137],[68,112,68,137],[55,112,55,137],[56,112,56,137],[63,112,63,137],[64,112,64,137],[57,112,57,137],[58,112,58,137],[85,112,85,137],[86,112,86,137],[87,112,87,137],[88,112,88,137],[91,112,91,137],[92,112,92,137],[93,112,93,137],[94,112,94,137],[75,112,75,137],[76,112,76,137],[89,112,89,137],[90,112,90,137],[79,112,79,137],[80,112,80,137],[81,112,81,137],[82,112,82,137],[83,112,83,137],[84,112,84,137],[77,112,77,137],[78,112,78,137],[102,112,102,137],[109,112,109,137],[110,112,110,137],[111,112,111,137],[112,112,112,137],[95,112,95,137],[96,112,96,137],[99,112,99,137],[100,112,100,137],[107,112,107,137],[108,112,108,137],[103,112,103,137],[104,112,104,137],[105,112,105,137],[106,112,106,137],[97,112,97,137],[98,112,98,137],[142,1,142,39],[5,96,5,97],[5,98,5,100],[5,101,5,102],[5,92,5,95],[131,94,131,111],[132,94,132,111],[133,94,133,111],[114,94,114,111],[101,94,101,111],[117,94,117,111],[118,94,118,111],[111,94,111,111],[112,94,112,111],[115,94,115,111],[116,94,116,111],[79,94,79,111],[80,94,80,111],[72,94,72,111],[92,94,92,111],[81,94,81,111],[82,94,82,111],[83,94,83,111],[84,94,84,111],[3,104,3,129],[141,1,141,39],[131,112,131,137],[132,112,132,137],[121,112,121,137],[122,112,122,137],[123,112,123,137],[124,112,124,137],[5,103,5,119],[127,112,127,137],[128,112,128,137],[129,112,129,137],[130,112,130,137],[125,112,125,137],[126,112,126,137],[113,112,113,137],[114,112,114,137],[115,112,115,137],[116,112,116,137],[119,112,119,137],[120,112,120,137],[117,112,117,137],[118,112,118,137],[101,112,101,137],[141,113,141,117],[141,118,141,120],[141,121,141,122],[141,59,141,87],[141,89,141,90],[141,91,141,93],[141,94,141,95],[141,96,141,112],[133,112,133,137],[133,77,133,93]]}
[]
[]
[]
[null,null,null,null,null,null,null,null,null,null,null,null,null,null,null,null,null,null,null,null,null,null,null,null,null,null,null,null,null,null,null,null,null,null,null,null,null,null,null,null,null,null,null,null,null,null,null,null,null,null,null,null,null,null,null,null,null,null,null,null,null,null,null,null,null,null,null,"Приложение № 1 к Заявлению № ",null,null,null,null,null,null,null,null,null,null,null,null,null,null,null,null,null,null,null,null,null,null,null,null,null,null,null,null,null,null,null,null,null,null,null,null,{"$f":"Заявление!BW21","v":0}]
[]
[null,"ПЕРЕЧЕНЬ ДВИЖИМОГО ИМУЩЕСТВА",null,null,null,null,null,null,null,null,null,null,null,null,null,null,null,null,null,null,null,null,null,null,null,null,null,null,null,null,null,null,null,null,null,null,null,null,null,null,null,null,null,null,null,null,null,null,null,null,null,null,null,null,null,null,null,null,null,null,null,null,null,null,null,null,null,null,null,null,null,null,null,null,null,null,null,null,null,null,null,null,null,null,null,null,null,null,null,null,null,null,"от",null,null,null,"«",null,{"$f":"Заявление!AG21","v":0},null,null,"»",null,{"$f":"Заявление!AL21","v":0},null,null,null,null,null,null,null,null,null,null,null,null,null,null,null,null,20,null,null,null,null,{"$f":"Заявление!BH21","v":0},null,null,"г."]
[]
["№ п/п","Наименование (тип, марка, модель, фирма изготовитель и т.д.) и описание имущества",null,null,null,null,null,null,null,null,null,null,null,null,null,null,null,null,null,null,null,null,null,null,null,null,null,null,null,null,null,null,null,null,null,null,null,null,null,null,null,null,null,null,null,null,null,null,null,null,null,null,null,null,null,null,null,null,null,null,null,null,null,null,null,null,null,null,null,null,null,null,null,null,null,null,null,"Год выпуска",null,null,null,null,null,null,null,null,null,null,null,null,null,null,null,null,"Страховая сумма",null,null,null,null,null,null,null,null,null,null,null,null,null,null,null,null,null,"Риски (Коды)*",null,null,null,null,null,null,null,null,null,null,null,null,null,null,null,null,null,null,null,null,null,null,null,null,null,"Тариф",null,null,null,null,null,null,null,null,null,null,null,null,null,null,null,null,"Страховая премия"]
["1.","Оборудование производственное, торговое, технологическое и вспомогательное, в т.ч.:",null,null,null,null,null,null,null,null,null,null,null,null,null,null,null,null,null,null,null,null,null,null,null,null,null,null,null,null,null,null,null,null,null,null,null,null,null,null,null,null,null,null,null,null,null,null,null,null,null,null,null,null,null,null,null,null,null,null,null,null,null,null,null,null,null,null,null,null,null,null,null,null,null,null,null,null,null,null,null,null,null,null,null,null,null,null,null,null,null,null,null,null,{"$f":"SUM(CQ10:DH29)","v":0},null,null,null,null,null,null,null,null,null,null,null,null,null,null,null,null,null,{"$f":"Заявление!CN153","v":""},null,null,null,null,null,null,null,null,null,null,null,null,null,null,null,null,null,null,null,null,null,null,null,null,null,null,null,null,null,null,null,null,null,null,null,null,null,null,null,null,null,null,{"$f":"EI9*CQ9","v":0},null,null,null,null,null,null,null,null,null,null,null,null,null,null,null,null,null,null,null,null,null,null,null,null,null,null,null,null,null,null,null,null,null,null,null,null,null,null,null,null,null,null,null,null,null,null,null,null,null,null,null,null,null,null,null,null,null,null,null,null,null,null,null,null,null,null,null,null,null,null,null,null,null,null,null,null,null,null,1,{"$f":"CQ9","v":0}]
["1.1.",null,null,null,null,null,null,null,null,null,null,null,null,null,null,null,null,null,null,null,null,null,null,null,null,null,null,null,null,null,null,null,null,null,null,null,null,null,null,null,null,null,null,null,null,null,null,null,null,null,null,null,null,null,null,null,null,null,null,null,null,null,null,null,null,null,null,null,null,null,null,null,null,null,null,null,null,null,null,null,null,null,null,null,null,null,null,null,null,null,null,null,null,null,null,null,null,null,null,null,null,null,null,null,null,null,null,null,null,null,null,null,{"$f":"Заявление!CN153","v":""},null,null,null,null,null,null,null,null,null,null,null,null,null,null,null,null,null,null,null,null,null,null,null,null,null,null,null,null,null,null,null,null,null,null,null,null,null,null,null,null,null,null,{"$f":"EI10*CQ10","v":0}]
["1.2.",null,null,null,null,null,null,null,null,null,null,null,null,null,null,null,null,null,null,null,null,null,null,null,null,null,null,null,null,null,null,null,null,null,null,null,null,null,null,null,null,null,null,null,null,null,null,null,null,null,null,null,null,null,null,null,null,null,null,null,null,null,null,null,null,null,null,null,null,null,null,null,null,null,null,null,null,null,null,null,null,null,null,null,null,null,null,null,null,null,null,null,null,null,null,null,null,null,null,null,null,null,null,null,null,null,null,null,null,null,null,null,{"$f":"Заявление!CN153","v":""},null,null,null,null,null,null,null,null,null,null,null,null,null,null,null,null,null,null,null,null,null,null,null,null,null,null,null,null,null,null,null,null,null,null,null,null,null,null,null,null,null,null,{"$f":"EI11*CQ11","v":0}]
["1.3.",null,null,null,null,null,null,null,null,null,null,null,null,null,null,null,null,null,null,null,null,null,null,null,null,null,null,null,null,null,null,null,null,null,null,null,null,null,null,null,null,null,null,null,null,null,null,null,null,null,null,null,null,null,null,null,null,null,null,null,null,null,null,null,null,null,null,null,null,null,null,null,null,null,null,null,null,null,null,null,null,null,null,null,null,null,null,null,null,null,null,null,null,null,null,null,null,null,null,null,null,null,null,null,null,null,null,null,null,null,null,null,{"$f":"Заявление!CN153","v":""},null,null,null,null,null,null,null,null,null,null,null,null,null,null,null,null,null,null,null,null,null,null,null,null,null,null,null,null,null,null,null,null,null,null,null,null,null,null,null,null,null,null,{"$f":"EI12*CQ12","v":0}]
["1.4.",null,null,null,null,null,null,null,null,null,null,null,null,null,null,null,null,null,null,null,null,null,null,null,null,null,null,null,null,null,null,null,null,null,null,null,null,null,null,null,null,null,null,null,null,null,null,null,null,null,null,null,null,null,null,null,null,null,null,null,null,null,null,null,null,null,null,null,null,null,null,null,null,null,null,null,null,null,null,null,null,null,null,null,null,null,null,null,null,null,null,null,null,null,null,null,null,null,null,null,null,null,null,null,null,null,null,null,null,null,null,null,{"$f":"Заявление!CN153","v":""},null,null,null,null,null,null,null,null,null,null,null,null,null,null,null,null,null,null,null,null,null,null,null,null,null,null,null,null,null,null,null,null,null,null,null,null,null,null,null,null,null,null,{"$f":"EI13*CQ13","v":0}]
["1.5.",null,null,null,null,null,null,null,null,null,null,null,null,null,null,null,null,null,null,null,null,null,null,null,null,null,null,null,null,null,null,null,null,null,null,null,null,null,null,null,null,null,null,null,null,null,null,null,null,null,null,null,null,null,null,null,null,null,null,null,null,null,null,null,null,null,null,null,null,null,null,null,null,null,null,null,null,null,null,null,null,null,null,null,null,null,null,null,null,null,null,null,null,null,null,null,null,null,null,null,null,null,null,null,null,null,null,null,null,null,null,null,{"$f":"Заявление!CN153","v":""},null,null,null,null,null,null,null,null,null,null,null,null,null,null,null,null,null,null,null,null,null,null,null,null,null,null,null,null,null,null,null,null,null,null,null,null,null,null,null,null,null,null,{"$f":"EI14*CQ14","v":0}]
["1.6.",null,null,null,null,null,null,null,null,null,null,null,null,null,null,null,null,null,null,null,null,null,null,null,null,null,null,null,null,null,null,null,null,null,null,null,null,null,null,null,null,null,null,null,null,null,null,null,null,null,null,null,null,null,null,null,null,null,null,null,null,null,null,null,null,null,null,null,null,null,null,null,null,null,null,null,null,null,null,null,null,null,null,null,null,null,null,null,null,null,null,null,null,null,null,null,null,null,null,null,null,null,null,null,null,null,null,null,null,null,null,null,{"$f":"Заявление!CN153","v":""},null,null,null,null,null,null,null,null,null,null,null,null,null,null,null,null,null,null,null,null,null,null,null,null,null,null,null,null,null,null,null,null,null,null,null,null,null,null,null,null,null,null,0]
["1.7.",null,null,null,null,null,null,null,null,null,null,null,null,null,null,null,null,null,null,null,null,null,null,null,null,null,null,null,null,null,null,null,null,null,null,null,null,null,null,null,null,null,null,null,null,null,null,null,null,null,null,null,null,null,null,null,null,null,null,null,null,null,null,null,null,null,null,null,null,null,null,null,null,null,null,null,null,null,null,null,null,null,null,null,null,null,null,null,null,null,null,null,null,null,null,null,null,null,null,null,null,null,null,null,null,null,null,null,null,null,null,null,{"$f":"Заявление!CN153","v":""},null,null,null,null,null,null,null,null,null,null,null,null,null,null,null,null,null,null,null,null,null,null,null,null,null,null,null,null,null,null,null,null,null,null,null,null,null,null,null,null,null,null,0]
["1.8.",null,null,null,null,null,null,null,null,null,null,null,null,null,null,null,null,null,null,null,null,null,null,null,null,null,null,null,null,null,null,null,null,null,null,null,null,null,null,null,null,null,null,null,null,null,null,null,null,null,null,null,null,null,null,null,null,null,null,null,null,null,null,null,null,null,null,null,null,null,null,null,null,null,null,null,null,null,null,null,null,null,null,null,null,null,null,null,null,null,null,null,null,null,null,null,null,null,null,null,null,null,null,null,null,null,null,null,null,null,null,null,{"$f":"Заявление!CN153","v":""},null,null,null,null,null,null,null,null,null,null,null,null,null,null,null,null,null,null,null,null,null,null,null,null,null,null,null,null,null,null,null,null,null,null,null,null,null,null,null,null,null,null,0]
["1.9.",null,null,null,null,null,null,null,null,null,null,null,null,null,null,null,null,null,null,null,null,null,null,null,null,null,null,null,null,null,null,null,null,null,null,null,null,null,null,null,null,null,null,null,null,null,null,null,null,null,null,null,null,null,null,null,null,null,null,null,null,null,null,null,null,null,null,null,null,null,null,null,null,null,null,null,null,null,null,null,null,null,null,null,null,null,null,null,null,null,null,null,null,null,null,null,null,null,null,null,null,null,null,null,null,null,null,null,null,null,null,null,{"$f":"Заявление!CN153","v":""},null,null,null,null,null,null,null,null,null,null,null,null,null,null,null,null,null,null,null,null,null,null,null,null,null,null,null,null,null,null,null,null,null,null,null,null,null,null,null,null,null,null,0]
["1.10.",null,null,null,null,null,null,null,null,null,null,null,null,null,null,null,null,null,null,null,null,null,null,null,null,null,null,null,null,null,null,null,null,null,null,null,null,null,null,null,null,null,null,null,null,null,null,null,null,null,null,null,null,null,null,null,null,null,null,null,null,null,null,null,null,null,null,null,null,null,null,null,null,null,null,null,null,null,null,null,null,null,null,null,null,null,null,null,null,null,null,null,null,null,null,null,null,null,null,null,null,null,null,null,null,null,null,null,null,null,null,null,{"$f":"Заявление!CN153","v":""},null,null,null,null,null,null,null,null,null,null,null,null,null,null,null,null,null,null,null,null,null,null,null,null,null,null,null,null,null,null,null,null,null,null,null,null,null,null,null,null,null,null,0]
["1.11.",null,null,null,null,null,null,null,null,null,null,null,null,null,null,null,null,null,null,null,null,null,null,null,null,null,null,null,null,null,null,null,null,null,null,null,null,null,null,null,null,null,null,null,null,null,null,null,null,null,null,null,null,null,null,null,null,null,null,null,null,null,null,null,null,null,null,null,null,null,null,null,null,null,null,null,null,null,null,null,null,null,null,null,null,null,null,null,null,null,null,null,null,null,null,null,null,null,null,null,null,null,null,null,null,null,null,null,null,null,null,null,{"$f":"Заявление!CN153","v":""},null,null,null,null,null,null,null,null,null,null,null,null,null,null,null,null,null,null,null,null,null,null,null,null,null,null,null,null,null,null,null,null,null,null,null,null,null,null,null,null,null,null,0]
["1.12.",null,null,null,null,null,null,null,null,null,null,null,null,null,null,null,null,null,null,null,null,null,null,null,null,null,null,null,null,null,null,null,null,null,null,null,null,null,null,null,null,null,null,null,null,null,null,null,null,null,null,null,null,null,null,null,null,null,null,null,null,null,null,null,null,null,null,null,null,null,null,null,null,null,null,null,null,null,null,null,null,null,null,null,null,null,null,null,null,null,null,null,null,null,null,null,null,null,null,null,null,null,null,null,null,null,null,null,null,null,null,null,{"$f":"Заявление!CN153","v":""},null,null,null,null,null,null,null,null,null,null,null,null,null,null,null,null,null,null,null,null,null,null,null,null,null,null,null,null,null,null,null,null,null,null,null,null,null,null,null,null,null,null,0]
["1.13.",null,null,null,null,null,null,null,null,null,null,null,null,null,null,null,null,null,null,null,null,null,null,null,null,null,null,null,null,null,null,null,null,null,null,null,null,null,null,null,null,null,null,null,null,null,null,null,null,null,null,null,null,null,null,null,null,null,null,null,null,null,null,null,null,null,null,null,null,null,null,null,null,null,null,null,null,null,null,null,null,null,null,null,null,null,null,null,null,null,null,null,null,null,null,null,null,null,null,null,null,null,null,null,null,null,null,null,null,null,null,null,{"$f":"Заявление!CN153","v":""},null,null,null,null,null,null,null,null,null,null,null,null,null,null,null,null,null,null,null,null,null,null,null,null,null,null,null,null,null,null,null,null,null,null,null,null,null,null,null,null,null,null,0]
["1.14.",null,null,null,null,null,null,null,null,null,null,null,null,null,null,null,null,null,null,null,null,null,null,null,null,null,null,null,null,null,null,null,null,null,null,null,null,null,null,null,null,null,null,null,null,null,null,null,null,null,null,null,null,null,null,null,null,null,null,null,null,null,null,null,null,null,null,null,null,null,null,null,null,null,null,null,null,null,null,null,null,null,null,null,null,null,null,null,null,null,null,null,null,null,null,null,null,null,null,null,null,null,null,null,null,null,null,null,null,null,null,null,{"$f":"Заявление!CN153","v":""},null,null,null,null,null,null,null,null,null,null,null,null,null,null,null,null,null,null,null,null,null,null,null,null,null,null,null,null,null,null,null,null,null,null,null,null,null,null,null,null,null,null,0]
["1.15.",null,null,null,null,null,null,null,null,null,null,null,null,null,null,null,null,null,null,null,null,null,null,null,null,null,null,null,null,null,null,null,null,null,null,null,null,null,null,null,null,null,null,null,null,null,null,null,null,null,null,null,null,null,null,null,null,null,null,null,null,null,null,null,null,null,null,null,null,null,null,null,null,null,null,null,null,null,null,null,null,null,null,null,null,null,null,null,null,null,null,null,null,null,null,null,null,null,null,null,null,null,null,null,null,null,null,null,null,null,null,null,{"$f":"Заявление!CN153","v":""},null,null,null,null,null,null,null,null,null,null,null,null,null,null,null,null,null,null,null,null,null,null,null,null,null,null,null,null,null,null,null,null,null,null,null,null,null,null,null,null,null,null,0]
["1.16.",null,null,null,null,null,null,null,null,null,null,null,null,null,null,null,null,null,null,null,null,null,null,null,null,null,null,null,null,null,null,null,null,null,null,null,null,null,null,null,null,null,null,null,null,null,null,null,null,null,null,null,null,null,null,null,null,null,null,null,null,null,null,null,null,null,null,null,null,null,null,null,null,null,null,null,null,null,null,null,null,null,null,null,null,null,null,null,null,null,null,null,null,null,null,null,null,null,null,null,null,null,null,null,null,null,null,null,null,null,null,null,{"$f":"Заявление!CN153","v":""},null,null,null,null,null,null,null,null,null,null,null,null,null,null,null,null,null,null,null,null,null,null,null,null,null,null,null,null,null,null,null,null,null,null,null,null,null,null,null,null,null,null,0]
["1.17.",null,null,null,null,null,null,null,null,null,null,null,null,null,null,null,null,null,null,null,null,null,null,null,null,null,null,null,null,null,null,null,null,null,null,null,null,null,null,null,null,null,null,null,null,null,null,null,null,null,null,null,null,null,null,null,null,null,null,null,null,null,null,null,null,null,null,null,null,null,null,null,null,null,null,null,null,null,null,null,null,null,null,null,null,null,null,null,null,null,null,null,null,null,null,null,null,null,null,null,null,null,null,null,null,null,null,null,null,null,null,null,{"$f":"Заявление!CN153","v":""},null,null,null,null,null,null,null,null,null,null,null,null,null,null,null,null,null,null,null,null,null,null,null,null,null,null,null,null,null,null,null,null,null,null,null,null,null,null,null,null,null,null,0]
["1.18.",null,null,null,null,null,null,null,null,null,null,null,null,null,null,null,null,null,null,null,null,null,null,null,null,null,null,null,null,null,null,null,null,null,null,null,null,null,null,null,null,null,null,null,null,null,null,null,null,null,null,null,null,null,null,null,null,null,null,null,null,null,null,null,null,null,null,null,null,null,null,null,null,null,null,null,null,null,null,null,null,null,null,null,null,null,null,null,null,null,null,null,null,null,null,null,null,null,null,null,null,null,null,null,null,null,null,null,null,null,null,null,{"$f":"Заявление!CN153","v":""},null,null,null,null,null,null,null,null,null,null,null,null,null,null,null,null,null,null,null,null,null,null,null,null,null,null,null,null,null,null,null,null,null,null,null,null,null,null,null,null,null,null,0]
["1.19.",null,null,null,null,null,null,null,null,null,null,null,null,null,null,null,null,null,null,null,null,null,null,null,null,null,null,null,null,null,null,null,null,null,null,null,null,null,null,null,null,null,null,null,null,null,null,null,null,null,null,null,null,null,null,null,null,null,null,null,null,null,null,null,null,null,null,null,null,null,null,null,null,null,null,null,null,null,null,null,null,null,null,null,null,null,null,null,null,null,null,null,null,null,null,null,null,null,null,null,null,null,null,null,null,null,null,null,null,null,null,null,{"$f":"Заявление!CN153","v":""},null,null,null,null,null,null,null,null,null,null,null,null,null,null,null,null,null,null,null,null,null,null,null,null,null,null,null,null,null,null,null,null,null,null,null,null,null,null,null,null,null,null,0]
["1.20.",null,null,null,null,null,null,null,null,null,null,null,null,null,null,null,null,null,null,null,null,null,null,null,null,null,null,null,null,null,null,null,null,null,null,null,null,null,null,null,null,null,null,null,null,null,null,null,null,null,null,null,null,null,null,null,null,null,null,null,null,null,null,null,null,null,null,null,null,null,null,null,null,null,null,null,null,null,null,null,null,null,null,null,null,null,null,null,null,null,null,null,null,null,null,null,null,null,null,null,null,null,null,null,null,null,null,null,null,null,null,null,{"$f":"Заявление!CN153","v":""},null,null,null,null,null,null,null,null,null,null,null,null,null,null,null,null,null,null,null,null,null,null,null,null,null,null,null,null,null,null,null,null,null,null,null,null,null,null,null,null,null,null,0]
["2.","Электронная, аудио-, видио- и оргтехника, компьютеры, в т.ч.:",null,null,null,null,null,null,null,null,null,null,null,null,null,null,null,null,null,null,null,null,null,null,null,null,null,null,null,null,null,null,null,null,null,null,null,null,null,null,null,null,null,null,null,null,null,null,null,null,null,null,null,null,null,null,null,null,null,null,null,null,null,null,null,null,null,null,null,null,null,null,null,null,null,null,null,null,null,null,null,null,null,null,null,null,null,null,null,null,null,null,null,null,{"$f":"SUM(CQ31:DH50)","v":0},null,null,null,null,null,null,null,null,null,null,null,null,null,null,null,null,null,{"$f":"Заявление!CN157","v":""},null,null,null,null,null,null,null,null,null,null,null,null,null,null,null,null,null,null,null,null,null,null,null,null,null,null,null,null,null,null,null,null,null,null,null,null,null,null,null,null,null,null,0,null,null,null,null,null,null,null,null,null,null,null,null,null,null,null,null,null,null,null,null,null,null,null,null,null,null,null,null,null,null,null,null,null,null,null,null,null,null,null,null,null,null,null,null,null,null,null,null,null,null,null,null,null,null,null,null,null,null,null,null,null,null,null,null,null,null,null,null,null,null,null,null,null,null,null,null,null,null,2,{"$f":"CQ30","v":0}]
["2.1.",null,null,null,null,null,null,null,null,null,null,null,null,null,null,null,null,null,null,null,null,null,null,null,null,null,null,null,null,null,null,null,null,null,null,null,null,null,null,null,null,null,null,null,null,null,null,null,null,null,null,null,null,null,null,null,null,null,null,null,null,null,null,null,null,null,null,null,null,null,null,null,null,null,null,null,null,null,null,null,null,null,null,null,null,null,null,null,null,null,null,null,null,null,null,null,null,null,null,null,null,null,null,null,null,null,null,null,null,null,null,null,{"$f":"Заявление!CN157","v":""},null,null,null,null,null,null,null,null,null,null,null,null,null,null,null,null,null,null,null,null,null,null,null,null,null,null,null,null,null,null,null,null,null,null,null,null,null,null,null,null,null,null,0]
["2.2.",null,null,null,null,null,null,null,null,null,null,null,null,null,null,null,null,null,null,null,null,null,null,null,null,null,null,null,null,null,null,null,null,null,null,null,null,null,null,null,null,null,null,null,null,null,null,null,null,null,null,null,null,null,null,null,null,null,null,null,null,null,null,null,null,null,null,null,null,null,null,null,null,null,null,null,null,null,null,null,null,null,null,null,null,null,null,null,null,null,null,null,null,null,null,null,null,null,null,null,null,null,null,null,null,null,null,null,null,null,null,null,{"$f":"Заявление!CN157","v":""},null,null,null,null,null,null,null,null,null,null,null,null,null,null,null,null,null,null,null,null,null,null,null,null,null,null,null,null,null,null,null,null,null,null,null,null,null,null,null,null,null,null,0]
["2.3.",null,null,null,null,null,null,null,null,null,null,null,null,null,null,null,null,null,null,null,null,null,null,null,null,null,null,null,null,null,null,null,null,null,null,null,null,null,null,null,null,null,null,null,null,null,null,null,null,null,null,null,null,null,null,null,null,null,null,null,null,null,null,null,null,null,null,null,null,null,null,null,null,null,null,null,null,null,null,null,null,null,null,null,null,null,null,null,null,null,null,null,null,null,null,null,null,null,null,null,null,null,null,null,null,null,null,null,null,null,null,null,{"$f":"Заявление!CN157","v":""},null,null,null,null,null,null,null,null,null,null,null,null,null,null,null,null,null,null,null,null,null,null,null,null,null,null,null,null,null,null,null,null,null,null,null,null,null,null,null,null,null,null,0]
["2.4.",null,null,null,null,null,null,null,null,null,null,null,null,null,null,null,null,null,null,null,null,null,null,null,null,null,null,null,null,null,null,null,null,null,null,null,null,null,null,null,null,null,null,null,null,null,null,null,null,null,null,null,null,null,null,null,null,null,null,null,null,null,null,null,null,null,null,null,null,null,null,null,null,null,null,null,null,null,null,null,null,null,null,null,null,null,null,null,null,null,null,null,null,null,null,null,null,null,null,null,null,null,null,null,null,null,null,null,null,null,null,null,{"$f":"Заявление!CN157","v":""},null,null,null,null,null,null,null,null,null,null,null,null,null,null,null,null,null,null,null,null,null,null,null,null,null,null,null,null,null,null,null,null,null,null,null,null,null,null,null,null,null,null,0]
["2.5.",null,null,null,null,null,null,null,null,null,null,null,null,null,null,null,null,null,null,null,null,null,null,null,null,null,null,null,null,null,null,null,null,null,null,null,null,null,null,null,null,null,null,null,null,null,null,null,null,null,null,null,null,null,null,null,null,null,null,null,null,null,null,null,null,null,null,null,null,null,null,null,null,null,null,null,null,null,null,null,null,null,null,null,null,null,null,null,null,null,null,null,null,null,null,null,null,null,null,null,null,null,null,null,null,null,null,null,null,null,null,null,{"$f":"Заявление!CN157","v":""},null,null,null,null,null,null,null,null,null,null,null,null,null,null,null,null,null,null,null,null,null,null,null,null,null,null,null,null,null,null,null,null,null,null,null,null,null,null,null,null,null,null,0]
["2.6.",null,null,null,null,null,null,null,null,null,null,null,null,null,null,null,null,null,null,null,null,null,null,null,null,null,null,null,null,null,null,null,null,null,null,null,null,null,null,null,null,null,null,null,null,null,null,null,null,null,null,null,null,null,null,null,null,null,null,null,null,null,null,null,null,null,null,null,null,null,null,null,null,null,null,null,null,null,null,null,null,null,null,null,null,null,null,null,null,null,null,null,null,null,null,null,null,null,null,null,null,null,null,null,null,null,null,null,null,null,null,null,{"$f":"Заявление!CN157","v":""},null,null,null,null,null,null,null,null,null,null,null,null,null,null,null,null,null,null,null,null,null,null,null,null,null,null,null,null,null,null,null,null,null,null,null,null,null,null,null,null,null,null,0]
["2.7.",null,null,null,null,null,null,null,null,null,null,null,null,null,null,null,null,null,null,null,null,null,null,null,null,null,null,null,null,null,null,null,null,null,null,null,null,null,null,null,null,null,null,null,null,null,null,null,null,null,null,null,null,null,null,null,null,null,null,null,null,null,null,null,null,null,null,null,null,null,null,null,null,null,null,null,null,null,null,null,null,null,null,null,null,null,null,null,null,null,null,null,null,null,null,null,null,null,null,null,null,null,null,null,null,null,null,null,null,null,null,null,{"$f":"Заявление!CN157","v":""},null,null,null,null,null,null,null,null,null,null,null,null,null,null,null,null,null,null,null,null,null,null,null,null,null,null,null,null,null,null,null,null,null,null,null,null,null,null,null,null,null,null,0]
["2.8.",null,null,null,null,null,null,null,null,null,null,null,null,null,null,null,null,null,null,null,null,null,null,null,null,null,null,null,null,null,null,null,null,null,null,null,null,null,null,null,null,null,null,null,null,null,null,null,null,null,null,null,null,null,null,null,null,null,null,null,null,null,null,null,null,null,null,null,null,null,null,null,null,null,null,null,null,null,null,null,null,null,null,null,null,null,null,null,null,null,null,null,null,null,null,null,null,null,null,null,null,null,null,null,null,null,null,null,null,null,null,null,{"$f":"Заявление!CN157","v":""},null,null,null,null,null,null,null,null,null,null,null,null,null,null,null,null,null,null,null,null,null,null,null,null,null,null,null,null,null,null,null,null,null,null,null,null,null,null,null,null,null,null,0]
["2.9.",null,null,null,null,null,null,null,null,null,null,null,null,null,null,null,null,null,null,null,null,null,null,null,null,null,null,null,null,null,null,null,null,null,null,null,null,null,null,null,null,null,null,null,null,null,null,null,null,null,null,null,null,null,null,null,null,null,null,null,null,null,null,null,null,null,null,null,null,null,null,null,null,null,null,null,null,null,null,null,null,null,null,null,null,null,null,null,null,null,null,null,null,null,null,null,null,null,null,null,null,null,null,null,null,null,null,null,null,null,null,null,{"$f":"Заявление!CN157","v":""},null,null,null,null,null,null,null,null,null,null,null,null,null,null,null,null,null,null,null,null,null,null,null,null,null,null,null,null,null,null,null,null,null,null,null,null,null,null,null,null,null,null,0]
["2.10.",null,null,null,null,null,null,null,null,null,null,null,null,null,null,null,null,null,null,null,null,null,null,null,null,null,null,null,null,null,null,null,null,null,null,null,null,null,null,null,null,null,null,null,null,null,null,null,null,null,null,null,null,null,null,null,null,null,null,null,null,null,null,null,null,null,null,null,null,null,null,null,null,null,null,null,null,null,null,null,null,null,null,null,null,null,null,null,null,null,null,null,null,null,null,null,null,null,null,null,null,null,null,null,null,null,null,null,null,null,null,null,{"$f":"Заявление!CN157","v":""},null,null,null,null,null,null,null,null,null,null,null,null,null,null,null,null,null,null,null,null,null,null,null,null,null,null,null,null,null,null,null,null,null,null,null,null,null,null,null,null,null,null,0]
["2.11.",null,null,null,null,null,null,null,null,null,null,null,null,null,null,null,null,null,null,null,null,null,null,null,null,null,null,null,null,null,null,null,null,null,null,null,null,null,null,null,null,null,null,null,null,null,null,null,null,null,null,null,null,null,null,null,null,null,null,null,null,null,null,null,null,null,null,null,null,null,null,null,null,null,null,null,null,null,null,null,null,null,null,null,null,null,null,null,null,null,null,null,null,null,null,null,null,null,null,null,null,null,null,null,null,null,null,null,null,null,null,null,{"$f":"Заявление!CN157","v":""},null,null,null,null,null,null,null,null,null,null,null,null,null,null,null,null,null,null,null,null,null,null,null,null,null,null,null,null,null,null,null,null,null,null,null,null,null,null,null,null,null,null,0]
["2.12.",null,null,null,null,null,null,null,null,null,null,null,null,null,null,null,null,null,null,null,null,null,null,null,null,null,null,null,null,null,null,null,null,null,null,null,null,null,null,null,null,null,null,null,null,null,null,null,null,null,null,null,null,null,null,null,null,null,null,null,null,null,null,null,null,null,null,null,null,null,null,null,null,null,null,null,null,null,null,null,null,null,null,null,null,null,null,null,null,null,null,null,null,null,null,null,null,null,null,null,null,null,null,null,null,null,null,null,null,null,null,null,{"$f":"Заявление!CN157","v":""},null,null,null,null,null,null,null,null,null,null,null,null,null,null,null,null,null,null,null,null,null,null,null,null,null,null,null,null,null,null,null,null,null,null,null,null,null,null,null,null,null,null,0]
["2.13.",null,null,null,null,null,null,null,null,null,null,null,null,null,null,null,null,null,null,null,null,null,null,null,null,null,null,null,null,null,null,null,null,null,null,null,null,null,null,null,null,null,null,null,null,null,null,null,null,null,null,null,null,null,null,null,null,null,null,null,null,null,null,null,null,null,null,null,null,null,null,null,null,null,null,null,null,null,null,null,null,null,null,null,null,null,null,null,null,null,null,null,null,null,null,null,null,null,null,null,null,null,null,null,null,null,null,null,null,null,null,null,{"$f":"Заявление!CN157","v":""},null,null,null,null,null,null,null,null,null,null,null,null,null,null,null,null,null,null,null,null,null,null,null,null,null,null,null,null,null,null,null,null,null,null,null,null,null,null,null,null,null,null,0]
["2.14.",null,null,null,null,null,null,null,null,null,null,null,null,null,null,null,null,null,null,null,null,null,null,null,null,null,null,null,null,null,null,null,null,null,null,null,null,null,null,null,null,null,null,null,null,null,null,null,null,null,null,null,null,null,null,null,null,null,null,null,null,null,null,null,null,null,null,null,null,null,null,null,null,null,null,null,null,null,null,null,null,null,null,null,null,null,null,null,null,null,null,null,null,null,null,null,null,null,null,null,null,null,null,null,null,null,null,null,null,null,null,null,{"$f":"Заявление!CN157","v":""},null,null,null,null,null,null,null,null,null,null,null,null,null,null,null,null,null,null,null,null,null,null,null,null,null,null,null,null,null,null,null,null,null,null,null,null,null,null,null,null,null,null,0]
["2.15.",null,null,null,null,null,null,null,null,null,null,null,null,null,null,null,null,null,null,null,null,null,null,null,null,null,null,null,null,null,null,null,null,null,null,null,null,null,null,null,null,null,null,null,null,null,null,null,null,null,null,null,null,null,null,null,null,null,null,null,null,null,null,null,null,null,null,null,null,null,null,null,null,null,null,null,null,null,null,null,null,null,null,null,null,null,null,null,null,null,null,null,null,null,null,null,null,null,null,null,null,null,null,null,null,null,null,null,null,null,null,null,{"$f":"Заявление!CN157","v":""},null,null,null,null,null,null,null,null,null,null,null,null,null,null,null,null,null,null,null,null,null,null,null,null,null,null,null,null,null,null,null,null,null,null,null,null,null,null,null,null,null,null,0]
["2.16.",null,null,null,null,null,null,null,null,null,null,null,null,null,null,null,null,null,null,null,null,null,null,null,null,null,null,null,null,null,null,null,null,null,null,null,null,null,null,null,null,null,null,null,null,null,null,null,null,null,null,null,null,null,null,null,null,null,null,null,null,null,null,null,null,null,null,null,null,null,null,null,null,null,null,null,null,null,null,null,null,null,null,null,null,null,null,null,null,null,null,null,null,null,null,null,null,null,null,null,null,null,null,null,null,null,null,null,null,null,null,null,{"$f":"Заявление!CN157","v":""},null,null,null,null,null,null,null,null,null,null,null,null,null,null,null,null,null,null,null,null,null,null,null,null,null,null,null,null,null,null,null,null,null,null,null,null,null,null,null,null,null,null,0]
["2.17.",null,null,null,null,null,null,null,null,null,null,null,null,null,null,null,null,null,null,null,null,null,null,null,null,null,null,null,null,null,null,null,null,null,null,null,null,null,null,null,null,null,null,null,null,null,null,null,null,null,null,null,null,null,null,null,null,null,null,null,null,null,null,null,null,null,null,null,null,null,null,null,null,null,null,null,null,null,null,null,null,null,null,null,null,null,null,null,null,null,null,null,null,null,null,null,null,null,null,null,null,null,null,null,null,null,null,null,null,null,null,null,{"$f":"Заявление!CN157","v":""},null,null,null,null,null,null,null,null,null,null,null,null,null,null,null,null,null,null,null,null,null,null,null,null,null,null,null,null,null,null,null,null,null,null,null,null,null,null,null,null,null,null,0]
["2.18.",null,null,null,null,null,null,null,null,null,null,null,null,null,null,null,null,null,null,null,null,null,null,null,null,null,null,null,null,null,null,null,null,null,null,null,null,null,null,null,null,null,null,null,null,null,null,null,null,null,null,null,null,null,null,null,null,null,null,null,null,null,null,null,null,null,null,null,null,null,null,null,null,null,null,null,null,null,null,null,null,null,null,null,null,null,null,null,null,null,null,null,null,null,null,null,null,null,null,null,null,null,null,null,null,null,null,null,null,null,null,null,{"$f":"Заявление!CN157","v":""},null,null,null,null,null,null,null,null,null,null,null,null,null,null,null,null,null,null,null,null,null,null,null,null,null,null,null,null,null,null,null,null,null,null,null,null,null,null,null,null,null,null,0]
["2.19.",null,null,null,null,null,null,null,null,null,null,null,null,null,null,null,null,null,null,null,null,null,null,null,null,null,null,null,null,null,null,null,null,null,null,null,null,null,null,null,null,null,null,null,null,null,null,null,null,null,null,null,null,null,null,null,null,null,null,null,null,null,null,null,null,null,null,null,null,null,null,null,null,null,null,null,null,null,null,null,null,null,null,null,null,null,null,null,null,null,null,null,null,null,null,null,null,null,null,null,null,null,null,null,null,null,null,null,null,null,null,null,{"$f":"Заявление!CN157","v":""},null,null,null,null,null,null,null,null,null,null,null,null,null,null,null,null,null,null,null,null,null,null,null,null,null,null,null,null,null,null,null,null,null,null,null,null,null,null,null,null,null,null,0]
["2.20.",null,null,null,null,null,null,null,null,null,null,null,null,null,null,null,null,null,null,null,null,null,null,null,null,null,null,null,null,null,null,null,null,null,null,null,null,null,null,null,null,null,null,null,null,null,null,null,null,null,null,null,null,null,null,null,null,null,null,null,null,null,null,null,null,null,null,null,null,null,null,null,null,null,null,null,null,null,null,null,null,null,null,null,null,null,null,null,null,null,null,null,null,null,null,null,null,null,null,null,null,null,null,null,null,null,null,null,null,null,null,null,{"$f":"Заявление!CN157","v":""},null,null,null,null,null,null,null,null,null,null,null,null,null,null,null,null,null,null,null,null,null,null,null,null,null,null,null,null,null,null,null,null,null,null,null,null,null,null,null,null,null,null,0]
["3.","Мебель, в т.ч.:",null,null,null,null,null,null,null,null,null,null,null,null,null,null,null,null,null,null,null,null,null,null,null,null,null,null,null,null,null,null,null,null,null,null,null,null,null,null,null,null,null,null,null,null,null,null,null,null,null,null,null,null,null,null,null,null,null,null,null,null,null,null,null,null,null,null,null,null,null,null,null,null,null,null,null,null,null,null,null,null,null,null,null,null,null,null,null,null,null,null,null,null,{"$f":"SUM(CQ52:DH71)","v":0},null,null,null,null,null,null,null,null,null,null,null,null,null,null,null,null,null,{"$f":"Заявление!CN161","v":""},null,null,null,null,null,null,null,null,null,null,null,null,null,null,null,null,null,null,null,null,null,null,null,null,null,null,null,null,null,null,null,null,null,null,null,null,null,null,null,null,null,null,0,null,null,null,null,null,null,null,null,null,null,null,null,null,null,null,null,null,null,null,null,null,null,null,null,null,null,null,null,null,null,null,null,null,null,null,null,null,null,null,null,null,null,null,null,null,null,null,null,null,null,null,null,null,null,null,null,null,null,null,null,null,null,null,null,null,null,null,null,null,null,null,null,null,null,null,null,null,null,3,{"$f":"CQ51","v":0}]
["3.1.",null,null,null,null,null,null,null,null,null,null,null,null,null,null,null,null,null,null,null,null,null,null,null,null,null,null,null,null,null,null,null,null,null,null,null,null,null,null,null,null,null,null,null,null,null,null,null,null,null,null,null,null,null,null,null,null,null,null,null,null,null,null,null,null,null,null,null,null,null,null,null,null,null,null,null,null,null,null,null,null,null,null,null,null,null,null,null,null,null,null,null,null,null,null,null,null,null,null,null,null,null,null,null,null,null,null,null,null,null,null,null,{"$f":"Заявление!CN161","v":""},null,null,null,null,null,null,null,null,null,null,null,null,null,null,null,null,null,null,null,null,null,null,null,null,null,null,null,null,null,null,null,null,null,null,null,null,null,null,null,null,null,null,0]
["3.2.",null,null,null,null,null,null,null,null,null,null,null,null,null,null,null,null,null,null,null,null,null,null,null,null,null,null,null,null,null,null,null,null,null,null,null,null,null,null,null,null,null,null,null,null,null,null,null,null,null,null,null,null,null,null,null,null,null,null,null,null,null,null,null,null,null,null,null,null,null,null,null,null,null,null,null,null,null,null,null,null,null,null,null,null,null,null,null,null,null,null,null,null,null,null,null,null,null,null,null,null,null,null,null,null,null,null,null,null,null,null,null,{"$f":"Заявление!CN161","v":""},null,null,null,null,null,null,null,null,null,null,null,null,null,null,null,null,null,null,null,null,null,null,null,null,null,null,null,null,null,null,null,null,null,null,null,null,null,null,null,null,null,null,0]
["3.3.",null,null,null,null,null,null,null,null,null,null,null,null,null,null,null,null,null,null,null,null,null,null,null,null,null,null,null,null,null,null,null,null,null,null,null,null,null,null,null,null,null,null,null,null,null,null,null,null,null,null,null,null,null,null,null,null,null,null,null,null,null,null,null,null,null,null,null,null,null,null,null,null,null,null,null,null,null,null,null,null,null,null,null,null,null,null,null,null,null,null,null,null,null,null,null,null,null,null,null,null,null,null,null,null,null,null,null,null,null,null,null,{"$f":"Заявление!CN161","v":""},null,null,null,null,null,null,null,null,null,null,null,null,null,null,null,null,null,null,null,null,null,null,null,null,null,null,null,null,null,null,null,null,null,null,null,null,null,null,null,null,null,null,0]
["3.4.",null,null,null,null,null,null,null,null,null,null,null,null,null,null,null,null,null,null,null,null,null,null,null,null,null,null,null,null,null,null,null,null,null,null,null,null,null,null,null,null,null,null,null,null,null,null,null,null,null,null,null,null,null,null,null,null,null,null,null,null,null,null,null,null,null,null,null,null,null,null,null,null,null,null,null,null,null,null,null,null,null,null,null,null,null,null,null,null,null,null,null,null,null,null,null,null,null,null,null,null,null,null,null,null,null,null,null,null,null,null,null,{"$f":"Заявление!CN161","v":""},null,null,null,null,null,null,null,null,null,null,null,null,null,null,null,null,null,null,null,null,null,null,null,null,null,null,null,null,null,null,null,null,null,null,null,null,null,null,null,null,null,null,0]
["3.5.",null,null,null,null,null,null,null,null,null,null,null,null,null,null,null,null,null,null,null,null,null,null,null,null,null,null,null,null,null,null,null,null,null,null,null,null,null,null,null,null,null,null,null,null,null,null,null,null,null,null,null,null,null,null,null,null,null,null,null,null,null,null,null,null,null,null,null,null,null,null,null,null,null,null,null,null,null,null,null,null,null,null,null,null,null,null,null,null,null,null,null,null,null,null,null,null,null,null,null,null,null,null,null,null,null,null,null,null,null,null,null,{"$f":"Заявление!CN161","v":""},null,null,null,null,null,null,null,null,null,null,null,null,null,null,null,null,null,null,null,null,null,null,null,null,null,null,null,null,null,null,null,null,null,null,null,null,null,null,null,null,null,null,0]
["3.6.",null,null,null,null,null,null,null,null,null,null,null,null,null,null,null,null,null,null,null,null,null,null,null,null,null,null,null,null,null,null,null,null,null,null,null,null,null,null,null,null,null,null,null,null,null,null,null,null,null,null,null,null,null,null,null,null,null,null,null,null,null,null,null,null,null,null,null,null,null,null,null,null,null,null,null,null,null,null,null,null,null,null,null,null,null,null,null,null,null,null,null,null,null,null,null,null,null,null,null,null,null,null,null,null,null,null,null,null,null,null,null,{"$f":"Заявление!CN161","v":""},null,null,null,null,null,null,null,null,null,null,null,null,null,null,null,null,null,null,null,null,null,null,null,null,null,null,null,null,null,null,null,null,null,null,null,null,null,null,null,null,null,null,0]
["3.7.",null,null,null,null,null,null,null,null,null,null,null,null,null,null,null,null,null,null,null,null,null,null,null,null,null,null,null,null,null,null,null,null,null,null,null,null,null,null,null,null,null,null,null,null,null,null,null,null,null,null,null,null,null,null,null,null,null,null,null,null,null,null,null,null,null,null,null,null,null,null,null,null,null,null,null,null,null,null,null,null,null,null,null,null,null,null,null,null,null,null,null,null,null,null,null,null,null,null,null,null,null,null,null,null,null,null,null,null,null,null,null,{"$f":"Заявление!CN161","v":""},null,null,null,null,null,null,null,null,null,null,null,null,null,null,null,null,null,null,null,null,null,null,null,null,null,null,null,null,null,null,null,null,null,null,null,null,null,null,null,null,null,null,0]
["3.8.",null,null,null,null,null,null,null,null,null,null,null,null,null,null,null,null,null,null,null,null,null,null,null,null,null,null,null,null,null,null,null,null,null,null,null,null,null,null,null,null,null,null,null,null,null,null,null,null,null,null,null,null,null,null,null,null,null,null,null,null,null,null,null,null,null,null,null,null,null,null,null,null,null,null,null,null,null,null,null,null,null,null,null,null,null,null,null,null,null,null,null,null,null,null,null,null,null,null,null,null,null,null,null,null,null,null,null,null,null,null,null,{"$f":"Заявление!CN161","v":""},null,null,null,null,null,null,null,null,null,null,null,null,null,null,null,null,null,null,null,null,null,null,null,null,null,null,null,null,null,null,null,null,null,null,null,null,null,null,null,null,null,null,0]
["3.9.",null,null,null,null,null,null,null,null,null,null,null,null,null,null,null,null,null,null,null,null,null,null,null,null,null,null,null,null,null,null,null,null,null,null,null,null,null,null,null,null,null,null,null,null,null,null,null,null,null,null,null,null,null,null,null,null,null,null,null,null,null,null,null,null,null,null,null,null,null,null,null,null,null,null,null,null,null,null,null,null,null,null,null,null,null,null,null,null,null,null,null,null,null,null,null,null,null,null,null,null,null,null,null,null,null,null,null,null,null,null,null,{"$f":"Заявление!CN161","v":""},null,null,null,null,null,null,null,null,null,null,null,null,null,null,null,null,null,null,null,null,null,null,null,null,null,null,null,null,null,null,null,null,null,null,null,null,null,null,null,null,null,null,0]
["3.10.",null,null,null,null,null,null,null,null,null,null,null,null,null,null,null,null,null,null,null,null,null,null,null,null,null,null,null,null,null,null,null,null,null,null,null,null,null,null,null,null,null,null,null,null,null,null,null,null,null,null,null,null,null,null,null,null,null,null,null,null,null,null,null,null,null,null,null,null,null,null,null,null,null,null,null,null,null,null,null,null,null,null,null,null,null,null,null,null,null,null,null,null,null,null,null,null,null,null,null,null,null,null,null,null,null,null,null,null,null,null,null,{"$f":"Заявление!CN161","v":""},null,null,null,null,null,null,null,null,null,null,null,null,null,null,null,null,null,null,null,null,null,null,null,null,null,null,null,null,null,null,null,null,null,null,null,null,null,null,null,null,null,null,0]
["3.11.",null,null,null,null,null,null,null,null,null,null,null,null,null,null,null,null,null,null,null,null,null,null,null,null,null,null,null,null,null,null,null,null,null,null,null,null,null,null,null,null,null,null,null,null,null,null,null,null,null,null,null,null,null,null,null,null,null,null,null,null,null,null,null,null,null,null,null,null,null,null,null,null,null,null,null,null,null,null,null,null,null,null,null,null,null,null,null,null,null,null,null,null,null,null,null,null,null,null,null,null,null,null,null,null,null,null,null,null,null,null,null,{"$f":"Заявление!CN161","v":""},null,null,null,null,null,null,null,null,null,null,null,null,null,null,null,null,null,null,null,null,null,null,null,null,null,null,null,null,null,null,null,null,null,null,null,null,null,null,null,null,null,null,0]
["3.12.",null,null,null,null,null,null,null,null,null,null,null,null,null,null,null,null,null,null,null,null,null,null,null,null,null,null,null,null,null,null,null,null,null,null,null,null,null,null,null,null,null,null,null,null,null,null,null,null,null,null,null,null,null,null,null,null,null,null,null,null,null,null,null,null,null,null,null,null,null,null,null,null,null,null,null,null,null,null,null,null,null,null,null,null,null,null,null,null,null,null,null,null,null,null,null,null,null,null,null,null,null,null,null,null,null,null,null,null,null,null,null,{"$f":"Заявление!CN161","v":""},null,null,null,null,null,null,null,null,null,null,null,null,null,null,null,null,null,null,null,null,null,null,null,null,null,null,null,null,null,null,null,null,null,null,null,null,null,null,null,null,null,null,0]
["3.13.",null,null,null,null,null,null,null,null,null,null,null,null,null,null,null,null,null,null,null,null,null,null,null,null,null,null,null,null,null,null,null,null,null,null,null,null,null,null,null,null,null,null,null,null,null,null,null,null,null,null,null,null,null,null,null,null,null,null,null,null,null,null,null,null,null,null,null,null,null,null,null,null,null,null,null,null,null,null,null,null,null,null,null,null,null,null,null,null,null,null,null,null,null,null,null,null,null,null,null,null,null,null,null,null,null,null,null,null,null,null,null,{"$f":"Заявление!CN161","v":""},null,null,null,null,null,null,null,null,null,null,null,null,null,null,null,null,null,null,null,null,null,null,null,null,null,null,null,null,null,null,null,null,null,null,null,null,null,null,null,null,null,null,0]
["3.14.",null,null,null,null,null,null,null,null,null,null,null,null,null,null,null,null,null,null,null,null,null,null,null,null,null,null,null,null,null,null,null,null,null,null,null,null,null,null,null,null,null,null,null,null,null,null,null,null,null,null,null,null,null,null,null,null,null,null,null,null,null,null,null,null,null,null,null,null,null,null,null,null,null,null,null,null,null,null,null,null,null,null,null,null,null,null,null,null,null,null,null,null,null,null,null,null,null,null,null,null,null,null,null,null,null,null,null,null,null,null,null,{"$f":"Заявление!CN161","v":""},null,null,null,null,null,null,null,null,null,null,null,null,null,null,null,null,null,null,null,null,null,null,null,null,null,null,null,null,null,null,null,null,null,null,null,null,null,null,null,null,null,null,0]
["3.15.",null,null,null,null,null,null,null,null,null,null,null,null,null,null,null,null,null,null,null,null,null,null,null,null,null,null,null,null,null,null,null,null,null,null,null,null,null,null,null,null,null,null,null,null,null,null,null,null,null,null,null,null,null,null,null,null,null,null,null,null,null,null,null,null,null,null,null,null,null,null,null,null,null,null,null,null,null,null,null,null,null,null,null,null,null,null,null,null,null,null,null,null,null,null,null,null,null,null,null,null,null,null,null,null,null,null,null,null,null,null,null,{"$f":"Заявление!CN161","v":""},null,null,null,null,null,null,null,null,null,null,null,null,null,null,null,null,null,null,null,null,null,null,null,null,null,null,null,null,null,null,null,null,null,null,null,null,null,null,null,null,null,null,0]
["3.16.",null,null,null,null,null,null,null,null,null,null,null,null,null,null,null,null,null,null,null,null,null,null,null,null,null,null,null,null,null,null,null,null,null,null,null,null,null,null,null,null,null,null,null,null,null,null,null,null,null,null,null,null,null,null,null,null,null,null,null,null,null,null,null,null,null,null,null,null,null,null,null,null,null,null,null,null,null,null,null,null,null,null,null,null,null,null,null,null,null,null,null,null,null,null,null,null,null,null,null,null,null,null,null,null,null,null,null,null,null,null,null,{"$f":"Заявление!CN161","v":""},null,null,null,null,null,null,null,null,null,null,null,null,null,null,null,null,null,null,null,null,null,null,null,null,null,null,null,null,null,null,null,null,null,null,null,null,null,null,null,null,null,null,0]
["3.17.",null,null,null,null,null,null,null,null,null,null,null,null,null,null,null,null,null,null,null,null,null,null,null,null,null,null,null,null,null,null,null,null,null,null,null,null,null,null,null,null,null,null,null,null,null,null,null,null,null,null,null,null,null,null,null,null,null,null,null,null,null,null,null,null,null,null,null,null,null,null,null,null,null,null,null,null,null,null,null,null,null,null,null,null,null,null,null,null,null,null,null,null,null,null,null,null,null,null,null,null,null,null,null,null,null,null,null,null,null,null,null,{"$f":"Заявление!CN161","v":""},null,null,null,null,null,null,null,null,null,null,null,null,null,null,null,null,null,null,null,null,null,null,null,null,null,null,null,null,null,null,null,null,null,null,null,null,null,null,null,null,null,null,0]
["3.18.",null,null,null,null,null,null,null,null,null,null,null,null,null,null,null,null,null,null,null,null,null,null,null,null,null,null,null,null,null,null,null,null,null,null,null,null,null,null,null,null,null,null,null,null,null,null,null,null,null,null,null,null,null,null,null,null,null,null,null,null,null,null,null,null,null,null,null,null,null,null,null,null,null,null,null,null,null,null,null,null,null,null,null,null,null,null,null,null,null,null,null,null,null,null,null,null,null,null,null,null,null,null,null,null,null,null,null,null,null,null,null,{"$f":"Заявление!CN161","v":""},null,null,null,null,null,null,null,null,null,null,null,null,null,null,null,null,null,null,null,null,null,null,null,null,null,null,null,null,null,null,null,null,null,null,null,null,null,null,null,null,null,null,0]
["3.19.",null,null,null,null,null,null,null,null,null,null,null,null,null,null,null,null,null,null,null,null,null,null,null,null,null,null,null,null,null,null,null,null,null,null,null,null,null,null,null,null,null,null,null,null,null,null,null,null,null,null,null,null,null,null,null,null,null,null,null,null,null,null,null,null,null,null,null,null,null,null,null,null,null,null,null,null,null,null,null,null,null,null,null,null,null,null,null,null,null,null,null,null,null,null,null,null,null,null,null,null,null,null,null,null,null,null,null,null,null,null,null,{"$f":"Заявление!CN161","v":""},null,null,null,null,null,null,null,null,null,null,null,null,null,null,null,null,null,null,null,null,null,null,null,null,null,null,null,null,null,null,null,null,null,null,null,null,null,null,null,null,null,null,0]
["3.20.",null,null,null,null,null,null,null,null,null,null,null,null,null,null,null,null,null,null,null,null,null,null,null,null,null,null,null,null,null,null,null,null,null,null,null,null,null,null,null,null,null,null,null,null,null,null,null,null,null,null,null,null,null,null,null,null,null,null,null,null,null,null,null,null,null,null,null,null,null,null,null,null,null,null,null,null,null,null,null,null,null,null,null,null,null,null,null,null,null,null,null,null,null,null,null,null,null,null,null,null,null,null,null,null,null,null,null,null,null,null,null,{"$f":"Заявление!CN161","v":""},null,null,null,null,null,null,null,null,null,null,null,null,null,null,null,null,null,null,null,null,null,null,null,null,null,null,null,null,null,null,null,null,null,null,null,null,null,null,null,null,null,null,0]
["4.","Инструменты, производственный и хозяйственный инвентарь, в т.ч.:",null,null,null,null,null,null,null,null,null,null,null,null,null,null,null,null,null,null,null,null,null,null,null,null,null,null,null,null,null,null,null,null,null,null,null,null,null,null,null,null,null,null,null,null,null,null,null,null,null,null,null,null,null,null,null,null,null,null,null,null,null,null,null,null,null,null,null,null,null,null,null,null,null,null,null,null,null,null,null,null,null,null,null,null,null,null,null,null,null,null,null,null,{"$f":"SUM(CQ73:DH92)","v":0},null,null,null,null,null,null,null,null,null,null,null,null,null,null,null,null,null,{"$f":"Заявление!CN165","v":""},null,null,null,null,null,null,null,null,null,null,null,null,null,null,null,null,null,null,null,null,null,null,null,null,null,null,null,null,null,null,null,null,null,null,null,null,null,null,null,null,null,null,0,null,null,null,null,null,null,null,null,null,null,null,null,null,null,null,null,null,null,null,null,null,null,null,null,null,null,null,null,null,null,null,null,null,null,null,null,null,null,null,null,null,null,null,null,null,null,null,null,null,null,null,null,null,null,null,null,null,null,null,null,null,null,null,null,null,null,null,null,null,null,null,null,null,null,null,null,null,null,4,{"$f":"CQ72","v":0}]
["4.1.",null,null,null,null,null,null,null,null,null,null,null,null,null,null,null,null,null,null,null,null,null,null,null,null,null,null,null,null,null,null,null,null,null,null,null,null,null,null,null,null,null,null,null,null,null,null,null,null,null,null,null,null,null,null,null,null,null,null,null,null,null,null,null,null,null,null,null,null,null,null,null,null,null,null,null,null,null,null,null,null,null,null,null,null,null,null,null,null,null,null,null,null,null,null,null,null,null,null,null,null,null,null,null,null,null,null,null,null,null,null,null,{"$f":"Заявление!CN165","v":""},null,null,null,null,null,null,null,null,null,null,null,null,null,null,null,null,null,null,null,null,null,null,null,null,null,null,null,null,null,null,null,null,null,null,null,null,null,null,null,null,null,null,0]
["4.2.",null,null,null,null,null,null,null,null,null,null,null,null,null,null,null,null,null,null,null,null,null,null,null,null,null,null,null,null,null,null,null,null,null,null,null,null,null,null,null,null,null,null,null,null,null,null,null,null,null,null,null,null,null,null,null,null,null,null,null,null,null,null,null,null,null,null,null,null,null,null,null,null,null,null,null,null,null,null,null,null,null,null,null,null,null,null,null,null,null,null,null,null,null,null,null,null,null,null,null,null,null,null,null,null,null,null,null,null,null,null,null,{"$f":"Заявление!CN165","v":""},null,null,null,null,null,null,null,null,null,null,null,null,null,null,null,null,null,null,null,null,null,null,null,null,null,null,null,null,null,null,null,null,null,null,null,null,null,null,null,null,null,null,0]
["4.3.",null,null,null,null,null,null,null,null,null,null,null,null,null,null,null,null,null,null,null,null,null,null,null,null,null,null,null,null,null,null,null,null,null,null,null,null,null,null,null,null,null,null,null,null,null,null,null,null,null,null,null,null,null,null,null,null,null,null,null,null,null,null,null,null,null,null,null,null,null,null,null,null,null,null,null,null,null,null,null,null,null,null,null,null,null,null,null,null,null,null,null,null,null,null,null,null,null,null,null,null,null,null,null,null,null,null,null,null,null,null,null,{"$f":"Заявление!CN165","v":""},null,null,null,null,null,null,null,null,null,null,null,null,null,null,null,null,null,null,null,null,null,null,null,null,null,null,null,null,null,null,null,null,null,null,null,null,null,null,null,null,null,null,0]
["4.4.",null,null,null,null,null,null,null,null,null,null,null,null,null,null,null,null,null,null,null,null,null,null,null,null,null,null,null,null,null,null,null,null,null,null,null,null,null,null,null,null,null,null,null,null,null,null,null,null,null,null,null,null,null,null,null,null,null,null,null,null,null,null,null,null,null,null,null,null,null,null,null,null,null,null,null,null,null,null,null,null,null,null,null,null,null,null,null,null,null,null,null,null,null,null,null,null,null,null,null,null,null,null,null,null,null,null,null,null,null,null,null,{"$f":"Заявление!CN165","v":""},null,null,null,null,null,null,null,null,null,null,null,null,null,null,null,null,null,null,null,null,null,null,null,null,null,null,null,null,null,null,null,null,null,null,null,null,null,null,null,null,null,null,0]
["4.5.",null,null,null,null,null,null,null,null,null,null,null,null,null,null,null,null,null,null,null,null,null,null,null,null,null,null,null,null,null,null,null,null,null,null,null,null,null,null,null,null,null,null,null,null,null,null,null,null,null,null,null,null,null,null,null,null,null,null,null,null,null,null,null,null,null,null,null,null,null,null,null,null,null,null,null,null,null,null,null,null,null,null,null,null,null,null,null,null,null,null,null,null,null,null,null,null,null,null,null,null,null,null,null,null,null,null,null,null,null,null,null,{"$f":"Заявление!CN165","v":""},null,null,null,null,null,null,null,null,null,null,null,null,null,null,null,null,null,null,null,null,null,null,null,null,null,null,null,null,null,null,null,null,null,null,null,null,null,null,null,null,null,null,0]
["4.6.",null,null,null,null,null,null,null,null,null,null,null,null,null,null,null,null,null,null,null,null,null,null,null,null,null,null,null,null,null,null,null,null,null,null,null,null,null,null,null,null,null,null,null,null,null,null,null,null,null,null,null,null,null,null,null,null,null,null,null,null,null,null,null,null,null,null,null,null,null,null,null,null,null,null,null,null,null,null,null,null,null,null,null,null,null,null,null,null,null,null,null,null,null,null,null,null,null,null,null,null,null,null,null,null,null,null,null,null,null,null,null,{"$f":"Заявление!CN165","v":""},null,null,null,null,null,null,null,null,null,null,null,null,null,null,null,null,null,null,null,null,null,null,null,null,null,null,null,null,null,null,null,null,null,null,null,null,null,null,null,null,null,null,{"$f":"EI78*CQ78","v":0}]
["4.7.",null,null,null,null,null,null,null,null,null,null,null,null,null,null,null,null,null,null,null,null,null,null,null,null,null,null,null,null,null,null,null,null,null,null,null,null,null,null,null,null,null,null,null,null,null,null,null,null,null,null,null,null,null,null,null,null,null,null,null,null,null,null,null,null,null,null,null,null,null,null,null,null,null,null,null,null,null,null,null,null,null,null,null,null,null,null,null,null,null,null,null,null,null,null,null,null,null,null,null,null,null,null,null,null,null,null,null,null,null,null,null,{"$f":"Заявление!CN165","v":""},null,null,null,null,null,null,null,null,null,null,null,null,null,null,null,null,null,null,null,null,null,null,null,null,null,null,null,null,null,null,null,null,null,null,null,null,null,null,null,null,null,null,0]
["4.8.",null,null,null,null,null,null,null,null,null,null,null,null,null,null,null,null,null,null,null,null,null,null,null,null,null,null,null,null,null,null,null,null,null,null,null,null,null,null,null,null,null,null,null,null,null,null,null,null,null,null,null,null,null,null,null,null,null,null,null,null,null,null,null,null,null,null,null,null,null,null,null,null,null,null,null,null,null,null,null,null,null,null,null,null,null,null,null,null,null,null,null,null,null,null,null,null,null,null,null,null,null,null,null,null,null,null,null,null,null,null,null,{"$f":"Заявление!CN165","v":""},null,null,null,null,null,null,null,null,null,null,null,null,null,null,null,null,null,null,null,null,null,null,null,null,null,null,null,null,null,null,null,null,null,null,null,null,null,null,null,null,null,null,0]
["4.9.",null,null,null,null,null,null,null,null,null,null,null,null,null,null,null,null,null,null,null,null,null,null,null,null,null,null,null,null,null,null,null,null,null,null,null,null,null,null,null,null,null,null,null,null,null,null,null,null,null,null,null,null,null,null,null,null,null,null,null,null,null,null,null,null,null,null,null,null,null,null,null,null,null,null,null,null,null,null,null,null,null,null,null,null,null,null,null,null,null,null,null,null,null,null,null,null,null,null,null,null,null,null,null,null,null,null,null,null,null,null,null,{"$f":"Заявление!CN165","v":""},null,null,null,null,null,null,null,null,null,null,null,null,null,null,null,null,null,null,null,null,null,null,null,null,null,null,null,null,null,null,null,null,null,null,null,null,null,null,null,null,null,null,0]
["4.10.",null,null,null,null,null,null,null,null,null,null,null,null,null,null,null,null,null,null,null,null,null,null,null,null,null,null,null,null,null,null,null,null,null,null,null,null,null,null,null,null,null,null,null,null,null,null,null,null,null,null,null,null,null,null,null,null,null,null,null,null,null,null,null,null,null,null,null,null,null,null,null,null,null,null,null,null,null,null,null,null,null,null,null,null,null,null,null,null,null,null,null,null,null,null,null,null,null,null,null,null,null,null,null,null,null,null,null,null,null,null,null,{"$f":"Заявление!CN165","v":""},null,null,null,null,null,null,null,null,null,null,null,null,null,null,null,null,null,null,null,null,null,null,null,null,null,null,null,null,null,null,null,null,null,null,null,null,null,null,null,null,null,null,0]
["4.11.",null,null,null,null,null,null,null,null,null,null,null,null,null,null,null,null,null,null,null,null,null,null,null,null,null,null,null,null,null,null,null,null,null,null,null,null,null,null,null,null,null,null,null,null,null,null,null,null,null,null,null,null,null,null,null,null,null,null,null,null,null,null,null,null,null,null,null,null,null,null,null,null,null,null,null,null,null,null,null,null,null,null,null,null,null,null,null,null,null,null,null,null,null,null,null,null,null,null,null,null,null,null,null,null,null,null,null,null,null,null,null,{"$f":"Заявление!CN165","v":""},null,null,null,null,null,null,null,null,null,null,null,null,null,null,null,null,null,null,null,null,null,null,null,null,null,null,null,null,null,null,null,null,null,null,null,null,null,null,null,null,null,null,0]
["4.12.",null,null,null,null,null,null,null,null,null,null,null,null,null,null,null,null,null,null,null,null,null,null,null,null,null,null,null,null,null,null,null,null,null,null,null,null,null,null,null,null,null,null,null,null,null,null,null,null,null,null,null,null,null,null,null,null,null,null,null,null,null,null,null,null,null,null,null,null,null,null,null,null,null,null,null,null,null,null,null,null,null,null,null,null,null,null,null,null,null,null,null,null,null,null,null,null,null,null,null,null,null,null,null,null,null,null,null,null,null,null,null,{"$f":"Заявление!CN165","v":""},null,null,null,null,null,null,null,null,null,null,null,null,null,null,null,null,null,null,null,null,null,null,null,null,null,null,null,null,null,null,null,null,null,null,null,null,null,null,null,null,null,null,0]
["4.13.",null,null,null,null,null,null,null,null,null,null,null,null,null,null,null,null,null,null,null,null,null,null,null,null,null,null,null,null,null,null,null,null,null,null,null,null,null,null,null,null,null,null,null,null,null,null,null,null,null,null,null,null,null,null,null,null,null,null,null,null,null,null,null,null,null,null,null,null,null,null,null,null,null,null,null,null,null,null,null,null,null,null,null,null,null,null,null,null,null,null,null,null,null,null,null,null,null,null,null,null,null,null,null,null,null,null,null,null,null,null,null,{"$f":"Заявление!CN165","v":""},null,null,null,null,null,null,null,null,null,null,null,null,null,null,null,null,null,null,null,null,null,null,null,null,null,null,null,null,null,null,null,null,null,null,null,null,null,null,null,null,null,null,0]
["4.14.",null,null,null,null,null,null,null,null,null,null,null,null,null,null,null,null,null,null,null,null,null,null,null,null,null,null,null,null,null,null,null,null,null,null,null,null,null,null,null,null,null,null,null,null,null,null,null,null,null,null,null,null,null,null,null,null,null,null,null,null,null,null,null,null,null,null,null,null,null,null,null,null,null,null,null,null,null,null,null,null,null,null,null,null,null,null,null,null,null,null,null,null,null,null,null,null,null,null,null,null,null,null,null,null,null,null,null,null,null,null,null,{"$f":"Заявление!CN165","v":""},null,null,null,null,null,null,null,null,null,null,null,null,null,null,null,null,null,null,null,null,null,null,null,null,null,null,null,null,null,null,null,null,null,null,null,null,null,null,null,null,null,null,0]
["4.15.",null,null,null,null,null,null,null,null,null,null,null,null,null,null,null,null,null,null,null,null,null,null,null,null,null,null,null,null,null,null,null,null,null,null,null,null,null,null,null,null,null,null,null,null,null,null,null,null,null,null,null,null,null,null,null,null,null,null,null,null,null,null,null,null,null,null,null,null,null,null,null,null,null,null,null,null,null,null,null,null,null,null,null,null,null,null,null,null,null,null,null,null,null,null,null,null,null,null,null,null,null,null,null,null,null,null,null,null,null,null,null,{"$f":"Заявление!CN165","v":""},null,null,null,null,null,null,null,null,null,null,null,null,null,null,null,null,null,null,null,null,null,null,null,null,null,null,null,null,null,null,null,null,null,null,null,null,null,null,null,null,null,null,0]
["4.16.",null,null,null,null,null,null,null,null,null,null,null,null,null,null,null,null,null,null,null,null,null,null,null,null,null,null,null,null,null,null,null,null,null,null,null,null,null,null,null,null,null,null,null,null,null,null,null,null,null,null,null,null,null,null,null,null,null,null,null,null,null,null,null,null,null,null,null,null,null,null,null,null,null,null,null,null,null,null,null,null,null,null,null,null,null,null,null,null,null,null,null,null,null,null,null,null,null,null,null,null,null,null,null,null,null,null,null,null,null,null,null,{"$f":"Заявление!CN165","v":""},null,null,null,null,null,null,null,null,null,null,null,null,null,null,null,null,null,null,null,null,null,null,null,null,null,null,null,null,null,null,null,null,null,null,null,null,null,null,null,null,null,null,0]
["4.17.",null,null,null,null,null,null,null,null,null,null,null,null,null,null,null,null,null,null,null,null,null,null,null,null,null,null,null,null,null,null,null,null,null,null,null,null,null,null,null,null,null,null,null,null,null,null,null,null,null,null,null,null,null,null,null,null,null,null,null,null,null,null,null,null,null,null,null,null,null,null,null,null,null,null,null,null,null,null,null,null,null,null,null,null,null,null,null,null,null,null,null,null,null,null,null,null,null,null,null,null,null,null,null,null,null,null,null,null,null,null,null,{"$f":"Заявление!CN165","v":""},null,null,null,null,null,null,null,null,null,null,null,null,null,null,null,null,null,null,null,null,null,null,null,null,null,null,null,null,null,null,null,null,null,null,null,null,null,null,null,null,null,null,0]
["4.18.",null,null,null,null,null,null,null,null,null,null,null,null,null,null,null,null,null,null,null,null,null,null,null,null,null,null,null,null,null,null,null,null,null,null,null,null,null,null,null,null,null,null,null,null,null,null,null,null,null,null,null,null,null,null,null,null,null,null,null,null,null,null,null,null,null,null,null,null,null,null,null,null,null,null,null,null,null,null,null,null,null,null,null,null,null,null,null,null,null,null,null,null,null,null,null,null,null,null,null,null,null,null,null,null,null,null,null,null,null,null,null,{"$f":"Заявление!CN165","v":""},null,null,null,null,null,null,null,null,null,null,null,null,null,null,null,null,null,null,null,null,null,null,null,null,null,null,null,null,null,null,null,null,null,null,null,null,null,null,null,null,null,null,0]
["4.19.",null,null,null,null,null,null,null,null,null,null,null,null,null,null,null,null,null,null,null,null,null,null,null,null,null,null,null,null,null,null,null,null,null,null,null,null,null,null,null,null,null,null,null,null,null,null,null,null,null,null,null,null,null,null,null,null,null,null,null,null,null,null,null,null,null,null,null,null,null,null,null,null,null,null,null,null,null,null,null,null,null,null,null,null,null,null,null,null,null,null,null,null,null,null,null,null,null,null,null,null,null,null,null,null,null,null,null,null,null,null,null,{"$f":"Заявление!CN165","v":""},null,null,null,null,null,null,null,null,null,null,null,null,null,null,null,null,null,null,null,null,null,null,null,null,null,null,null,null,null,null,null,null,null,null,null,null,null,null,null,null,null,null,0]
["4.20.",null,null,null,null,null,null,null,null,null,null,null,null,null,null,null,null,null,null,null,null,null,null,null,null,null,null,null,null,null,null,null,null,null,null,null,null,null,null,null,null,null,null,null,null,null,null,null,null,null,null,null,null,null,null,null,null,null,null,null,null,null,null,null,null,null,null,null,null,null,null,null,null,null,null,null,null,null,null,null,null,null,null,null,null,null,null,null,null,null,null,null,null,null,null,null,null,null,null,null,null,null,null,null,null,null,null,null,null,null,null,null,{"$f":"Заявление!CN165","v":""},null,null,null,null,null,null,null,null,null,null,null,null,null,null,null,null,null,null,null,null,null,null,null,null,null,null,null,null,null,null,null,null,null,null,null,null,null,null,null,null,null,null,0]
["5.","Торговые (выставочные) витрины внутри помещений, стеклянные перегородки, в т.ч.:",null,null,null,null,null,null,null,null,null,null,null,null,null,null,null,null,null,null,null,null,null,null,null,null,null,null,null,null,null,null,null,null,null,null,null,null,null,null,null,null,null,null,null,null,null,null,null,null,null,null,null,null,null,null,null,null,null,null,null,null,null,null,null,null,null,null,null,null,null,null,null,null,null,null,null,null,null,null,null,null,null,null,null,null,null,null,null,null,null,null,null,null,{"$f":"SUM(CQ94:DH113)","v":0},null,null,null,null,null,null,null,null,null,null,null,null,null,null,null,null,null,{"$f":"Заявление!CN169","v":""},null,null,null,null,null,null,null,null,null,null,null,null,null,null,null,null,null,null,null,null,null,null,null,null,null,null,null,null,null,null,null,null,null,null,null,null,null,null,null,null,null,null,0,null,null,null,null,null,null,null,null,null,null,null,null,null,null,null,null,null,null,null,null,null,null,null,null,null,null,null,null,null,null,null,null,null,null,null,null,null,null,null,null,null,null,null,null,null,null,null,null,null,null,null,null,null,null,null,null,null,null,null,null,null,null,null,null,null,null,null,null,null,null,null,null,null,null,null,null,null,null,5,{"$f":"CQ93","v":0}]
["5.1.",null,null,null,null,null,null,null,null,null,null,null,null,null,null,null,null,null,null,null,null,null,null,null,null,null,null,null,null,null,null,null,null,null,null,null,null,null,null,null,null,null,null,null,null,null,null,null,null,null,null,null,null,null,null,null,null,null,null,null,null,null,null,null,null,null,null,null,null,null,null,null,null,null,null,null,null,null,null,null,null,null,null,null,null,null,null,null,null,null,null,null,null,null,null,null,null,null,null,null,null,null,null,null,null,null,null,null,null,null,null,null,{"$f":"Заявление!CN169","v":""},null,null,null,null,null,null,null,null,null,null,null,null,null,null,null,null,null,null,null,null,null,null,null,null,null,null,null,null,null,null,null,null,null,null,null,null,null,null,null,null,null,null,0]
["5.2.",null,null,null,null,null,null,null,null,null,null,null,null,null,null,null,null,null,null,null,null,null,null,null,null,null,null,null,null,null,null,null,null,null,null,null,null,null,null,null,null,null,null,null,null,null,null,null,null,null,null,null,null,null,null,null,null,null,null,null,null,null,null,null,null,null,null,null,null,null,null,null,null,null,null,null,null,null,null,null,null,null,null,null,null,null,null,null,null,null,null,null,null,null,null,null,null,null,null,null,null,null,null,null,null,null,null,null,null,null,null,null,{"$f":"Заявление!CN169","v":""},null,null,null,null,null,null,null,null,null,null,null,null,null,null,null,null,null,null,null,null,null,null,null,null,null,null,null,null,null,null,null,null,null,null,null,null,null,null,null,null,null,null,0]
["5.3.",null,null,null,null,null,null,null,null,null,null,null,null,null,null,null,null,null,null,null,null,null,null,null,null,null,null,null,null,null,null,null,null,null,null,null,null,null,null,null,null,null,null,null,null,null,null,null,null,null,null,null,null,null,null,null,null,null,null,null,null,null,null,null,null,null,null,null,null,null,null,null,null,null,null,null,null,null,null,null,null,null,null,null,null,null,null,null,null,null,null,null,null,null,null,null,null,null,null,null,null,null,null,null,null,null,null,null,null,null,null,null,{"$f":"Заявление!CN169","v":""},null,null,null,null,null,null,null,null,null,null,null,null,null,null,null,null,null,null,null,null,null,null,null,null,null,null,null,null,null,null,null,null,null,null,null,null,null,null,null,null,null,null,0]
["5.4.",null,null,null,null,null,null,null,null,null,null,null,null,null,null,null,null,null,null,null,null,null,null,null,null,null,null,null,null,null,null,null,null,null,null,null,null,null,null,null,null,null,null,null,null,null,null,null,null,null,null,null,null,null,null,null,null,null,null,null,null,null,null,null,null,null,null,null,null,null,null,null,null,null,null,null,null,null,null,null,null,null,null,null,null,null,null,null,null,null,null,null,null,null,null,null,null,null,null,null,null,null,null,null,null,null,null,null,null,null,null,null,{"$f":"Заявление!CN169","v":""},null,null,null,null,null,null,null,null,null,null,null,null,null,null,null,null,null,null,null,null,null,null,null,null,null,null,null,null,null,null,null,null,null,null,null,null,null,null,null,null,null,null,0]
["5.5.",null,null,null,null,null,null,null,null,null,null,null,null,null,null,null,null,null,null,null,null,null,null,null,null,null,null,null,null,null,null,null,null,null,null,null,null,null,null,null,null,null,null,null,null,null,null,null,null,null,null,null,null,null,null,null,null,null,null,null,null,null,null,null,null,null,null,null,null,null,null,null,null,null,null,null,null,null,null,null,null,null,null,null,null,null,null,null,null,null,null,null,null,null,null,null,null,null,null,null,null,null,null,null,null,null,null,null,null,null,null,null,{"$f":"Заявление!CN169","v":""},null,null,null,null,null,null,null,null,null,null,null,null,null,null,null,null,null,null,null,null,null,null,null,null,null,null,null,null,null,null,null,null,null,null,null,null,null,null,null,null,null,null,0]
["5.6.",null,null,null,null,null,null,null,null,null,null,null,null,null,null,null,null,null,null,null,null,null,null,null,null,null,null,null,null,null,null,null,null,null,null,null,null,null,null,null,null,null,null,null,null,null,null,null,null,null,null,null,null,null,null,null,null,null,null,null,null,null,null,null,null,null,null,null,null,null,null,null,null,null,null,null,null,null,null,null,null,null,null,null,null,null,null,null,null,null,null,null,null,null,null,null,null,null,null,null,null,null,null,null,null,null,null,null,null,null,null,null,{"$f":"Заявление!CN169","v":""},null,null,null,null,null,null,null,null,null,null,null,null,null,null,null,null,null,null,null,null,null,null,null,null,null,null,null,null,null,null,null,null,null,null,null,null,null,null,null,null,null,null,0]
["5.7.",null,null,null,null,null,null,null,null,null,null,null,null,null,null,null,null,null,null,null,null,null,null,null,null,null,null,null,null,null,null,null,null,null,null,null,null,null,null,null,null,null,null,null,null,null,null,null,null,null,null,null,null,null,null,null,null,null,null,null,null,null,null,null,null,null,null,null,null,null,null,null,null,null,null,null,null,null,null,null,null,null,null,null,null,null,null,null,null,null,null,null,null,null,null,null,null,null,null,null,null,null,null,null,null,null,null,null,null,null,null,null,{"$f":"Заявление!CN169","v":""},null,null,null,null,null,null,null,null,null,null,null,null,null,null,null,null,null,null,null,null,null,null,null,null,null,null,null,null,null,null,null,null,null,null,null,null,null,null,null,null,null,null,0]
["5.8.",null,null,null,null,null,null,null,null,null,null,null,null,null,null,null,null,null,null,null,null,null,null,null,null,null,null,null,null,null,null,null,null,null,null,null,null,null,null,null,null,null,null,null,null,null,null,null,null,null,null,null,null,null,null,null,null,null,null,null,null,null,null,null,null,null,null,null,null,null,null,null,null,null,null,null,null,null,null,null,null,null,null,null,null,null,null,null,null,null,null,null,null,null,null,null,null,null,null,null,null,null,null,null,null,null,null,null,null,null,null,null,{"$f":"Заявление!CN169","v":""},null,null,null,null,null,null,null,null,null,null,null,null,null,null,null,null,null,null,null,null,null,null,null,null,null,null,null,null,null,null,null,null,null,null,null,null,null,null,null,null,null,null,0]
["5.9.",null,null,null,null,null,null,null,null,null,null,null,null,null,null,null,null,null,null,null,null,null,null,null,null,null,null,null,null,null,null,null,null,null,null,null,null,null,null,null,null,null,null,null,null,null,null,null,null,null,null,null,null,null,null,null,null,null,null,null,null,null,null,null,null,null,null,null,null,null,null,null,null,null,null,null,null,null,null,null,null,null,null,null,null,null,null,null,null,null,null,null,null,null,null,null,null,null,null,null,null,null,null,null,null,null,null,null,null,null,null,null,{"$f":"Заявление!CN169","v":""},null,null,null,null,null,null,null,null,null,null,null,null,null,null,null,null,null,null,null,null,null,null,null,null,null,null,null,null,null,null,null,null,null,null,null,null,null,null,null,null,null,null,0]
["5.10.",null,null,null,null,null,null,null,null,null,null,null,null,null,null,null,null,null,null,null,null,null,null,null,null,null,null,null,null,null,null,null,null,null,null,null,null,null,null,null,null,null,null,null,null,null,null,null,null,null,null,null,null,null,null,null,null,null,null,null,null,null,null,null,null,null,null,null,null,null,null,null,null,null,null,null,null,null,null,null,null,null,null,null,null,null,null,null,null,null,null,null,null,null,null,null,null,null,null,null,null,null,null,null,null,null,null,null,null,null,null,null,{"$f":"Заявление!CN169","v":""},null,null,null,null,null,null,null,null,null,null,null,null,null,null,null,null,null,null,null,null,null,null,null,null,null,null,null,null,null,null,null,null,null,null,null,null,null,null,null,null,null,null,0]
["5.11.",null,null,null,null,null,null,null,null,null,null,null,null,null,null,null,null,null,null,null,null,null,null,null,null,null,null,null,null,null,null,null,null,null,null,null,null,null,null,null,null,null,null,null,null,null,null,null,null,null,null,null,null,null,null,null,null,null,null,null,null,null,null,null,null,null,null,null,null,null,null,null,null,null,null,null,null,null,null,null,null,null,null,null,null,null,null,null,null,null,null,null,null,null,null,null,null,null,null,null,null,null,null,null,null,null,null,null,null,null,null,null,{"$f":"Заявление!CN169","v":""},null,null,null,null,null,null,null,null,null,null,null,null,null,null,null,null,null,null,null,null,null,null,null,null,null,null,null,null,null,null,null,null,null,null,null,null,null,null,null,null,null,null,0]
["5.12.",null,null,null,null,null,null,null,null,null,null,null,null,null,null,null,null,null,null,null,null,null,null,null,null,null,null,null,null,null,null,null,null,null,null,null,null,null,null,null,null,null,null,null,null,null,null,null,null,null,null,null,null,null,null,null,null,null,null,null,null,null,null,null,null,null,null,null,null,null,null,null,null,null,null,null,null,null,null,null,null,null,null,null,null,null,null,null,null,null,null,null,null,null,null,null,null,null,null,null,null,null,null,null,null,null,null,null,null,null,null,null,{"$f":"Заявление!CN169","v":""},null,null,null,null,null,null,null,null,null,null,null,null,null,null,null,null,null,null,null,null,null,null,null,null,null,null,null,null,null,null,null,null,null,null,null,null,null,null,null,null,null,null,0]
["5.13.",null,null,null,null,null,null,null,null,null,null,null,null,null,null,null,null,null,null,null,null,null,null,null,null,null,null,null,null,null,null,null,null,null,null,null,null,null,null,null,null,null,null,null,null,null,null,null,null,null,null,null,null,null,null,null,null,null,null,null,null,null,null,null,null,null,null,null,null,null,null,null,null,null,null,null,null,null,null,null,null,null,null,null,null,null,null,null,null,null,null,null,null,null,null,null,null,null,null,null,null,null,null,null,null,null,null,null,null,null,null,null,{"$f":"Заявление!CN169","v":""},null,null,null,null,null,null,null,null,null,null,null,null,null,null,null,null,null,null,null,null,null,null,null,null,null,null,null,null,null,null,null,null,null,null,null,null,null,null,null,null,null,null,0]
["5.14.",null,null,null,null,null,null,null,null,null,null,null,null,null,null,null,null,null,null,null,null,null,null,null,null,null,null,null,null,null,null,null,null,null,null,null,null,null,null,null,null,null,null,null,null,null,null,null,null,null,null,null,null,null,null,null,null,null,null,null,null,null,null,null,null,null,null,null,null,null,null,null,null,null,null,null,null,null,null,null,null,null,null,null,null,null,null,null,null,null,null,null,null,null,null,null,null,null,null,null,null,null,null,null,null,null,null,null,null,null,null,null,{"$f":"Заявление!CN169","v":""},null,null,null,null,null,null,null,null,null,null,null,null,null,null,null,null,null,null,null,null,null,null,null,null,null,null,null,null,null,null,null,null,null,null,null,null,null,null,null,null,null,null,0]
["5.15.",null,null,null,null,null,null,null,null,null,null,null,null,null,null,null,null,null,null,null,null,null,null,null,null,null,null,null,null,null,null,null,null,null,null,null,null,null,null,null,null,null,null,null,null,null,null,null,null,null,null,null,null,null,null,null,null,null,null,null,null,null,null,null,null,null,null,null,null,null,null,null,null,null,null,null,null,null,null,null,null,null,null,null,null,null,null,null,null,null,null,null,null,null,null,null,null,null,null,null,null,null,null,null,null,null,null,null,null,null,null,null,{"$f":"Заявление!CN169","v":""},null,null,null,null,null,null,null,null,null,null,null,null,null,null,null,null,null,null,null,null,null,null,null,null,null,null,null,null,null,null,null,null,null,null,null,null,null,null,null,null,null,null,0]
["5.16.",null,null,null,null,null,null,null,null,null,null,null,null,null,null,null,null,null,null,null,null,null,null,null,null,null,null,null,null,null,null,null,null,null,null,null,null,null,null,null,null,null,null,null,null,null,null,null,null,null,null,null,null,null,null,null,null,null,null,null,null,null,null,null,null,null,null,null,null,null,null,null,null,null,null,null,null,null,null,null,null,null,null,null,null,null,null,null,null,null,null,null,null,null,null,null,null,null,null,null,null,null,null,null,null,null,null,null,null,null,null,null,{"$f":"Заявление!CN169","v":""},null,null,null,null,null,null,null,null,null,null,null,null,null,null,null,null,null,null,null,null,null,null,null,null,null,null,null,null,null,null,null,null,null,null,null,null,null,null,null,null,null,null,0]
["5.17.",null,null,null,null,null,null,null,null,null,null,null,null,null,null,null,null,null,null,null,null,null,null,null,null,null,null,null,null,null,null,null,null,null,null,null,null,null,null,null,null,null,null,null,null,null,null,null,null,null,null,null,null,null,null,null,null,null,null,null,null,null,null,null,null,null,null,null,null,null,null,null,null,null,null,null,null,null,null,null,null,null,null,null,null,null,null,null,null,null,null,null,null,null,null,null,null,null,null,null,null,null,null,null,null,null,null,null,null,null,null,null,{"$f":"Заявление!CN169","v":""},null,null,null,null,null,null,null,null,null,null,null,null,null,null,null,null,null,null,null,null,null,null,null,null,null,null,null,null,null,null,null,null,null,null,null,null,null,null,null,null,null,null,0]
["5.18.",null,null,null,null,null,null,null,null,null,null,null,null,null,null,null,null,null,null,null,null,null,null,null,null,null,null,null,null,null,null,null,null,null,null,null,null,null,null,null,null,null,null,null,null,null,null,null,null,null,null,null,null,null,null,null,null,null,null,null,null,null,null,null,null,null,null,null,null,null,null,null,null,null,null,null,null,null,null,null,null,null,null,null,null,null,null,null,null,null,null,null,null,null,null,null,null,null,null,null,null,null,null,null,null,null,null,null,null,null,null,null,{"$f":"Заявление!CN169","v":""},null,null,null,null,null,null,null,null,null,null,null,null,null,null,null,null,null,null,null,null,null,null,null,null,null,null,null,null,null,null,null,null,null,null,null,null,null,null,null,null,null,null,0]
["5.19.",null,null,null,null,null,null,null,null,null,null,null,null,null,null,null,null,null,null,null,null,null,null,null,null,null,null,null,null,null,null,null,null,null,null,null,null,null,null,null,null,null,null,null,null,null,null,null,null,null,null,null,null,null,null,null,null,null,null,null,null,null,null,null,null,null,null,null,null,null,null,null,null,null,null,null,null,null,null,null,null,null,null,null,null,null,null,null,null,null,null,null,null,null,null,null,null,null,null,null,null,null,null,null,null,null,null,null,null,null,null,null,{"$f":"Заявление!CN169","v":""},null,null,null,null,null,null,null,null,null,null,null,null,null,null,null,null,null,null,null,null,null,null,null,null,null,null,null,null,null,null,null,null,null,null,null,null,null,null,null,null,null,null,0]
["5.20.",null,null,null,null,null,null,null,null,null,null,null,null,null,null,null,null,null,null,null,null,null,null,null,null,null,null,null,null,null,null,null,null,null,null,null,null,null,null,null,null,null,null,null,null,null,null,null,null,null,null,null,null,null,null,null,null,null,null,null,null,null,null,null,null,null,null,null,null,null,null,null,null,null,null,null,null,null,null,null,null,null,null,null,null,null,null,null,null,null,null,null,null,null,null,null,null,null,null,null,null,null,null,null,null,null,null,null,null,null,null,null,{"$f":"Заявление!CN169","v":""},null,null,null,null,null,null,null,null,null,null,null,null,null,null,null,null,null,null,null,null,null,null,null,null,null,null,null,null,null,null,null,null,null,null,null,null,null,null,null,null,null,null,0]
["6.","Иное:, в т.ч.:",null,null,null,null,null,null,null,null,null,null,null,null,null,null,null,null,null,null,null,null,null,null,null,null,null,null,null,null,null,null,null,null,null,null,null,null,null,null,null,null,null,null,null,null,null,null,null,null,null,null,null,null,null,null,null,null,null,null,null,null,null,null,null,null,null,null,null,null,null,null,null,null,null,null,null,null,null,null,null,null,null,null,null,null,null,null,null,null,null,null,null,null,{"$f":"SUM(CQ115:DH134)","v":0},null,null,null,null,null,null,null,null,null,null,null,null,null,null,null,null,null,{"$f":"Заявление!CN173","v":""},null,null,null,null,null,null,null,null,null,null,null,null,null,null,null,null,null,null,null,null,null,null,null,null,null,null,null,null,null,null,null,null,null,null,null,null,null,null,null,null,null,null,0,null,null,null,null,null,null,null,null,null,null,null,null,null,null,null,null,null,null,null,null,null,null,null,null,null,null,null,null,null,null,null,null,null,null,null,null,null,null,null,null,null,null,null,null,null,null,null,null,null,null,null,null,null,null,null,null,null,null,null,null,null,null,null,null,null,null,null,null,null,null,null,null,null,null,null,null,null,null,6,{"$f":"CQ114","v":0}]
["6.1.",null,null,null,null,null,null,null,null,null,null,null,null,null,null,null,null,null,null,null,null,null,null,null,null,null,null,null,null,null,null,null,null,null,null,null,null,null,null,null,null,null,null,null,null,null,null,null,null,null,null,null,null,null,null,null,null,null,null,null,null,null,null,null,null,null,null,null,null,null,null,null,null,null,null,null,null,null,null,null,null,null,null,null,null,null,null,null,null,null,null,null,null,null,null,null,null,null,null,null,null,null,null,null,null,null,null,null,null,null,null,null,{"$f":"Заявление!CN173","v":""},null,null,null,null,null,null,null,null,null,null,null,null,null,null,null,null,null,null,null,null,null,null,null,null,null,null,null,null,null,null,null,null,null,null,null,null,null,null,null,null,null,null,0]
["6.2.",null,null,null,null,null,null,null,null,null,null,null,null,null,null,null,null,null,null,null,null,null,null,null,null,null,null,null,null,null,null,null,null,null,null,null,null,null,null,null,null,null,null,null,null,null,null,null,null,null,null,null,null,null,null,null,null,null,null,null,null,null,null,null,null,null,null,null,null,null,null,null,null,null,null,null,null,null,null,null,null,null,null,null,null,null,null,null,null,null,null,null,null,null,null,null,null,null,null,null,null,null,null,null,null,null,null,null,null,null,null,null,{"$f":"Заявление!CN173","v":""},null,null,null,null,null,null,null,null,null,null,null,null,null,null,null,null,null,null,null,null,null,null,null,null,null,null,null,null,null,null,null,null,null,null,null,null,null,null,null,null,null,null,0]
["6.3.",null,null,null,null,null,null,null,null,null,null,null,null,null,null,null,null,null,null,null,null,null,null,null,null,null,null,null,null,null,null,null,null,null,null,null,null,null,null,null,null,null,null,null,null,null,null,null,null,null,null,null,null,null,null,null,null,null,null,null,null,null,null,null,null,null,null,null,null,null,null,null,null,null,null,null,null,null,null,null,null,null,null,null,null,null,null,null,null,null,null,null,null,null,null,null,null,null,null,null,null,null,null,null,null,null,null,null,null,null,null,null,{"$f":"Заявление!CN173","v":""},null,null,null,null,null,null,null,null,null,null,null,null,null,null,null,null,null,null,null,null,null,null,null,null,null,null,null,null,null,null,null,null,null,null,null,null,null,null,null,null,null,null,0]
["6.4.",null,null,null,null,null,null,null,null,null,null,null,null,null,null,null,null,null,null,null,null,null,null,null,null,null,null,null,null,null,null,null,null,null,null,null,null,null,null,null,null,null,null,null,null,null,null,null,null,null,null,null,null,null,null,null,null,null,null,null,null,null,null,null,null,null,null,null,null,null,null,null,null,null,null,null,null,null,null,null,null,null,null,null,null,null,null,null,null,null,null,null,null,null,null,null,null,null,null,null,null,null,null,null,null,null,null,null,null,null,null,null,{"$f":"Заявление!CN173","v":""},null,null,null,null,null,null,null,null,null,null,null,null,null,null,null,null,null,null,null,null,null,null,null,null,null,null,null,null,null,null,null,null,null,null,null,null,null,null,null,null,null,null,0]
["6.5.",null,null,null,null,null,null,null,null,null,null,null,null,null,null,null,null,null,null,null,null,null,null,null,null,null,null,null,null,null,null,null,null,null,null,null,null,null,null,null,null,null,null,null,null,null,null,null,null,null,null,null,null,null,null,null,null,null,null,null,null,null,null,null,null,null,null,null,null,null,null,null,null,null,null,null,null,null,null,null,null,null,null,null,null,null,null,null,null,null,null,null,null,null,null,null,null,null,null,null,null,null,null,null,null,null,null,null,null,null,null,null,{"$f":"Заявление!CN173","v":""},null,null,null,null,null,null,null,null,null,null,null,null,null,null,null,null,null,null,null,null,null,null,null,null,null,null,null,null,null,null,null,null,null,null,null,null,null,null,null,null,null,null,0]
["6.6.",null,null,null,null,null,null,null,null,null,null,null,null,null,null,null,null,null,null,null,null,null,null,null,null,null,null,null,null,null,null,null,null,null,null,null,null,null,null,null,null,null,null,null,null,null,null,null,null,null,null,null,null,null,null,null,null,null,null,null,null,null,null,null,null,null,null,null,null,null,null,null,null,null,null,null,null,null,null,null,null,null,null,null,null,null,null,null,null,null,null,null,null,null,null,null,null,null,null,null,null,null,null,null,null,null,null,null,null,null,null,null,{"$f":"Заявление!CN173","v":""},null,null,null,null,null,null,null,null,null,null,null,null,null,null,null,null,null,null,null,null,null,null,null,null,null,null,null,null,null,null,null,null,null,null,null,null,null,null,null,null,null,null,0]
["6.7.",null,null,null,null,null,null,null,null,null,null,null,null,null,null,null,null,null,null,null,null,null,null,null,null,null,null,null,null,null,null,null,null,null,null,null,null,null,null,null,null,null,null,null,null,null,null,null,null,null,null,null,null,null,null,null,null,null,null,null,null,null,null,null,null,null,null,null,null,null,null,null,null,null,null,null,null,null,null,null,null,null,null,null,null,null,null,null,null,null,null,null,null,null,null,null,null,null,null,null,null,null,null,null,null,null,null,null,null,null,null,null,{"$f":"Заявление!CN173","v":""},null,null,null,null,null,null,null,null,null,null,null,null,null,null,null,null,null,null,null,null,null,null,null,null,null,null,null,null,null,null,null,null,null,null,null,null,null,null,null,null,null,null,0]
["6.8.",null,null,null,null,null,null,null,null,null,null,null,null,null,null,null,null,null,null,null,null,null,null,null,null,null,null,null,null,null,null,null,null,null,null,null,null,null,null,null,null,null,null,null,null,null,null,null,null,null,null,null,null,null,null,null,null,null,null,null,null,null,null,null,null,null,null,null,null,null,null,null,null,null,null,null,null,null,null,null,null,null,null,null,null,null,null,null,null,null,null,null,null,null,null,null,null,null,null,null,null,null,null,null,null,null,null,null,null,null,null,null,{"$f":"Заявление!CN173","v":""},null,null,null,null,null,null,null,null,null,null,null,null,null,null,null,null,null,null,null,null,null,null,null,null,null,null,null,null,null,null,null,null,null,null,null,null,null,null,null,null,null,null,0]
["6.9.",null,null,null,null,null,null,null,null,null,null,null,null,null,null,null,null,null,null,null,null,null,null,null,null,null,null,null,null,null,null,null,null,null,null,null,null,null,null,null,null,null,null,null,null,null,null,null,null,null,null,null,null,null,null,null,null,null,null,null,null,null,null,null,null,null,null,null,null,null,null,null,null,null,null,null,null,null,null,null,null,null,null,null,null,null,null,null,null,null,null,null,null,null,null,null,null,null,null,null,null,null,null,null,null,null,null,null,null,null,null,null,{"$f":"Заявление!CN173","v":""},null,null,null,null,null,null,null,null,null,null,null,null,null,null,null,null,null,null,null,null,null,null,null,null,null,null,null,null,null,null,null,null,null,null,null,null,null,null,null,null,null,null,0]
["6.10.",null,null,null,null,null,null,null,null,null,null,null,null,null,null,null,null,null,null,null,null,null,null,null,null,null,null,null,null,null,null,null,null,null,null,null,null,null,null,null,null,null,null,null,null,null,null,null,null,null,null,null,null,null,null,null,null,null,null,null,null,null,null,null,null,null,null,null,null,null,null,null,null,null,null,null,null,null,null,null,null,null,null,null,null,null,null,null,null,null,null,null,null,null,null,null,null,null,null,null,null,null,null,null,null,null,null,null,null,null,null,null,{"$f":"Заявление!CN173","v":""},null,null,null,null,null,null,null,null,null,null,null,null,null,null,null,null,null,null,null,null,null,null,null,null,null,null,null,null,null,null,null,null,null,null,null,null,null,null,null,null,null,null,0]
["6.11.",null,null,null,null,null,null,null,null,null,null,null,null,null,null,null,null,null,null,null,null,null,null,null,null,null,null,null,null,null,null,null,null,null,null,null,null,null,null,null,null,null,null,null,null,null,null,null,null,null,null,null,null,null,null,null,null,null,null,null,null,null,null,null,null,null,null,null,null,null,null,null,null,null,null,null,null,null,null,null,null,null,null,null,null,null,null,null,null,null,null,null,null,null,null,null,null,null,null,null,null,null,null,null,null,null,null,null,null,null,null,null,{"$f":"Заявление!CN173","v":""},null,null,null,null,null,null,null,null,null,null,null,null,null,null,null,null,null,null,null,null,null,null,null,null,null,null,null,null,null,null,null,null,null,null,null,null,null,null,null,null,null,null,0]
["6.12.",null,null,null,null,null,null,null,null,null,null,null,null,null,null,null,null,null,null,null,null,null,null,null,null,null,null,null,null,null,null,null,null,null,null,null,null,null,null,null,null,null,null,null,null,null,null,null,null,null,null,null,null,null,null,null,null,null,null,null,null,null,null,null,null,null,null,null,null,null,null,null,null,null,null,null,null,null,null,null,null,null,null,null,null,null,null,null,null,null,null,null,null,null,null,null,null,null,null,null,null,null,null,null,null,null,null,null,null,null,null,null,{"$f":"Заявление!CN173","v":""},null,null,null,null,null,null,null,null,null,null,null,null,null,null,null,null,null,null,null,null,null,null,null,null,null,null,null,null,null,null,null,null,null,null,null,null,null,null,null,null,null,null,0]
["6.13.",null,null,null,null,null,null,null,null,null,null,null,null,null,null,null,null,null,null,null,null,null,null,null,null,null,null,null,null,null,null,null,null,null,null,null,null,null,null,null,null,null,null,null,null,null,null,null,null,null,null,null,null,null,null,null,null,null,null,null,null,null,null,null,null,null,null,null,null,null,null,null,null,null,null,null,null,null,null,null,null,null,null,null,null,null,null,null,null,null,null,null,null,null,null,null,null,null,null,null,null,null,null,null,null,null,null,null,null,null,null,null,{"$f":"Заявление!CN173","v":""},null,null,null,null,null,null,null,null,null,null,null,null,null,null,null,null,null,null,null,null,null,null,null,null,null,null,null,null,null,null,null,null,null,null,null,null,null,null,null,null,null,null,0]
["6.14.",null,null,null,null,null,null,null,null,null,null,null,null,null,null,null,null,null,null,null,null,null,null,null,null,null,null,null,null,null,null,null,null,null,null,null,null,null,null,null,null,null,null,null,null,null,null,null,null,null,null,null,null,null,null,null,null,null,null,null,null,null,null,null,null,null,null,null,null,null,null,null,null,null,null,null,null,null,null,null,null,null,null,null,null,null,null,null,null,null,null,null,null,null,null,null,null,null,null,null,null,null,null,null,null,null,null,null,null,null,null,null,{"$f":"Заявление!CN173","v":""},null,null,null,null,null,null,null,null,null,null,null,null,null,null,null,null,null,null,null,null,null,null,null,null,null,null,null,null,null,null,null,null,null,null,null,null,null,null,null,null,null,null,0]
["6.15.",null,null,null,null,null,null,null,null,null,null,null,null,null,null,null,null,null,null,null,null,null,null,null,null,null,null,null,null,null,null,null,null,null,null,null,null,null,null,null,null,null,null,null,null,null,null,null,null,null,null,null,null,null,null,null,null,null,null,null,null,null,null,null,null,null,null,null,null,null,null,null,null,null,null,null,null,null,null,null,null,null,null,null,null,null,null,null,null,null,null,null,null,null,null,null,null,null,null,null,null,null,null,null,null,null,null,null,null,null,null,null,{"$f":"Заявление!CN173","v":""},null,null,null,null,null,null,null,null,null,null,null,null,null,null,null,null,null,null,null,null,null,null,null,null,null,null,null,null,null,null,null,null,null,null,null,null,null,null,null,null,null,null,0]
["6.16.",null,null,null,null,null,null,null,null,null,null,null,null,null,null,null,null,null,null,null,null,null,null,null,null,null,null,null,null,null,null,null,null,null,null,null,null,null,null,null,null,null,null,null,null,null,null,null,null,null,null,null,null,null,null,null,null,null,null,null,null,null,null,null,null,null,null,null,null,null,null,null,null,null,null,null,null,null,null,null,null,null,null,null,null,null,null,null,null,null,null,null,null,null,null,null,null,null,null,null,null,null,null,null,null,null,null,null,null,null,null,null,{"$f":"Заявление!CN173","v":""},null,null,null,null,null,null,null,null,null,null,null,null,null,null,null,null,null,null,null,null,null,null,null,null,null,null,null,null,null,null,null,null,null,null,null,null,null,null,null,null,null,null,0]
["6.17.",null,null,null,null,null,null,null,null,null,null,null,null,null,null,null,null,null,null,null,null,null,null,null,null,null,null,null,null,null,null,null,null,null,null,null,null,null,null,null,null,null,null,null,null,null,null,null,null,null,null,null,null,null,null,null,null,null,null,null,null,null,null,null,null,null,null,null,null,null,null,null,null,null,null,null,null,null,null,null,null,null,null,null,null,null,null,null,null,null,null,null,null,null,null,null,null,null,null,null,null,null,null,null,null,null,null,null,null,null,null,null,{"$f":"Заявление!CN173","v":""},null,null,null,null,null,null,null,null,null,null,null,null,null,null,null,null,null,null,null,null,null,null,null,null,null,null,null,null,null,null,null,null,null,null,null,null,null,null,null,null,null,null,0]
["6.18.",null,null,null,null,null,null,null,null,null,null,null,null,null,null,null,null,null,null,null,null,null,null,null,null,null,null,null,null,null,null,null,null,null,null,null,null,null,null,null,null,null,null,null,null,null,null,null,null,null,null,null,null,null,null,null,null,null,null,null,null,null,null,null,null,null,null,null,null,null,null,null,null,null,null,null,null,null,null,null,null,null,null,null,null,null,null,null,null,null,null,null,null,null,null,null,null,null,null,null,null,null,null,null,null,null,null,null,null,null,null,null,{"$f":"Заявление!CN173","v":""},null,null,null,null,null,null,null,null,null,null,null,null,null,null,null,null,null,null,null,null,null,null,null,null,null,null,null,null,null,null,null,null,null,null,null,null,null,null,null,null,null,null,0]
["6.19.",null,null,null,null,null,null,null,null,null,null,null,null,null,null,null,null,null,null,null,null,null,null,null,null,null,null,null,null,null,null,null,null,null,null,null,null,null,null,null,null,null,null,null,null,null,null,null,null,null,null,null,null,null,null,null,null,null,null,null,null,null,null,null,null,null,null,null,null,null,null,null,null,null,null,null,null,null,null,null,null,null,null,null,null,null,null,null,null,null,null,null,null,null,null,null,null,null,null,null,null,null,null,null,null,null,null,null,null,null,null,null,{"$f":"Заявление!CN173","v":""},null,null,null,null,null,null,null,null,null,null,null,null,null,null,null,null,null,null,null,null,null,null,null,null,null,null,null,null,null,null,null,null,null,null,null,null,null,null,null,null,null,null,0]
["6.20.",null,null,null,null,null,null,null,null,null,null,null,null,null,null,null,null,null,null,null,null,null,null,null,null,null,null,null,null,null,null,null,null,null,null,null,null,null,null,null,null,null,null,null,null,null,null,null,null,null,null,null,null,null,null,null,null,null,null,null,null,null,null,null,null,null,null,null,null,null,null,null,null,null,null,null,null,null,null,null,null,null,null,null,null,null,null,null,null,null,null,null,null,null,null,null,null,null,null,null,null,null,null,null,null,null,null,null,null,null,null,null,{"$f":"Заявление!CN173","v":""},null,null,null,null,null,null,null,null,null,null,null,null,null,null,null,null,null,null,null,null,null,null,null,null,null,null,null,null,null,null,null,null,null,null,null,null,null,null,null,null,null,null,0]
[null,"Итого по движимому имуществу:",null,null,null,null,null,null,null,null,null,null,null,null,null,null,null,null,null,null,null,null,null,null,null,null,null,null,null,null,null,null,null,null,null,null,null,null,null,null,null,null,null,null,null,null,null,null,null,null,null,null,null,null,null,null,null,null,null,null,null,null,null,null,null,null,null,null,null,null,null,null,null,null,null,null,null,null,null,null,null,null,null,null,null,null,null,null,null,null,null,null,null,null,{"$f":"CQ9+CQ30+CQ51+CQ72+CQ93+CQ114","v":0},null,null,null,null,null,null,null,null,null,null,null,null,null,null,null,null,null,{"$f":"полис!AM37","v":""},null,null,null,null,null,null,null,null,null,null,null,null,null,null,null,null,null,null,null,null,null,null,null,null,null,null,null,null,null,null,null,null,null,null,null,null,null,null,null,null,null,null,{"$f":"EZ9+EZ30+EZ51+EZ72+EZ93+EZ114","v":0},null,null,null,null,null,null,null,null,null,null,null,null,null,null,null,null,null,null,null,null,null,null,null,null,null,null,null,null,null,null,null,null,null,null,null,null,null,null,null,null,null,null,null,null,null,null,null,null,null,null,null,null,null,null,null,null,null,null,null,null,null,null,null,null,null,null,null,null,null,null,null,null,null,null,null,null,null,null,"с",{"$f":"CQ135","v":0}]
[]
[]
[null,"Примечания:"]
[]
[null,"(*) Коды рисков указываются в соответствии с кодировкой из пункта 2.1. раздела \"Риски (коды)\" Заявления о страховании"]
[]
[null,"Страхователь",null,null,null,null,null,null,null,null,null,null,null,null,null,null,null,null,null,null,null,null,null,null,null,null,null,null,null,null,null,null,null,null,null,null,null,null,null,null,null,null,null,null,null,null,null,null,null,null,null,null,null,null,null,null,null,null,null,"Дата составления перечня:",null,null,null,null,null,null,null,null,null,null,null,null,null,null,null,null,null,null,null,null,null,null,null,null,null,null,null,null,null,"«",null,{"$f":"CU6","v":0},null,null,"»",null,{"$f":"CZ6","v":0},null,null,null,null,null,null,null,null,null,null,null,null,null,null,null,null,20,null,null,null,null,{"$f":"DV6","v":0},null,null,"г."]
[null,"______________________(________________)"]

{"sheet":"опись отделки","index":5,"n_rows":51,"n_cols":78,"rows_kept":51,"cut":false,"hidden":true,"merged":[[21,0,26,0],[21,1,26,1],[21,2,26,2],[27,0,32,0],[27,1,32,1],[27,2,32,2],[15,0,20,0],[15,1,20,1],[15,2,20,2],[15,4,15,73],[16,4,16,73],[17,4,17,73],[18,4,18,73],[19,4,19,73],[20,4,20,73],[9,0,14,0],[10,4,10,73],[11,4,11,73],[12,4,12,73],[13,4,13,73],[14,4,14,73],[1,16,1,50],[6,2,6,73],[35,0,37,73],[31,4,31,73],[32,4,32,73],[1,53,1,78],[3,41,3,44],[3,45,3,46],[3,47,3,49],[3,50,3,51],[21,4,21,73],[22,4,22,73],[30,4,30,73],[23,4,23,73],[24,4,24,73],[25,4,25,73],[38,0,44,73],[49,4,49,32],[49,34,49,35],[3,77,3,78],[3,52,3,68],[3,69,3,73],[3,74,3,76],[27,4,27,73],[28,4,28,73],[29,4,29,73],[26,4,26,73],[8,3,8,73],[9,4,9,73],[6,0,6,1],[9,2,14,2],[9,1,14,1],[49,63,49,65],[49,66,49,67],[50,1,50,2],[49,1,49,2],[49,36,49,38],[49,39,49,40],[49,41,49,57],[49,58,49,62]]}
[]
[null,null,null,null,null,null,null,null,null,null,null,null,null,null,null,null,"Приложение № 2 к Заявлению № ",null,null,null,null,null,null,null,null,null,null,null,null,null,null,null,null,null,null,null,null,null,null,null,null,null,null,null,null,null,null,null,null,null,null,null,null,{"$f":"Заявление!BW21","v":0}]
[]
[null,"ОПИСЬ ОТДЕЛКИ И ИНЖЕНЕРНОГО ОБОРУДОВАНИЯ",null,null,null,null,null,null,null,null,null,null,null,null,null,null,null,null,null,null,null,null,null,null,null,null,null,null,null,null,null,null,null,null,null,null,null,null,null,null,null,"от",null,null,null,"«",null,{"$f":"Заявление!AG21","v":0},null,null,"»",null,{"$f":"Заявление!AL21","v":0},null,null,null,null,null,null,null,null,null,null,null,null,null,null,null,null,20,null,null,null,null,{"$f":"Заявление!BH21","v":0},null,null,"г."]
[]
[]
["Территория страхования:",null,{"$f":"Заявление!B59","v":" "}]
[]
["этаж","наименование помещения","площадь помещения, кв.м","описание отделки/ инженерного оборудования"]
[null,null,null,"полы"]
[null,null,null,"стены"]
[null,null,null,"потолки"]
[null,null,null,"окна"]
[null,null,null,"двери"]
[null,null,null,"инженерное оборудование"]
[null,null,null,"полы"]
[null,null,null,"стены"]
[null,null,null,"потолки"]
[null,null,null,"окна"]
[null,null,null,"двери"]
[null,null,null,"инженерное оборудование"]
[null,null,null,"полы"]
[null,null,null,"стены"]
[null,null,null,"потолки"]
[null,null,null,"окна"]
[null,null,null,"двери"]
[null,null,null,"инженерное оборудование"]
[null,null,null,"полы"]
[null,null,null,"стены"]
[null,null,null,"потолки"]
[null,null,null,"окна"]
[null,null,null,"двери"]
[null,null,null,"инженерное оборудование"]
[]
[]
["Дополнительные сведения:   "]
[]
[]
[]
[]
[]
[]
[]
[]
[]
[]
[]
[]
[]
[null,"Страхователь",null,null,"Дата составления перечня:",null,null,null,null,null,null,null,null,null,null,null,null,null,null,null,null,null,null,null,null,null,null,null,null,null,null,null,null,null,"«",null,{"$f":"AV4","v":0},null,null,"»",null,{"$f":"BA4","v":0},null,null,null,null,null,null,null,null,null,null,null,null,null,null,null,null,20,null,null,null,null,{"$f":"BW4","v":0},null,null,"г."]
[null,"______________________(________________)"]

{"sheet":"Акт Осмотра","index":6,"n_rows":36,"n_cols":33,"rows_kept":36,"cut":false,"hidden":true,"merged":[[27,0,27,1]]}
["Приложение № _______ к заявлению на страхование № _________________________ от _______________________"]
["АКТ ОСМОТРА имущества юридических лиц _____________________________________    "]
["                                                                                                                                                                                                                               наименованию ЮЛ                                                            "]
["Представитель Страхователя, присутствовавший при осмотре (должность, ФИО):_______________________________________________"]
["___________________________________________________________________________________________________________________________."]
["Представитель Страховщика, производивший осмотр: ________________________________________________________________________."]
["Дата проведения осмотра: __________________________________________________________________________________________________."]
["Территория страхования: _____________________________________________________________________________________________________."]
["Имущество находится:    "]
["Способ проведения осмотра: визуальный с использованием средств фото- и видеофиксации, без использования специальных технических средств, с учетом отсутствия у представителя страховщика инженерной подготовки и специальных знаний в области строительства."]
["Представитель страховщика по результатам произведенного им лично осмотра объектов, подлежащих страхованию по Договору, подтверждает следующее:"]
["1.     Достоверность сведений, сообщенных страхователем в заявлении о страховании (в той мере, в которой представитель мог их проверить путем визуального осмотра)."]
["2.     Имущество, подлежащее страхованию не располагается:"]
["- в пойме реки и других низинах/ углублениях суши в непосредственной близости от водоемов, которые могут затапливаться при повышении уровня воды в этих водоемах вследствие половодий, наводнений и т.п.;"]
["- на расстоянии менее 100 м от ОПО, места хранения ГСМ, сухостоя, ветхих строений, ЛЭП."]
["3.     На расстоянии ближе 100 м от заявленного на страхование имущества не проводятся: производственные, строительные работы, не применяется сварка и открытый огонь."]
["4.     На территории страхования не проводятся строительные/ремонтные, монтажные работы. Несущие и ограждающие конструкции всех строений (фундамент, стены, перекрытия, кровля, окна, двери и другие проемы в ограждающих конструкциях) закончены строительством, нет незакрытых проемов."]
["5.     На территории страхования введен запрет на курение, курение осуществляется только в специально оборудованных местах."]
["6.     В ходе осмотра не выявлены нарушения требований к состоянию инженерного оборудования:"]
["- не обнаружено каких-либо неисправностей, глубокой или массовой коррозии, нарушения теплоизоляции, большого количества следов ремонтов (в виде заварок, заплаток, хомутов и т.п.), наличия действующих протечек/следов протечек (пятна, грибок, вздутия, деформация материала), ослабления креплений инженерного оборудования к стенам и перекрытиям, других повреждений или недостатков элементов  систем водоснабжения, водяного отопления, канализации или водяного пожаротушения, которые могут привести к наступлению страхового случая по риску «повреждение водой»;"]
["- не обнаружено каких-либо неисправностей системы электроснабжения из числа следующих: неизолированные провода, искрение (выявляется по подпалинам в местах искрения), оплавленные контакты, оплавленная изоляция проводки, нет электросетей, проложенных открытым способом, нет следов температурного воздействия (копоть, сажа); отсутствует запах газа, гари;"]
["- светильники оборудованы защитными плафонами, решетками согласно нормам пожарной безопасности;"]
["- не обнаружено нарушений правил устройства и эксплуатации печей/каминов/дымоходов (следы копоти, сдвиг элементов, коррозия металлических частей, отсутствие предтопочных листов, отсутствие надлежащей теплоизоляции между элементами печи/дымохода и горючими конструкциями/объектами). "]
["7.     Средства механической защиты проемов не могут быть преодолены иным путем кроме как с использованием  технических средств. Решетки и роль-ставни не имеют повреждений."]
["8.     Внешние окна и двери не расположены ниже уровня земли."]
["9.  В помещениях отсутствуют калориферы/ТЭНы, электроплиты, другие электрические приборы для отопления и приготовления/разогрева пищи (исключая специально предназначенные для приготовления пищи микроволновые печи)."]
["10. Складские помещения/отсеки/боксы для хранения разделены противопожарными перегородками на всю высоту этажа."]
["См. продолжение на обороте "]
["11. Представитель Страховщика подтверждает все без исключения: "]
["                                                           ____________________________________________________________________________________________"]
["________________________________________________________________________________________________________________________________________________________________________________________________________________________________________________________________________________________________________________________________________________________________________________________________________________________________________________________________________________________________________________________________________________________________________________________________________________________________________________________________________________________________________________________"]
["Имеются следующие повреждения/дефекты/следы износа. Указанные повреждения/дефекты/следы износа зафиксированы на фото. "]
["___________________________________________________________________________________________________________________________________________________________________________________________________________________________________________________________________________________________________________________________________________________________________________________________________________________________________________________________________________________________________________________________________________________________________________________________________________________________________________________________________________________________________________________________________________________________________________________________________________________________________________________________________________________________________________________________________________________________________________________________________________________________________________________________________________________________________________________________________________________________________________________________________________________________________________________________________________________________________________________________________________________________________________________________________________________________________________________________________________________________________________________________________________________________________________________________________________________________________."]
[]
[]
[null,null,null,null,null,null,null,null,null,null,null,null,null,null,null,null,null,null,null,null,null,null,null,null,null,null,null,null,null,null,null,null," "]